Workbook

Sheet Control Panel
B8: Game Week | C8: Date | F8: =IF(SUM(G$9:G$20)>0,"ENABLED","") -> ENABLED | G8: Names | H8: Games Pld
B9: =IF(C9="","N","Week 1") -> Week 1 | C9: 29/09/14 | D9: NAGS HEAD "A" | E9: BUCK INN | F9: =IF(SUM(H$9:H$20)>0,"ENABLED","") -> ENABLED | G9: 1 | H9: 1
B10: =IF(C10="","N","Week 2") -> Week 2 | C10: 19/01/15 | D10: CRICKET CLUB | E10: CRICKET CLUB | F10: =IF(ISBLANK(D$9:D$20),"","ENABLED") -> ENABLED | G10: 1 | H10: 1
B11: =IF(C11="","N","Week 3") -> Week 3 | C11: 13/10/14 | D11: CROWN | E11: CROWN | G11: 1 | H11: 1
B12: =IF(C12="","N","Week 4") -> Week 4 | C12: 20/10/14 | D12: JOLLY MINSTER | E12: JOLLY MINSTER | G12: 1 | H12: 1
B13: =IF(C13="","N","Week 5") -> Week 5 | C13: 2014-03-11 | D13: WORKMENS CLUB "A" | E13: NAGS HEAD "A" | G13: 1 | H13: 1
B14: =IF(C14="","N","Week 6") -> Week 6 | C14: 2014-10-11 | D14: BUCK INN | E14: NAGS HEAD "B" | G14: 1 | H14: 1
B15: =IF(C15="","N","Week 7") -> Week 7 | C15: 24/11/14 | D15: ODD FELLOWS | E15: ODD FELLOWS | G15: 1 | H15: 1
B16: =IF(C16="","N","Week 8") -> Week 8 | C16: 2014-01-12 | D16: SPORTSMANS | E16: SPORTSMANS | G16: 1 | H16: 1
B17: =IF(C17="","N","Week 9") -> Week 9 | C17: 15/12/14 | D17: WORKMENS CLUB "B" | E17: WORKMENS CLUB "A" | G17: 1 | H17: 1
B18: =IF(C18="","N","Week 10") -> Week 10 | C18: 22/12/14 | D18: NAGS HEAD "B" | E18: WORKMENS CLUB "B" | G18: 1 | H18: 1
B19: =IF(C19="","N","Week 11") -> Week 11 | C19: 2015-05-01 | E19: BYE
B20: =IF(C20="","N","Week 12") -> Week 12 | C20: 2014-12-22 | E20: BYE
B21: =IF(C21="","N","Week 13") -> Week 13 | C21: 26/01/15
B22: =IF(C22="","N","Week 14") -> Week 14 | C22: 2015-09-02
B23: =IF(C23="","N","Week 15") -> Week 15 | C23: 16/02/15
B24: =IF(C24="","N","Week 16") -> Week 16 | C24: 2015-02-03
B25: =IF(C25="","N","Week 17") -> Week 17 | C25: 2015-09-03
B26: =IF(C26="","N","Week 18") -> Week 18 | C26: 23/03/15
B27: =IF(C27="","N","Week 19") -> N
B28: =IF(C28="","N","Week 20") -> N
B29: =IF(C29="","N","Week 21") -> N
B30: =IF(C30="","N","Week 22") -> N

Sheet Player Averages
A1: RANK | B1: NAME | C1: GAMES PLAYED | D1: GAMES WON | E1: POINTS SCORED | F1: DARTS THROWN | G1: AVERAGE DARTS PER GAME | H1: AVERAGE
A2: 1 | B2: Chris Garsed | C2: 14 | D2: 13 | E2: 9798 | F2: 396 | G2: 28.28571429 | H2: 74.22727273 | I2: 1 | J2: 1
A3: =IF(B3="","",I3) -> 2 | B3: Craig Monk | C3: 16 | D3: 13 | E3: 11159 | F3: 497 | G3: 31.0625 | H3: 67.35814889 | I3: =IF(H3=H2,A2,J3) -> 2 | J3: =SUM(J2+1) -> 2
A4: =IF(B4="","",I4) -> 3 | B4: Dennis Clarkson | C4: 16 | D4: 13 | E4: 11164 | F4: 525 | G4: 32.8125 | H4: 63.79428571 | I4: =IF(H4=H3,A3,J4) -> 3 | J4: =SUM(J3+1) -> 3
A5: 4 | B5: Sean Kendrew | C5: 16 | D5: 15 | E5: 11196 | F5: 527 | G5: 32.9375 | H5: 63.73434535 | I5: 4 | J5: 4
A6: 5 | B6: Kyle Young | C6: 15 | D6: 14 | E6: 10466 | F6: 511 | G6: 34.06666667 | H6: 61.44422701 | I6: 5 | J6: 5
A7: 6 | B7: Alan Martin | C7: 15 | D7: 13 | E7: 10497 | F7: 518 | G7: 34.53333333 | H7: 60.79343629 | I7: 6 | J7: 6
A8: 7 | B8: Ian Whittaker | C8: 15 | D8: 12 | E8: 10328 | F8: 520 | G8: 34.66666667 | H8: 59.58461538 | I8: 7 | J8: 7
A9: 8 | B9: Nigel Outram | C9: 16 | D9: 12 | E9: 10659 | F9: 546 | G9: 34.125 | H9: 58.56593407 | I9: 8 | J9: 8
A10: 9 | B10: Steve Blewitt | C10: 15 | D10: 12 | E10: 10025 | F10: 515 | G10: 34.33333333 | H10: 58.39805825 | I10: 9 | J10: 9
A11: 10 | B11: George Webb | C11: 16 | D11: 13 | E11: 10918 | F11: 563 | G11: 35.1875 | H11: 58.17761989 | I11: 10 | J11: 10
A12: 11 | B12: Dave Atkinson | C12: 15 | D12: 12 | E12: 10089 | F12: 527 | G12: 35.13333333 | H12: 57.43263757 | I12: 11 | J12: 11
A13: 12 | B13: George Kay | C13: 15 | D13: 10 | E13: 10307 | F13: 559 | G13: 37.26666667 | H13: 55.31484794 | I13: 12 | J13: 12
A14: 13 | B14: Howard Ward | C14: 5 | D14: 4 | E14: 3443 | F14: 188 | G14: 37.6 | H14: 54.94148936 | I14: 13 | J14: 13
A15: 14 | B15: Mike Wayman | C15: 13 | D15: 10 | E15: 9013 | F15: 494 | G15: 38 | H15: 54.73481781 | I15: 14 | J15: 14
A16: 15 | B16: Steve Truman | C16: 14 | D16: 10 | E16: 9587 | F16: 528 | G16: 37.71428571 | H16: 54.47159091 | I16: 15 | J16: 15
A17: 16 | B17: Matthew Cornforth | C17: 15 | D17: 8 | E17: 10072 | F17: 557 | G17: 37.13333333 | H17: 54.24775583 | I17: 16 | J17: 16
A18: 17 | B18: Mark Cox | C18: 16 | D18: 8 | E18: 10376 | F18: 584 | G18: 36.5 | H18: 53.30136986 | I18: 17 | J18: 17
A19: 18 | B19: Bob Carter | C19: 14 | D19: 8 | E19: 9228 | F19: 523 | G19: 37.35714286 | H19: 52.93307839 | I19: 18 | J19: 18
A20: 19 | B20: Ian Richards | C20: 13 | D20: 7 | E20: 8488 | F20: 482 | G20: 37.07692308 | H20: 52.82987552 | I20: 19 | J20: 19
A21: 20 | B21: Tim Whiting JNR | C21: 16 | D21: 9 | E21: 10408 | F21: 593 | G21: 37.0625 | H21: 52.65430017 | I21: 20 | J21: 20
A22: 21 | B22: Martin Young | C22: 16 | D22: 8 | E22: 10507 | F22: 601 | G22: 37.5625 | H22: 52.44758735 | I22: 21 | J22: 21
A23: 22 | B23: Andy Etherington | C23: 13 | D23: 6 | E23: 8447 | F23: 484 | G23: 37.23076923 | H23: 52.35743802 | I23: 22 | J23: 22
A24: 23 | B24: Col Lagan | C24: 9 | D24: 3 | E24: 5691 | F24: 329 | G24: 36.55555556 | H24: 51.89361702 | I24: 23 | J24: 23
A25: 24 | B25: Andy Johnson | C25: 15 | D25: 7 | E25: 9503 | F25: 551 | G25: 36.73333333 | H25: 51.74047187 | I25: 24 | J25: 24
A26: 25 | B26: Andy Monk | C26: 16 | D26: 8 | E26: 10543 | F26: 614 | G26: 38.375 | H26: 51.51302932 | I26: 25 | J26: 25
A27: 26 | B27: Kireon Timmons | C27: 2 | D27: 1 | E27: 1294 | F27: 76 | G27: 38 | H27: 51.07894737 | I27: 26 | J27: 26
A28: 27 | B28: Mark Outram | C28: 16 | D28: 6 | E28: 10292 | F28: 613 | G28: 38.3125 | H28: 50.36867863 | I28: 27 | J28: 27
A29: 28 | B29: Al Whelan | C29: 14 | D29: 9 | E29: 9495 | F29: 566 | G29: 40.42857143 | H29: 50.32685512 | I29: 28 | J29: 28
A30: 29 | B30: Chris Pattison | C30: 8 | D30: 5 | E30: 5388 | F30: 323 | G30: 40.375 | H30: 50.04334365 | I30: 29 | J30: 29
A31: 30 | B31: Bill Rispin | C31: 6 | D31: 1 | E31: 3385 | F31: 204 | G31: 34 | H31: 49.77941176 | I31: 30 | J31: 30
A32: 31 | B32: Mick Smedley | C32: 15 | D32: 11 | E32: 9860 | F32: 597 | G32: 39.8 | H32: 49.54773869 | I32: 31 | J32: 31
A33: 32 | B33: Morris Walker | C33: 16 | D33: 10 | E33: 10318 | F33: 629 | G33: 39.3125 | H33: 49.21144674 | I33: 32 | J33: 32
A34: 33 | B34: Dave Crilly | C34: 15 | D34: 4 | E34: 9133 | F34: 560 | G34: 37.33333333 | H34: 48.92678571 | I34: 33 | J34: 33
A35: 34 | B35: Phil Teare | C35: 16 | D35: 6 | E35: 10219 | F35: 632 | G35: 39.5 | H35: 48.50791139 | I35: 34 | J35: 34
A36: 35 | B36: Kenny Kerringan | C36: 5 | D36: 1 | E36: 2807 | F36: 174 | G36: 34.8 | H36: 48.39655172 | I36: 35 | J36: 35
A37: 36 | B37: Joe Hutchinson | C37: 14 | D37: 6 | E37: 9282 | F37: 577 | G37: 41.21428571 | H37: 48.25996534 | I37: 36 | J37: 36
A38: 37 | B38: Eric Stapley | C38: 15 | D38: 6 | E38: 10214 | F38: 638 | G38: 42.53333333 | H38: 48.02821317 | I38: 37 | J38: 37
A39: 38 | B39: Alex Sinclair | C39: 3 | D39: 2 | E39: 1886 | F39: 119 | G39: 39.66666667 | H39: 47.54621849 | I39: 38 | J39: 38
A40: 39 | B40: Steve Cooke | C40: 13 | D40: 6 | E40: 8209 | F40: 521 | G40: 40.07692308 | H40: 47.26871401 | I40: 39 | J40: 39
A41: 40 | B41: Al Spence | C41: 10 | D41: 6 | E41: 6688 | F41: 429 | G41: 42.9 | H41: 46.76923077 | I41: 40 | J41: 40
A42: 41 | B42: Steve Monk | C42: 10 | D42: 2 | E42: 6365 | F42: 410 | G42: 41 | H42: 46.57317073 | I42: 41 | J42: 41
A43: 42 | B43: Mel Paylor | C43: 13 | D43: 8 | E43: 8493 | F43: 552 | G43: 42.46153846 | H43: 46.1576087 | I43: 42 | J43: 42
A44: 43 | B44: Dan Buxton | C44: 14 | D44: 6 | E44: 9042 | F44: 589 | G44: 42.07142857 | H44: 46.05432937 | I44: 43 | J44: 43
A45: 44 | B45: Gaz Lumley | C45: 10 | D45: 3 | E45: 6019 | F45: 393 | G45: 39.3 | H45: 45.94656489 | I45: 44 | J45: 44
A46: 45 | B46: Steve Atkinson | C46: 12 | D46: 3 | E46: 7985 | F46: 525 | G46: 43.75 | H46: 45.62857143 | I46: 45 | J46: 45
A47: 46 | B47: Trevor Brown | C47: 15 | D47: 7 | E47: 9819 | F47: 646 | G47: 43.06666667 | H47: 45.59907121 | I47: 46 | J47: 46
A48: 47 | B48: Alex Watson | C48: 9 | D48: 4 | E48: 5882 | F48: 390 | G48: 43.33333333 | H48: 45.24615385 | I48: 47 | J48: 47
A49: 48 | B49: Jack Stevenson | C49: 2 | D49: 1 | E49: 1235 | F49: 82 | G49: 41 | H49: 45.18292683 | I49: 48 | J49: 48
A50: 49 | B50: Baz Pearson | C50: 13 | D50: 8 | E50: 8478 | F50: 566 | G50: 43.53846154 | H50: 44.93639576 | I50: 49 | J50: 49
A51: 50 | B51: Ian Atherton | C51: 16 | D51: 4 | E51: 9527 | F51: 643 | G51: 40.1875 | H51: 44.44945568 | I51: 50 | J51: 50
A52: 51 | B52: Phil Wells | C52: 9 | D52: 3 | E52: 5612 | F52: 385 | G52: 42.77777778 | H52: 43.72987013 | I52: 51 | J52: 51
A53: 52 | B53: Jake Doherty | C53: 1 | D53: 0 | E53: 699 | F53: 48 | G53: 48 | H53: 43.6875 | I53: 52 | J53: 52
A54: 53 | B54: David Langthorne | C54: 16 | D54: 4 | E54: 9777 | F54: 673 | G54: 42.0625 | H54: 43.58246657 | I54: 53 | J54: 53
A55: 54 | B55: Andy Haw | C55: 15 | D55: 5 | E55: 9408 | F55: 650 | G55: 43.33333333 | H55: 43.42153846 | I55: 54 | J55: 54
A56: 55 | B56: Chris Wayman | C56: 6 | D56: 2 | E56: 3810 | F56: 264 | G56: 44 | H56: 43.29545455 | I56: 55 | J56: 55
A57: 56 | B57: Carl Bickerton | C57: 11 | D57: 5 | E57: 6984 | F57: 485 | G57: 44.09090909 | H57: 43.2 | I57: 56 | J57: 56
A58: 57 | B58: Craig Burns | C58: 13 | D58: 3 | E58: 7766 | F58: 540 | G58: 41.53846154 | H58: 43.14444444 | I58: 57 | J58: 57
A59: 58 | B59: Pete Young | C59: 3 | D59: 0 | E59: 1680 | F59: 117 | G59: 39 | H59: 43.07692308 | I59: 58 | J59: 58
A60: 59 | B60: Sam Mathews | C60: 2 | D60: 0 | E60: 1243 | F60: 87 | G60: 43.5 | H60: 42.86206897 | I60: 59 | J60: 59
A61: 60 | B61: B. Dawson | C61: 12 | D61: 3 | E61: 7284 | F61: 511 | G61: 42.58333333 | H61: 42.76320939 | I61: 60 | J61: 60
A62: 61 | B62: Anthony Clemmet | C62: 16 | D62: 5 | E62: 10282 | F62: 722 | G62: 45.125 | H62: 42.72299169 | I62: 61 | J62: 61
A63: 62 | B63: Dave Thornton | C63: 6 | D63: 1 | E63: 3843 | F63: 273 | G63: 45.5 | H63: 42.23076923 | I63: 62 | J63: 62
A64: 63 | B64: Chris Cockerline | C64: 15 | D64: 4 | E64: 8892 | F64: 634 | G64: 42.26666667 | H64: 42.07570978 | I64: 63 | J64: 63
A65: 64 | B65: Chris Whiting | C65: 7 | D65: 2 | E65: 3904 | F65: 281 | G65: 40.14285714 | H65: 41.6797153 | I65: 64 | J65: 64
A66: 65 | B66: Morris Weighell | C66: 7 | D66: 2 | E66: 4508 | F66: 326 | G66: 46.57142857 | H66: 41.48466258 | I66: 65 | J66: 65
A67: 66 | B67: George McPhee | C67: 15 | D67: 3 | E67: 9026 | F67: 659 | G67: 43.93333333 | H67: 41.08952959 | I67: 66 | J67: 66
A68: =IF(B68="","",I68) -> 67 | B68: Darren Downs | C68: 8 | D68: 2 | E68: 4857 | F68: 355 | G68: 44.375 | H68: 41.04507042 | I68: =IF(H68=H67,A67,J68) -> 67 | J68: =SUM(J67+1) -> 67
A69: 68 | B69: Stuart Truman | C69: 9 | D69: 2 | E69: 5634 | F69: 417 | G69: 46.33333333 | H69: 40.5323741 | I69: 68 | J69: 68
A70: 69 | B70: Tymo Sobkowiak | C70: 16 | D70: 4 | E70: 9308 | F70: 706 | G70: 44.125 | H70: 39.55240793 | I70: 69 | J70: 69
A71: 70 | B71: Marty Burns | C71: 1 | D71: 0 | E71: 587 | F71: 45 | G71: 45 | H71: 39.13333333 | I71: 70 | J71: 70
A72: 71 | B72: Mark Natttrass | C72: 16 | D72: 3 | E72: 9360 | F72: 719 | G72: 44.9375 | H72: 39.054242 | I72: 71 | J72: 71
A73: 72 | B73: Richard Salton | C73: 1 | D73: 0 | E73: 343 | F73: 27 | G73: 27 | H73: 38.11111111 | I73: 72 | J73: 72
A74: 73 | B74: Tom Melvil | C74: 1 | D74: 0 | E74: 450 | F74: 36 | G74: 36 | H74: 37.5 | I74: 73 | J74: 73
A75: 74 | B75: Dean Wakeling | C75: 8 | D75: 1 | E75: 4078 | F75: 327 | G75: 40.875 | H75: 37.41284404 | I75: 74 | J75: 74
A76: 75 | B76: Greg Tozier | C76: 1 | D76: 0 | E76: 503 | F76: 48 | G76: 48 | H76: 31.4375 | I76: 75 | J76: 75
A77: 76 | B77: Pete Wilkinson | C77: 0 | D77: 0 | E77: 0 | F77: 0 | G77: 0 | H77: 0 | I77: 76 | J77: 76
A78: 76 | B78: Phil Wayman | C78: 0 | D78: 0 | E78: 0 | F78: 0 | G78: 0 | H78: 0 | I78: 76 | J78: 77
A79: 76 | B79: Bob Berry | C79: 0 | D79: 0 | E79: 0 | F79: 0 | G79: 0 | H79: 0 | I79: 76 | J79: 78
A80: 76 | B80: Ben Jack | C80: 0 | D80: 0 | E80: 0 | F80: 0 | G80: 0 | H80: 0 | I80: 76 | J80: 79
A81: 76 | B81: Tony Bell | C81: 0 | D81: 0 | E81: 0 | F81: 0 | G81: 0 | H81: 0 | I81: 76 | J81: 80
A82: 76 | B82: Shaun Raynor | C82: 0 | D82: 0 | E82: 0 | F82: 0 | G82: 0 | H82: 0 | I82: 76 | J82: 81
A83: 76 | B83: Adam Carter | C83: 0 | D83: 0 | E83: 0 | F83: 0 | G83: 0 | H83: 0 | I83: 76 | J83: 82
A84: 76 | B84: Tim Bowman | C84: 0 | D84: 0 | E84: 0 | F84: 0 | G84: 0 | H84: 0 | I84: 76 | J84: 83
A85: 76 | B85: Tony Read | C85: 0 | D85: 0 | E85: 0 | F85: 0 | G85: 0 | H85: 0 | I85: 76 | J85: 84
A86: 76 | B86: Josh Willis | C86: 0 | D86: 0 | E86: 0 | F86: 0 | G86: 0 | H86: 0 | I86: 76 | J86: 85
A87: 76 | B87: John Oliver | C87: 0 | D87: 0 | E87: 0 | F87: 0 | G87: 0 | H87: 0 | I87: 76 | J87: 86
A88: 76 | B88: Jim Timmons | C88: 0 | D88: 0 | E88: 0 | F88: 0 | G88: 0 | H88: 0 | I88: 76 | J88: 87
A89: 76 | B89: Graham Lake | C89: 0 | D89: 0 | E89: 0 | F89: 0 | G89: 0 | H89: 0 | I89: 76 | J89: 88
A90: 76 | B90: Kireon Timmons | C90: 0 | D90: 0 | E90: 0 | F90: 0 | G90: 0 | H90: 0 | I90: 76 | J90: 89
A91: 76 | B91: Kenny Kerrigan | C91: 0 | D91: 0 | E91: 0 | F91: 0 | G91: 0 | H91: 0 | I91: 76 | J91: 90
A92: 76 | B92: Lee Johnson | C92: 0 | D92: 0 | E92: 0 | F92: 0 | G92: 0 | H92: 0 | I92: 76 | J92: 91
A93: 76 | B93: Chris Timmons | C93: 0 | D93: 0 | E93: 0 | F93: 0 | G93: 0 | H93: 0 | I93: 76 | J93: 92
A94: 76 | B94: M. Meadley | C94: 0 | D94: 0 | E94: 0 | F94: 0 | G94: 0 | H94: 0 | I94: 76 | J94: 93
A95: 76 | B95: Liam Monk | C95: 0 | D95: 0 | E95: 0 | F95: 0 | G95: 0 | H95: 0 | I95: 76 | J95: 94
A96: 76 | B96: Tim Whiting SNR | C96: 0 | D96: 0 | E96: 0 | F96: 0 | G96: 0 | H96: 0 | I96: 76 | J96: 95
A97: 76 | B97: Ian Windress | C97: 0 | D97: 0 | E97: 0 | F97: 0 | G97: 0 | H97: 0 | I97: 76 | J97: 96
A98: 76 | B98: Dan Clarke | C98: 0 | D98: 0 | E98: 0 | F98: 0 | G98: 0 | H98: 0 | I98: 76 | J98: 97
A99: 76 | B99: Adam Richards | C99: 0 | D99: 0 | E99: 0 | F99: 0 | G99: 0 | H99: 0 | I99: 76 | J99: 98
A100: 76 | B100: Ian Appleby | C100: 0 | D100: 0 | E100: 0 | F100: 0 | G100: 0 | H100: 0 | I100: 76 | J100: 99
A101: 76 | B101: Steve Gibb | C101: 0 | D101: 0 | E101: 0 | F101: 0 | G101: 0 | H101: 0 | I101: 76 | J101: 100
I102: 76 | J102: 101
J103: 102
J104: 103
J105: 104
J106: 105
J107: 106
J108: 107
J109: 108
J110: 109
J111: 110
J112: 111
J113: 112
J114: 113
J115: 114
J116: 115
J117: 116
J118: 117
J119: 118
J120: 119
J121: 120
I122: =IF(H122=H121,A121,J122) ->  | J122: =SUM(J121+1) -> 121
J123: 122
J124: 123
J125: 124
J126: 125
J127: 126
J128: 127
J129: 128
J130: 129
J131: 130
A132: =IF(B132="","",I132) ->  | J132: 131
J133: 132
J134: 133
J135: 134
J136: 135
J137: 136
J138: 137
J139: 138
J140: 139
J141: 140
J142: 141
J143: 142
J144: 143
J145: 144

Sheet 100+ Scores
A1: RANK | B1: NAME | C1: SINGLES GAMES PLAYED | D1: TOTAL 100+ SCORES
A2: 1 | B2: Dennis Clarkson | C2: 16 | D2: 79 | F2: 1 | G2: 1
A3: =IF(B3="","",F3) -> 2 | B3: Craig Monk | C3: 16 | D3: 62 | F3: =IF(D3=D2,A2,G3) -> 2 | G3: =SUM(G2+1) -> 2
A4: =IF(B4="","",F4) -> 3 | B4: Sean Kendrew | C4: 16 | D4: 59 | F4: =IF(D4=D3,A3,G4) -> 3 | G4: =SUM(G3+1) -> 3
A5: 3 | B5: Chris Garsed | C5: 14 | D5: 59 | F5: 3 | G5: 4
A6: 5 | B6: Nigel Outram | C6: 16 | D6: 50 | F6: 5 | G6: 5
A7: 6 | B7: Martin Young | C7: 16 | D7: 48 | F7: 6 | G7: 6
A8: 6 | B8: Ian Whittaker | C8: 15 | D8: 48 | F8: 6 | G8: 7
A9: 8 | B9: Steve Blewitt | C9: 15 | D9: 47 | F9: 8 | G9: 8
A10: 9 | B10: Alan Martin | C10: 15 | D10: 42 | F10: 9 | G10: 9
A11: 10 | B11: Steve Truman | C11: 14 | D11: 40 | F11: 10 | G11: 10
A12: 11 | B12: George Webb | C12: 16 | D12: 39 | F12: 11 | G12: 11
A13: 12 | B13: Dave Atkinson | C13: 15 | D13: 38 | F13: 12 | G13: 12
A14: 13 | B14: Kyle Young | C14: 15 | D14: 36 | F14: 13 | G14: 13
A15: 14 | B15: Mike Wayman | C15: 13 | D15: 34 | F15: 14 | G15: 14
A16: 15 | B16: Matthew Cornforth | C16: 15 | D16: 33 | F16: 15 | G16: 15
A17: 16 | B17: Andy Johnson | C17: 15 | D17: 32 | F17: 16 | G17: 16
A18: 17 | B18: George Kay | C18: 15 | D18: 31 | F18: 17 | G18: 17
A19: 17 | B19: Morris Walker | C19: 16 | D19: 31 | F19: 17 | G19: 18
A20: 17 | B20: Tim Whiting JNR | C20: 16 | D20: 31 | F20: 17 | G20: 19
A21: 17 | B21: Andy Monk | C21: 16 | D21: 31 | F21: 17 | G21: 20
A22: 17 | B22: Bob Carter | C22: 14 | D22: 31 | F22: 17 | G22: 21
A23: 22 | B23: Ian Richards | C23: 13 | D23: 30 | F23: 22 | G23: 22
A24: 23 | B24: Al Whelan | C24: 14 | D24: 27 | F24: 23 | G24: 23
A25: 23 | B25: Eric Stapley | C25: 15 | D25: 27 | F25: 23 | G25: 24
A26: 25 | B26: Trevor Brown | C26: 15 | D26: 26 | F26: 25 | G26: 25
A27: 26 | B27: Joe Hutchinson | C27: 14 | D27: 24 | F27: 26 | G27: 26
A28: 27 | B28: Mick Smedley | C28: 15 | D28: 23 | F28: 27 | G28: 27
A29: 27 | B29: Andy Etherington | C29: 13 | D29: 23 | F29: 27 | G29: 28
A30: 27 | B30: Mark Cox | C30: 16 | D30: 23 | F30: 27 | G30: 29
A31: 30 | B31: Al Spence | C31: 10 | D31: 22 | F31: 30 | G31: 30
A32: 30 | B32: Anthony Clemmet | C32: 16 | D32: 22 | F32: 30 | G32: 31
A33: 30 | B33: Baz Pearson | C33: 13 | D33: 22 | F33: 30 | G33: 32
A34: 33 | B34: Phil Teare | C34: 16 | D34: 20 | F34: 33 | G34: 33
A35: 33 | B35: Dave Crilly | C35: 15 | D35: 20 | F35: 33 | G35: 34
A36: 33 | B36: Steve Cooke | C36: 13 | D36: 20 | F36: 33 | G36: 35
A37: 36 | B37: Mel Paylor | C37: 13 | D37: 19 | F37: 36 | G37: 36
A38: 37 | B38: Mark Outram | C38: 16 | D38: 18 | F38: 37 | G38: 37
A39: 38 | B39: Craig Burns | C39: 13 | D39: 16 | F39: 38 | G39: 38
A40: 39 | B40: Dan Buxton | C40: 14 | D40: 15 | F40: 39 | G40: 39
A41: 39 | B41: Howard Ward | C41: 5 | D41: 15 | F41: 39 | G41: 40
A42: 39 | B42: George McPhee | C42: 15 | D42: 15 | F42: 39 | G42: 41
A43: 39 | B43: Andy Haw | C43: 15 | D43: 15 | F43: 39 | G43: 42
A44: 43 | B44: Col Lagan | C44: 9 | D44: 13 | F44: 43 | G44: 43
A45: 44 | B45: Ian Atherton | C45: 16 | D45: 12 | F45: 44 | G45: 44
A46: 44 | B46: Steve Monk | C46: 10 | D46: 12 | F46: 44 | G46: 45
A47: 44 | B47: Darren Downs | C47: 8 | D47: 12 | F47: 44 | G47: 46
A48: 44 | B48: Alex Watson | C48: 9 | D48: 12 | F48: 44 | G48: 47
A49: 48 | B49: Bill Rispin | C49: 6 | D49: 11 | F49: 48 | G49: 48
A50: 48 | B50: Chris Whiting | C50: 7 | D50: 11 | F50: 48 | G50: 49
A51: 48 | B51: Kenny Kerringan | C51: 5 | D51: 11 | F51: 48 | G51: 50
A52: 51 | B52: David Langthorne | C52: 16 | D52: 10 | F52: 51 | G52: 51
A53: 52 | B53: Tymo Sobkowiak | C53: 16 | D53: 9 | F53: 52 | G53: 52
A54: 52 | B54: Alex Sinclair | C54: 3 | D54: 9 | F54: 52 | G54: 53
A55: 54 | B55: Dave Thornton | C55: 6 | D55: 8 | F55: 54 | G55: 54
A56: 54 | B56: Chris Pattison | C56: 8 | D56: 8 | F56: 54 | G56: 55
A57: 54 | B57: Carl Bickerton | C57: 11 | D57: 8 | F57: 54 | G57: 56
A58: 54 | B58: Gaz Lumley | C58: 10 | D58: 8 | F58: 54 | G58: 57
A59: 54 | B59: Stuart Truman | C59: 9 | D59: 8 | F59: 54 | G59: 58
A60: 59 | B60: Kireon Timmons | C60: 2 | D60: 7 | F60: 59 | G60: 59
A61: 59 | B61: Steve Atkinson | C61: 12 | D61: 7 | F61: 59 | G61: 60
A62: 61 | B62: B. Dawson | C62: 12 | D62: 6 | F62: 61 | G62: 61
A63: 62 | B63: Chris Wayman | C63: 6 | D63: 5 | F63: 62 | G63: 62
A64: 62 | B64: Phil Wells | C64: 9 | D64: 5 | F64: 62 | G64: 63
A65: 64 | B65: Morris Weighell | C65: 7 | D65: 4 | F65: 64 | G65: 64
A66: 65 | B66: Dean Wakeling | C66: 8 | D66: 3 | F66: 65 | G66: 65
A67: 65 | B67: Mark Natttrass | C67: 16 | D67: 3 | F67: 65 | G67: 66
A68: =IF(B68="","",F68) -> 65 | B68: Jack Stevenson | C68: 2 | D68: 3 | F68: =IF(D68=D67,A67,G68) -> 65 | G68: =SUM(G67+1) -> 67
A69: 68 | B69: Chris Cockerline | C69: 15 | D69: 2 | F69: 68 | G69: 68
A70: 68 | B70: Sam Mathews | C70: 2 | D70: 2 | F70: 68 | G70: 69
A71: 68 | B71: Marty Burns | C71: 1 | D71: 2 | F71: 68 | G71: 70
A72: 68 | B72: John Oliver | C72: 0 | D72: 2 | F72: 68 | G72: 71
A73: 72 | B73: Pete Wilkinson | C73: 0 | D73: 1 | F73: 72 | G73: 72
A74: 72 | B74: Liam Monk | C74: 0 | D74: 1 | F74: 72 | G74: 73
A75: 72 | B75: Pete Young | C75: 3 | D75: 1 | F75: 72 | G75: 74
A76: 72 | B76: Adam Richards | C76: 0 | D76: 1 | F76: 72 | G76: 75
A77: 72 | B77: Jake Doherty | C77: 1 | D77: 1 | F77: 72 | G77: 76
F78: 77 | G78: 77
G79: 78
G80: 79
G81: 80
G82: 81
G83: 82
G84: 83
G85: 84
G86: 85
G87: 86
G88: 87
G89: 88
G90: 89
G91: 90
G92: 91
G93: 92
G94: 93
G95: 94
G96: 95
G97: 96
G98: 97
G99: 98
G100: 99
G101: 100
G102: 101
G103: 102
G104: 103
G105: 104
G106: 105
G107: 106
G108: 107
G109: 108
G110: 109
G111: 110
G112: 111
G113: 112
G114: 113
G115: 114
G116: 115
G117: 116
G118: 117
G119: 118
G120: 119
G121: 120
F122: =IF(D122=D121,A121,G122) ->  | G122: =SUM(G121+1) -> 121
G123: 122
G124: 123
G125: 124
G126: 125
G127: 126
G128: 127
G129: 128
G130: 129
G131: 130
A132: =IF(B132="","",F132) ->  | G132: 131
A133: =IF(B133="","",F133) ->  | G133: 132
A134: =IF(B134="","",F134) ->  | G134: 133
G135: 134
G136: 135
G137: 136
G138: 137
G139: 138
G140: 139
G141: 140
G142: 141
G143: 142
G144: 143
G145: 144

Sheet 30 Darts and Under Games
A1: RANK | B1: NAME | C1: TOTAL GAMES OF 30 DARTS AND UNDER
A2: 1 | B2: Chris Garsed | C2: 8 | E2: 1 | F2: 1
A3: =IF(B3="","",E3) -> 2 | B3: Craig Monk | C3: 7 | E3: =IF(C3=C2,A2,F3) -> 2 | F3: =SUM(F2+1) -> 2
A4: =IF(B4="","",E4) -> 2 | B4: Kyle Young | C4: 7 | E4: 2 | F4: =SUM(F3+1) -> 3
A5: 4 | B5: Dennis Clarkson | C5: 6 | E5: 4 | F5: 4
A6: 5 | B6: Sean Kendrew | C6: 4 | E6: 5 | F6: 5
A7: 5 | B7: Dave Atkinson | C7: 4 | E7: 5 | F7: 6
A8: 5 | B8: Ian Whittaker | C8: 4 | E8: 5 | F8: 7
A9: 8 | B9: Mike Wayman | C9: 3 | E9: 8 | F9: 8
A10: 8 | B10: Alan Martin | C10: 3 | E10: 8 | F10: 9
A11: 10 | B11: Steve Blewitt | C11: 2 | E11: 10 | F11: 10
A12: 10 | B12: Nigel Outram | C12: 2 | E12: 10 | F12: 11
A13: 12 | B13: Steve Truman | C13: 1 | E13: 12 | F13: 12
A14: 12 | B14: George Webb | C14: 1 | E14: 12 | F14: 13
A15: 12 | B15: Howard Ward | C15: 1 | E15: 12 | F15: 14
A16: 12 | B16: George Kay | C16: 1 | E16: 12 | F16: 15
A17: 12 | B17: Mark Outram | C17: 1 | E17: 12 | F17: 16
A18: 12 | B18: George McPhee | C18: 1 | E18: 12 | F18: 17
A19: 12 | B19: Andy Etherington | C19: 1 | E19: 12 | F19: 18
A20: 12 | B20: Morris Walker | C20: 1 | E20: 12 | F20: 19
A21: 12 | B21: Matthew Cornforth | C21: 1 | E21: 12 | F21: 20
A22: 12 | B22: Tim Whiting JNR | C22: 1 | E22: 12 | F22: 21
A23: 12 | B23: Martin Young | C23: 1 | E23: 12 | F23: 22
A24: 12 | B24: Ian Richards | C24: 1 | E24: 12 | F24: 23
A25: 12 | B25: Bob Carter | C25: 1 | E25: 12 | F25: 24
E26: 25 | F26: 25
F27: 26
F28: 27
F29: 28
F30: 29
F31: 30
F32: 31
F33: 32
F34: 33
F35: 34
F36: 35
F37: 36
F38: 37
F39: 38
F40: 39
F41: 40
F42: 41
F43: 42
F44: 43
F45: 44
F46: 45
F47: 46
F48: 47
F49: 48
F50: 49
F51: 50
F52: 51
F53: 52
F54: 53
F55: 54
F56: 55
F57: 56
F58: 57
F59: 58
F60: 59
F61: 60
F62: 61
F63: 62
F64: 63
F65: 64
F66: 65
F67: 66
A68: =IF(B68="","",E68) ->  | E68: =IF(C68=C67,A67,F68) ->  | F68: =SUM(F67+1) -> 67
F69: 68
F70: 69
F71: 70
F72: 71
F73: 72
F74: 73
F75: 74
F76: 75
F77: 76
F78: 77
F79: 78
F80: 79
F81: 80
F82: 81
F83: 82
F84: 83
F85: 84
F86: 85
F87: 86
F88: 87
F89: 88
F90: 89
F91: 90
F92: 91
F93: 92
F94: 93
F95: 94
F96: 95
F97: 96
F98: 97
F99: 98
F100: 99
F101: 100
F102: 101
F103: 102
F104: 103
F105: 104
F106: 105
F107: 106
F108: 107
F109: 108
F110: 109
F111: 110
F112: 111
F113: 112
F114: 113
F115: 114
F116: 115
F117: 116
F118: 117
F119: 118
F120: 119
F121: 120
E122: =IF(C122=C121,A121,F122) ->  | F122: =SUM(F121+1) -> 121
F123: 122
F124: 123
F125: 124
F126: 125
F127: 126
F128: 127
F129: 128
F130: 129
F131: 130
A132: =IF(B132="","",E132) ->  | F132: 131
A133: =IF(B133="","",E133) ->  | F133: 132
A134: =IF(B134="","",E134) ->  | F134: 133
F135: 134
F136: 135
F137: 136
F138: 137
F139: 138
F140: 139
F141: 140
F142: 141
F143: 142
F144: 143
F145: 144

Sheet 180's
A1: RANK | B1: NAME | C1: TOTAL 180's
A2: 1 | B2: Chris Garsed | C2: 4 | D2: 1 | E2: 1
A3: =IF(B3="","",D3) -> 1 | B3: Mike Wayman | C3: 4 | D3: =IF(C3=C2,A2,E3) -> 1 | E3: =SUM(E2+1) -> 2
A4: =IF(B4="","",D4) -> 3 | B4: Craig Monk | C4: 3 | D4: =IF(C4=C3,A3,E4) -> 3 | E4: =SUM(E3+1) -> 3
A5: 3 | B5: Kyle Young | C5: 3 | D5: =IF(C5=C4,A4,E5) -> 3 | E5: 4
A6: 5 | B6: Alan Martin | C6: 2 | D6: 5 | E6: 5
A7: 5 | B7: Steve Blewitt | C7: 2 | D7: 5 | E7: 6
A8: 7 | B8: Andy Etherington | C8: 1 | D8: 7 | E8: 7
A9: 7 | B9: Andy Haw | C9: 1 | D9: 7 | E9: 8
A10: 7 | B10: Dave Atkinson | C10: 1 | D10: 7 | E10: 9
A11: 7 | B11: Dennis Clarkson | C11: 1 | D11: 7 | E11: 10
A12: 7 | B12: George Webb | C12: 1 | D12: 7 | E12: 11
A13: 7 | B13: Matthew Cornforth | C13: 1 | D13: 7 | E13: 12
A14: 7 | B14: Nigel Outram | C14: 1 | D14: 7 | E14: 13
A15: 7 | B15: Steve Cooke | C15: 1 | D15: 7 | E15: 14
A16: 7 | B16: Tim Whiting JNR | C16: 1 | D16: 7 | E16: 15
D17: 16 | E17: 16
E18: 17
E19: 18
E20: 19
E21: 20
E22: 21
E23: 22
E24: 23
E25: 24
E26: 25
E27: 26
E28: 27
E29: 28
E30: 29
E31: 30
E32: 31
E33: 32
E34: 33
E35: 34
E36: 35
E37: 36
E38: 37
E39: 38
E40: 39
E41: 40
E42: 41
E43: 42
E44: 43
E45: 44
E46: 45
E47: 46
E48: 47
E49: 48
E50: 49
E51: 50
E52: 51
E53: 52
E54: 53
E55: 54
E56: 55
E57: 56
E58: 57
E59: 58
E60: 59
E61: 60
E62: 61
E63: 62
E64: 63
E65: 64
E66: 65
E67: 66
A68: =IF(B68="","",D68) ->  | E68: =SUM(E67+1) -> 67
D69: =IF(C69=C68,A68,E69) ->  | E69: 68
E70: 69
E71: 70
E72: 71
E73: 72
E74: 73
E75: 74
E76: 75
E77: 76
E78: 77
E79: 78
E80: 79
E81: 80
E82: 81
E83: 82
E84: 83
E85: 84
E86: 85
E87: 86
E88: 87
E89: 88
E90: 89
E91: 90
E92: 91
E93: 92
E94: 93
E95: 94
E96: 95
E97: 96
E98: 97
E99: 98
E100: 99
E101: 100
E102: 101
E103: 102
E104: 103
E105: 104
E106: 105
E107: 106
E108: 107
E109: 108
E110: 109
E111: 110
E112: 111
E113: 112
E114: 113
E115: 114
E116: 115
E117: 116
E118: 117
E119: 118
E120: 119
E121: 120
D122: =IF(C122=C121,A121,E122) ->  | E122: =SUM(E121+1) -> 121
E123: 122
E124: 123
E125: 124
E126: 125
E127: 126
E128: 127
E129: 128
E130: 129
E131: 130
A132: =IF(B132="","",D132) ->  | E132: 131
A133: =IF(B133="","",D133) ->  | E133: 132
A134: =IF(B134="","",D134) ->  | E134: 133
E135: 134
E136: 135
E137: 136
E138: 137
E139: 138
E140: 139
E141: 140
E142: 141
E143: 142
E144: 143
E145: 144

Sheet Singles Least Darts
A1: RANK | B1: NAME | C1: LEAST DARTS
A2: 1 | B2: Chris Garsed | C2: 19 | D2: 1 | E2: 1
A3: =IF(B3="","",D3) -> 2 | B3: Craig Monk | C3: 21 | D3: =IF(C3=C2,A2,E3) -> 2 | E3: =SUM(E2+1) -> 2
A4: =IF(B4="","",D4) -> 3 | B4: Nigel Outram | C4: 23 | D4: =IF(C4=C3,A3,E4) -> 3 | E4: =SUM(E3+1) -> 3
A5: 4 | B5: Sean Kendrew | C5: 24 | D5: =IF(C5=C4,A4,E5) -> 4 | E5: 4
A6: 4 | B6: Kyle Young | C6: 24 | D6: 4 | E6: 5
A7: 6 | B7: Mike Wayman | C7: 25 | D7: 6 | E7: 6
A8: 7 | B8: Alan Martin | C8: 26 | D8: 7 | E8: 7
A9: 7 | B9: Dave Atkinson | C9: 26 | D9: 7 | E9: 8
A10: 9 | B10: George Webb | C10: 27 | D10: 9 | E10: 9
A11: 9 | B11: Dennis Clarkson | C11: 27 | D11: 9 | E11: 10
A12: 9 | B12: Steve Blewitt | C12: 27 | D12: 9 | E12: 11
A13: 9 | B13: Martin Young | C13: 27 | D13: 9 | E13: 12
A14: 9 | B14: Ian Whittaker | C14: 27 | D14: 9 | E14: 13
A15: 9 | B15: Bob Carter | C15: 27 | D15: 9 | E15: 14
A16: 15 | B16: George Kay | C16: 28 | D16: 15 | E16: 15
A17: 16 | B17: Howard Ward | C17: 29 | D17: 16 | E17: 16
A18: 16 | B18: Tim Whiting JNR | C18: 29 | D18: 16 | E18: 17
A19: 16 | B19: Matthew Cornforth | C19: 29 | D19: 16 | E19: 18
A20: 19 | B20: George McPhee | C20: 30 | D20: 19 | E20: 19
A21: 19 | B21: Morris Walker | C21: 30 | D21: 19 | E21: 20
A22: 19 | B22: Ian Richards | C22: 30 | D22: 19 | E22: 21
A23: 19 | B23: Andy Etherington | C23: 30 | D23: 19 | E23: 22
A24: 19 | B24: Steve Truman | C24: 30 | D24: 19 | E24: 23
A25: 19 | B25: Mark Outram | C25: 30 | D25: 19 | E25: 24
A26: 25 | B26: Mel Paylor | C26: 31 | D26: 25 | E26: 25
A27: 25 | B27: Mick Smedley | C27: 31 | D27: 25 | E27: 26
A28: 25 | B28: Mark Cox | C28: 31 | D28: 25 | E28: 27
A29: 28 | B29: Col Lagan | C29: 32 | D29: 28 | E29: 28
A30: 28 | B30: Craig Burns | C30: 32 | D30: 28 | E30: 29
A31: 28 | B31: Andy Johnson | C31: 32 | D31: 28 | E31: 30
A32: 28 | B32: Al Spence | C32: 32 | D32: 28 | E32: 31
A33: 28 | B33: Andy Monk | C33: 32 | D33: 28 | E33: 32
A34: 28 | B34: Alex Sinclair | C34: 32 | D34: 28 | E34: 33
A35: 34 | B35: Alex Watson | C35: 33 | D35: 34 | E35: 34
A36: 34 | B36: David Langthorne | C36: 33 | D36: 34 | E36: 35
A37: 34 | B37: Baz Pearson | C37: 33 | D37: 34 | E37: 36
A38: 37 | B38: Chris Pattison | C38: 34 | D38: 37 | E38: 37
A39: 37 | B39: Al Whelan | C39: 34 | D39: 37 | E39: 38
A40: 39 | B40: Chris Whiting | C40: 35 | D40: 39 | E40: 39
A41: 39 | B41: Dave Crilly | C41: 35 | D41: 39 | E41: 40
A42: 39 | B42: Dan Buxton | C42: 35 | D42: 39 | E42: 41
A43: 39 | B43: Steve Cooke | C43: 35 | D43: 39 | E43: 42
A44: 43 | B44: Bill Rispin | C44: 36 | D44: 43 | E44: 43
A45: 44 | B45: Phil Teare | C45: 37 | D45: 44 | E45: 44
A46: 44 | B46: Joe Hutchinson | C46: 37 | D46: 44 | E46: 45
A47: 44 | B47: Gaz Lumley | C47: 37 | D47: 44 | E47: 46
A48: 44 | B48: Trevor Brown | C48: 37 | D48: 44 | E48: 47
A49: 48 | B49: Eric Stapley | C49: 38 | D49: 48 | E49: 48
A50: 48 | B50: Ian Atherton | C50: 38 | D50: 48 | E50: 49
A51: 48 | B51: Phil Wells | C51: 38 | D51: 48 | E51: 50
A52: 51 | B52: Chris Wayman | C52: 39 | D52: 51 | E52: 51
A53: 52 | B53: Kireon Timmons | C53: 40 | D53: 52 | E53: 52
A54: 53 | B54: Andy Haw | C54: 41 | D54: 53 | E54: 53
A55: 54 | B55: Anthony Clemmet | C55: 42 | D55: 54 | E55: 54
A56: 54 | B56: Carl Bickerton | C56: 42 | D56: 54 | E56: 55
A57: 54 | B57: Steve Atkinson | C57: 42 | D57: 54 | E57: 56
A58: 57 | B58: Jack Stevenson | C58: 43 | D58: 57 | E58: 57
A59: 57 | B59: Morris Weighell | C59: 43 | D59: 57 | E59: 58
A60: 57 | B60: Darren Downs | C60: 43 | D60: 57 | E60: 59
A61: 60 | B61: Steve Monk | C61: 45 | D61: 60 | E61: 60
A62: 60 | B62: Mark Natttrass | C62: 45 | D62: 60 | E62: 61
A63: 62 | B63: B. Dawson | C63: 46 | D63: 62 | E63: 62
A64: 63 | B64: Kenny Kerringan | C64: 48 | D64: 63 | E64: 63
A65: 63 | B65: Chris Cockerline | C65: 48 | D65: 63 | E65: 64
A66: 65 | B66: Stuart Truman | C66: 50 | D66: 65 | E66: 65
A67: 66 | B67: Tymo Sobkowiak | C67: 51 | D67: 66 | E67: 66
A68: =IF(B68="","",D68) -> 67 | B68: Dean Wakeling | C68: 57 | D68: 67 | E68: =SUM(E67+1) -> 67
A69: 68 | B69: Dave Thornton | C69: 59 | D69: =IF(C69=C68,A68,E69) -> 68 | E69: 68
D70: 69 | E70: 69
E71: 70
E72: 71
E73: 72
E74: 73
E75: 74
E76: 75
E77: 76
E78: 77
E79: 78
E80: 79
E81: 80
E82: 81
E83: 82
E84: 83
E85: 84
E86: 85
E87: 86
E88: 87
E89: 88
E90: 89
E91: 90
E92: 91
E93: 92
E94: 93
E95: 94
E96: 95
E97: 96
E98: 97
E99: 98
E100: 99
E101: 100
E102: 101
E103: 102
E104: 103
E105: 104
E106: 105
E107: 106
E108: 107
E109: 108
E110: 109
E111: 110
E112: 111
E113: 112
E114: 113
E115: 114
E116: 115
E117: 116
E118: 117
E119: 118
E120: 119
E121: 120
D122: =IF(C122=C121,A121,E122) ->  | E122: =SUM(E121+1) -> 121
E123: 122
E124: 123
E125: 124
E126: 125
E127: 126
E128: 127
E129: 128
E130: 129
E131: 130
A132: =IF(B132="","",D132) ->  | E132: 131
A133: =IF(B133="","",D133) ->  | E133: 132
A134: =IF(B134="","",D134) ->  | E134: 133
E135: 134
E136: 135
E137: 136
E138: 137
E139: 138
E140: 139
E141: 140
E142: 141
E143: 142
E144: 143
E145: 144

Sheet Singles Most Darts
A1: RANK | B1: NAME | C1: MOST DARTS TO WIN
A2: 1 | B2: George McPhee | C2: 71 | D2: 1 | E2: 1
A3: =IF(B3="","",D3) -> 2 | B3: Alex Sinclair | C3: 66 | D3: =IF(C3=C2,A2,E3) -> 2 | E3: =SUM(E2+1) -> 2
A4: 3 | B4: Morris Walker | C4: 65 | D4: 3 | E4: 3
A5: 4 | B5: Tymo Sobkowiak | C5: 63 | D5: 4 | E5: 4
A6: 4 | B6: Chris Cockerline | C6: 63 | D6: 4 | E6: 5
A7: 6 | B7: Anthony Clemmet | C7: 62 | D7: 6 | E7: 6
A8: 6 | B8: Mick Smedley | C8: 62 | D8: 6 | E8: 7
A9: 6 | B9: Martin Young | C9: 62 | D9: 6 | E9: 8
A10: 6 | B10: Phil Wells | C10: 62 | D10: 6 | E10: 9
A11: 10 | B11: Stuart Truman | C11: 61 | D11: 10 | E11: 10
A12: 11 | B12: Mike Wayman | C12: 60 | D12: 11 | E12: 11
A13: 12 | B13: Dave Thornton | C13: 59 | D13: 12 | E13: 12
A14: 12 | B14: Andy Haw | C14: 59 | D14: 12 | E14: 13
A15: 14 | B15: Craig Burns | C15: 58 | D15: 14 | E15: 14
A16: 14 | B16: Alex Watson | C16: 58 | D16: 14 | E16: 15
A17: 14 | B17: Phil Teare | C17: 58 | D17: 14 | E17: 16
A18: 14 | B18: Andy Etherington | C18: 58 | D18: 14 | E18: 17
A19: 18 | B19: Mel Paylor | C19: 57 | D19: 18 | E19: 18
A20: 18 | B20: Dean Wakeling | C20: 57 | D20: 18 | E20: 19
A21: 18 | B21: B. Dawson | C21: 57 | D21: 18 | E21: 20
A22: 18 | B22: Darren Downs | C22: 57 | D22: 18 | E22: 21
A23: 22 | B23: Chris Pattison | C23: 56 | D23: 22 | E23: 22
A24: 22 | B24: Steve Truman | C24: 56 | D24: 22 | E24: 23
A25: 24 | B25: Al Spence | C25: 55 | D25: 24 | E25: 24
A26: 25 | B26: Ian Atherton | C26: 54 | D26: 25 | E26: 25
A27: 25 | B27: Tim Whiting JNR | C27: 54 | D27: 25 | E27: 26
A28: 25 | B28: Matthew Cornforth | C28: 54 | D28: 25 | E28: 27
A29: 25 | B29: Trevor Brown | C29: 54 | D29: 25 | E29: 28
A30: 25 | B30: Baz Pearson | C30: 54 | D30: 25 | E30: 29
A31: 30 | B31: Col Lagan | C31: 53 | D31: 30 | E31: 30
A32: 30 | B32: Eric Stapley | C32: 53 | D32: 30 | E32: 31
A33: 32 | B33: Chris Whiting | C33: 52 | D33: 32 | E33: 32
A34: 32 | B34: Joe Hutchinson | C34: 52 | D34: 32 | E34: 33
A35: =IF(B35="","",D35) -> 34 | B35: Carl Bickerton | C35: 51 | D35: =IF(C35=C34,A34,E35) -> 34 | E35: =SUM(E34+1) -> 34
A36: 34 | B36: Dan Buxton | C36: 51 | D36: 34 | E36: 35
A37: 34 | B37: Nigel Outram | C37: 51 | D37: 34 | E37: 36
A38: 34 | B38: Mark Natttrass | C38: 51 | D38: 34 | E38: 37
A39: 34 | B39: Ian Richards | C39: 51 | D39: 34 | E39: 38
A40: 34 | B40: Steve Cooke | C40: 51 | D40: 34 | E40: 39
A41: 40 | B41: Steve Monk | C41: 50 | D41: 40 | E41: 40
A42: 40 | B42: David Langthorne | C42: 50 | D42: 40 | E42: 41
A43: 42 | B43: Gaz Lumley | C43: 49 | D43: 42 | E43: 42
A44: 43 | B44: Kenny Kerringan | C44: 48 | D44: 43 | E44: 43
A45: 43 | B45: Chris Wayman | C45: 48 | D45: 43 | E45: 44
A46: 43 | B46: Al Whelan | C46: 48 | D46: 43 | E46: 45
A47: 43 | B47: Andy Monk | C47: 48 | D47: 43 | E47: 46
A48: 43 | B48: Alan Martin | C48: 48 | D48: 43 | E48: 47
A49: 43 | B49: Mark Cox | C49: 48 | D49: 43 | E49: 48
A50: 43 | B50: Bob Carter | C50: 48 | D50: 43 | E50: 49
A51: 50 | B51: Kyle Young | C51: 47 | D51: 50 | E51: 50
A52: 50 | B52: Ian Whittaker | C52: 47 | D52: 50 | E52: 51
A53: 52 | B53: Dave Crilly | C53: 46 | D53: 52 | E53: 52
A54: 52 | B54: Morris Weighell | C54: 46 | D54: 52 | E54: 53
A55: 52 | B55: Dave Atkinson | C55: 46 | D55: 52 | E55: 54
A56: 55 | B56: George Webb | C56: 45 | D56: 55 | E56: 55
A57: 55 | B57: George Kay | C57: 45 | D57: 55 | E57: 56
A58: 57 | B58: Andy Johnson | C58: 44 | D58: 57 | E58: 57
A59: 57 | B59: Steve Atkinson | C59: 44 | D59: 57 | E59: 58
A60: 59 | B60: Jack Stevenson | C60: 43 | D60: 59 | E60: 59
A61: 59 | B61: Steve Blewitt | C61: 43 | D61: 59 | E61: 60
A62: 61 | B62: Dennis Clarkson | C62: 42 | D62: 61 | E62: 61
A63: 61 | B63: Mark Outram | C63: 42 | D63: 61 | E63: 62
A64: 63 | B64: Howard Ward | C64: 41 | D64: 63 | E64: 63
A65: 64 | B65: Kireon Timmons | C65: 40 | D65: 64 | E65: 64
A66: 64 | B66: Craig Monk | C66: 40 | D66: 64 | E66: 65
A67: =IF(B67="","",D67) -> 66 | B67: Sean Kendrew | C67: 39 | D67: =IF(C67=C66,A66,E67) -> 66 | E67: =SUM(E66+1) -> 66
A68: 67 | B68: Bill Rispin | C68: 36 | D68: 67 | E68: 67
A69: 67 | B69: Chris Garsed | C69: 36 | D69: 67 | E69: 68
D70: 69 | E70: 69
E71: 70
E72: 71
E73: 72
E74: 73
E75: 74
E76: 75
E77: 76
E78: 77
E79: 78
E80: 79
E81: 80
E82: 81
E83: 82
E84: 83
E85: 84
E86: 85
E87: 86
E88: 87
E89: 88
E90: 89
E91: 90
E92: 91
E93: 92
E94: 93
E95: 94
E96: 95
E97: 96
E98: 97
A99: =IF(B99="","",D99) ->  | D99: =IF(C99=C98,A98,E99) ->  | E99: =SUM(E98+1) -> 98
E100: 99
E101: 100
E102: 101
E103: 102
E104: 103
E105: 104
E106: 105
E107: 106
E108: 107
E109: 108
E110: 109
E111: 110
E112: 111
E113: 112
E114: 113
E115: 114
E116: 115
E117: 116
E118: 117
E119: 118
E120: 119
E121: 120
D122: =IF(C122=C121,A121,E122) ->  | E122: =SUM(E121+1) -> 121
E123: 122
E124: 123
E125: 124
E126: 125
E127: 126
E128: 127
E129: 128
E130: 129
A131: =IF(B131="","",D131) ->  | E131: 130
A132: =IF(B132="","",D132) ->  | E132: 131
A133: =IF(B133="","",D133) ->  | E133: 132
A134: =IF(B134="","",D134) ->  | E134: 133
E135: 134
E136: 135
E137: 136
E138: 137
E139: 138
E140: 139
E141: 140
E142: 141
E143: 142
E144: 143
E145: 144

Sheet GAME BY GAME AVERAGES (hidden)
A1: BOWLING CLUB | B1: 10/09/2007 V SPORTSMANS (A) | D1: 17/09/2007 V NAGS HEAD (H) | F1: 24/09/2007 V CRICKET CLUB (A) | H1: 1/10/2007 V RAFA 'B' (A) | J1: 15/10/2007 V RAFA 'A' (A) | L1: 29/10/2007 V STANDARD 'B' (H) | N1: 12/11/2007 V WMC (A) | P1: 26/11/2007 V STANDARD 'A' (H) | R1: 3/12/2007 V GOLDEN LION 'B' (A) | T1: 17/12/2007 V GOLDEN LION 'A' (H) | V1: 7/01/2008 V SPORTSMANS (H) | X1: 14/01/2008 V NAGS HEAD (A) | Z1: 21/01/2008 V CRICKET CLUB (H) | AB1: 4/02/2008 V RAFA 'B' (H) | AD1: 11/02/2008 V RAFA 'A' (H) | AF1: 25/02/2008 V STANDARD 'B' (A) | AH1: 17/03/2008 V WMC (H) | AJ1: 31/03/2008 V STANDARD 'A' (A) | AL1: 14/04/2008 V GOLDEN LION 'B' (H) | AN1: 21/04/2008 V GOLDEN LION 'A' (A)
B2: W/L | C2: AVG | D2: W/L | E2: AVG | F2: W/L | G2: AVG | H2: W/L | I2: AVG | J2: W/L | K2: AVG | L2: W/L | M2: AVG | N2: W/L | O2: AVG | P2: W/L | Q2: AVG | R2: W/L | S2: AVG | T2: W/L | U2: AVG | V2: W/L | W2: AVG | X2: W/L | Y2: AVG | Z2: W/L | AA2: AVG | AB2: W/L | AC2: AVG | AD2: W/L | AE2: AVG | AF2: W/L | AG2: AVG | AH2: W/L | AI2: AVG | AJ2: W/L | AK2: AVG | AL2: W/L | AM2: AVG | AN2: W/L | AO2: AVG
A3: ='JOLLY MINSTER'!A3 -> Eric Stapley | B3: =IF(C16=1,B16,"") -> WON | C3: =IF(B28>0,B28,"") -> 47.79545455 | D3: =IF(E16=1,D16,"") ->  | E3: =IF(D28>0,D28,"") ->  | F3: =IF(G16=1,F16,"") -> LOST | G3: =IF(F28>0,F28,"") -> 36.78947368 | H3: =IF(I16=1,H16,"") -> WON | I3: =IF(H28>0,H28,"") -> 55.34210526 | J3: =IF(K16=1,J16,"") -> LOST | K3: =IF(J28>0,J28,"") -> 48.92857143 | L3: =IF(M16=1,L16,"") -> LOST | M3: =IF(L28>0,L28,"") -> 49.85714286 | N3: =IF(O16=1,N16,"") -> LOST | O3: =IF(N28>0,N28,"") -> 53.15384615 | P3: =IF(Q16=1,P16,"") -> WON | Q3: =IF(P28>0,P28,"") -> 43.8125 | R3: =IF(S16=1,R16,"") -> WON | S3: =IF(R28>0,R28,"") -> 43.8125 | T3: =IF(U16=1,T16,"") -> LOST | U3: =IF(T28>0,T28,"") -> 55.75 | V3: =IF(W16=1,V16,"") ->  | W3: =IF(V28>0,V28,"") ->  | X3: =IF(Y16=1,X16,"") -> LOST | Y3: =IF(X28>0,X28,"") -> 53.33333333 | Z3: =IF(AA16=1,Z16,"") -> LOST | AA3: =IF(Z28>0,Z28,"") -> 45.4 | AB3: =IF(AC16=1,AB16,"") -> WON | AC3: =IF(AB28>0,AB28,"") -> 39.67924528 | AD3: =IF(AE16=1,AD16,"") -> LOST | AE3: =IF(AD28>0,AD28,"") -> 69 | AF3: =IF(AG16=1,AF16,"") -> LOST | AG3: =IF(AF28>0,AF28,"") -> 52 | AH3: =IF(AI16=1,AH16,"") -> WON | AI3: =IF(AH28>0,AH28,"") -> 44.74468085 | AJ3: =IF(AK16=1,AJ16,"") ->  | AK3: =IF(AJ28>0,AJ28,"") ->  | AL3: =IF(AM16=1,AL16,"") ->  | AM3: =IF(AL28>0,AL28,"") ->  | AN3: =IF(AO16=1,AN16,"") ->  | AO3: =IF(AN28>0,AN28,"") -> 
A4: ='JOLLY MINSTER'!A4 -> Ian Atherton | B4: =IF(C17=1,B17,"") -> LOST | C4: =IF(B29>0,B29,"") -> 36.91666667 | D4: =IF(E17=1,D17,"") ->  | E4: =IF(D29>0,D29,"") ->  | F4: =IF(G17=1,F17,"") -> LOST | G4: =IF(F29>0,F29,"") -> 41.69230769 | H4: =IF(I17=1,H17,"") -> LOST | I4: =IF(H29>0,H29,"") -> 36.5 | J4: =IF(K17=1,J17,"") -> WON | K4: =IF(J29>0,J29,"") -> 38.94444444 | L4: =IF(M17=1,L17,"") -> WON | M4: =IF(L29>0,L29,"") -> 46.73333333 | N4: =IF(O17=1,N17,"") -> LOST | O4: =IF(N29>0,N29,"") -> 57.45454545 | P4: =IF(Q17=1,P17,"") -> WON | Q4: =IF(P29>0,P29,"") -> 55.34210526 | R4: =IF(S17=1,R17,"") -> LOST | S4: =IF(R29>0,R29,"") -> 36.9 | T4: =IF(U17=1,T17,"") -> LOST | U4: =IF(T29>0,T29,"") -> 43.6875 | V4: =IF(W17=1,V17,"") ->  | W4: =IF(V29>0,V29,"") ->  | X4: =IF(Y17=1,X17,"") -> LOST | Y4: =IF(X29>0,X29,"") -> 41.07142857 | Z4: =IF(AA17=1,Z17,"") -> LOST | AA4: =IF(Z29>0,Z29,"") -> 49.15384615 | AB4: =IF(AC17=1,AB17,"") -> WON | AC4: =IF(AB29>0,AB29,"") -> 47.79545455 | AD4: =IF(AE17=1,AD17,"") -> LOST | AE4: =IF(AD29>0,AD29,"") -> 44.08333333 | AF4: =IF(AG17=1,AF17,"") -> LOST | AG4: =IF(AF29>0,AF29,"") -> 42.42857143 | AH4: =IF(AI17=1,AH17,"") -> LOST | AI4: =IF(AH29>0,AH29,"") -> 53.38461538 | AJ4: =IF(AK17=1,AJ17,"") -> LOST | AK4: =IF(AJ29>0,AJ29,"") -> 42.3 | AL4: =IF(AM17=1,AL17,"") ->  | AM4: =IF(AL29>0,AL29,"") ->  | AN4: =IF(AO17=1,AN17,"") ->  | AO4: =IF(AN29>0,AN29,"") -> 
A5: ='JOLLY MINSTER'!A5 -> George McPhee | B5: =IF(C18=1,B18,"") -> LOST | C5: =IF(B30>0,B30,"") -> 39.70588235 | D5: =IF(E18=1,D18,"") ->  | E5: =IF(D30>0,D30,"") ->  | F5: =IF(G18=1,F18,"") -> WON | G5: =IF(F30>0,F30,"") -> 70.1 | H5: =IF(I18=1,H18,"") -> LOST | I5: =IF(H30>0,H30,"") -> 35.69230769 | J5: =IF(K18=1,J18,"") -> WON | K5: =IF(J30>0,J30,"") -> 50.07142857 | L5: =IF(M18=1,L18,"") -> LOST | M5: =IF(L30>0,L30,"") -> 43.6875 | N5: =IF(O18=1,N18,"") -> LOST | O5: =IF(N30>0,N30,"") -> 35.16666667 | P5: =IF(Q18=1,P18,"") -> LOST | Q5: =IF(P30>0,P30,"") -> 39.58333333 | R5: =IF(S18=1,R18,"") -> LOST | S5: =IF(R30>0,R30,"") -> 42.42857143 | T5: =IF(U18=1,T18,"") -> LOST | U5: =IF(T30>0,T30,"") -> 46.375 | V5: =IF(W18=1,V18,"") ->  | W5: =IF(V30>0,V30,"") ->  | X5: =IF(Y18=1,X18,"") -> LOST | Y5: =IF(X30>0,X30,"") -> 34.95 | Z5: =IF(AA18=1,Z18,"") -> WON | AA5: =IF(Z30>0,Z30,"") -> 29.61971831 | AB5: =IF(AC18=1,AB18,"") -> LOST | AC5: =IF(AB30>0,AB30,"") -> 36.78947368 | AD5: =IF(AE18=1,AD18,"") -> LOST | AE5: =IF(AD30>0,AD30,"") -> 52.9 | AF5: =IF(AG18=1,AF18,"") -> LOST | AG5: =IF(AF30>0,AF30,"") -> 52.69230769 | AH5: =IF(AI18=1,AH18,"") -> LOST | AI5: =IF(AH30>0,AH30,"") -> 36.68421053 | AJ5: =IF(AK18=1,AJ18,"") ->  | AK5: =IF(AJ30>0,AJ30,"") ->  | AL5: =IF(AM18=1,AL18,"") ->  | AM5: =IF(AL30>0,AL30,"") ->  | AN5: =IF(AO18=1,AN18,"") ->  | AO5: =IF(AN30>0,AN30,"") -> 
A6: ='JOLLY MINSTER'!A6 -> Craig Burns | B6: LOST | C6: 40.82352941 | F6: LOST | G6: 33.28571429 | J6: LOST | K6: 40.76470588 | L6: WON | M6: 36.25862069 | N6: LOST | O6: 44.88888889 | P6: LOST | Q6: 46.4 | R6: LOST | S6: 42.88888889 | T6: LOST | U6: 47.6 | Z6: WON | AA6: 65.71875 | AB6: WON | AC6: 41.23529412 | AD6: LOST | AE6: 43.375 | AF6: LOST | AG6: 42.2 | AJ6: LOST | AK6: 52.91666667
A7: ='JOLLY MINSTER'!A7 -> Tymo Sobkowiak | B7: LOST | C7: 40.83333333 | F7: LOST | G7: 60.63636364 | H7: LOST | I7: 34.65 | J7: WON | K7: 35.6440678 | L7: LOST | M7: 42.41666667 | N7: LOST | O7: 40.07142857 | P7: LOST | Q7: 42.35714286 | R7: LOST | S7: 41.33333333 | T7: LOST | U7: 32.42857143 | X7: WON | Y7: 41.23529412 | Z7: WON | AA7: 33.38095238 | AB7: WON | AC7: 33.91935484 | AD7: LOST | AE7: 38.83333333 | AF7: LOST | AG7: 41.63636364 | AH7: LOST | AI7: 55.54545455 | AJ7: LOST | AK7: 37.76470588
A8: ='JOLLY MINSTER'!A8 -> Anthony Clemmet | B8: WON | C8: 33.91935484 | F8: LOST | G8: 34.55 | H8: WON | I8: 42.91836735 | J8: LOST | K8: 46.90909091 | L8: WON | M8: 50.07142857 | N8: LOST | O8: 37.3 | P8: WON | Q8: 47.79545455 | R8: LOST | S8: 46.6 | T8: LOST | U8: 40.5 | X8: WON | Y8: 50.07142857 | Z8: LOST | AA8: 36.78947368 | AB8: LOST | AC8: 34.4 | AD8: LOST | AE8: 48.71428571 | AF8: LOST | AG8: 59.54545455 | AH8: LOST | AI8: 43.375 | AJ8: LOST | AK8: 42.8125
A9: ='JOLLY MINSTER'!A9 -> Sam Mathews | AH9: LOST | AI9: 40.71428571 | AJ9: LOST | AK9: 44.86666667
A10: ='JOLLY MINSTER'!A10 -> Tony Read
A11: ='JOLLY MINSTER'!A11 -> Josh Willis
A12: ='JOLLY MINSTER'!A12 -> Marty Burns | AJ12: LOST | AK12: 39.13333333
A13: ='JOLLY MINSTER'!A13 -> 0
A14: ='JOLLY MINSTER'!A14 -> 0 | C14: =IF(B39>0,B39,"") -> 
A16: BOWLING CLUB | B16: =IF('JOLLY MINSTER'!B3=701,"WON","LOST") -> WON | C16: =IF('JOLLY MINSTER'!B3>0,1,0) -> 1 | D16: =IF('JOLLY MINSTER'!F3=701,"WON","LOST") -> LOST | E16: =IF('JOLLY MINSTER'!F3>0,1,0) -> 0 | F16: =IF('JOLLY MINSTER'!J3=701,"WON","LOST") -> LOST | G16: =IF('JOLLY MINSTER'!J3>0,1,0) -> 1 | H16: =IF('JOLLY MINSTER'!N3=701,"WON","LOST") -> WON | I16: =IF('JOLLY MINSTER'!N3>0,1,0) -> 1 | J16: =IF('JOLLY MINSTER'!R3=701,"WON","LOST") -> LOST | K16: =IF('JOLLY MINSTER'!R3>0,1,0) -> 1 | L16: =IF('JOLLY MINSTER'!V3=701,"WON","LOST") -> LOST | M16: =IF('JOLLY MINSTER'!V3>0,1,0) -> 1 | N16: =IF('JOLLY MINSTER'!Z3=701,"WON","LOST") -> LOST | O16: =IF('JOLLY MINSTER'!Z3>0,1,0) -> 1 | P16: =IF('JOLLY MINSTER'!AD3=701,"WON","LOST") -> WON | Q16: =IF('JOLLY MINSTER'!AD3>0,1,0) -> 1 | R16: =IF('JOLLY MINSTER'!AH3=701,"WON","LOST") -> WON | S16: =IF('JOLLY MINSTER'!AH3>0,1,0) -> 1 | T16: =IF('JOLLY MINSTER'!AL3=701,"WON","LOST") -> LOST | U16: =IF('JOLLY MINSTER'!AL3>0,1,0) -> 1 | V16: =IF('JOLLY MINSTER'!AP3=701,"WON","LOST") -> LOST | W16: =IF('JOLLY MINSTER'!AP3>0,1,0) -> 0 | X16: =IF('JOLLY MINSTER'!AT3=701,"WON","LOST") -> LOST | Y16: =IF('JOLLY MINSTER'!AT3>0,1,0) -> 1 | Z16: =IF('JOLLY MINSTER'!AX3=701,"WON","LOST") -> LOST | AA16: =IF('JOLLY MINSTER'!AX3>0,1,0) -> 1 | AB16: =IF('JOLLY MINSTER'!BB3=701,"WON","LOST") -> WON | AC16: =IF('JOLLY MINSTER'!BB3>0,1,0) -> 1 | AD16: =IF('JOLLY MINSTER'!BF3=701,"WON","LOST") -> LOST | AE16: =IF('JOLLY MINSTER'!BF3>0,1,0) -> 1 | AF16: =IF('JOLLY MINSTER'!BJ3=701,"WON","LOST") -> LOST | AG16: =IF('JOLLY MINSTER'!BJ3>0,1,0) -> 1 | AH16: =IF('JOLLY MINSTER'!BN3=701,"WON","LOST") -> WON | AI16: =IF('JOLLY MINSTER'!BN3>0,1,0) -> 1 | AJ16: =IF('JOLLY MINSTER'!BR3=701,"WON","LOST") -> LOST | AK16: =IF('JOLLY MINSTER'!BR3>0,1,0) -> 0 | AL16: =IF('JOLLY MINSTER'!CD3=701,"WON","LOST") -> LOST | AM16: =IF('JOLLY MINSTER'!CD3>0,1,0) -> 0 | AN16: =IF('JOLLY MINSTER'!CH3=701,"WON","LOST") -> LOST | AO16: =IF('JOLLY MINSTER'!CH3>0,1,0) -> 0
B17: =IF('JOLLY MINSTER'!B4=701,"WON","LOST") -> LOST | C17: =IF('JOLLY MINSTER'!B4>0,1,0) -> 1 | D17: =IF('JOLLY MINSTER'!F4=701,"WON","LOST") -> LOST | E17: =IF('JOLLY MINSTER'!F4>0,1,0) -> 0 | F17: =IF('JOLLY MINSTER'!J4=701,"WON","LOST") -> LOST | G17: =IF('JOLLY MINSTER'!J4>0,1,0) -> 1 | H17: =IF('JOLLY MINSTER'!N4=701,"WON","LOST") -> LOST | I17: =IF('JOLLY MINSTER'!N4>0,1,0) -> 1 | J17: =IF('JOLLY MINSTER'!R4=701,"WON","LOST") -> WON | K17: =IF('JOLLY MINSTER'!R4>0,1,0) -> 1 | L17: =IF('JOLLY MINSTER'!V4=701,"WON","LOST") -> WON | M17: =IF('JOLLY MINSTER'!V4>0,1,0) -> 1 | N17: =IF('JOLLY MINSTER'!Z4=701,"WON","LOST") -> LOST | O17: =IF('JOLLY MINSTER'!Z4>0,1,0) -> 1 | P17: =IF('JOLLY MINSTER'!AD4=701,"WON","LOST") -> WON | Q17: =IF('JOLLY MINSTER'!AD4>0,1,0) -> 1 | R17: =IF('JOLLY MINSTER'!AH4=701,"WON","LOST") -> LOST | S17: =IF('JOLLY MINSTER'!AH4>0,1,0) -> 1 | T17: =IF('JOLLY MINSTER'!AL4=701,"WON","LOST") -> LOST | U17: =IF('JOLLY MINSTER'!AL4>0,1,0) -> 1 | V17: =IF('JOLLY MINSTER'!AP4=701,"WON","LOST") -> LOST | W17: =IF('JOLLY MINSTER'!AP4>0,1,0) -> 0 | X17: =IF('JOLLY MINSTER'!AT4=701,"WON","LOST") -> LOST | Y17: =IF('JOLLY MINSTER'!AT4>0,1,0) -> 1 | Z17: =IF('JOLLY MINSTER'!AX4=701,"WON","LOST") -> LOST | AA17: =IF('JOLLY MINSTER'!AX4>0,1,0) -> 1 | AB17: =IF('JOLLY MINSTER'!BB4=701,"WON","LOST") -> WON | AC17: =IF('JOLLY MINSTER'!BB4>0,1,0) -> 1 | AD17: =IF('JOLLY MINSTER'!BF4=701,"WON","LOST") -> LOST | AE17: =IF('JOLLY MINSTER'!BF4>0,1,0) -> 1 | AF17: =IF('JOLLY MINSTER'!BJ4=701,"WON","LOST") -> LOST | AG17: =IF('JOLLY MINSTER'!BJ4>0,1,0) -> 1 | AH17: =IF('JOLLY MINSTER'!BN4=701,"WON","LOST") -> LOST | AI17: =IF('JOLLY MINSTER'!BN4>0,1,0) -> 1 | AJ17: =IF('JOLLY MINSTER'!BR4=701,"WON","LOST") -> LOST | AK17: =IF('JOLLY MINSTER'!BR4>0,1,0) -> 1 | AL17: =IF('JOLLY MINSTER'!CD4=701,"WON","LOST") -> LOST | AM17: =IF('JOLLY MINSTER'!CD4>0,1,0) -> 0 | AN17: =IF('JOLLY MINSTER'!CH4=701,"WON","LOST") -> LOST | AO17: =IF('JOLLY MINSTER'!CH4>0,1,0) -> 0
B18: =IF('JOLLY MINSTER'!B5=701,"WON","LOST") -> LOST | C18: =IF('JOLLY MINSTER'!B5>0,1,0) -> 1 | D18: =IF('JOLLY MINSTER'!F5=701,"WON","LOST") -> LOST | E18: =IF('JOLLY MINSTER'!F5>0,1,0) -> 0 | F18: =IF('JOLLY MINSTER'!J5=701,"WON","LOST") -> WON | G18: =IF('JOLLY MINSTER'!J5>0,1,0) -> 1 | H18: =IF('JOLLY MINSTER'!N5=701,"WON","LOST") -> LOST | I18: =IF('JOLLY MINSTER'!N5>0,1,0) -> 1 | J18: =IF('JOLLY MINSTER'!R5=701,"WON","LOST") -> WON | K18: =IF('JOLLY MINSTER'!R5>0,1,0) -> 1 | L18: =IF('JOLLY MINSTER'!V5=701,"WON","LOST") -> LOST | M18: =IF('JOLLY MINSTER'!V5>0,1,0) -> 1 | N18: =IF('JOLLY MINSTER'!Z5=701,"WON","LOST") -> LOST | O18: =IF('JOLLY MINSTER'!Z5>0,1,0) -> 1 | P18: =IF('JOLLY MINSTER'!AD5=701,"WON","LOST") -> LOST | Q18: =IF('JOLLY MINSTER'!AD5>0,1,0) -> 1 | R18: =IF('JOLLY MINSTER'!AH5=701,"WON","LOST") -> LOST | S18: =IF('JOLLY MINSTER'!AH5>0,1,0) -> 1 | T18: =IF('JOLLY MINSTER'!AL5=701,"WON","LOST") -> LOST | U18: =IF('JOLLY MINSTER'!AL5>0,1,0) -> 1 | V18: =IF('JOLLY MINSTER'!AP5=701,"WON","LOST") -> LOST | W18: =IF('JOLLY MINSTER'!AP5>0,1,0) -> 0 | X18: =IF('JOLLY MINSTER'!AT5=701,"WON","LOST") -> LOST | Y18: =IF('JOLLY MINSTER'!AT5>0,1,0) -> 1 | Z18: =IF('JOLLY MINSTER'!AX5=701,"WON","LOST") -> WON | AA18: =IF('JOLLY MINSTER'!AX5>0,1,0) -> 1 | AB18: =IF('JOLLY MINSTER'!BB5=701,"WON","LOST") -> LOST | AC18: =IF('JOLLY MINSTER'!BB5>0,1,0) -> 1 | AD18: =IF('JOLLY MINSTER'!BF5=701,"WON","LOST") -> LOST | AE18: =IF('JOLLY MINSTER'!BF5>0,1,0) -> 1 | AF18: =IF('JOLLY MINSTER'!BJ5=701,"WON","LOST") -> LOST | AG18: =IF('JOLLY MINSTER'!BJ5>0,1,0) -> 1 | AH18: =IF('JOLLY MINSTER'!BN5=701,"WON","LOST") -> LOST | AI18: =IF('JOLLY MINSTER'!BN5>0,1,0) -> 1 | AJ18: =IF('JOLLY MINSTER'!BR5=701,"WON","LOST") -> LOST | AK18: =IF('JOLLY MINSTER'!BR5>0,1,0) -> 0 | AL18: =IF('JOLLY MINSTER'!CD5=701,"WON","LOST") -> LOST | AM18: =IF('JOLLY MINSTER'!CD5>0,1,0) -> 0 | AN18: =IF('JOLLY MINSTER'!CH5=701,"WON","LOST") -> LOST | AO18: =IF('JOLLY MINSTER'!CH5>0,1,0) -> 0
B19: =IF('JOLLY MINSTER'!B6=701,"WON","LOST") -> LOST | C19: =IF('JOLLY MINSTER'!B6>0,1,0) -> 1 | D19: =IF('JOLLY MINSTER'!F6=701,"WON","LOST") -> LOST | E19: =IF('JOLLY MINSTER'!F6>0,1,0) -> 0 | F19: =IF('JOLLY MINSTER'!J6=701,"WON","LOST") -> LOST | G19: =IF('JOLLY MINSTER'!J6>0,1,0) -> 1 | H19: =IF('JOLLY MINSTER'!N6=701,"WON","LOST") -> LOST | I19: =IF('JOLLY MINSTER'!N6>0,1,0) -> 0 | J19: =IF('JOLLY MINSTER'!R6=701,"WON","LOST") -> LOST | K19: =IF('JOLLY MINSTER'!R6>0,1,0) -> 1 | L19: =IF('JOLLY MINSTER'!V6=701,"WON","LOST") -> WON | M19: =IF('JOLLY MINSTER'!V6>0,1,0) -> 1 | N19: =IF('JOLLY MINSTER'!Z6=701,"WON","LOST") -> LOST | O19: =IF('JOLLY MINSTER'!Z6>0,1,0) -> 1 | P19: =IF('JOLLY MINSTER'!AD6=701,"WON","LOST") -> LOST | Q19: =IF('JOLLY MINSTER'!AD6>0,1,0) -> 1 | R19: =IF('JOLLY MINSTER'!AH6=701,"WON","LOST") -> LOST | S19: =IF('JOLLY MINSTER'!AH6>0,1,0) -> 1 | T19: =IF('JOLLY MINSTER'!AL6=701,"WON","LOST") -> LOST | U19: =IF('JOLLY MINSTER'!AL6>0,1,0) -> 1 | V19: =IF('JOLLY MINSTER'!AP6=701,"WON","LOST") -> LOST | W19: =IF('JOLLY MINSTER'!AP6>0,1,0) -> 0 | X19: =IF('JOLLY MINSTER'!AT6=701,"WON","LOST") -> LOST | Y19: =IF('JOLLY MINSTER'!AT6>0,1,0) -> 0 | Z19: =IF('JOLLY MINSTER'!AX6=701,"WON","LOST") -> WON | AA19: =IF('JOLLY MINSTER'!AX6>0,1,0) -> 1 | AB19: =IF('JOLLY MINSTER'!BB6=701,"WON","LOST") -> WON | AC19: =IF('JOLLY MINSTER'!BB6>0,1,0) -> 1 | AD19: =IF('JOLLY MINSTER'!BF6=701,"WON","LOST") -> LOST | AE19: =IF('JOLLY MINSTER'!BF6>0,1,0) -> 1 | AF19: =IF('JOLLY MINSTER'!BJ6=701,"WON","LOST") -> LOST | AG19: =IF('JOLLY MINSTER'!BJ6>0,1,0) -> 1 | AH19: =IF('JOLLY MINSTER'!BN6=701,"WON","LOST") -> LOST | AI19: =IF('JOLLY MINSTER'!BN6>0,1,0) -> 0 | AJ19: =IF('JOLLY MINSTER'!BR6=701,"WON","LOST") -> LOST | AK19: =IF('JOLLY MINSTER'!BR6>0,1,0) -> 1 | AL19: =IF('JOLLY MINSTER'!CD6=701,"WON","LOST") -> LOST | AM19: =IF('JOLLY MINSTER'!CD6>0,1,0) -> 0 | AN19: =IF('JOLLY MINSTER'!CH6=701,"WON","LOST") -> LOST | AO19: =IF('JOLLY MINSTER'!CH6>0,1,0) -> 0
B20: =IF('JOLLY MINSTER'!B7=701,"WON","LOST") -> LOST | C20: =IF('JOLLY MINSTER'!B7>0,1,0) -> 1 | D20: =IF('JOLLY MINSTER'!F7=701,"WON","LOST") -> LOST | E20: =IF('JOLLY MINSTER'!F7>0,1,0) -> 0 | F20: =IF('JOLLY MINSTER'!J7=701,"WON","LOST") -> LOST | G20: =IF('JOLLY MINSTER'!J7>0,1,0) -> 1 | H20: =IF('JOLLY MINSTER'!N7=701,"WON","LOST") -> LOST | I20: =IF('JOLLY MINSTER'!N7>0,1,0) -> 1 | J20: =IF('JOLLY MINSTER'!R7=701,"WON","LOST") -> WON | K20: =IF('JOLLY MINSTER'!R7>0,1,0) -> 1 | L20: =IF('JOLLY MINSTER'!V7=701,"WON","LOST") -> LOST | M20: =IF('JOLLY MINSTER'!V7>0,1,0) -> 1 | N20: =IF('JOLLY MINSTER'!Z7=701,"WON","LOST") -> LOST | O20: =IF('JOLLY MINSTER'!Z7>0,1,0) -> 1 | P20: =IF('JOLLY MINSTER'!AD7=701,"WON","LOST") -> LOST | Q20: =IF('JOLLY MINSTER'!AD7>0,1,0) -> 1 | R20: =IF('JOLLY MINSTER'!AH7=701,"WON","LOST") -> LOST | S20: =IF('JOLLY MINSTER'!AH7>0,1,0) -> 1 | T20: =IF('JOLLY MINSTER'!AL7=701,"WON","LOST") -> LOST | U20: =IF('JOLLY MINSTER'!AL7>0,1,0) -> 1 | V20: =IF('JOLLY MINSTER'!AP7=701,"WON","LOST") -> LOST | W20: =IF('JOLLY MINSTER'!AP7>0,1,0) -> 0 | X20: =IF('JOLLY MINSTER'!AT7=701,"WON","LOST") -> WON | Y20: =IF('JOLLY MINSTER'!AT7>0,1,0) -> 1 | Z20: =IF('JOLLY MINSTER'!AX7=701,"WON","LOST") -> WON | AA20: =IF('JOLLY MINSTER'!AX7>0,1,0) -> 1 | AB20: =IF('JOLLY MINSTER'!BB7=701,"WON","LOST") -> WON | AC20: =IF('JOLLY MINSTER'!BB7>0,1,0) -> 1 | AD20: =IF('JOLLY MINSTER'!BF7=701,"WON","LOST") -> LOST | AE20: =IF('JOLLY MINSTER'!BF7>0,1,0) -> 1 | AF20: =IF('JOLLY MINSTER'!BJ7=701,"WON","LOST") -> LOST | AG20: =IF('JOLLY MINSTER'!BJ7>0,1,0) -> 1 | AH20: =IF('JOLLY MINSTER'!BN7=701,"WON","LOST") -> LOST | AI20: =IF('JOLLY MINSTER'!BN7>0,1,0) -> 1 | AJ20: =IF('JOLLY MINSTER'!BR7=701,"WON","LOST") -> LOST | AK20: =IF('JOLLY MINSTER'!BR7>0,1,0) -> 1 | AL20: =IF('JOLLY MINSTER'!CD7=701,"WON","LOST") -> LOST | AM20: =IF('JOLLY MINSTER'!CD7>0,1,0) -> 0 | AN20: =IF('JOLLY MINSTER'!CH7=701,"WON","LOST") -> LOST | AO20: =IF('JOLLY MINSTER'!CH7>0,1,0) -> 0
B21: =IF('JOLLY MINSTER'!B8=701,"WON","LOST") -> WON | C21: =IF('JOLLY MINSTER'!B8>0,1,0) -> 1 | D21: =IF('JOLLY MINSTER'!F8=701,"WON","LOST") -> LOST | E21: =IF('JOLLY MINSTER'!F8>0,1,0) -> 0 | F21: =IF('JOLLY MINSTER'!J8=701,"WON","LOST") -> LOST | G21: =IF('JOLLY MINSTER'!J8>0,1,0) -> 1 | H21: =IF('JOLLY MINSTER'!N8=701,"WON","LOST") -> WON | I21: =IF('JOLLY MINSTER'!N8>0,1,0) -> 1 | J21: =IF('JOLLY MINSTER'!R8=701,"WON","LOST") -> LOST | K21: =IF('JOLLY MINSTER'!R8>0,1,0) -> 1 | L21: =IF('JOLLY MINSTER'!V8=701,"WON","LOST") -> WON | M21: =IF('JOLLY MINSTER'!V8>0,1,0) -> 1 | N21: =IF('JOLLY MINSTER'!Z8=701,"WON","LOST") -> LOST | O21: =IF('JOLLY MINSTER'!Z8>0,1,0) -> 1 | P21: =IF('JOLLY MINSTER'!AD8=701,"WON","LOST") -> WON | Q21: =IF('JOLLY MINSTER'!AD8>0,1,0) -> 1 | R21: =IF('JOLLY MINSTER'!AH8=701,"WON","LOST") -> LOST | S21: =IF('JOLLY MINSTER'!AH8>0,1,0) -> 1 | T21: =IF('JOLLY MINSTER'!AL8=701,"WON","LOST") -> LOST | U21: =IF('JOLLY MINSTER'!AL8>0,1,0) -> 1 | V21: =IF('JOLLY MINSTER'!AP8=701,"WON","LOST") -> LOST | W21: =IF('JOLLY MINSTER'!AP8>0,1,0) -> 0 | X21: =IF('JOLLY MINSTER'!AT8=701,"WON","LOST") -> WON | Y21: =IF('JOLLY MINSTER'!AT8>0,1,0) -> 1 | Z21: =IF('JOLLY MINSTER'!AX8=701,"WON","LOST") -> LOST | AA21: =IF('JOLLY MINSTER'!AX8>0,1,0) -> 1 | AB21: =IF('JOLLY MINSTER'!BB8=701,"WON","LOST") -> LOST | AC21: =IF('JOLLY MINSTER'!BB8>0,1,0) -> 1 | AD21: =IF('JOLLY MINSTER'!BF8=701,"WON","LOST") -> LOST | AE21: =IF('JOLLY MINSTER'!BF8>0,1,0) -> 1 | AF21: =IF('JOLLY MINSTER'!BJ8=701,"WON","LOST") -> LOST | AG21: =IF('JOLLY MINSTER'!BJ8>0,1,0) -> 1 | AH21: =IF('JOLLY MINSTER'!BN8=701,"WON","LOST") -> LOST | AI21: =IF('JOLLY MINSTER'!BN8>0,1,0) -> 1 | AJ21: =IF('JOLLY MINSTER'!BR8=701,"WON","LOST") -> LOST | AK21: =IF('JOLLY MINSTER'!BR8>0,1,0) -> 1 | AL21: =IF('JOLLY MINSTER'!CD8=701,"WON","LOST") -> LOST | AM21: =IF('JOLLY MINSTER'!CD8>0,1,0) -> 0 | AN21: =IF('JOLLY MINSTER'!CH8=701,"WON","LOST") -> LOST | AO21: =IF('JOLLY MINSTER'!CH8>0,1,0) -> 0
B22: =IF('JOLLY MINSTER'!B9=701,"WON","LOST") -> LOST | C22: =IF('JOLLY MINSTER'!B9>0,1,0) -> 0 | D22: =IF('JOLLY MINSTER'!F9=701,"WON","LOST") -> LOST | E22: =IF('JOLLY MINSTER'!F9>0,1,0) -> 0 | F22: =IF('JOLLY MINSTER'!J9=701,"WON","LOST") -> LOST | G22: =IF('JOLLY MINSTER'!J9>0,1,0) -> 0 | H22: =IF('JOLLY MINSTER'!N9=701,"WON","LOST") -> LOST | I22: =IF('JOLLY MINSTER'!N9>0,1,0) -> 0 | J22: =IF('JOLLY MINSTER'!R9=701,"WON","LOST") -> LOST | K22: =IF('JOLLY MINSTER'!R9>0,1,0) -> 0 | L22: =IF('JOLLY MINSTER'!V9=701,"WON","LOST") -> LOST | M22: =IF('JOLLY MINSTER'!V9>0,1,0) -> 0 | N22: =IF('JOLLY MINSTER'!Z9=701,"WON","LOST") -> LOST | O22: =IF('JOLLY MINSTER'!Z9>0,1,0) -> 0 | P22: =IF('JOLLY MINSTER'!AD9=701,"WON","LOST") -> LOST | Q22: =IF('JOLLY MINSTER'!AD9>0,1,0) -> 0 | R22: =IF('JOLLY MINSTER'!AH9=701,"WON","LOST") -> LOST | S22: =IF('JOLLY MINSTER'!AH9>0,1,0) -> 0 | T22: =IF('JOLLY MINSTER'!AL9=701,"WON","LOST") -> LOST | U22: =IF('JOLLY MINSTER'!AL9>0,1,0) -> 0 | V22: =IF('JOLLY MINSTER'!AP9=701,"WON","LOST") -> LOST | W22: =IF('JOLLY MINSTER'!AP9>0,1,0) -> 0 | X22: =IF('JOLLY MINSTER'!AT9=701,"WON","LOST") -> LOST | Y22: =IF('JOLLY MINSTER'!AT9>0,1,0) -> 0 | Z22: =IF('JOLLY MINSTER'!AX9=701,"WON","LOST") -> LOST | AA22: =IF('JOLLY MINSTER'!AX9>0,1,0) -> 0 | AB22: =IF('JOLLY MINSTER'!BB9=701,"WON","LOST") -> LOST | AC22: =IF('JOLLY MINSTER'!BB9>0,1,0) -> 0 | AD22: =IF('JOLLY MINSTER'!BF9=701,"WON","LOST") -> LOST | AE22: =IF('JOLLY MINSTER'!BF9>0,1,0) -> 0 | AF22: =IF('JOLLY MINSTER'!BJ9=701,"WON","LOST") -> LOST | AG22: =IF('JOLLY MINSTER'!BJ9>0,1,0) -> 0 | AH22: =IF('JOLLY MINSTER'!BN9=701,"WON","LOST") -> LOST | AI22: =IF('JOLLY MINSTER'!BN9>0,1,0) -> 1 | AJ22: =IF('JOLLY MINSTER'!BR9=701,"WON","LOST") -> LOST | AK22: =IF('JOLLY MINSTER'!BR9>0,1,0) -> 1 | AL22: =IF('JOLLY MINSTER'!CD9=701,"WON","LOST") -> LOST | AM22: =IF('JOLLY MINSTER'!CD9>0,1,0) -> 0 | AN22: =IF('JOLLY MINSTER'!CH9=701,"WON","LOST") -> LOST | AO22: =IF('JOLLY MINSTER'!CH9>0,1,0) -> 0
B23: =IF('JOLLY MINSTER'!B10=701,"WON","LOST") -> LOST | C23: =IF('JOLLY MINSTER'!B10>0,1,0) -> 0 | D23: =IF('JOLLY MINSTER'!F10=701,"WON","LOST") -> LOST | E23: =IF('JOLLY MINSTER'!F10>0,1,0) -> 0 | F23: =IF('JOLLY MINSTER'!J10=701,"WON","LOST") -> LOST | G23: =IF('JOLLY MINSTER'!J10>0,1,0) -> 0 | H23: =IF('JOLLY MINSTER'!N10=701,"WON","LOST") -> LOST | I23: =IF('JOLLY MINSTER'!N10>0,1,0) -> 0 | J23: =IF('JOLLY MINSTER'!R10=701,"WON","LOST") -> LOST | K23: =IF('JOLLY MINSTER'!R10>0,1,0) -> 0 | L23: =IF('JOLLY MINSTER'!V10=701,"WON","LOST") -> LOST | M23: =IF('JOLLY MINSTER'!V10>0,1,0) -> 0 | N23: =IF('JOLLY MINSTER'!Z10=701,"WON","LOST") -> LOST | O23: =IF('JOLLY MINSTER'!Z10>0,1,0) -> 0 | P23: =IF('JOLLY MINSTER'!AD10=701,"WON","LOST") -> LOST | Q23: =IF('JOLLY MINSTER'!AD10>0,1,0) -> 0 | R23: =IF('JOLLY MINSTER'!AH10=701,"WON","LOST") -> LOST | S23: =IF('JOLLY MINSTER'!AH10>0,1,0) -> 0 | T23: =IF('JOLLY MINSTER'!AL10=701,"WON","LOST") -> LOST | U23: =IF('JOLLY MINSTER'!AL10>0,1,0) -> 0 | V23: =IF('JOLLY MINSTER'!AP10=701,"WON","LOST") -> LOST | W23: =IF('JOLLY MINSTER'!AP10>0,1,0) -> 0 | X23: =IF('JOLLY MINSTER'!AT10=701,"WON","LOST") -> LOST | Y23: =IF('JOLLY MINSTER'!AT10>0,1,0) -> 0 | Z23: =IF('JOLLY MINSTER'!AX10=701,"WON","LOST") -> LOST | AA23: =IF('JOLLY MINSTER'!AX10>0,1,0) -> 0 | AB23: =IF('JOLLY MINSTER'!BB10=701,"WON","LOST") -> LOST | AC23: =IF('JOLLY MINSTER'!BB10>0,1,0) -> 0 | AD23: =IF('JOLLY MINSTER'!BF10=701,"WON","LOST") -> LOST | AE23: =IF('JOLLY MINSTER'!BF10>0,1,0) -> 0 | AF23: =IF('JOLLY MINSTER'!BJ10=701,"WON","LOST") -> LOST | AG23: =IF('JOLLY MINSTER'!BJ10>0,1,0) -> 0 | AH23: =IF('JOLLY MINSTER'!BN10=701,"WON","LOST") -> LOST | AI23: =IF('JOLLY MINSTER'!BN10>0,1,0) -> 0 | AJ23: =IF('JOLLY MINSTER'!BR10=701,"WON","LOST") -> LOST | AK23: =IF('JOLLY MINSTER'!BR10>0,1,0) -> 0 | AL23: =IF('JOLLY MINSTER'!CD10=701,"WON","LOST") -> LOST | AM23: =IF('JOLLY MINSTER'!CD10>0,1,0) -> 0 | AN23: =IF('JOLLY MINSTER'!CH10=701,"WON","LOST") -> LOST | AO23: =IF('JOLLY MINSTER'!CH10>0,1,0) -> 0
B24: =IF('JOLLY MINSTER'!B11=701,"WON","LOST") -> LOST | C24: =IF('JOLLY MINSTER'!B11>0,1,0) -> 0 | D24: =IF('JOLLY MINSTER'!F11=701,"WON","LOST") -> LOST | E24: =IF('JOLLY MINSTER'!F11>0,1,0) -> 0 | F24: =IF('JOLLY MINSTER'!J11=701,"WON","LOST") -> LOST | G24: =IF('JOLLY MINSTER'!J11>0,1,0) -> 0 | H24: =IF('JOLLY MINSTER'!N11=701,"WON","LOST") -> LOST | I24: =IF('JOLLY MINSTER'!N11>0,1,0) -> 0 | J24: =IF('JOLLY MINSTER'!R11=701,"WON","LOST") -> LOST | K24: =IF('JOLLY MINSTER'!R11>0,1,0) -> 0 | L24: =IF('JOLLY MINSTER'!V11=701,"WON","LOST") -> LOST | M24: =IF('JOLLY MINSTER'!V11>0,1,0) -> 0 | N24: =IF('JOLLY MINSTER'!Z11=701,"WON","LOST") -> LOST | O24: =IF('JOLLY MINSTER'!Z11>0,1,0) -> 0 | P24: =IF('JOLLY MINSTER'!AD11=701,"WON","LOST") -> LOST | Q24: =IF('JOLLY MINSTER'!AD11>0,1,0) -> 0 | R24: =IF('JOLLY MINSTER'!AH11=701,"WON","LOST") -> LOST | S24: =IF('JOLLY MINSTER'!AH11>0,1,0) -> 0 | T24: =IF('JOLLY MINSTER'!AL11=701,"WON","LOST") -> LOST | U24: =IF('JOLLY MINSTER'!AL11>0,1,0) -> 0 | V24: =IF('JOLLY MINSTER'!AP11=701,"WON","LOST") -> LOST | W24: =IF('JOLLY MINSTER'!AP11>0,1,0) -> 0 | X24: =IF('JOLLY MINSTER'!AT11=701,"WON","LOST") -> LOST | Y24: =IF('JOLLY MINSTER'!AT11>0,1,0) -> 0 | Z24: =IF('JOLLY MINSTER'!AX11=701,"WON","LOST") -> LOST | AA24: =IF('JOLLY MINSTER'!AX11>0,1,0) -> 0 | AB24: =IF('JOLLY MINSTER'!BB11=701,"WON","LOST") -> LOST | AC24: =IF('JOLLY MINSTER'!BB11>0,1,0) -> 0 | AD24: =IF('JOLLY MINSTER'!BF11=701,"WON","LOST") -> LOST | AE24: =IF('JOLLY MINSTER'!BF11>0,1,0) -> 0 | AF24: =IF('JOLLY MINSTER'!BJ11=701,"WON","LOST") -> LOST | AG24: =IF('JOLLY MINSTER'!BJ11>0,1,0) -> 0 | AH24: =IF('JOLLY MINSTER'!BN11=701,"WON","LOST") -> LOST | AI24: =IF('JOLLY MINSTER'!BN11>0,1,0) -> 0 | AJ24: =IF('JOLLY MINSTER'!BR11=701,"WON","LOST") -> LOST | AK24: =IF('JOLLY MINSTER'!BR11>0,1,0) -> 0 | AL24: =IF('JOLLY MINSTER'!CD11=701,"WON","LOST") -> LOST | AM24: =IF('JOLLY MINSTER'!CD11>0,1,0) -> 0 | AN24: =IF('JOLLY MINSTER'!CH11=701,"WON","LOST") -> LOST | AO24: =IF('JOLLY MINSTER'!CH11>0,1,0) -> 0
B25: =IF('JOLLY MINSTER'!B12=701,"WON","LOST") -> LOST | C25: =IF('JOLLY MINSTER'!B12>0,1,0) -> 0 | D25: =IF('JOLLY MINSTER'!F12=701,"WON","LOST") -> LOST | E25: =IF('JOLLY MINSTER'!F12>0,1,0) -> 0 | F25: =IF('JOLLY MINSTER'!J12=701,"WON","LOST") -> LOST | G25: =IF('JOLLY MINSTER'!J12>0,1,0) -> 0 | H25: =IF('JOLLY MINSTER'!N12=701,"WON","LOST") -> LOST | I25: =IF('JOLLY MINSTER'!N12>0,1,0) -> 0 | J25: =IF('JOLLY MINSTER'!R12=701,"WON","LOST") -> LOST | K25: =IF('JOLLY MINSTER'!R12>0,1,0) -> 0 | L25: =IF('JOLLY MINSTER'!V12=701,"WON","LOST") -> LOST | M25: =IF('JOLLY MINSTER'!V12>0,1,0) -> 0 | N25: =IF('JOLLY MINSTER'!Z12=701,"WON","LOST") -> LOST | O25: =IF('JOLLY MINSTER'!Z12>0,1,0) -> 0 | P25: =IF('JOLLY MINSTER'!AD12=701,"WON","LOST") -> LOST | Q25: =IF('JOLLY MINSTER'!AD12>0,1,0) -> 0 | R25: =IF('JOLLY MINSTER'!AH12=701,"WON","LOST") -> LOST | S25: =IF('JOLLY MINSTER'!AH12>0,1,0) -> 0 | T25: =IF('JOLLY MINSTER'!AL12=701,"WON","LOST") -> LOST | U25: =IF('JOLLY MINSTER'!AL12>0,1,0) -> 0 | V25: =IF('JOLLY MINSTER'!AP12=701,"WON","LOST") -> LOST | W25: =IF('JOLLY MINSTER'!AP12>0,1,0) -> 0 | X25: =IF('JOLLY MINSTER'!AT12=701,"WON","LOST") -> LOST | Y25: =IF('JOLLY MINSTER'!AT12>0,1,0) -> 0 | Z25: =IF('JOLLY MINSTER'!AX12=701,"WON","LOST") -> LOST | AA25: =IF('JOLLY MINSTER'!AX12>0,1,0) -> 0 | AB25: =IF('JOLLY MINSTER'!BB12=701,"WON","LOST") -> LOST | AC25: =IF('JOLLY MINSTER'!BB12>0,1,0) -> 0 | AD25: =IF('JOLLY MINSTER'!BF12=701,"WON","LOST") -> LOST | AE25: =IF('JOLLY MINSTER'!BF12>0,1,0) -> 0 | AF25: =IF('JOLLY MINSTER'!BJ12=701,"WON","LOST") -> LOST | AG25: =IF('JOLLY MINSTER'!BJ12>0,1,0) -> 0 | AH25: =IF('JOLLY MINSTER'!BN12=701,"WON","LOST") -> LOST | AI25: =IF('JOLLY MINSTER'!BN12>0,1,0) -> 0 | AJ25: =IF('JOLLY MINSTER'!BR12=701,"WON","LOST") -> LOST | AK25: =IF('JOLLY MINSTER'!BR12>0,1,0) -> 1 | AL25: =IF('JOLLY MINSTER'!CD12=701,"WON","LOST") -> LOST | AM25: =IF('JOLLY MINSTER'!CD12>0,1,0) -> 0 | AN25: =IF('JOLLY MINSTER'!CH12=701,"WON","LOST") -> LOST | AO25: =IF('JOLLY MINSTER'!CH12>0,1,0) -> 0
B26: =IF('JOLLY MINSTER'!B13=701,"WON","LOST") -> LOST | C26: =IF('JOLLY MINSTER'!B13>0,1,0) -> 0 | D26: =IF('JOLLY MINSTER'!F13=701,"WON","LOST") -> LOST | E26: =IF('JOLLY MINSTER'!F13>0,1,0) -> 0 | F26: =IF('JOLLY MINSTER'!J13=701,"WON","LOST") -> LOST | G26: =IF('JOLLY MINSTER'!J13>0,1,0) -> 0 | H26: =IF('JOLLY MINSTER'!N13=701,"WON","LOST") -> LOST | I26: =IF('JOLLY MINSTER'!N13>0,1,0) -> 0 | J26: =IF('JOLLY MINSTER'!R13=701,"WON","LOST") -> LOST | K26: =IF('JOLLY MINSTER'!R13>0,1,0) -> 0 | L26: =IF('JOLLY MINSTER'!V13=701,"WON","LOST") -> LOST | M26: =IF('JOLLY MINSTER'!V13>0,1,0) -> 0 | N26: =IF('JOLLY MINSTER'!Z13=701,"WON","LOST") -> LOST | O26: =IF('JOLLY MINSTER'!Z13>0,1,0) -> 0 | P26: =IF('JOLLY MINSTER'!AD13=701,"WON","LOST") -> LOST | Q26: =IF('JOLLY MINSTER'!AD13>0,1,0) -> 0 | R26: =IF('JOLLY MINSTER'!AH13=701,"WON","LOST") -> LOST | S26: =IF('JOLLY MINSTER'!AH13>0,1,0) -> 0 | T26: =IF('JOLLY MINSTER'!AL13=701,"WON","LOST") -> LOST | U26: =IF('JOLLY MINSTER'!AL13>0,1,0) -> 0 | V26: =IF('JOLLY MINSTER'!AP13=701,"WON","LOST") -> LOST | W26: =IF('JOLLY MINSTER'!AP13>0,1,0) -> 0 | X26: =IF('JOLLY MINSTER'!AT13=701,"WON","LOST") -> LOST | Y26: =IF('JOLLY MINSTER'!AT13>0,1,0) -> 0 | Z26: =IF('JOLLY MINSTER'!AX13=701,"WON","LOST") -> LOST | AA26: =IF('JOLLY MINSTER'!AX13>0,1,0) -> 0 | AB26: =IF('JOLLY MINSTER'!BB13=701,"WON","LOST") -> LOST | AC26: =IF('JOLLY MINSTER'!BB13>0,1,0) -> 0 | AD26: =IF('JOLLY MINSTER'!BF13=701,"WON","LOST") -> LOST | AE26: =IF('JOLLY MINSTER'!BF13>0,1,0) -> 0 | AF26: =IF('JOLLY MINSTER'!BJ13=701,"WON","LOST") -> LOST | AG26: =IF('JOLLY MINSTER'!BJ13>0,1,0) -> 0 | AH26: =IF('JOLLY MINSTER'!BN13=701,"WON","LOST") -> LOST | AI26: =IF('JOLLY MINSTER'!BN13>0,1,0) -> 0 | AJ26: =IF('JOLLY MINSTER'!BR13=701,"WON","LOST") -> LOST | AK26: =IF('JOLLY MINSTER'!BR13>0,1,0) -> 0 | AL26: =IF('JOLLY MINSTER'!CD13=701,"WON","LOST") -> LOST | AM26: =IF('JOLLY MINSTER'!CD13>0,1,0) -> 0 | AN26: =IF('JOLLY MINSTER'!CH13=701,"WON","LOST") -> LOST | AO26: =IF('JOLLY MINSTER'!CH13>0,1,0) -> 0
B27: =IF('JOLLY MINSTER'!B14=701,"WON","LOST") -> LOST | C27: =IF('JOLLY MINSTER'!B14>0,1,0) -> 0 | D27: =IF('JOLLY MINSTER'!F14=701,"WON","LOST") -> LOST | E27: =IF('JOLLY MINSTER'!F14>0,1,0) -> 0 | F27: =IF('JOLLY MINSTER'!J14=701,"WON","LOST") -> LOST | G27: =IF('JOLLY MINSTER'!J14>0,1,0) -> 0 | H27: =IF('JOLLY MINSTER'!N14=701,"WON","LOST") -> LOST | I27: =IF('JOLLY MINSTER'!N14>0,1,0) -> 0 | J27: =IF('JOLLY MINSTER'!R14=701,"WON","LOST") -> LOST | K27: =IF('JOLLY MINSTER'!R14>0,1,0) -> 0 | L27: =IF('JOLLY MINSTER'!V14=701,"WON","LOST") -> LOST | M27: =IF('JOLLY MINSTER'!V14>0,1,0) -> 0 | N27: =IF('JOLLY MINSTER'!Z14=701,"WON","LOST") -> LOST | O27: =IF('JOLLY MINSTER'!Z14>0,1,0) -> 0 | P27: =IF('JOLLY MINSTER'!AD14=701,"WON","LOST") -> LOST | Q27: =IF('JOLLY MINSTER'!AD14>0,1,0) -> 0 | R27: =IF('JOLLY MINSTER'!AH14=701,"WON","LOST") -> LOST | S27: =IF('JOLLY MINSTER'!AH14>0,1,0) -> 0 | T27: =IF('JOLLY MINSTER'!AL14=701,"WON","LOST") -> LOST | U27: =IF('JOLLY MINSTER'!AL14>0,1,0) -> 0 | V27: =IF('JOLLY MINSTER'!AP14=701,"WON","LOST") -> LOST | W27: =IF('JOLLY MINSTER'!AP14>0,1,0) -> 0 | X27: =IF('JOLLY MINSTER'!AT14=701,"WON","LOST") -> LOST | Y27: =IF('JOLLY MINSTER'!AT14>0,1,0) -> 0 | Z27: =IF('JOLLY MINSTER'!AX14=701,"WON","LOST") -> LOST | AA27: =IF('JOLLY MINSTER'!AX14>0,1,0) -> 0 | AB27: =IF('JOLLY MINSTER'!BB14=701,"WON","LOST") -> LOST | AC27: =IF('JOLLY MINSTER'!BB14>0,1,0) -> 0 | AD27: =IF('JOLLY MINSTER'!BF14=701,"WON","LOST") -> LOST | AE27: =IF('JOLLY MINSTER'!BF14>0,1,0) -> 0 | AF27: =IF('JOLLY MINSTER'!BJ14=701,"WON","LOST") -> LOST | AG27: =IF('JOLLY MINSTER'!BJ14>0,1,0) -> 0 | AH27: =IF('JOLLY MINSTER'!BN14=701,"WON","LOST") -> LOST | AI27: =IF('JOLLY MINSTER'!BN14>0,1,0) -> 0 | AJ27: =IF('JOLLY MINSTER'!BR14=701,"WON","LOST") -> LOST | AK27: =IF('JOLLY MINSTER'!BR14>0,1,0) -> 0 | AL27: =IF('JOLLY MINSTER'!CD14=701,"WON","LOST") -> LOST | AM27: =IF('JOLLY MINSTER'!CD14>0,1,0) -> 0 | AN27: =IF('JOLLY MINSTER'!CH14=701,"WON","LOST") -> LOST | AO27: =IF('JOLLY MINSTER'!CH14>0,1,0) -> 0
B28: =IF('JOLLY MINSTER'!B3="",0,(SUM(('JOLLY MINSTER'!B3/'JOLLY MINSTER'!C3)*3))) -> 47.79545455 | D28: =IF('JOLLY MINSTER'!F3="",0,(SUM(('JOLLY MINSTER'!F3/'JOLLY MINSTER'!G3)*3))) -> 0 | F28: =IF('JOLLY MINSTER'!J3="",0,(SUM(('JOLLY MINSTER'!J3/'JOLLY MINSTER'!K3)*3))) -> 36.78947368 | H28: =IF('JOLLY MINSTER'!N3="",0,(SUM(('JOLLY MINSTER'!N3/'JOLLY MINSTER'!O3)*3))) -> 55.34210526 | J28: =IF('JOLLY MINSTER'!R3="",0,(SUM(('JOLLY MINSTER'!R3/'JOLLY MINSTER'!S3)*3))) -> 48.92857143 | L28: =IF('JOLLY MINSTER'!V3="",0,(SUM(('JOLLY MINSTER'!V3/'JOLLY MINSTER'!W3)*3))) -> 49.85714286 | N28: =IF('JOLLY MINSTER'!Z3="",0,(SUM(('JOLLY MINSTER'!Z3/'JOLLY MINSTER'!AA3)*3))) -> 53.15384615 | P28: =IF('JOLLY MINSTER'!AD3="",0,(SUM(('JOLLY MINSTER'!AD3/'JOLLY MINSTER'!AE3)*3))) -> 43.8125 | R28: =IF('JOLLY MINSTER'!AH3="",0,(SUM(('JOLLY MINSTER'!AH3/'JOLLY MINSTER'!AI3)*3))) -> 43.8125 | T28: =IF('JOLLY MINSTER'!AL3="",0,(SUM(('JOLLY MINSTER'!AL3/'JOLLY MINSTER'!AM3)*3))) -> 55.75 | V28: =IF('JOLLY MINSTER'!AP3="",0,(SUM(('JOLLY MINSTER'!AP3/'JOLLY MINSTER'!AQ3)*3))) -> 0 | X28: =IF('JOLLY MINSTER'!AT3="",0,(SUM(('JOLLY MINSTER'!AT3/'JOLLY MINSTER'!AU3)*3))) -> 53.33333333 | Z28: =IF('JOLLY MINSTER'!AX3="",0,(SUM(('JOLLY MINSTER'!AX3/'JOLLY MINSTER'!AY3)*3))) -> 45.4 | AB28: =IF('JOLLY MINSTER'!BB3="",0,(SUM(('JOLLY MINSTER'!BB3/'JOLLY MINSTER'!BC3)*3))) -> 39.67924528 | AD28: =IF('JOLLY MINSTER'!BF3="",0,(SUM(('JOLLY MINSTER'!BF3/'JOLLY MINSTER'!BG3)*3))) -> 69 | AF28: =IF('JOLLY MINSTER'!BJ3="",0,(SUM(('JOLLY MINSTER'!BJ3/'JOLLY MINSTER'!BK3)*3))) -> 52 | AH28: =IF('JOLLY MINSTER'!BN3="",0,(SUM(('JOLLY MINSTER'!BN3/'JOLLY MINSTER'!BO3)*3))) -> 44.74468085 | AJ28: =IF('JOLLY MINSTER'!BR3="",0,(SUM(('JOLLY MINSTER'!BR3/'JOLLY MINSTER'!BS3)*3))) -> 0 | AL28: =IF('JOLLY MINSTER'!CD3="",0,(SUM(('JOLLY MINSTER'!CD3/'JOLLY MINSTER'!CE3)*3))) -> 0 | AN28: =IF('JOLLY MINSTER'!CH3="",0,(SUM(('JOLLY MINSTER'!CH3/'JOLLY MINSTER'!CI3)*3))) -> 0
B29: =IF('JOLLY MINSTER'!B4="",0,(SUM(('JOLLY MINSTER'!B4/'JOLLY MINSTER'!C4)*3))) -> 36.91666667 | D29: =IF('JOLLY MINSTER'!F4="",0,(SUM(('JOLLY MINSTER'!F4/'JOLLY MINSTER'!G4)*3))) -> 0 | F29: =IF('JOLLY MINSTER'!J4="",0,(SUM(('JOLLY MINSTER'!J4/'JOLLY MINSTER'!K4)*3))) -> 41.69230769 | H29: =IF('JOLLY MINSTER'!N4="",0,(SUM(('JOLLY MINSTER'!N4/'JOLLY MINSTER'!O4)*3))) -> 36.5 | J29: =IF('JOLLY MINSTER'!R4="",0,(SUM(('JOLLY MINSTER'!R4/'JOLLY MINSTER'!S4)*3))) -> 38.94444444 | L29: =IF('JOLLY MINSTER'!V4="",0,(SUM(('JOLLY MINSTER'!V4/'JOLLY MINSTER'!W4)*3))) -> 46.73333333 | N29: =IF('JOLLY MINSTER'!Z4="",0,(SUM(('JOLLY MINSTER'!Z4/'JOLLY MINSTER'!AA4)*3))) -> 57.45454545 | P29: =IF('JOLLY MINSTER'!AD4="",0,(SUM(('JOLLY MINSTER'!AD4/'JOLLY MINSTER'!AE4)*3))) -> 55.34210526 | R29: =IF('JOLLY MINSTER'!AH4="",0,(SUM(('JOLLY MINSTER'!AH4/'JOLLY MINSTER'!AI4)*3))) -> 36.9 | T29: =IF('JOLLY MINSTER'!AL4="",0,(SUM(('JOLLY MINSTER'!AL4/'JOLLY MINSTER'!AM4)*3))) -> 43.6875 | V29: =IF('JOLLY MINSTER'!AP4="",0,(SUM(('JOLLY MINSTER'!AP4/'JOLLY MINSTER'!AQ4)*3))) -> 0 | X29: =IF('JOLLY MINSTER'!AT4="",0,(SUM(('JOLLY MINSTER'!AT4/'JOLLY MINSTER'!AU4)*3))) -> 41.07142857 | Z29: =IF('JOLLY MINSTER'!AX4="",0,(SUM(('JOLLY MINSTER'!AX4/'JOLLY MINSTER'!AY4)*3))) -> 49.15384615 | AB29: =IF('JOLLY MINSTER'!BB4="",0,(SUM(('JOLLY MINSTER'!BB4/'JOLLY MINSTER'!BC4)*3))) -> 47.79545455 | AD29: =IF('JOLLY MINSTER'!BF4="",0,(SUM(('JOLLY MINSTER'!BF4/'JOLLY MINSTER'!BG4)*3))) -> 44.08333333 | AF29: =IF('JOLLY MINSTER'!BJ4="",0,(SUM(('JOLLY MINSTER'!BJ4/'JOLLY MINSTER'!BK4)*3))) -> 42.42857143 | AH29: =IF('JOLLY MINSTER'!BN4="",0,(SUM(('JOLLY MINSTER'!BN4/'JOLLY MINSTER'!BO4)*3))) -> 53.38461538 | AJ29: =IF('JOLLY MINSTER'!BR4="",0,(SUM(('JOLLY MINSTER'!BR4/'JOLLY MINSTER'!BS4)*3))) -> 42.3 | AL29: =IF('JOLLY MINSTER'!CD4="",0,(SUM(('JOLLY MINSTER'!CD4/'JOLLY MINSTER'!CE4)*3))) -> 0 | AN29: =IF('JOLLY MINSTER'!CH4="",0,(SUM(('JOLLY MINSTER'!CH4/'JOLLY MINSTER'!CI4)*3))) -> 0
B30: =IF('JOLLY MINSTER'!B5="",0,(SUM(('JOLLY MINSTER'!B5/'JOLLY MINSTER'!C5)*3))) -> 39.70588235 | D30: =IF('JOLLY MINSTER'!F5="",0,(SUM(('JOLLY MINSTER'!F5/'JOLLY MINSTER'!G5)*3))) -> 0 | F30: =IF('JOLLY MINSTER'!J5="",0,(SUM(('JOLLY MINSTER'!J5/'JOLLY MINSTER'!K5)*3))) -> 70.1 | H30: =IF('JOLLY MINSTER'!N5="",0,(SUM(('JOLLY MINSTER'!N5/'JOLLY MINSTER'!O5)*3))) -> 35.69230769 | J30: =IF('JOLLY MINSTER'!R5="",0,(SUM(('JOLLY MINSTER'!R5/'JOLLY MINSTER'!S5)*3))) -> 50.07142857 | L30: =IF('JOLLY MINSTER'!V5="",0,(SUM(('JOLLY MINSTER'!V5/'JOLLY MINSTER'!W5)*3))) -> 43.6875 | N30: =IF('JOLLY MINSTER'!Z5="",0,(SUM(('JOLLY MINSTER'!Z5/'JOLLY MINSTER'!AA5)*3))) -> 35.16666667 | P30: =IF('JOLLY MINSTER'!AD5="",0,(SUM(('JOLLY MINSTER'!AD5/'JOLLY MINSTER'!AE5)*3))) -> 39.58333333 | R30: =IF('JOLLY MINSTER'!AH5="",0,(SUM(('JOLLY MINSTER'!AH5/'JOLLY MINSTER'!AI5)*3))) -> 42.42857143 | T30: =IF('JOLLY MINSTER'!AL5="",0,(SUM(('JOLLY MINSTER'!AL5/'JOLLY MINSTER'!AM5)*3))) -> 46.375 | V30: =IF('JOLLY MINSTER'!AP5="",0,(SUM(('JOLLY MINSTER'!AP5/'JOLLY MINSTER'!AQ5)*3))) -> 0 | X30: =IF('JOLLY MINSTER'!AT5="",0,(SUM(('JOLLY MINSTER'!AT5/'JOLLY MINSTER'!AU5)*3))) -> 34.95 | Z30: =IF('JOLLY MINSTER'!AX5="",0,(SUM(('JOLLY MINSTER'!AX5/'JOLLY MINSTER'!AY5)*3))) -> 29.61971831 | AB30: =IF('JOLLY MINSTER'!BB5="",0,(SUM(('JOLLY MINSTER'!BB5/'JOLLY MINSTER'!BC5)*3))) -> 36.78947368 | AD30: =IF('JOLLY MINSTER'!BF5="",0,(SUM(('JOLLY MINSTER'!BF5/'JOLLY MINSTER'!BG5)*3))) -> 52.9 | AF30: =IF('JOLLY MINSTER'!BJ5="",0,(SUM(('JOLLY MINSTER'!BJ5/'JOLLY MINSTER'!BK5)*3))) -> 52.69230769 | AH30: =IF('JOLLY MINSTER'!BN5="",0,(SUM(('JOLLY MINSTER'!BN5/'JOLLY MINSTER'!BO5)*3))) -> 36.68421053 | AJ30: =IF('JOLLY MINSTER'!BR5="",0,(SUM(('JOLLY MINSTER'!BR5/'JOLLY MINSTER'!BS5)*3))) -> 0 | AL30: =IF('JOLLY MINSTER'!CD5="",0,(SUM(('JOLLY MINSTER'!CD5/'JOLLY MINSTER'!CE5)*3))) -> 0 | AN30: =IF('JOLLY MINSTER'!CH5="",0,(SUM(('JOLLY MINSTER'!CH5/'JOLLY MINSTER'!CI5)*3))) -> 0
B31: =IF('JOLLY MINSTER'!B6="",0,(SUM(('JOLLY MINSTER'!B6/'JOLLY MINSTER'!C6)*3))) -> 40.82352941 | D31: =IF('JOLLY MINSTER'!F6="",0,(SUM(('JOLLY MINSTER'!F6/'JOLLY MINSTER'!G6)*3))) -> 0 | F31: =IF('JOLLY MINSTER'!J6="",0,(SUM(('JOLLY MINSTER'!J6/'JOLLY MINSTER'!K6)*3))) -> 33.28571429 | H31: =IF('JOLLY MINSTER'!N6="",0,(SUM(('JOLLY MINSTER'!N6/'JOLLY MINSTER'!O6)*3))) -> 0 | J31: =IF('JOLLY MINSTER'!R6="",0,(SUM(('JOLLY MINSTER'!R6/'JOLLY MINSTER'!S6)*3))) -> 40.76470588 | L31: =IF('JOLLY MINSTER'!V6="",0,(SUM(('JOLLY MINSTER'!V6/'JOLLY MINSTER'!W6)*3))) -> 36.25862069 | N31: =IF('JOLLY MINSTER'!Z6="",0,(SUM(('JOLLY MINSTER'!Z6/'JOLLY MINSTER'!AA6)*3))) -> 44.88888889 | P31: =IF('JOLLY MINSTER'!AD6="",0,(SUM(('JOLLY MINSTER'!AD6/'JOLLY MINSTER'!AE6)*3))) -> 46.4 | R31: =IF('JOLLY MINSTER'!AH6="",0,(SUM(('JOLLY MINSTER'!AH6/'JOLLY MINSTER'!AI6)*3))) -> 42.88888889 | T31: =IF('JOLLY MINSTER'!AL6="",0,(SUM(('JOLLY MINSTER'!AL6/'JOLLY MINSTER'!AM6)*3))) -> 47.6 | V31: =IF('JOLLY MINSTER'!AP6="",0,(SUM(('JOLLY MINSTER'!AP6/'JOLLY MINSTER'!AQ6)*3))) -> 0 | X31: =IF('JOLLY MINSTER'!AT6="",0,(SUM(('JOLLY MINSTER'!AT6/'JOLLY MINSTER'!AU6)*3))) -> 0 | Z31: =IF('JOLLY MINSTER'!AX6="",0,(SUM(('JOLLY MINSTER'!AX6/'JOLLY MINSTER'!AY6)*3))) -> 65.71875 | AB31: =IF('JOLLY MINSTER'!BB6="",0,(SUM(('JOLLY MINSTER'!BB6/'JOLLY MINSTER'!BC6)*3))) -> 41.23529412 | AD31: =IF('JOLLY MINSTER'!BF6="",0,(SUM(('JOLLY MINSTER'!BF6/'JOLLY MINSTER'!BG6)*3))) -> 43.375 | AF31: =IF('JOLLY MINSTER'!BJ6="",0,(SUM(('JOLLY MINSTER'!BJ6/'JOLLY MINSTER'!BK6)*3))) -> 42.2 | AH31: =IF('JOLLY MINSTER'!BN6="",0,(SUM(('JOLLY MINSTER'!BN6/'JOLLY MINSTER'!BO6)*3))) -> 0 | AJ31: =IF('JOLLY MINSTER'!BR6="",0,(SUM(('JOLLY MINSTER'!BR6/'JOLLY MINSTER'!BS6)*3))) -> 52.91666667 | AL31: =IF('JOLLY MINSTER'!CD6="",0,(SUM(('JOLLY MINSTER'!CD6/'JOLLY MINSTER'!CE6)*3))) -> 0 | AN31: =IF('JOLLY MINSTER'!CH6="",0,(SUM(('JOLLY MINSTER'!CH6/'JOLLY MINSTER'!CI6)*3))) -> 0
B32: =IF('JOLLY MINSTER'!B7="",0,(SUM(('JOLLY MINSTER'!B7/'JOLLY MINSTER'!C7)*3))) -> 40.83333333 | D32: =IF('JOLLY MINSTER'!F7="",0,(SUM(('JOLLY MINSTER'!F7/'JOLLY MINSTER'!G7)*3))) -> 0 | F32: =IF('JOLLY MINSTER'!J7="",0,(SUM(('JOLLY MINSTER'!J7/'JOLLY MINSTER'!K7)*3))) -> 60.63636364 | H32: =IF('JOLLY MINSTER'!N7="",0,(SUM(('JOLLY MINSTER'!N7/'JOLLY MINSTER'!O7)*3))) -> 34.65 | J32: =IF('JOLLY MINSTER'!R7="",0,(SUM(('JOLLY MINSTER'!R7/'JOLLY MINSTER'!S7)*3))) -> 35.6440678 | L32: =IF('JOLLY MINSTER'!V7="",0,(SUM(('JOLLY MINSTER'!V7/'JOLLY MINSTER'!W7)*3))) -> 42.41666667 | N32: =IF('JOLLY MINSTER'!Z7="",0,(SUM(('JOLLY MINSTER'!Z7/'JOLLY MINSTER'!AA7)*3))) -> 40.07142857 | P32: =IF('JOLLY MINSTER'!AD7="",0,(SUM(('JOLLY MINSTER'!AD7/'JOLLY MINSTER'!AE7)*3))) -> 42.35714286 | R32: =IF('JOLLY MINSTER'!AH7="",0,(SUM(('JOLLY MINSTER'!AH7/'JOLLY MINSTER'!AI7)*3))) -> 41.33333333 | T32: =IF('JOLLY MINSTER'!AL7="",0,(SUM(('JOLLY MINSTER'!AL7/'JOLLY MINSTER'!AM7)*3))) -> 32.42857143 | V32: =IF('JOLLY MINSTER'!AP7="",0,(SUM(('JOLLY MINSTER'!AP7/'JOLLY MINSTER'!AQ7)*3))) -> 0 | X32: =IF('JOLLY MINSTER'!AT7="",0,(SUM(('JOLLY MINSTER'!AT7/'JOLLY MINSTER'!AU7)*3))) -> 41.23529412 | Z32: =IF('JOLLY MINSTER'!AX7="",0,(SUM(('JOLLY MINSTER'!AX7/'JOLLY MINSTER'!AY7)*3))) -> 33.38095238 | AB32: =IF('JOLLY MINSTER'!BB7="",0,(SUM(('JOLLY MINSTER'!BB7/'JOLLY MINSTER'!BC7)*3))) -> 33.91935484 | AD32: =IF('JOLLY MINSTER'!BF7="",0,(SUM(('JOLLY MINSTER'!BF7/'JOLLY MINSTER'!BG7)*3))) -> 38.83333333 | AF32: =IF('JOLLY MINSTER'!BJ7="",0,(SUM(('JOLLY MINSTER'!BJ7/'JOLLY MINSTER'!BK7)*3))) -> 41.63636364 | AH32: =IF('JOLLY MINSTER'!BN7="",0,(SUM(('JOLLY MINSTER'!BN7/'JOLLY MINSTER'!BO7)*3))) -> 55.54545455 | AJ32: =IF('JOLLY MINSTER'!BR7="",0,(SUM(('JOLLY MINSTER'!BR7/'JOLLY MINSTER'!BS7)*3))) -> 37.76470588 | AL32: =IF('JOLLY MINSTER'!CD7="",0,(SUM(('JOLLY MINSTER'!CD7/'JOLLY MINSTER'!CE7)*3))) -> 0 | AN32: =IF('JOLLY MINSTER'!CH7="",0,(SUM(('JOLLY MINSTER'!CH7/'JOLLY MINSTER'!CI7)*3))) -> 0
B33: =IF('JOLLY MINSTER'!B8="",0,(SUM(('JOLLY MINSTER'!B8/'JOLLY MINSTER'!C8)*3))) -> 33.91935484 | D33: =IF('JOLLY MINSTER'!F8="",0,(SUM(('JOLLY MINSTER'!F8/'JOLLY MINSTER'!G8)*3))) -> 0 | F33: =IF('JOLLY MINSTER'!J8="",0,(SUM(('JOLLY MINSTER'!J8/'JOLLY MINSTER'!K8)*3))) -> 34.55 | H33: =IF('JOLLY MINSTER'!N8="",0,(SUM(('JOLLY MINSTER'!N8/'JOLLY MINSTER'!O8)*3))) -> 42.91836735 | J33: =IF('JOLLY MINSTER'!R8="",0,(SUM(('JOLLY MINSTER'!R8/'JOLLY MINSTER'!S8)*3))) -> 46.90909091 | L33: =IF('JOLLY MINSTER'!V8="",0,(SUM(('JOLLY MINSTER'!V8/'JOLLY MINSTER'!W8)*3))) -> 50.07142857 | N33: =IF('JOLLY MINSTER'!Z8="",0,(SUM(('JOLLY MINSTER'!Z8/'JOLLY MINSTER'!AA8)*3))) -> 37.3 | P33: =IF('JOLLY MINSTER'!AD8="",0,(SUM(('JOLLY MINSTER'!AD8/'JOLLY MINSTER'!AE8)*3))) -> 47.79545455 | R33: =IF('JOLLY MINSTER'!AH8="",0,(SUM(('JOLLY MINSTER'!AH8/'JOLLY MINSTER'!AI8)*3))) -> 46.6 | T33: =IF('JOLLY MINSTER'!AL8="",0,(SUM(('JOLLY MINSTER'!AL8/'JOLLY MINSTER'!AM8)*3))) -> 40.5 | V33: =IF('JOLLY MINSTER'!AP8="",0,(SUM(('JOLLY MINSTER'!AP8/'JOLLY MINSTER'!AQ8)*3))) -> 0 | X33: =IF('JOLLY MINSTER'!AT8="",0,(SUM(('JOLLY MINSTER'!AT8/'JOLLY MINSTER'!AU8)*3))) -> 50.07142857 | Z33: =IF('JOLLY MINSTER'!AX8="",0,(SUM(('JOLLY MINSTER'!AX8/'JOLLY MINSTER'!AY8)*3))) -> 36.78947368 | AB33: =IF('JOLLY MINSTER'!BB8="",0,(SUM(('JOLLY MINSTER'!BB8/'JOLLY MINSTER'!BC8)*3))) -> 34.4 | AD33: =IF('JOLLY MINSTER'!BF8="",0,(SUM(('JOLLY MINSTER'!BF8/'JOLLY MINSTER'!BG8)*3))) -> 48.71428571 | AF33: =IF('JOLLY MINSTER'!BJ8="",0,(SUM(('JOLLY MINSTER'!BJ8/'JOLLY MINSTER'!BK8)*3))) -> 59.54545455 | AH33: =IF('JOLLY MINSTER'!BN8="",0,(SUM(('JOLLY MINSTER'!BN8/'JOLLY MINSTER'!BO8)*3))) -> 43.375 | AJ33: =IF('JOLLY MINSTER'!BR8="",0,(SUM(('JOLLY MINSTER'!BR8/'JOLLY MINSTER'!BS8)*3))) -> 42.8125 | AL33: =IF('JOLLY MINSTER'!CD8="",0,(SUM(('JOLLY MINSTER'!CD8/'JOLLY MINSTER'!CE8)*3))) -> 0 | AN33: =IF('JOLLY MINSTER'!CH8="",0,(SUM(('JOLLY MINSTER'!CH8/'JOLLY MINSTER'!CI8)*3))) -> 0
B34: =IF('JOLLY MINSTER'!B9="",0,(SUM(('JOLLY MINSTER'!B9/'JOLLY MINSTER'!C9)*3))) -> 0 | D34: =IF('JOLLY MINSTER'!F9="",0,(SUM(('JOLLY MINSTER'!F9/'JOLLY MINSTER'!G9)*3))) -> 0 | F34: =IF('JOLLY MINSTER'!J9="",0,(SUM(('JOLLY MINSTER'!J9/'JOLLY MINSTER'!K9)*3))) -> 0 | H34: =IF('JOLLY MINSTER'!N9="",0,(SUM(('JOLLY MINSTER'!N9/'JOLLY MINSTER'!O9)*3))) -> 0 | J34: =IF('JOLLY MINSTER'!R9="",0,(SUM(('JOLLY MINSTER'!R9/'JOLLY MINSTER'!S9)*3))) -> 0 | L34: =IF('JOLLY MINSTER'!V9="",0,(SUM(('JOLLY MINSTER'!V9/'JOLLY MINSTER'!W9)*3))) -> 0 | N34: =IF('JOLLY MINSTER'!Z9="",0,(SUM(('JOLLY MINSTER'!Z9/'JOLLY MINSTER'!AA9)*3))) -> 0 | P34: =IF('JOLLY MINSTER'!AD9="",0,(SUM(('JOLLY MINSTER'!AD9/'JOLLY MINSTER'!AE9)*3))) -> 0 | R34: =IF('JOLLY MINSTER'!AH9="",0,(SUM(('JOLLY MINSTER'!AH9/'JOLLY MINSTER'!AI9)*3))) -> 0 | T34: =IF('JOLLY MINSTER'!AL9="",0,(SUM(('JOLLY MINSTER'!AL9/'JOLLY MINSTER'!AM9)*3))) -> 0 | V34: =IF('JOLLY MINSTER'!AP9="",0,(SUM(('JOLLY MINSTER'!AP9/'JOLLY MINSTER'!AQ9)*3))) -> 0 | X34: =IF('JOLLY MINSTER'!AT9="",0,(SUM(('JOLLY MINSTER'!AT9/'JOLLY MINSTER'!AU9)*3))) -> 0 | Z34: =IF('JOLLY MINSTER'!AX9="",0,(SUM(('JOLLY MINSTER'!AX9/'JOLLY MINSTER'!AY9)*3))) -> 0 | AB34: =IF('JOLLY MINSTER'!BB9="",0,(SUM(('JOLLY MINSTER'!BB9/'JOLLY MINSTER'!BC9)*3))) -> 0 | AD34: =IF('JOLLY MINSTER'!BF9="",0,(SUM(('JOLLY MINSTER'!BF9/'JOLLY MINSTER'!BG9)*3))) -> 0 | AF34: =IF('JOLLY MINSTER'!BJ9="",0,(SUM(('JOLLY MINSTER'!BJ9/'JOLLY MINSTER'!BK9)*3))) -> 0 | AH34: =IF('JOLLY MINSTER'!BN9="",0,(SUM(('JOLLY MINSTER'!BN9/'JOLLY MINSTER'!BO9)*3))) -> 40.71428571 | AJ34: =IF('JOLLY MINSTER'!BR9="",0,(SUM(('JOLLY MINSTER'!BR9/'JOLLY MINSTER'!BS9)*3))) -> 44.86666667 | AL34: =IF('JOLLY MINSTER'!CD9="",0,(SUM(('JOLLY MINSTER'!CD9/'JOLLY MINSTER'!CE9)*3))) -> 0 | AN34: =IF('JOLLY MINSTER'!CH9="",0,(SUM(('JOLLY MINSTER'!CH9/'JOLLY MINSTER'!CI9)*3))) -> 0
B35: =IF('JOLLY MINSTER'!B10="",0,(SUM(('JOLLY MINSTER'!B10/'JOLLY MINSTER'!C10)*3))) -> 0 | D35: =IF('JOLLY MINSTER'!F10="",0,(SUM(('JOLLY MINSTER'!F10/'JOLLY MINSTER'!G10)*3))) -> 0 | F35: =IF('JOLLY MINSTER'!J10="",0,(SUM(('JOLLY MINSTER'!J10/'JOLLY MINSTER'!K10)*3))) -> 0 | H35: =IF('JOLLY MINSTER'!N10="",0,(SUM(('JOLLY MINSTER'!N10/'JOLLY MINSTER'!O10)*3))) -> 0 | J35: =IF('JOLLY MINSTER'!R10="",0,(SUM(('JOLLY MINSTER'!R10/'JOLLY MINSTER'!S10)*3))) -> 0 | L35: =IF('JOLLY MINSTER'!V10="",0,(SUM(('JOLLY MINSTER'!V10/'JOLLY MINSTER'!W10)*3))) -> 0 | N35: =IF('JOLLY MINSTER'!Z10="",0,(SUM(('JOLLY MINSTER'!Z10/'JOLLY MINSTER'!AA10)*3))) -> 0 | P35: =IF('JOLLY MINSTER'!AD10="",0,(SUM(('JOLLY MINSTER'!AD10/'JOLLY MINSTER'!AE10)*3))) -> 0 | R35: =IF('JOLLY MINSTER'!AH10="",0,(SUM(('JOLLY MINSTER'!AH10/'JOLLY MINSTER'!AI10)*3))) -> 0 | T35: =IF('JOLLY MINSTER'!AL10="",0,(SUM(('JOLLY MINSTER'!AL10/'JOLLY MINSTER'!AM10)*3))) -> 0 | V35: =IF('JOLLY MINSTER'!AP10="",0,(SUM(('JOLLY MINSTER'!AP10/'JOLLY MINSTER'!AQ10)*3))) -> 0 | X35: =IF('JOLLY MINSTER'!AT10="",0,(SUM(('JOLLY MINSTER'!AT10/'JOLLY MINSTER'!AU10)*3))) -> 0 | Z35: =IF('JOLLY MINSTER'!AX10="",0,(SUM(('JOLLY MINSTER'!AX10/'JOLLY MINSTER'!AY10)*3))) -> 0 | AB35: =IF('JOLLY MINSTER'!BB10="",0,(SUM(('JOLLY MINSTER'!BB10/'JOLLY MINSTER'!BC10)*3))) -> 0 | AD35: =IF('JOLLY MINSTER'!BF10="",0,(SUM(('JOLLY MINSTER'!BF10/'JOLLY MINSTER'!BG10)*3))) -> 0 | AF35: =IF('JOLLY MINSTER'!BJ10="",0,(SUM(('JOLLY MINSTER'!BJ10/'JOLLY MINSTER'!BK10)*3))) -> 0 | AH35: =IF('JOLLY MINSTER'!BN10="",0,(SUM(('JOLLY MINSTER'!BN10/'JOLLY MINSTER'!BO10)*3))) -> 0 | AJ35: =IF('JOLLY MINSTER'!BR10="",0,(SUM(('JOLLY MINSTER'!BR10/'JOLLY MINSTER'!BS10)*3))) -> 0 | AL35: =IF('JOLLY MINSTER'!CD10="",0,(SUM(('JOLLY MINSTER'!CD10/'JOLLY MINSTER'!CE10)*3))) -> 0 | AN35: =IF('JOLLY MINSTER'!CH10="",0,(SUM(('JOLLY MINSTER'!CH10/'JOLLY MINSTER'!CI10)*3))) -> 0
B36: =IF('JOLLY MINSTER'!B11="",0,(SUM(('JOLLY MINSTER'!B11/'JOLLY MINSTER'!C11)*3))) -> 0 | D36: =IF('JOLLY MINSTER'!F11="",0,(SUM(('JOLLY MINSTER'!F11/'JOLLY MINSTER'!G11)*3))) -> 0 | F36: =IF('JOLLY MINSTER'!J11="",0,(SUM(('JOLLY MINSTER'!J11/'JOLLY MINSTER'!K11)*3))) -> 0 | H36: =IF('JOLLY MINSTER'!N11="",0,(SUM(('JOLLY MINSTER'!N11/'JOLLY MINSTER'!O11)*3))) -> 0 | J36: =IF('JOLLY MINSTER'!R11="",0,(SUM(('JOLLY MINSTER'!R11/'JOLLY MINSTER'!S11)*3))) -> 0 | L36: =IF('JOLLY MINSTER'!V11="",0,(SUM(('JOLLY MINSTER'!V11/'JOLLY MINSTER'!W11)*3))) -> 0 | N36: =IF('JOLLY MINSTER'!Z11="",0,(SUM(('JOLLY MINSTER'!Z11/'JOLLY MINSTER'!AA11)*3))) -> 0 | P36: =IF('JOLLY MINSTER'!AD11="",0,(SUM(('JOLLY MINSTER'!AD11/'JOLLY MINSTER'!AE11)*3))) -> 0 | R36: =IF('JOLLY MINSTER'!AH11="",0,(SUM(('JOLLY MINSTER'!AH11/'JOLLY MINSTER'!AI11)*3))) -> 0 | T36: =IF('JOLLY MINSTER'!AL11="",0,(SUM(('JOLLY MINSTER'!AL11/'JOLLY MINSTER'!AM11)*3))) -> 0 | V36: =IF('JOLLY MINSTER'!AP11="",0,(SUM(('JOLLY MINSTER'!AP11/'JOLLY MINSTER'!AQ11)*3))) -> 0 | X36: =IF('JOLLY MINSTER'!AT11="",0,(SUM(('JOLLY MINSTER'!AT11/'JOLLY MINSTER'!AU11)*3))) -> 0 | Z36: =IF('JOLLY MINSTER'!AX11="",0,(SUM(('JOLLY MINSTER'!AX11/'JOLLY MINSTER'!AY11)*3))) -> 0 | AB36: =IF('JOLLY MINSTER'!BB11="",0,(SUM(('JOLLY MINSTER'!BB11/'JOLLY MINSTER'!BC11)*3))) -> 0 | AD36: =IF('JOLLY MINSTER'!BF11="",0,(SUM(('JOLLY MINSTER'!BF11/'JOLLY MINSTER'!BG11)*3))) -> 0 | AF36: =IF('JOLLY MINSTER'!BJ11="",0,(SUM(('JOLLY MINSTER'!BJ11/'JOLLY MINSTER'!BK11)*3))) -> 0 | AH36: =IF('JOLLY MINSTER'!BN11="",0,(SUM(('JOLLY MINSTER'!BN11/'JOLLY MINSTER'!BO11)*3))) -> 0 | AJ36: =IF('JOLLY MINSTER'!BR11="",0,(SUM(('JOLLY MINSTER'!BR11/'JOLLY MINSTER'!BS11)*3))) -> 0 | AL36: =IF('JOLLY MINSTER'!CD11="",0,(SUM(('JOLLY MINSTER'!CD11/'JOLLY MINSTER'!CE11)*3))) -> 0 | AN36: =IF('JOLLY MINSTER'!CH11="",0,(SUM(('JOLLY MINSTER'!CH11/'JOLLY MINSTER'!CI11)*3))) -> 0
B37: =IF('JOLLY MINSTER'!B12="",0,(SUM(('JOLLY MINSTER'!B12/'JOLLY MINSTER'!C12)*3))) -> 0 | D37: =IF('JOLLY MINSTER'!F12="",0,(SUM(('JOLLY MINSTER'!F12/'JOLLY MINSTER'!G12)*3))) -> 0 | F37: =IF('JOLLY MINSTER'!J12="",0,(SUM(('JOLLY MINSTER'!J12/'JOLLY MINSTER'!K12)*3))) -> 0 | H37: =IF('JOLLY MINSTER'!N12="",0,(SUM(('JOLLY MINSTER'!N12/'JOLLY MINSTER'!O12)*3))) -> 0 | J37: =IF('JOLLY MINSTER'!R12="",0,(SUM(('JOLLY MINSTER'!R12/'JOLLY MINSTER'!S12)*3))) -> 0 | L37: =IF('JOLLY MINSTER'!V12="",0,(SUM(('JOLLY MINSTER'!V12/'JOLLY MINSTER'!W12)*3))) -> 0 | N37: =IF('JOLLY MINSTER'!Z12="",0,(SUM(('JOLLY MINSTER'!Z12/'JOLLY MINSTER'!AA12)*3))) -> 0 | P37: =IF('JOLLY MINSTER'!AD12="",0,(SUM(('JOLLY MINSTER'!AD12/'JOLLY MINSTER'!AE12)*3))) -> 0 | R37: =IF('JOLLY MINSTER'!AH12="",0,(SUM(('JOLLY MINSTER'!AH12/'JOLLY MINSTER'!AI12)*3))) -> 0 | T37: =IF('JOLLY MINSTER'!AL12="",0,(SUM(('JOLLY MINSTER'!AL12/'JOLLY MINSTER'!AM12)*3))) -> 0 | V37: =IF('JOLLY MINSTER'!AP12="",0,(SUM(('JOLLY MINSTER'!AP12/'JOLLY MINSTER'!AQ12)*3))) -> 0 | X37: =IF('JOLLY MINSTER'!AT12="",0,(SUM(('JOLLY MINSTER'!AT12/'JOLLY MINSTER'!AU12)*3))) -> 0 | Z37: =IF('JOLLY MINSTER'!AX12="",0,(SUM(('JOLLY MINSTER'!AX12/'JOLLY MINSTER'!AY12)*3))) -> 0 | AB37: =IF('JOLLY MINSTER'!BB12="",0,(SUM(('JOLLY MINSTER'!BB12/'JOLLY MINSTER'!BC12)*3))) -> 0 | AD37: =IF('JOLLY MINSTER'!BF12="",0,(SUM(('JOLLY MINSTER'!BF12/'JOLLY MINSTER'!BG12)*3))) -> 0 | AF37: =IF('JOLLY MINSTER'!BJ12="",0,(SUM(('JOLLY MINSTER'!BJ12/'JOLLY MINSTER'!BK12)*3))) -> 0 | AH37: =IF('JOLLY MINSTER'!BN12="",0,(SUM(('JOLLY MINSTER'!BN12/'JOLLY MINSTER'!BO12)*3))) -> 0 | AJ37: =IF('JOLLY MINSTER'!BR12="",0,(SUM(('JOLLY MINSTER'!BR12/'JOLLY MINSTER'!BS12)*3))) -> 39.13333333 | AL37: =IF('JOLLY MINSTER'!CD12="",0,(SUM(('JOLLY MINSTER'!CD12/'JOLLY MINSTER'!CE12)*3))) -> 0 | AN37: =IF('JOLLY MINSTER'!CH12="",0,(SUM(('JOLLY MINSTER'!CH12/'JOLLY MINSTER'!CI12)*3))) -> 0
B38: =IF('JOLLY MINSTER'!B13="",0,(SUM(('JOLLY MINSTER'!B13/'JOLLY MINSTER'!C13)*3))) -> 0 | D38: =IF('JOLLY MINSTER'!F13="",0,(SUM(('JOLLY MINSTER'!F13/'JOLLY MINSTER'!G13)*3))) -> 0 | F38: =IF('JOLLY MINSTER'!J13="",0,(SUM(('JOLLY MINSTER'!J13/'JOLLY MINSTER'!K13)*3))) -> 0 | H38: =IF('JOLLY MINSTER'!N13="",0,(SUM(('JOLLY MINSTER'!N13/'JOLLY MINSTER'!O13)*3))) -> 0 | J38: =IF('JOLLY MINSTER'!R13="",0,(SUM(('JOLLY MINSTER'!R13/'JOLLY MINSTER'!S13)*3))) -> 0 | L38: =IF('JOLLY MINSTER'!V13="",0,(SUM(('JOLLY MINSTER'!V13/'JOLLY MINSTER'!W13)*3))) -> 0 | N38: =IF('JOLLY MINSTER'!Z13="",0,(SUM(('JOLLY MINSTER'!Z13/'JOLLY MINSTER'!AA13)*3))) -> 0 | P38: =IF('JOLLY MINSTER'!AD13="",0,(SUM(('JOLLY MINSTER'!AD13/'JOLLY MINSTER'!AE13)*3))) -> 0 | R38: =IF('JOLLY MINSTER'!AH13="",0,(SUM(('JOLLY MINSTER'!AH13/'JOLLY MINSTER'!AI13)*3))) -> 0 | T38: =IF('JOLLY MINSTER'!AL13="",0,(SUM(('JOLLY MINSTER'!AL13/'JOLLY MINSTER'!AM13)*3))) -> 0 | V38: =IF('JOLLY MINSTER'!AP13="",0,(SUM(('JOLLY MINSTER'!AP13/'JOLLY MINSTER'!AQ13)*3))) -> 0 | X38: =IF('JOLLY MINSTER'!AT13="",0,(SUM(('JOLLY MINSTER'!AT13/'JOLLY MINSTER'!AU13)*3))) -> 0 | Z38: =IF('JOLLY MINSTER'!AX13="",0,(SUM(('JOLLY MINSTER'!AX13/'JOLLY MINSTER'!AY13)*3))) -> 0 | AB38: =IF('JOLLY MINSTER'!BB13="",0,(SUM(('JOLLY MINSTER'!BB13/'JOLLY MINSTER'!BC13)*3))) -> 0 | AD38: =IF('JOLLY MINSTER'!BF13="",0,(SUM(('JOLLY MINSTER'!BF13/'JOLLY MINSTER'!BG13)*3))) -> 0 | AF38: =IF('JOLLY MINSTER'!BJ13="",0,(SUM(('JOLLY MINSTER'!BJ13/'JOLLY MINSTER'!BK13)*3))) -> 0 | AH38: =IF('JOLLY MINSTER'!BN13="",0,(SUM(('JOLLY MINSTER'!BN13/'JOLLY MINSTER'!BO13)*3))) -> 0 | AJ38: =IF('JOLLY MINSTER'!BR13="",0,(SUM(('JOLLY MINSTER'!BR13/'JOLLY MINSTER'!BS13)*3))) -> 0 | AL38: =IF('JOLLY MINSTER'!CD13="",0,(SUM(('JOLLY MINSTER'!CD13/'JOLLY MINSTER'!CE13)*3))) -> 0 | AN38: =IF('JOLLY MINSTER'!CH13="",0,(SUM(('JOLLY MINSTER'!CH13/'JOLLY MINSTER'!CI13)*3))) -> 0
B39: =IF('JOLLY MINSTER'!B14="",0,(SUM(('JOLLY MINSTER'!B14/'JOLLY MINSTER'!C14)*3))) -> 0 | D39: =IF('JOLLY MINSTER'!F14="",0,(SUM(('JOLLY MINSTER'!F14/'JOLLY MINSTER'!G14)*3))) -> 0 | F39: =IF('JOLLY MINSTER'!J14="",0,(SUM(('JOLLY MINSTER'!J14/'JOLLY MINSTER'!K14)*3))) -> 0 | H39: =IF('JOLLY MINSTER'!N14="",0,(SUM(('JOLLY MINSTER'!N14/'JOLLY MINSTER'!O14)*3))) -> 0 | J39: =IF('JOLLY MINSTER'!R14="",0,(SUM(('JOLLY MINSTER'!R14/'JOLLY MINSTER'!S14)*3))) -> 0 | L39: =IF('JOLLY MINSTER'!V14="",0,(SUM(('JOLLY MINSTER'!V14/'JOLLY MINSTER'!W14)*3))) -> 0 | N39: =IF('JOLLY MINSTER'!Z14="",0,(SUM(('JOLLY MINSTER'!Z14/'JOLLY MINSTER'!AA14)*3))) -> 0 | P39: =IF('JOLLY MINSTER'!AD14="",0,(SUM(('JOLLY MINSTER'!AD14/'JOLLY MINSTER'!AE14)*3))) -> 0 | R39: =IF('JOLLY MINSTER'!AH14="",0,(SUM(('JOLLY MINSTER'!AH14/'JOLLY MINSTER'!AI14)*3))) -> 0 | T39: =IF('JOLLY MINSTER'!AL14="",0,(SUM(('JOLLY MINSTER'!AL14/'JOLLY MINSTER'!AM14)*3))) -> 0 | V39: =IF('JOLLY MINSTER'!AP14="",0,(SUM(('JOLLY MINSTER'!AP14/'JOLLY MINSTER'!AQ14)*3))) -> 0 | X39: =IF('JOLLY MINSTER'!AT14="",0,(SUM(('JOLLY MINSTER'!AT14/'JOLLY MINSTER'!AU14)*3))) -> 0 | Z39: =IF('JOLLY MINSTER'!AX14="",0,(SUM(('JOLLY MINSTER'!AX14/'JOLLY MINSTER'!AY14)*3))) -> 0 | AB39: =IF('JOLLY MINSTER'!BB14="",0,(SUM(('JOLLY MINSTER'!BB14/'JOLLY MINSTER'!BC14)*3))) -> 0 | AD39: =IF('JOLLY MINSTER'!BF14="",0,(SUM(('JOLLY MINSTER'!BF14/'JOLLY MINSTER'!BG14)*3))) -> 0 | AF39: =IF('JOLLY MINSTER'!BJ14="",0,(SUM(('JOLLY MINSTER'!BJ14/'JOLLY MINSTER'!BK14)*3))) -> 0 | AH39: =IF('JOLLY MINSTER'!BN14="",0,(SUM(('JOLLY MINSTER'!BN14/'JOLLY MINSTER'!BO14)*3))) -> 0 | AJ39: =IF('JOLLY MINSTER'!BR14="",0,(SUM(('JOLLY MINSTER'!BR14/'JOLLY MINSTER'!BS14)*3))) -> 0 | AL39: =IF('JOLLY MINSTER'!CD14="",0,(SUM(('JOLLY MINSTER'!CD14/'JOLLY MINSTER'!CE14)*3))) -> 0 | AN39: =IF('JOLLY MINSTER'!CH14="",0,(SUM(('JOLLY MINSTER'!CH14/'JOLLY MINSTER'!CI14)*3))) -> 0
A41: CRICKET CLUB | B41: 11/09/2006 V RAFA 'A' (A)
B42: W/L | C42: AVG | D42: W/L | E42: AVG | F42: W/L | G42: AVG | H42: W/L | I42: AVG | J42: W/L | K42: AVG | L42: W/L | M42: AVG | N42: W/L | O42: AVG | P42: W/L | Q42: AVG | R42: W/L | S42: AVG | T42: W/L | U42: AVG | V42: W/L | W42: AVG | X42: W/L | Y42: AVG | Z42: W/L | AA42: AVG | AB42: W/L | AC42: AVG | AD42: W/L | AE42: AVG | AF42: W/L | AG42: AVG | AH42: W/L | AI42: AVG | AJ42: W/L | AK42: AVG | AL42: W/L | AM42: AVG | AN42: W/L | AO42: AVG | AP42: W/L | AQ42: AVG | AR42: W/L | AS42: AVG
A43: ='Team 11 - Unused'!A3 -> 0 | B43: =IF(C56=1,B56,"") ->  | C43: =IF(B68>0,B68,"") ->  | D43: =IF(E56=1,D56,"") ->  | E43: =IF(D68>0,D68,"") ->  | F43: =IF(G56=1,F56,"") ->  | G43: =IF(F68>0,F68,"") ->  | H43: =IF(I56=1,H56,"") ->  | I43: =IF(H68>0,H68,"") ->  | J43: =IF(K56=1,J56,"") ->  | K43: =IF(J68>0,J68,"") ->  | L43: =IF(M56=1,L56,"") ->  | M43: =IF(L68>0,L68,"") ->  | N43: =IF(O56=1,N56,"") ->  | O43: =IF(N68>0,N68,"") ->  | P43: =IF(Q56=1,P56,"") ->  | Q43: =IF(P68>0,P68,"") ->  | R43: =IF(S56=1,R56,"") ->  | S43: =IF(R68>0,R68,"") ->  | T43: =IF(U56=1,T56,"") ->  | U43: =IF(T68>0,T68,"") ->  | V43: =IF(W56=1,V56,"") ->  | W43: =IF(V68>0,V68,"") ->  | X43: =IF(Y56=1,X56,"") ->  | Y43: =IF(X68>0,X68,"") ->  | Z43: =IF(AA56=1,Z56,"") ->  | AA43: =IF(Z68>0,Z68,"") ->  | AB43: =IF(AC56=1,AB56,"") ->  | AC43: =IF(AB68>0,AB68,"") ->  | AD43: =IF(AE56=1,AD56,"") ->  | AE43: =IF(AD68>0,AD68,"") ->  | AF43: =IF(AG56=1,AF56,"") ->  | AG43: =IF(AF68>0,AF68,"") ->  | AH43: =IF(AI56=1,AH56,"") ->  | AI43: =IF(AH68>0,AH68,"") ->  | AJ43: =IF(AK56=1,AJ56,"") ->  | AK43: =IF(AJ68>0,AJ68,"") ->  | AL43: =IF(AM56=1,AL56,"") ->  | AM43: =IF(AL68>0,AL68,"") ->  | AN43: =IF(AO56=1,AN56,"") ->  | AO43: =IF(AN68>0,AN68,"") ->  | AP43: =IF(AQ56=1,AP56,"") ->  | AQ43: =IF(AP68>0,AP68,"") ->  | AR43: =IF(AS56=1,AR56,"") ->  | AS43: =IF(AR68>0,AR68,"") -> 
A44: ='Team 11 - Unused'!A4 -> 0 | B44: =IF(C57=1,B57,"") ->  | C44: =IF(B69>0,B69,"") ->  | D44: =IF(E57=1,D57,"") ->  | E44: =IF(D69>0,D69,"") ->  | F44: =IF(G57=1,F57,"") ->  | G44: =IF(F69>0,F69,"") ->  | H44: =IF(I57=1,H57,"") ->  | I44: =IF(H69>0,H69,"") ->  | J44: =IF(K57=1,J57,"") ->  | K44: =IF(J69>0,J69,"") ->  | L44: =IF(M57=1,L57,"") ->  | M44: =IF(L69>0,L69,"") ->  | N44: =IF(O57=1,N57,"") ->  | O44: =IF(N69>0,N69,"") ->  | P44: =IF(Q57=1,P57,"") ->  | Q44: =IF(P69>0,P69,"") ->  | R44: =IF(S57=1,R57,"") ->  | S44: =IF(R69>0,R69,"") ->  | T44: =IF(U57=1,T57,"") ->  | U44: =IF(T69>0,T69,"") ->  | V44: =IF(W57=1,V57,"") ->  | W44: =IF(V69>0,V69,"") ->  | X44: =IF(Y57=1,X57,"") ->  | Y44: =IF(X69>0,X69,"") ->  | Z44: =IF(AA57=1,Z57,"") ->  | AA44: =IF(Z69>0,Z69,"") ->  | AB44: =IF(AC57=1,AB57,"") ->  | AC44: =IF(AB69>0,AB69,"") ->  | AD44: =IF(AE57=1,AD57,"") ->  | AE44: =IF(AD69>0,AD69,"") ->  | AF44: =IF(AG57=1,AF57,"") ->  | AG44: =IF(AF69>0,AF69,"") ->  | AH44: =IF(AI57=1,AH57,"") ->  | AI44: =IF(AH69>0,AH69,"") ->  | AJ44: =IF(AK57=1,AJ57,"") ->  | AK44: =IF(AJ69>0,AJ69,"") ->  | AL44: =IF(AM57=1,AL57,"") ->  | AM44: =IF(AL69>0,AL69,"") ->  | AN44: =IF(AO57=1,AN57,"") ->  | AO44: =IF(AN69>0,AN69,"") ->  | AP44: =IF(AQ57=1,AP57,"") ->  | AQ44: =IF(AP69>0,AP69,"") ->  | AR44: =IF(AS57=1,AR57,"") ->  | AS44: =IF(AR69>0,AR69,"") -> 
A45: ='Team 11 - Unused'!A5 -> 0
A46: ='Team 11 - Unused'!A6 -> 0
A47: ='Team 11 - Unused'!A7 -> 0
A48: ='Team 11 - Unused'!A8 -> 0
A49: ='Team 11 - Unused'!A9 -> 0
A50: ='Team 11 - Unused'!A10 -> 0
A51: ='Team 11 - Unused'!A11 -> 0
A52: ='Team 11 - Unused'!A12 -> 0
A53: ='Team 11 - Unused'!A13 -> 0
A54: ='Team 11 - Unused'!A14 -> 0
A56: CRICKET CLUB | B56: =IF('Team 11 - Unused'!B3=701,"WON","LOST") -> LOST | C56: =IF('Team 11 - Unused'!B3>0,1,0) -> 0 | D56: =IF('Team 11 - Unused'!F3=701,"WON","LOST") -> LOST | E56: =IF('Team 11 - Unused'!F3>0,1,0) -> 0 | F56: =IF('Team 11 - Unused'!J3=701,"WON","LOST") -> LOST | G56: =IF('Team 11 - Unused'!J3>0,1,0) -> 0 | H56: =IF('Team 11 - Unused'!N3=701,"WON","LOST") -> LOST | I56: =IF('Team 11 - Unused'!N3>0,1,0) -> 0 | J56: =IF('Team 11 - Unused'!R3=701,"WON","LOST") -> LOST | K56: =IF('Team 11 - Unused'!R3>0,1,0) -> 0 | L56: =IF('Team 11 - Unused'!V3=701,"WON","LOST") -> LOST | M56: =IF('Team 11 - Unused'!V3>0,1,0) -> 0 | N56: =IF('Team 11 - Unused'!Z3=701,"WON","LOST") -> LOST | O56: =IF('Team 11 - Unused'!Z3>0,1,0) -> 0 | P56: =IF('Team 11 - Unused'!AD3=701,"WON","LOST") -> LOST | Q56: =IF('Team 11 - Unused'!AD3>0,1,0) -> 0 | R56: =IF('Team 11 - Unused'!AH3=701,"WON","LOST") -> LOST | S56: =IF('Team 11 - Unused'!AH3>0,1,0) -> 0 | T56: =IF('Team 11 - Unused'!AL3=701,"WON","LOST") -> LOST | U56: =IF('Team 11 - Unused'!AL3>0,1,0) -> 0 | V56: =IF('Team 11 - Unused'!AP3=701,"WON","LOST") -> LOST | W56: =IF('Team 11 - Unused'!AP3>0,1,0) -> 0 | X56: =IF('Team 11 - Unused'!AT3=701,"WON","LOST") -> LOST | Y56: =IF('Team 11 - Unused'!AT3>0,1,0) -> 0 | Z56: =IF('Team 11 - Unused'!AX3=701,"WON","LOST") -> LOST | AA56: =IF('Team 11 - Unused'!AX3>0,1,0) -> 0 | AB56: =IF('Team 11 - Unused'!BB3=701,"WON","LOST") -> LOST | AC56: =IF('Team 11 - Unused'!BB3>0,1,0) -> 0 | AD56: =IF('Team 11 - Unused'!BF3=701,"WON","LOST") -> LOST | AE56: =IF('Team 11 - Unused'!BF3>0,1,0) -> 0 | AF56: =IF('Team 11 - Unused'!BJ3=701,"WON","LOST") -> LOST | AG56: =IF('Team 11 - Unused'!BJ3>0,1,0) -> 0 | AH56: =IF('Team 11 - Unused'!BN3=701,"WON","LOST") -> LOST | AI56: =IF('Team 11 - Unused'!BN3>0,1,0) -> 0 | AJ56: =IF('Team 11 - Unused'!BR3=701,"WON","LOST") -> LOST | AK56: =IF('Team 11 - Unused'!BR3>0,1,0) -> 0 | AL56: =IF('Team 11 - Unused'!BV3=701,"WON","LOST") -> LOST | AM56: =IF('Team 11 - Unused'!BV3>0,1,0) -> 0 | AN56: =IF('Team 11 - Unused'!BZ3=701,"WON","LOST") -> LOST | AO56: =IF('Team 11 - Unused'!BZ3>0,1,0) -> 0 | AP56: =IF('Team 11 - Unused'!CD3=701,"WON","LOST") -> LOST | AQ56: =IF('Team 11 - Unused'!CD3>0,1,0) -> 0 | AR56: =IF('Team 11 - Unused'!CH3=701,"WON","LOST") -> LOST | AS56: =IF('Team 11 - Unused'!CH3>0,1,0) -> 0
B57: =IF('Team 11 - Unused'!B4=701,"WON","LOST") -> LOST | C57: =IF('Team 11 - Unused'!B4>0,1,0) -> 0 | D57: =IF('Team 11 - Unused'!F4=701,"WON","LOST") -> LOST | E57: =IF('Team 11 - Unused'!F4>0,1,0) -> 0 | F57: =IF('Team 11 - Unused'!J4=701,"WON","LOST") -> LOST | G57: =IF('Team 11 - Unused'!J4>0,1,0) -> 0 | H57: =IF('Team 11 - Unused'!N4=701,"WON","LOST") -> LOST | I57: =IF('Team 11 - Unused'!N4>0,1,0) -> 0 | J57: =IF('Team 11 - Unused'!R4=701,"WON","LOST") -> LOST | K57: =IF('Team 11 - Unused'!R4>0,1,0) -> 0 | L57: =IF('Team 11 - Unused'!V4=701,"WON","LOST") -> LOST | M57: =IF('Team 11 - Unused'!V4>0,1,0) -> 0 | N57: =IF('Team 11 - Unused'!Z4=701,"WON","LOST") -> LOST | O57: =IF('Team 11 - Unused'!Z4>0,1,0) -> 0 | P57: =IF('Team 11 - Unused'!AD4=701,"WON","LOST") -> LOST | Q57: =IF('Team 11 - Unused'!AD4>0,1,0) -> 0 | R57: =IF('Team 11 - Unused'!AH4=701,"WON","LOST") -> LOST | S57: =IF('Team 11 - Unused'!AH4>0,1,0) -> 0 | T57: =IF('Team 11 - Unused'!AL4=701,"WON","LOST") -> LOST | U57: =IF('Team 11 - Unused'!AL4>0,1,0) -> 0 | V57: =IF('Team 11 - Unused'!AP4=701,"WON","LOST") -> LOST | W57: =IF('Team 11 - Unused'!AP4>0,1,0) -> 0 | X57: =IF('Team 11 - Unused'!AT4=701,"WON","LOST") -> LOST | Y57: =IF('Team 11 - Unused'!AT4>0,1,0) -> 0 | Z57: =IF('Team 11 - Unused'!AX4=701,"WON","LOST") -> LOST | AA57: =IF('Team 11 - Unused'!AX4>0,1,0) -> 0 | AB57: =IF('Team 11 - Unused'!BB4=701,"WON","LOST") -> LOST | AC57: =IF('Team 11 - Unused'!BB4>0,1,0) -> 0 | AD57: =IF('Team 11 - Unused'!BF4=701,"WON","LOST") -> LOST | AE57: =IF('Team 11 - Unused'!BF4>0,1,0) -> 0 | AF57: =IF('Team 11 - Unused'!BJ4=701,"WON","LOST") -> LOST | AG57: =IF('Team 11 - Unused'!BJ4>0,1,0) -> 0 | AH57: =IF('Team 11 - Unused'!BN4=701,"WON","LOST") -> LOST | AI57: =IF('Team 11 - Unused'!BN4>0,1,0) -> 0 | AJ57: =IF('Team 11 - Unused'!BR4=701,"WON","LOST") -> LOST | AK57: =IF('Team 11 - Unused'!BR4>0,1,0) -> 0 | AL57: =IF('Team 11 - Unused'!BV4=701,"WON","LOST") -> LOST | AM57: =IF('Team 11 - Unused'!BV4>0,1,0) -> 0 | AN57: =IF('Team 11 - Unused'!BZ4=701,"WON","LOST") -> LOST | AO57: =IF('Team 11 - Unused'!BZ4>0,1,0) -> 0 | AP57: =IF('Team 11 - Unused'!CD4=701,"WON","LOST") -> LOST | AQ57: =IF('Team 11 - Unused'!CD4>0,1,0) -> 0 | AR57: =IF('Team 11 - Unused'!CH4=701,"WON","LOST") -> LOST | AS57: =IF('Team 11 - Unused'!CH4>0,1,0) -> 0
B58: =IF('Team 11 - Unused'!B5=701,"WON","LOST") -> LOST | C58: =IF('Team 11 - Unused'!B5>0,1,0) -> 0 | D58: =IF('Team 11 - Unused'!F5=701,"WON","LOST") -> LOST | E58: =IF('Team 11 - Unused'!F5>0,1,0) -> 0 | F58: =IF('Team 11 - Unused'!J5=701,"WON","LOST") -> LOST | G58: =IF('Team 11 - Unused'!J5>0,1,0) -> 0 | H58: =IF('Team 11 - Unused'!N5=701,"WON","LOST") -> LOST | I58: =IF('Team 11 - Unused'!N5>0,1,0) -> 0 | J58: =IF('Team 11 - Unused'!R5=701,"WON","LOST") -> LOST | K58: =IF('Team 11 - Unused'!R5>0,1,0) -> 0 | L58: =IF('Team 11 - Unused'!V5=701,"WON","LOST") -> LOST | M58: =IF('Team 11 - Unused'!V5>0,1,0) -> 0 | N58: =IF('Team 11 - Unused'!Z5=701,"WON","LOST") -> LOST | O58: =IF('Team 11 - Unused'!Z5>0,1,0) -> 0 | P58: =IF('Team 11 - Unused'!AD5=701,"WON","LOST") -> LOST | Q58: =IF('Team 11 - Unused'!AD5>0,1,0) -> 0 | R58: =IF('Team 11 - Unused'!AH5=701,"WON","LOST") -> LOST | S58: =IF('Team 11 - Unused'!AH5>0,1,0) -> 0 | T58: =IF('Team 11 - Unused'!AL5=701,"WON","LOST") -> LOST | U58: =IF('Team 11 - Unused'!AL5>0,1,0) -> 0 | V58: =IF('Team 11 - Unused'!AP5=701,"WON","LOST") -> LOST | W58: =IF('Team 11 - Unused'!AP5>0,1,0) -> 0 | X58: =IF('Team 11 - Unused'!AT5=701,"WON","LOST") -> LOST | Y58: =IF('Team 11 - Unused'!AT5>0,1,0) -> 0 | Z58: =IF('Team 11 - Unused'!AX5=701,"WON","LOST") -> LOST | AA58: =IF('Team 11 - Unused'!AX5>0,1,0) -> 0 | AB58: =IF('Team 11 - Unused'!BB5=701,"WON","LOST") -> LOST | AC58: =IF('Team 11 - Unused'!BB5>0,1,0) -> 0 | AD58: =IF('Team 11 - Unused'!BF5=701,"WON","LOST") -> LOST | AE58: =IF('Team 11 - Unused'!BF5>0,1,0) -> 0 | AF58: =IF('Team 11 - Unused'!BJ5=701,"WON","LOST") -> LOST | AG58: =IF('Team 11 - Unused'!BJ5>0,1,0) -> 0 | AH58: =IF('Team 11 - Unused'!BN5=701,"WON","LOST") -> LOST | AI58: =IF('Team 11 - Unused'!BN5>0,1,0) -> 0 | AJ58: =IF('Team 11 - Unused'!BR5=701,"WON","LOST") -> LOST | AK58: =IF('Team 11 - Unused'!BR5>0,1,0) -> 0 | AL58: =IF('Team 11 - Unused'!BV5=701,"WON","LOST") -> LOST | AM58: =IF('Team 11 - Unused'!BV5>0,1,0) -> 0 | AN58: =IF('Team 11 - Unused'!BZ5=701,"WON","LOST") -> LOST | AO58: =IF('Team 11 - Unused'!BZ5>0,1,0) -> 0 | AP58: =IF('Team 11 - Unused'!CD5=701,"WON","LOST") -> LOST | AQ58: =IF('Team 11 - Unused'!CD5>0,1,0) -> 0 | AR58: =IF('Team 11 - Unused'!CH5=701,"WON","LOST") -> LOST | AS58: =IF('Team 11 - Unused'!CH5>0,1,0) -> 0
B59: =IF('Team 11 - Unused'!B6=701,"WON","LOST") -> LOST | C59: =IF('Team 11 - Unused'!B6>0,1,0) -> 0 | D59: =IF('Team 11 - Unused'!F6=701,"WON","LOST") -> LOST | E59: =IF('Team 11 - Unused'!F6>0,1,0) -> 0 | F59: =IF('Team 11 - Unused'!J6=701,"WON","LOST") -> LOST | G59: =IF('Team 11 - Unused'!J6>0,1,0) -> 0 | H59: =IF('Team 11 - Unused'!N6=701,"WON","LOST") -> LOST | I59: =IF('Team 11 - Unused'!N6>0,1,0) -> 0 | J59: =IF('Team 11 - Unused'!R6=701,"WON","LOST") -> LOST | K59: =IF('Team 11 - Unused'!R6>0,1,0) -> 0 | L59: =IF('Team 11 - Unused'!V6=701,"WON","LOST") -> LOST | M59: =IF('Team 11 - Unused'!V6>0,1,0) -> 0 | N59: =IF('Team 11 - Unused'!Z6=701,"WON","LOST") -> LOST | O59: =IF('Team 11 - Unused'!Z6>0,1,0) -> 0 | P59: =IF('Team 11 - Unused'!AD6=701,"WON","LOST") -> LOST | Q59: =IF('Team 11 - Unused'!AD6>0,1,0) -> 0 | R59: =IF('Team 11 - Unused'!AH6=701,"WON","LOST") -> LOST | S59: =IF('Team 11 - Unused'!AH6>0,1,0) -> 0 | T59: =IF('Team 11 - Unused'!AL6=701,"WON","LOST") -> LOST | U59: =IF('Team 11 - Unused'!AL6>0,1,0) -> 0 | V59: =IF('Team 11 - Unused'!AP6=701,"WON","LOST") -> LOST | W59: =IF('Team 11 - Unused'!AP6>0,1,0) -> 0 | X59: =IF('Team 11 - Unused'!AT6=701,"WON","LOST") -> LOST | Y59: =IF('Team 11 - Unused'!AT6>0,1,0) -> 0 | Z59: =IF('Team 11 - Unused'!AX6=701,"WON","LOST") -> LOST | AA59: =IF('Team 11 - Unused'!AX6>0,1,0) -> 0 | AB59: =IF('Team 11 - Unused'!BB6=701,"WON","LOST") -> LOST | AC59: =IF('Team 11 - Unused'!BB6>0,1,0) -> 0 | AD59: =IF('Team 11 - Unused'!BF6=701,"WON","LOST") -> LOST | AE59: =IF('Team 11 - Unused'!BF6>0,1,0) -> 0 | AF59: =IF('Team 11 - Unused'!BJ6=701,"WON","LOST") -> LOST | AG59: =IF('Team 11 - Unused'!BJ6>0,1,0) -> 0 | AH59: =IF('Team 11 - Unused'!BN6=701,"WON","LOST") -> LOST | AI59: =IF('Team 11 - Unused'!BN6>0,1,0) -> 0 | AJ59: =IF('Team 11 - Unused'!BR6=701,"WON","LOST") -> LOST | AK59: =IF('Team 11 - Unused'!BR6>0,1,0) -> 0 | AL59: =IF('Team 11 - Unused'!BV6=701,"WON","LOST") -> LOST | AM59: =IF('Team 11 - Unused'!BV6>0,1,0) -> 0 | AN59: =IF('Team 11 - Unused'!BZ6=701,"WON","LOST") -> LOST | AO59: =IF('Team 11 - Unused'!BZ6>0,1,0) -> 0 | AP59: =IF('Team 11 - Unused'!CD6=701,"WON","LOST") -> LOST | AQ59: =IF('Team 11 - Unused'!CD6>0,1,0) -> 0 | AR59: =IF('Team 11 - Unused'!CH6=701,"WON","LOST") -> LOST | AS59: =IF('Team 11 - Unused'!CH6>0,1,0) -> 0
B60: =IF('Team 11 - Unused'!B7=701,"WON","LOST") -> LOST | C60: =IF('Team 11 - Unused'!B7>0,1,0) -> 0 | D60: =IF('Team 11 - Unused'!F7=701,"WON","LOST") -> LOST | E60: =IF('Team 11 - Unused'!F7>0,1,0) -> 0 | F60: =IF('Team 11 - Unused'!J7=701,"WON","LOST") -> LOST | G60: =IF('Team 11 - Unused'!J7>0,1,0) -> 0 | H60: =IF('Team 11 - Unused'!N7=701,"WON","LOST") -> LOST | I60: =IF('Team 11 - Unused'!N7>0,1,0) -> 0 | J60: =IF('Team 11 - Unused'!R7=701,"WON","LOST") -> LOST | K60: =IF('Team 11 - Unused'!R7>0,1,0) -> 0 | L60: =IF('Team 11 - Unused'!V7=701,"WON","LOST") -> LOST | M60: =IF('Team 11 - Unused'!V7>0,1,0) -> 0 | N60: =IF('Team 11 - Unused'!Z7=701,"WON","LOST") -> LOST | O60: =IF('Team 11 - Unused'!Z7>0,1,0) -> 0 | P60: =IF('Team 11 - Unused'!AD7=701,"WON","LOST") -> LOST | Q60: =IF('Team 11 - Unused'!AD7>0,1,0) -> 0 | R60: =IF('Team 11 - Unused'!AH7=701,"WON","LOST") -> LOST | S60: =IF('Team 11 - Unused'!AH7>0,1,0) -> 0 | T60: =IF('Team 11 - Unused'!AL7=701,"WON","LOST") -> LOST | U60: =IF('Team 11 - Unused'!AL7>0,1,0) -> 0 | V60: =IF('Team 11 - Unused'!AP7=701,"WON","LOST") -> LOST | W60: =IF('Team 11 - Unused'!AP7>0,1,0) -> 0 | X60: =IF('Team 11 - Unused'!AT7=701,"WON","LOST") -> LOST | Y60: =IF('Team 11 - Unused'!AT7>0,1,0) -> 0 | Z60: =IF('Team 11 - Unused'!AX7=701,"WON","LOST") -> LOST | AA60: =IF('Team 11 - Unused'!AX7>0,1,0) -> 0 | AB60: =IF('Team 11 - Unused'!BB7=701,"WON","LOST") -> LOST | AC60: =IF('Team 11 - Unused'!BB7>0,1,0) -> 0 | AD60: =IF('Team 11 - Unused'!BF7=701,"WON","LOST") -> LOST | AE60: =IF('Team 11 - Unused'!BF7>0,1,0) -> 0 | AF60: =IF('Team 11 - Unused'!BJ7=701,"WON","LOST") -> LOST | AG60: =IF('Team 11 - Unused'!BJ7>0,1,0) -> 0 | AH60: =IF('Team 11 - Unused'!BN7=701,"WON","LOST") -> LOST | AI60: =IF('Team 11 - Unused'!BN7>0,1,0) -> 0 | AJ60: =IF('Team 11 - Unused'!BR7=701,"WON","LOST") -> LOST | AK60: =IF('Team 11 - Unused'!BR7>0,1,0) -> 0 | AL60: =IF('Team 11 - Unused'!BV7=701,"WON","LOST") -> LOST | AM60: =IF('Team 11 - Unused'!BV7>0,1,0) -> 0 | AN60: =IF('Team 11 - Unused'!BZ7=701,"WON","LOST") -> LOST | AO60: =IF('Team 11 - Unused'!BZ7>0,1,0) -> 0 | AP60: =IF('Team 11 - Unused'!CD7=701,"WON","LOST") -> LOST | AQ60: =IF('Team 11 - Unused'!CD7>0,1,0) -> 0 | AR60: =IF('Team 11 - Unused'!CH7=701,"WON","LOST") -> LOST | AS60: =IF('Team 11 - Unused'!CH7>0,1,0) -> 0
B61: =IF('Team 11 - Unused'!B8=701,"WON","LOST") -> LOST | C61: =IF('Team 11 - Unused'!B8>0,1,0) -> 0 | D61: =IF('Team 11 - Unused'!F8=701,"WON","LOST") -> LOST | E61: =IF('Team 11 - Unused'!F8>0,1,0) -> 0 | F61: =IF('Team 11 - Unused'!J8=701,"WON","LOST") -> LOST | G61: =IF('Team 11 - Unused'!J8>0,1,0) -> 0 | H61: =IF('Team 11 - Unused'!N8=701,"WON","LOST") -> LOST | I61: =IF('Team 11 - Unused'!N8>0,1,0) -> 0 | J61: =IF('Team 11 - Unused'!R8=701,"WON","LOST") -> LOST | K61: =IF('Team 11 - Unused'!R8>0,1,0) -> 0 | L61: =IF('Team 11 - Unused'!V8=701,"WON","LOST") -> LOST | M61: =IF('Team 11 - Unused'!V8>0,1,0) -> 0 | N61: =IF('Team 11 - Unused'!Z8=701,"WON","LOST") -> LOST | O61: =IF('Team 11 - Unused'!Z8>0,1,0) -> 0 | P61: =IF('Team 11 - Unused'!AD8=701,"WON","LOST") -> LOST | Q61: =IF('Team 11 - Unused'!AD8>0,1,0) -> 0 | R61: =IF('Team 11 - Unused'!AH8=701,"WON","LOST") -> LOST | S61: =IF('Team 11 - Unused'!AH8>0,1,0) -> 0 | T61: =IF('Team 11 - Unused'!AL8=701,"WON","LOST") -> LOST | U61: =IF('Team 11 - Unused'!AL8>0,1,0) -> 0 | V61: =IF('Team 11 - Unused'!AP8=701,"WON","LOST") -> LOST | W61: =IF('Team 11 - Unused'!AP8>0,1,0) -> 0 | X61: =IF('Team 11 - Unused'!AT8=701,"WON","LOST") -> LOST | Y61: =IF('Team 11 - Unused'!AT8>0,1,0) -> 0 | Z61: =IF('Team 11 - Unused'!AX8=701,"WON","LOST") -> LOST | AA61: =IF('Team 11 - Unused'!AX8>0,1,0) -> 0 | AB61: =IF('Team 11 - Unused'!BB8=701,"WON","LOST") -> LOST | AC61: =IF('Team 11 - Unused'!BB8>0,1,0) -> 0 | AD61: =IF('Team 11 - Unused'!BF8=701,"WON","LOST") -> LOST | AE61: =IF('Team 11 - Unused'!BF8>0,1,0) -> 0 | AF61: =IF('Team 11 - Unused'!BJ8=701,"WON","LOST") -> LOST | AG61: =IF('Team 11 - Unused'!BJ8>0,1,0) -> 0 | AH61: =IF('Team 11 - Unused'!BN8=701,"WON","LOST") -> LOST | AI61: =IF('Team 11 - Unused'!BN8>0,1,0) -> 0 | AJ61: =IF('Team 11 - Unused'!BR8=701,"WON","LOST") -> LOST | AK61: =IF('Team 11 - Unused'!BR8>0,1,0) -> 0 | AL61: =IF('Team 11 - Unused'!BV8=701,"WON","LOST") -> LOST | AM61: =IF('Team 11 - Unused'!BV8>0,1,0) -> 0 | AN61: =IF('Team 11 - Unused'!BZ8=701,"WON","LOST") -> LOST | AO61: =IF('Team 11 - Unused'!BZ8>0,1,0) -> 0 | AP61: =IF('Team 11 - Unused'!CD8=701,"WON","LOST") -> LOST | AQ61: =IF('Team 11 - Unused'!CD8>0,1,0) -> 0 | AR61: =IF('Team 11 - Unused'!CH8=701,"WON","LOST") -> LOST | AS61: =IF('Team 11 - Unused'!CH8>0,1,0) -> 0
B62: =IF('Team 11 - Unused'!B9=701,"WON","LOST") -> LOST | C62: =IF('Team 11 - Unused'!B9>0,1,0) -> 0 | D62: =IF('Team 11 - Unused'!F9=701,"WON","LOST") -> LOST | E62: =IF('Team 11 - Unused'!F9>0,1,0) -> 0 | F62: =IF('Team 11 - Unused'!J9=701,"WON","LOST") -> LOST | G62: =IF('Team 11 - Unused'!J9>0,1,0) -> 0 | H62: =IF('Team 11 - Unused'!N9=701,"WON","LOST") -> LOST | I62: =IF('Team 11 - Unused'!N9>0,1,0) -> 0 | J62: =IF('Team 11 - Unused'!R9=701,"WON","LOST") -> LOST | K62: =IF('Team 11 - Unused'!R9>0,1,0) -> 0 | L62: =IF('Team 11 - Unused'!V9=701,"WON","LOST") -> LOST | M62: =IF('Team 11 - Unused'!V9>0,1,0) -> 0 | N62: =IF('Team 11 - Unused'!Z9=701,"WON","LOST") -> LOST | O62: =IF('Team 11 - Unused'!Z9>0,1,0) -> 0 | P62: =IF('Team 11 - Unused'!AD9=701,"WON","LOST") -> LOST | Q62: =IF('Team 11 - Unused'!AD9>0,1,0) -> 0 | R62: =IF('Team 11 - Unused'!AH9=701,"WON","LOST") -> LOST | S62: =IF('Team 11 - Unused'!AH9>0,1,0) -> 0 | T62: =IF('Team 11 - Unused'!AL9=701,"WON","LOST") -> LOST | U62: =IF('Team 11 - Unused'!AL9>0,1,0) -> 0 | V62: =IF('Team 11 - Unused'!AP9=701,"WON","LOST") -> LOST | W62: =IF('Team 11 - Unused'!AP9>0,1,0) -> 0 | X62: =IF('Team 11 - Unused'!AT9=701,"WON","LOST") -> LOST | Y62: =IF('Team 11 - Unused'!AT9>0,1,0) -> 0 | Z62: =IF('Team 11 - Unused'!AX9=701,"WON","LOST") -> LOST | AA62: =IF('Team 11 - Unused'!AX9>0,1,0) -> 0 | AB62: =IF('Team 11 - Unused'!BB9=701,"WON","LOST") -> LOST | AC62: =IF('Team 11 - Unused'!BB9>0,1,0) -> 0 | AD62: =IF('Team 11 - Unused'!BF9=701,"WON","LOST") -> LOST | AE62: =IF('Team 11 - Unused'!BF9>0,1,0) -> 0 | AF62: =IF('Team 11 - Unused'!BJ9=701,"WON","LOST") -> LOST | AG62: =IF('Team 11 - Unused'!BJ9>0,1,0) -> 0 | AH62: =IF('Team 11 - Unused'!BN9=701,"WON","LOST") -> LOST | AI62: =IF('Team 11 - Unused'!BN9>0,1,0) -> 0 | AJ62: =IF('Team 11 - Unused'!BR9=701,"WON","LOST") -> LOST | AK62: =IF('Team 11 - Unused'!BR9>0,1,0) -> 0 | AL62: =IF('Team 11 - Unused'!BV9=701,"WON","LOST") -> LOST | AM62: =IF('Team 11 - Unused'!BV9>0,1,0) -> 0 | AN62: =IF('Team 11 - Unused'!BZ9=701,"WON","LOST") -> LOST | AO62: =IF('Team 11 - Unused'!BZ9>0,1,0) -> 0 | AP62: =IF('Team 11 - Unused'!CD9=701,"WON","LOST") -> LOST | AQ62: =IF('Team 11 - Unused'!CD9>0,1,0) -> 0 | AR62: =IF('Team 11 - Unused'!CH9=701,"WON","LOST") -> LOST | AS62: =IF('Team 11 - Unused'!CH9>0,1,0) -> 0
B63: =IF('Team 11 - Unused'!B10=701,"WON","LOST") -> LOST | C63: =IF('Team 11 - Unused'!B10>0,1,0) -> 0 | D63: =IF('Team 11 - Unused'!F10=701,"WON","LOST") -> LOST | E63: =IF('Team 11 - Unused'!F10>0,1,0) -> 0 | F63: =IF('Team 11 - Unused'!J10=701,"WON","LOST") -> LOST | G63: =IF('Team 11 - Unused'!J10>0,1,0) -> 0 | H63: =IF('Team 11 - Unused'!N10=701,"WON","LOST") -> LOST | I63: =IF('Team 11 - Unused'!N10>0,1,0) -> 0 | J63: =IF('Team 11 - Unused'!R10=701,"WON","LOST") -> LOST | K63: =IF('Team 11 - Unused'!R10>0,1,0) -> 0 | L63: =IF('Team 11 - Unused'!V10=701,"WON","LOST") -> LOST | M63: =IF('Team 11 - Unused'!V10>0,1,0) -> 0 | N63: =IF('Team 11 - Unused'!Z10=701,"WON","LOST") -> LOST | O63: =IF('Team 11 - Unused'!Z10>0,1,0) -> 0 | P63: =IF('Team 11 - Unused'!AD10=701,"WON","LOST") -> LOST | Q63: =IF('Team 11 - Unused'!AD10>0,1,0) -> 0 | R63: =IF('Team 11 - Unused'!AH10=701,"WON","LOST") -> LOST | S63: =IF('Team 11 - Unused'!AH10>0,1,0) -> 0 | T63: =IF('Team 11 - Unused'!AL10=701,"WON","LOST") -> LOST | U63: =IF('Team 11 - Unused'!AL10>0,1,0) -> 0 | V63: =IF('Team 11 - Unused'!AP10=701,"WON","LOST") -> LOST | W63: =IF('Team 11 - Unused'!AP10>0,1,0) -> 0 | X63: =IF('Team 11 - Unused'!AT10=701,"WON","LOST") -> LOST | Y63: =IF('Team 11 - Unused'!AT10>0,1,0) -> 0 | Z63: =IF('Team 11 - Unused'!AX10=701,"WON","LOST") -> LOST | AA63: =IF('Team 11 - Unused'!AX10>0,1,0) -> 0 | AB63: =IF('Team 11 - Unused'!BB10=701,"WON","LOST") -> LOST | AC63: =IF('Team 11 - Unused'!BB10>0,1,0) -> 0 | AD63: =IF('Team 11 - Unused'!BF10=701,"WON","LOST") -> LOST | AE63: =IF('Team 11 - Unused'!BF10>0,1,0) -> 0 | AF63: =IF('Team 11 - Unused'!BJ10=701,"WON","LOST") -> LOST | AG63: =IF('Team 11 - Unused'!BJ10>0,1,0) -> 0 | AH63: =IF('Team 11 - Unused'!BN10=701,"WON","LOST") -> LOST | AI63: =IF('Team 11 - Unused'!BN10>0,1,0) -> 0 | AJ63: =IF('Team 11 - Unused'!BR10=701,"WON","LOST") -> LOST | AK63: =IF('Team 11 - Unused'!BR10>0,1,0) -> 0 | AL63: =IF('Team 11 - Unused'!BV10=701,"WON","LOST") -> LOST | AM63: =IF('Team 11 - Unused'!BV10>0,1,0) -> 0 | AN63: =IF('Team 11 - Unused'!BZ10=701,"WON","LOST") -> LOST | AO63: =IF('Team 11 - Unused'!BZ10>0,1,0) -> 0 | AP63: =IF('Team 11 - Unused'!CD10=701,"WON","LOST") -> LOST | AQ63: =IF('Team 11 - Unused'!CD10>0,1,0) -> 0 | AR63: =IF('Team 11 - Unused'!CH10=701,"WON","LOST") -> LOST | AS63: =IF('Team 11 - Unused'!CH10>0,1,0) -> 0
B64: =IF('Team 11 - Unused'!B11=701,"WON","LOST") -> LOST | C64: =IF('Team 11 - Unused'!B11>0,1,0) -> 0 | D64: =IF('Team 11 - Unused'!F11=701,"WON","LOST") -> LOST | E64: =IF('Team 11 - Unused'!F11>0,1,0) -> 0 | F64: =IF('Team 11 - Unused'!J11=701,"WON","LOST") -> LOST | G64: =IF('Team 11 - Unused'!J11>0,1,0) -> 0 | H64: =IF('Team 11 - Unused'!N11=701,"WON","LOST") -> LOST | I64: =IF('Team 11 - Unused'!N11>0,1,0) -> 0 | J64: =IF('Team 11 - Unused'!R11=701,"WON","LOST") -> LOST | K64: =IF('Team 11 - Unused'!R11>0,1,0) -> 0 | L64: =IF('Team 11 - Unused'!V11=701,"WON","LOST") -> LOST | M64: =IF('Team 11 - Unused'!V11>0,1,0) -> 0 | N64: =IF('Team 11 - Unused'!Z11=701,"WON","LOST") -> LOST | O64: =IF('Team 11 - Unused'!Z11>0,1,0) -> 0 | P64: =IF('Team 11 - Unused'!AD11=701,"WON","LOST") -> LOST | Q64: =IF('Team 11 - Unused'!AD11>0,1,0) -> 0 | R64: =IF('Team 11 - Unused'!AH11=701,"WON","LOST") -> LOST | S64: =IF('Team 11 - Unused'!AH11>0,1,0) -> 0 | T64: =IF('Team 11 - Unused'!AL11=701,"WON","LOST") -> LOST | U64: =IF('Team 11 - Unused'!AL11>0,1,0) -> 0 | V64: =IF('Team 11 - Unused'!AP11=701,"WON","LOST") -> LOST | W64: =IF('Team 11 - Unused'!AP11>0,1,0) -> 0 | X64: =IF('Team 11 - Unused'!AT11=701,"WON","LOST") -> LOST | Y64: =IF('Team 11 - Unused'!AT11>0,1,0) -> 0 | Z64: =IF('Team 11 - Unused'!AX11=701,"WON","LOST") -> LOST | AA64: =IF('Team 11 - Unused'!AX11>0,1,0) -> 0 | AB64: =IF('Team 11 - Unused'!BB11=701,"WON","LOST") -> LOST | AC64: =IF('Team 11 - Unused'!BB11>0,1,0) -> 0 | AD64: =IF('Team 11 - Unused'!BF11=701,"WON","LOST") -> LOST | AE64: =IF('Team 11 - Unused'!BF11>0,1,0) -> 0 | AF64: =IF('Team 11 - Unused'!BJ11=701,"WON","LOST") -> LOST | AG64: =IF('Team 11 - Unused'!BJ11>0,1,0) -> 0 | AH64: =IF('Team 11 - Unused'!BN11=701,"WON","LOST") -> LOST | AI64: =IF('Team 11 - Unused'!BN11>0,1,0) -> 0 | AJ64: =IF('Team 11 - Unused'!BR11=701,"WON","LOST") -> LOST | AK64: =IF('Team 11 - Unused'!BR11>0,1,0) -> 0 | AL64: =IF('Team 11 - Unused'!BV11=701,"WON","LOST") -> LOST | AM64: =IF('Team 11 - Unused'!BV11>0,1,0) -> 0 | AN64: =IF('Team 11 - Unused'!BZ11=701,"WON","LOST") -> LOST | AO64: =IF('Team 11 - Unused'!BZ11>0,1,0) -> 0 | AP64: =IF('Team 11 - Unused'!CD11=701,"WON","LOST") -> LOST | AQ64: =IF('Team 11 - Unused'!CD11>0,1,0) -> 0 | AR64: =IF('Team 11 - Unused'!CH11=701,"WON","LOST") -> LOST | AS64: =IF('Team 11 - Unused'!CH11>0,1,0) -> 0
B65: =IF('Team 11 - Unused'!B12=701,"WON","LOST") -> LOST | C65: =IF('Team 11 - Unused'!B12>0,1,0) -> 0 | D65: =IF('Team 11 - Unused'!F12=701,"WON","LOST") -> LOST | E65: =IF('Team 11 - Unused'!F12>0,1,0) -> 0 | F65: =IF('Team 11 - Unused'!J12=701,"WON","LOST") -> LOST | G65: =IF('Team 11 - Unused'!J12>0,1,0) -> 0 | H65: =IF('Team 11 - Unused'!N12=701,"WON","LOST") -> LOST | I65: =IF('Team 11 - Unused'!N12>0,1,0) -> 0 | J65: =IF('Team 11 - Unused'!R12=701,"WON","LOST") -> LOST | K65: =IF('Team 11 - Unused'!R12>0,1,0) -> 0 | L65: =IF('Team 11 - Unused'!V12=701,"WON","LOST") -> LOST | M65: =IF('Team 11 - Unused'!V12>0,1,0) -> 0 | N65: =IF('Team 11 - Unused'!Z12=701,"WON","LOST") -> LOST | O65: =IF('Team 11 - Unused'!Z12>0,1,0) -> 0 | P65: =IF('Team 11 - Unused'!AD12=701,"WON","LOST") -> LOST | Q65: =IF('Team 11 - Unused'!AD12>0,1,0) -> 0 | R65: =IF('Team 11 - Unused'!AH12=701,"WON","LOST") -> LOST | S65: =IF('Team 11 - Unused'!AH12>0,1,0) -> 0 | T65: =IF('Team 11 - Unused'!AL12=701,"WON","LOST") -> LOST | U65: =IF('Team 11 - Unused'!AL12>0,1,0) -> 0 | V65: =IF('Team 11 - Unused'!AP12=701,"WON","LOST") -> LOST | W65: =IF('Team 11 - Unused'!AP12>0,1,0) -> 0 | X65: =IF('Team 11 - Unused'!AT12=701,"WON","LOST") -> LOST | Y65: =IF('Team 11 - Unused'!AT12>0,1,0) -> 0 | Z65: =IF('Team 11 - Unused'!AX12=701,"WON","LOST") -> LOST | AA65: =IF('Team 11 - Unused'!AX12>0,1,0) -> 0 | AB65: =IF('Team 11 - Unused'!BB12=701,"WON","LOST") -> LOST | AC65: =IF('Team 11 - Unused'!BB12>0,1,0) -> 0 | AD65: =IF('Team 11 - Unused'!BF12=701,"WON","LOST") -> LOST | AE65: =IF('Team 11 - Unused'!BF12>0,1,0) -> 0 | AF65: =IF('Team 11 - Unused'!BJ12=701,"WON","LOST") -> LOST | AG65: =IF('Team 11 - Unused'!BJ12>0,1,0) -> 0 | AH65: =IF('Team 11 - Unused'!BN12=701,"WON","LOST") -> LOST | AI65: =IF('Team 11 - Unused'!BN12>0,1,0) -> 0 | AJ65: =IF('Team 11 - Unused'!BR12=701,"WON","LOST") -> LOST | AK65: =IF('Team 11 - Unused'!BR12>0,1,0) -> 0 | AL65: =IF('Team 11 - Unused'!BV12=701,"WON","LOST") -> LOST | AM65: =IF('Team 11 - Unused'!BV12>0,1,0) -> 0 | AN65: =IF('Team 11 - Unused'!BZ12=701,"WON","LOST") -> LOST | AO65: =IF('Team 11 - Unused'!BZ12>0,1,0) -> 0 | AP65: =IF('Team 11 - Unused'!CD12=701,"WON","LOST") -> LOST | AQ65: =IF('Team 11 - Unused'!CD12>0,1,0) -> 0 | AR65: =IF('Team 11 - Unused'!CH12=701,"WON","LOST") -> LOST | AS65: =IF('Team 11 - Unused'!CH12>0,1,0) -> 0
B66: =IF('Team 11 - Unused'!B13=701,"WON","LOST") -> LOST | C66: =IF('Team 11 - Unused'!B13>0,1,0) -> 0 | D66: =IF('Team 11 - Unused'!F13=701,"WON","LOST") -> LOST | E66: =IF('Team 11 - Unused'!F13>0,1,0) -> 0 | F66: =IF('Team 11 - Unused'!J13=701,"WON","LOST") -> LOST | G66: =IF('Team 11 - Unused'!J13>0,1,0) -> 0 | H66: =IF('Team 11 - Unused'!N13=701,"WON","LOST") -> LOST | I66: =IF('Team 11 - Unused'!N13>0,1,0) -> 0 | J66: =IF('Team 11 - Unused'!R13=701,"WON","LOST") -> LOST | K66: =IF('Team 11 - Unused'!R13>0,1,0) -> 0 | L66: =IF('Team 11 - Unused'!V13=701,"WON","LOST") -> LOST | M66: =IF('Team 11 - Unused'!V13>0,1,0) -> 0 | N66: =IF('Team 11 - Unused'!Z13=701,"WON","LOST") -> LOST | O66: =IF('Team 11 - Unused'!Z13>0,1,0) -> 0 | P66: =IF('Team 11 - Unused'!AD13=701,"WON","LOST") -> LOST | Q66: =IF('Team 11 - Unused'!AD13>0,1,0) -> 0 | R66: =IF('Team 11 - Unused'!AH13=701,"WON","LOST") -> LOST | S66: =IF('Team 11 - Unused'!AH13>0,1,0) -> 0 | T66: =IF('Team 11 - Unused'!AL13=701,"WON","LOST") -> LOST | U66: =IF('Team 11 - Unused'!AL13>0,1,0) -> 0 | V66: =IF('Team 11 - Unused'!AP13=701,"WON","LOST") -> LOST | W66: =IF('Team 11 - Unused'!AP13>0,1,0) -> 0 | X66: =IF('Team 11 - Unused'!AT13=701,"WON","LOST") -> LOST | Y66: =IF('Team 11 - Unused'!AT13>0,1,0) -> 0 | Z66: =IF('Team 11 - Unused'!AX13=701,"WON","LOST") -> LOST | AA66: =IF('Team 11 - Unused'!AX13>0,1,0) -> 0 | AB66: =IF('Team 11 - Unused'!BB13=701,"WON","LOST") -> LOST | AC66: =IF('Team 11 - Unused'!BB13>0,1,0) -> 0 | AD66: =IF('Team 11 - Unused'!BF13=701,"WON","LOST") -> LOST | AE66: =IF('Team 11 - Unused'!BF13>0,1,0) -> 0 | AF66: =IF('Team 11 - Unused'!BJ13=701,"WON","LOST") -> LOST | AG66: =IF('Team 11 - Unused'!BJ13>0,1,0) -> 0 | AH66: =IF('Team 11 - Unused'!BN13=701,"WON","LOST") -> LOST | AI66: =IF('Team 11 - Unused'!BN13>0,1,0) -> 0 | AJ66: =IF('Team 11 - Unused'!BR13=701,"WON","LOST") -> LOST | AK66: =IF('Team 11 - Unused'!BR13>0,1,0) -> 0 | AL66: =IF('Team 11 - Unused'!BV13=701,"WON","LOST") -> LOST | AM66: =IF('Team 11 - Unused'!BV13>0,1,0) -> 0 | AN66: =IF('Team 11 - Unused'!BZ13=701,"WON","LOST") -> LOST | AO66: =IF('Team 11 - Unused'!BZ13>0,1,0) -> 0 | AP66: =IF('Team 11 - Unused'!CD13=701,"WON","LOST") -> LOST | AQ66: =IF('Team 11 - Unused'!CD13>0,1,0) -> 0 | AR66: =IF('Team 11 - Unused'!CH13=701,"WON","LOST") -> LOST | AS66: =IF('Team 11 - Unused'!CH13>0,1,0) -> 0
B67: =IF('Team 11 - Unused'!B14=701,"WON","LOST") -> LOST | C67: =IF('Team 11 - Unused'!B14>0,1,0) -> 0 | D67: =IF('Team 11 - Unused'!F14=701,"WON","LOST") -> LOST | E67: =IF('Team 11 - Unused'!F14>0,1,0) -> 0 | F67: =IF('Team 11 - Unused'!J14=701,"WON","LOST") -> LOST | G67: =IF('Team 11 - Unused'!J14>0,1,0) -> 0 | H67: =IF('Team 11 - Unused'!N14=701,"WON","LOST") -> LOST | I67: =IF('Team 11 - Unused'!N14>0,1,0) -> 0 | J67: =IF('Team 11 - Unused'!R14=701,"WON","LOST") -> LOST | K67: =IF('Team 11 - Unused'!R14>0,1,0) -> 0 | L67: =IF('Team 11 - Unused'!V14=701,"WON","LOST") -> LOST | M67: =IF('Team 11 - Unused'!V14>0,1,0) -> 0 | N67: =IF('Team 11 - Unused'!Z14=701,"WON","LOST") -> LOST | O67: =IF('Team 11 - Unused'!Z14>0,1,0) -> 0 | P67: =IF('Team 11 - Unused'!AD14=701,"WON","LOST") -> LOST | Q67: =IF('Team 11 - Unused'!AD14>0,1,0) -> 0 | R67: =IF('Team 11 - Unused'!AH14=701,"WON","LOST") -> LOST | S67: =IF('Team 11 - Unused'!AH14>0,1,0) -> 0 | T67: =IF('Team 11 - Unused'!AL14=701,"WON","LOST") -> LOST | U67: =IF('Team 11 - Unused'!AL14>0,1,0) -> 0 | V67: =IF('Team 11 - Unused'!AP14=701,"WON","LOST") -> LOST | W67: =IF('Team 11 - Unused'!AP14>0,1,0) -> 0 | X67: =IF('Team 11 - Unused'!AT14=701,"WON","LOST") -> LOST | Y67: =IF('Team 11 - Unused'!AT14>0,1,0) -> 0 | Z67: =IF('Team 11 - Unused'!AX14=701,"WON","LOST") -> LOST | AA67: =IF('Team 11 - Unused'!AX14>0,1,0) -> 0 | AB67: =IF('Team 11 - Unused'!BB14=701,"WON","LOST") -> LOST | AC67: =IF('Team 11 - Unused'!BB14>0,1,0) -> 0 | AD67: =IF('Team 11 - Unused'!BF14=701,"WON","LOST") -> LOST | AE67: =IF('Team 11 - Unused'!BF14>0,1,0) -> 0 | AF67: =IF('Team 11 - Unused'!BJ14=701,"WON","LOST") -> LOST | AG67: =IF('Team 11 - Unused'!BJ14>0,1,0) -> 0 | AH67: =IF('Team 11 - Unused'!BN14=701,"WON","LOST") -> LOST | AI67: =IF('Team 11 - Unused'!BN14>0,1,0) -> 0 | AJ67: =IF('Team 11 - Unused'!BR14=701,"WON","LOST") -> LOST | AK67: =IF('Team 11 - Unused'!BR14>0,1,0) -> 0 | AL67: =IF('Team 11 - Unused'!BV14=701,"WON","LOST") -> LOST | AM67: =IF('Team 11 - Unused'!BV14>0,1,0) -> 0 | AN67: =IF('Team 11 - Unused'!BZ14=701,"WON","LOST") -> LOST | AO67: =IF('Team 11 - Unused'!BZ14>0,1,0) -> 0 | AP67: =IF('Team 11 - Unused'!CD14=701,"WON","LOST") -> LOST | AQ67: =IF('Team 11 - Unused'!CD14>0,1,0) -> 0 | AR67: =IF('Team 11 - Unused'!CH14=701,"WON","LOST") -> LOST | AS67: =IF('Team 11 - Unused'!CH14>0,1,0) -> 0
B68: =IF('Team 11 - Unused'!B3="",0,(SUM(('Team 11 - Unused'!B3/'Team 11 - Unused'!C3)*3))) -> 0 | D68: =IF('Team 11 - Unused'!F3="",0,(SUM(('Team 11 - Unused'!F3/'Team 11 - Unused'!G3)*3))) -> 0 | F68: =IF('Team 11 - Unused'!J3="",0,(SUM(('Team 11 - Unused'!J3/'Team 11 - Unused'!K3)*3))) -> 0 | H68: =IF('Team 11 - Unused'!N3="",0,(SUM(('Team 11 - Unused'!N3/'Team 11 - Unused'!O3)*3))) -> 0 | J68: =IF('Team 11 - Unused'!R3="",0,(SUM(('Team 11 - Unused'!R3/'Team 11 - Unused'!S3)*3))) -> 0 | L68: =IF('Team 11 - Unused'!V3="",0,(SUM(('Team 11 - Unused'!V3/'Team 11 - Unused'!W3)*3))) -> 0 | N68: =IF('Team 11 - Unused'!Z3="",0,(SUM(('Team 11 - Unused'!Z3/'Team 11 - Unused'!AA3)*3))) -> 0 | P68: =IF('Team 11 - Unused'!AD3="",0,(SUM(('Team 11 - Unused'!AD3/'Team 11 - Unused'!AE3)*3))) -> 0 | R68: =IF('Team 11 - Unused'!AH3="",0,(SUM(('Team 11 - Unused'!AH3/'Team 11 - Unused'!AI3)*3))) -> 0 | T68: =IF('Team 11 - Unused'!AL3="",0,(SUM(('Team 11 - Unused'!AL3/'Team 11 - Unused'!AM3)*3))) -> 0 | V68: =IF('Team 11 - Unused'!AP3="",0,(SUM(('Team 11 - Unused'!AP3/'Team 11 - Unused'!AQ3)*3))) -> 0 | X68: =IF('Team 11 - Unused'!AT3="",0,(SUM(('Team 11 - Unused'!AT3/'Team 11 - Unused'!AU3)*3))) -> 0 | Z68: =IF('Team 11 - Unused'!AX3="",0,(SUM(('Team 11 - Unused'!AX3/'Team 11 - Unused'!AY3)*3))) -> 0 | AB68: =IF('Team 11 - Unused'!BB3="",0,(SUM(('Team 11 - Unused'!BB3/'Team 11 - Unused'!BC3)*3))) -> 0 | AD68: =IF('Team 11 - Unused'!BF3="",0,(SUM(('Team 11 - Unused'!BF3/'Team 11 - Unused'!BG3)*3))) -> 0 | AF68: =IF('Team 11 - Unused'!BJ3="",0,(SUM(('Team 11 - Unused'!BJ3/'Team 11 - Unused'!BK3)*3))) -> 0 | AH68: =IF('Team 11 - Unused'!BN3="",0,(SUM(('Team 11 - Unused'!BN3/'Team 11 - Unused'!BO3)*3))) -> 0 | AJ68: =IF('Team 11 - Unused'!BR3="",0,(SUM(('Team 11 - Unused'!BR3/'Team 11 - Unused'!BS3)*3))) -> 0 | AL68: =IF('Team 11 - Unused'!BV3="",0,(SUM(('Team 11 - Unused'!BV3/'Team 11 - Unused'!BW3)*3))) -> 0 | AN68: =IF('Team 11 - Unused'!BZ3="",0,(SUM(('Team 11 - Unused'!BZ3/'Team 11 - Unused'!CA3)*3))) -> 0 | AP68: =IF('Team 11 - Unused'!CD3="",0,(SUM(('Team 11 - Unused'!CD3/'Team 11 - Unused'!CE3)*3))) -> 0 | AR68: =IF('Team 11 - Unused'!CH3="",0,(SUM(('Team 11 - Unused'!CH3/'Team 11 - Unused'!CI3)*3))) -> 0
B69: =IF('Team 11 - Unused'!B4="",0,(SUM(('Team 11 - Unused'!B4/'Team 11 - Unused'!C4)*3))) -> 0 | D69: =IF('Team 11 - Unused'!F4="",0,(SUM(('Team 11 - Unused'!F4/'Team 11 - Unused'!G4)*3))) -> 0 | F69: =IF('Team 11 - Unused'!J4="",0,(SUM(('Team 11 - Unused'!J4/'Team 11 - Unused'!K4)*3))) -> 0 | H69: =IF('Team 11 - Unused'!N4="",0,(SUM(('Team 11 - Unused'!N4/'Team 11 - Unused'!O4)*3))) -> 0 | J69: =IF('Team 11 - Unused'!R4="",0,(SUM(('Team 11 - Unused'!R4/'Team 11 - Unused'!S4)*3))) -> 0 | L69: =IF('Team 11 - Unused'!V4="",0,(SUM(('Team 11 - Unused'!V4/'Team 11 - Unused'!W4)*3))) -> 0 | N69: =IF('Team 11 - Unused'!Z4="",0,(SUM(('Team 11 - Unused'!Z4/'Team 11 - Unused'!AA4)*3))) -> 0 | P69: =IF('Team 11 - Unused'!AD4="",0,(SUM(('Team 11 - Unused'!AD4/'Team 11 - Unused'!AE4)*3))) -> 0 | R69: =IF('Team 11 - Unused'!AH4="",0,(SUM(('Team 11 - Unused'!AH4/'Team 11 - Unused'!AI4)*3))) -> 0 | T69: =IF('Team 11 - Unused'!AL4="",0,(SUM(('Team 11 - Unused'!AL4/'Team 11 - Unused'!AM4)*3))) -> 0 | V69: =IF('Team 11 - Unused'!AP4="",0,(SUM(('Team 11 - Unused'!AP4/'Team 11 - Unused'!AQ4)*3))) -> 0 | X69: =IF('Team 11 - Unused'!AT4="",0,(SUM(('Team 11 - Unused'!AT4/'Team 11 - Unused'!AU4)*3))) -> 0 | Z69: =IF('Team 11 - Unused'!AX4="",0,(SUM(('Team 11 - Unused'!AX4/'Team 11 - Unused'!AY4)*3))) -> 0 | AB69: =IF('Team 11 - Unused'!BB4="",0,(SUM(('Team 11 - Unused'!BB4/'Team 11 - Unused'!BC4)*3))) -> 0 | AD69: =IF('Team 11 - Unused'!BF4="",0,(SUM(('Team 11 - Unused'!BF4/'Team 11 - Unused'!BG4)*3))) -> 0 | AF69: =IF('Team 11 - Unused'!BJ4="",0,(SUM(('Team 11 - Unused'!BJ4/'Team 11 - Unused'!BK4)*3))) -> 0 | AH69: =IF('Team 11 - Unused'!BN4="",0,(SUM(('Team 11 - Unused'!BN4/'Team 11 - Unused'!BO4)*3))) -> 0 | AJ69: =IF('Team 11 - Unused'!BR4="",0,(SUM(('Team 11 - Unused'!BR4/'Team 11 - Unused'!BS4)*3))) -> 0 | AL69: =IF('Team 11 - Unused'!BV4="",0,(SUM(('Team 11 - Unused'!BV4/'Team 11 - Unused'!BW4)*3))) -> 0 | AN69: =IF('Team 11 - Unused'!BZ4="",0,(SUM(('Team 11 - Unused'!BZ4/'Team 11 - Unused'!CA4)*3))) -> 0 | AP69: =IF('Team 11 - Unused'!CD4="",0,(SUM(('Team 11 - Unused'!CD4/'Team 11 - Unused'!CE4)*3))) -> 0 | AR69: =IF('Team 11 - Unused'!CH4="",0,(SUM(('Team 11 - Unused'!CH4/'Team 11 - Unused'!CI4)*3))) -> 0
B70: =IF('Team 11 - Unused'!B5="",0,(SUM(('Team 11 - Unused'!B5/'Team 11 - Unused'!C5)*3))) -> 0 | D70: =IF('Team 11 - Unused'!F5="",0,(SUM(('Team 11 - Unused'!F5/'Team 11 - Unused'!G5)*3))) -> 0 | F70: =IF('Team 11 - Unused'!J5="",0,(SUM(('Team 11 - Unused'!J5/'Team 11 - Unused'!K5)*3))) -> 0 | H70: =IF('Team 11 - Unused'!N5="",0,(SUM(('Team 11 - Unused'!N5/'Team 11 - Unused'!O5)*3))) -> 0 | J70: =IF('Team 11 - Unused'!R5="",0,(SUM(('Team 11 - Unused'!R5/'Team 11 - Unused'!S5)*3))) -> 0 | L70: =IF('Team 11 - Unused'!V5="",0,(SUM(('Team 11 - Unused'!V5/'Team 11 - Unused'!W5)*3))) -> 0 | N70: =IF('Team 11 - Unused'!Z5="",0,(SUM(('Team 11 - Unused'!Z5/'Team 11 - Unused'!AA5)*3))) -> 0 | P70: =IF('Team 11 - Unused'!AD5="",0,(SUM(('Team 11 - Unused'!AD5/'Team 11 - Unused'!AE5)*3))) -> 0 | R70: =IF('Team 11 - Unused'!AH5="",0,(SUM(('Team 11 - Unused'!AH5/'Team 11 - Unused'!AI5)*3))) -> 0 | T70: =IF('Team 11 - Unused'!AL5="",0,(SUM(('Team 11 - Unused'!AL5/'Team 11 - Unused'!AM5)*3))) -> 0 | V70: =IF('Team 11 - Unused'!AP5="",0,(SUM(('Team 11 - Unused'!AP5/'Team 11 - Unused'!AQ5)*3))) -> 0 | X70: =IF('Team 11 - Unused'!AT5="",0,(SUM(('Team 11 - Unused'!AT5/'Team 11 - Unused'!AU5)*3))) -> 0 | Z70: =IF('Team 11 - Unused'!AX5="",0,(SUM(('Team 11 - Unused'!AX5/'Team 11 - Unused'!AY5)*3))) -> 0 | AB70: =IF('Team 11 - Unused'!BB5="",0,(SUM(('Team 11 - Unused'!BB5/'Team 11 - Unused'!BC5)*3))) -> 0 | AD70: =IF('Team 11 - Unused'!BF5="",0,(SUM(('Team 11 - Unused'!BF5/'Team 11 - Unused'!BG5)*3))) -> 0 | AF70: =IF('Team 11 - Unused'!BJ5="",0,(SUM(('Team 11 - Unused'!BJ5/'Team 11 - Unused'!BK5)*3))) -> 0 | AH70: =IF('Team 11 - Unused'!BN5="",0,(SUM(('Team 11 - Unused'!BN5/'Team 11 - Unused'!BO5)*3))) -> 0 | AJ70: =IF('Team 11 - Unused'!BR5="",0,(SUM(('Team 11 - Unused'!BR5/'Team 11 - Unused'!BS5)*3))) -> 0 | AL70: =IF('Team 11 - Unused'!BV5="",0,(SUM(('Team 11 - Unused'!BV5/'Team 11 - Unused'!BW5)*3))) -> 0 | AN70: =IF('Team 11 - Unused'!BZ5="",0,(SUM(('Team 11 - Unused'!BZ5/'Team 11 - Unused'!CA5)*3))) -> 0 | AP70: =IF('Team 11 - Unused'!CD5="",0,(SUM(('Team 11 - Unused'!CD5/'Team 11 - Unused'!CE5)*3))) -> 0 | AR70: =IF('Team 11 - Unused'!CH5="",0,(SUM(('Team 11 - Unused'!CH5/'Team 11 - Unused'!CI5)*3))) -> 0
B71: =IF('Team 11 - Unused'!B6="",0,(SUM(('Team 11 - Unused'!B6/'Team 11 - Unused'!C6)*3))) -> 0 | D71: =IF('Team 11 - Unused'!F6="",0,(SUM(('Team 11 - Unused'!F6/'Team 11 - Unused'!G6)*3))) -> 0 | F71: =IF('Team 11 - Unused'!J6="",0,(SUM(('Team 11 - Unused'!J6/'Team 11 - Unused'!K6)*3))) -> 0 | H71: =IF('Team 11 - Unused'!N6="",0,(SUM(('Team 11 - Unused'!N6/'Team 11 - Unused'!O6)*3))) -> 0 | J71: =IF('Team 11 - Unused'!R6="",0,(SUM(('Team 11 - Unused'!R6/'Team 11 - Unused'!S6)*3))) -> 0 | L71: =IF('Team 11 - Unused'!V6="",0,(SUM(('Team 11 - Unused'!V6/'Team 11 - Unused'!W6)*3))) -> 0 | N71: =IF('Team 11 - Unused'!Z6="",0,(SUM(('Team 11 - Unused'!Z6/'Team 11 - Unused'!AA6)*3))) -> 0 | P71: =IF('Team 11 - Unused'!AD6="",0,(SUM(('Team 11 - Unused'!AD6/'Team 11 - Unused'!AE6)*3))) -> 0 | R71: =IF('Team 11 - Unused'!AH6="",0,(SUM(('Team 11 - Unused'!AH6/'Team 11 - Unused'!AI6)*3))) -> 0 | T71: =IF('Team 11 - Unused'!AL6="",0,(SUM(('Team 11 - Unused'!AL6/'Team 11 - Unused'!AM6)*3))) -> 0 | V71: =IF('Team 11 - Unused'!AP6="",0,(SUM(('Team 11 - Unused'!AP6/'Team 11 - Unused'!AQ6)*3))) -> 0 | X71: =IF('Team 11 - Unused'!AT6="",0,(SUM(('Team 11 - Unused'!AT6/'Team 11 - Unused'!AU6)*3))) -> 0 | Z71: =IF('Team 11 - Unused'!AX6="",0,(SUM(('Team 11 - Unused'!AX6/'Team 11 - Unused'!AY6)*3))) -> 0 | AB71: =IF('Team 11 - Unused'!BB6="",0,(SUM(('Team 11 - Unused'!BB6/'Team 11 - Unused'!BC6)*3))) -> 0 | AD71: =IF('Team 11 - Unused'!BF6="",0,(SUM(('Team 11 - Unused'!BF6/'Team 11 - Unused'!BG6)*3))) -> 0 | AF71: =IF('Team 11 - Unused'!BJ6="",0,(SUM(('Team 11 - Unused'!BJ6/'Team 11 - Unused'!BK6)*3))) -> 0 | AH71: =IF('Team 11 - Unused'!BN6="",0,(SUM(('Team 11 - Unused'!BN6/'Team 11 - Unused'!BO6)*3))) -> 0 | AJ71: =IF('Team 11 - Unused'!BR6="",0,(SUM(('Team 11 - Unused'!BR6/'Team 11 - Unused'!BS6)*3))) -> 0 | AL71: =IF('Team 11 - Unused'!BV6="",0,(SUM(('Team 11 - Unused'!BV6/'Team 11 - Unused'!BW6)*3))) -> 0 | AN71: =IF('Team 11 - Unused'!BZ6="",0,(SUM(('Team 11 - Unused'!BZ6/'Team 11 - Unused'!CA6)*3))) -> 0 | AP71: =IF('Team 11 - Unused'!CD6="",0,(SUM(('Team 11 - Unused'!CD6/'Team 11 - Unused'!CE6)*3))) -> 0 | AR71: =IF('Team 11 - Unused'!CH6="",0,(SUM(('Team 11 - Unused'!CH6/'Team 11 - Unused'!CI6)*3))) -> 0
B72: =IF('Team 11 - Unused'!B7="",0,(SUM(('Team 11 - Unused'!B7/'Team 11 - Unused'!C7)*3))) -> 0 | D72: =IF('Team 11 - Unused'!F7="",0,(SUM(('Team 11 - Unused'!F7/'Team 11 - Unused'!G7)*3))) -> 0 | F72: =IF('Team 11 - Unused'!J7="",0,(SUM(('Team 11 - Unused'!J7/'Team 11 - Unused'!K7)*3))) -> 0 | H72: =IF('Team 11 - Unused'!N7="",0,(SUM(('Team 11 - Unused'!N7/'Team 11 - Unused'!O7)*3))) -> 0 | J72: =IF('Team 11 - Unused'!R7="",0,(SUM(('Team 11 - Unused'!R7/'Team 11 - Unused'!S7)*3))) -> 0 | L72: =IF('Team 11 - Unused'!V7="",0,(SUM(('Team 11 - Unused'!V7/'Team 11 - Unused'!W7)*3))) -> 0 | N72: =IF('Team 11 - Unused'!Z7="",0,(SUM(('Team 11 - Unused'!Z7/'Team 11 - Unused'!AA7)*3))) -> 0 | P72: =IF('Team 11 - Unused'!AD7="",0,(SUM(('Team 11 - Unused'!AD7/'Team 11 - Unused'!AE7)*3))) -> 0 | R72: =IF('Team 11 - Unused'!AH7="",0,(SUM(('Team 11 - Unused'!AH7/'Team 11 - Unused'!AI7)*3))) -> 0 | T72: =IF('Team 11 - Unused'!AL7="",0,(SUM(('Team 11 - Unused'!AL7/'Team 11 - Unused'!AM7)*3))) -> 0 | V72: =IF('Team 11 - Unused'!AP7="",0,(SUM(('Team 11 - Unused'!AP7/'Team 11 - Unused'!AQ7)*3))) -> 0 | X72: =IF('Team 11 - Unused'!AT7="",0,(SUM(('Team 11 - Unused'!AT7/'Team 11 - Unused'!AU7)*3))) -> 0 | Z72: =IF('Team 11 - Unused'!AX7="",0,(SUM(('Team 11 - Unused'!AX7/'Team 11 - Unused'!AY7)*3))) -> 0 | AB72: =IF('Team 11 - Unused'!BB7="",0,(SUM(('Team 11 - Unused'!BB7/'Team 11 - Unused'!BC7)*3))) -> 0 | AD72: =IF('Team 11 - Unused'!BF7="",0,(SUM(('Team 11 - Unused'!BF7/'Team 11 - Unused'!BG7)*3))) -> 0 | AF72: =IF('Team 11 - Unused'!BJ7="",0,(SUM(('Team 11 - Unused'!BJ7/'Team 11 - Unused'!BK7)*3))) -> 0 | AH72: =IF('Team 11 - Unused'!BN7="",0,(SUM(('Team 11 - Unused'!BN7/'Team 11 - Unused'!BO7)*3))) -> 0 | AJ72: =IF('Team 11 - Unused'!BR7="",0,(SUM(('Team 11 - Unused'!BR7/'Team 11 - Unused'!BS7)*3))) -> 0 | AL72: =IF('Team 11 - Unused'!BV7="",0,(SUM(('Team 11 - Unused'!BV7/'Team 11 - Unused'!BW7)*3))) -> 0 | AN72: =IF('Team 11 - Unused'!BZ7="",0,(SUM(('Team 11 - Unused'!BZ7/'Team 11 - Unused'!CA7)*3))) -> 0 | AP72: =IF('Team 11 - Unused'!CD7="",0,(SUM(('Team 11 - Unused'!CD7/'Team 11 - Unused'!CE7)*3))) -> 0 | AR72: =IF('Team 11 - Unused'!CH7="",0,(SUM(('Team 11 - Unused'!CH7/'Team 11 - Unused'!CI7)*3))) -> 0
B73: =IF('Team 11 - Unused'!B8="",0,(SUM(('Team 11 - Unused'!B8/'Team 11 - Unused'!C8)*3))) -> 0 | D73: =IF('Team 11 - Unused'!F8="",0,(SUM(('Team 11 - Unused'!F8/'Team 11 - Unused'!G8)*3))) -> 0 | F73: =IF('Team 11 - Unused'!J8="",0,(SUM(('Team 11 - Unused'!J8/'Team 11 - Unused'!K8)*3))) -> 0 | H73: =IF('Team 11 - Unused'!N8="",0,(SUM(('Team 11 - Unused'!N8/'Team 11 - Unused'!O8)*3))) -> 0 | J73: =IF('Team 11 - Unused'!R8="",0,(SUM(('Team 11 - Unused'!R8/'Team 11 - Unused'!S8)*3))) -> 0 | L73: =IF('Team 11 - Unused'!V8="",0,(SUM(('Team 11 - Unused'!V8/'Team 11 - Unused'!W8)*3))) -> 0 | N73: =IF('Team 11 - Unused'!Z8="",0,(SUM(('Team 11 - Unused'!Z8/'Team 11 - Unused'!AA8)*3))) -> 0 | P73: =IF('Team 11 - Unused'!AD8="",0,(SUM(('Team 11 - Unused'!AD8/'Team 11 - Unused'!AE8)*3))) -> 0 | R73: =IF('Team 11 - Unused'!AH8="",0,(SUM(('Team 11 - Unused'!AH8/'Team 11 - Unused'!AI8)*3))) -> 0 | T73: =IF('Team 11 - Unused'!AL8="",0,(SUM(('Team 11 - Unused'!AL8/'Team 11 - Unused'!AM8)*3))) -> 0 | V73: =IF('Team 11 - Unused'!AP8="",0,(SUM(('Team 11 - Unused'!AP8/'Team 11 - Unused'!AQ8)*3))) -> 0 | X73: =IF('Team 11 - Unused'!AT8="",0,(SUM(('Team 11 - Unused'!AT8/'Team 11 - Unused'!AU8)*3))) -> 0 | Z73: =IF('Team 11 - Unused'!AX8="",0,(SUM(('Team 11 - Unused'!AX8/'Team 11 - Unused'!AY8)*3))) -> 0 | AB73: =IF('Team 11 - Unused'!BB8="",0,(SUM(('Team 11 - Unused'!BB8/'Team 11 - Unused'!BC8)*3))) -> 0 | AD73: =IF('Team 11 - Unused'!BF8="",0,(SUM(('Team 11 - Unused'!BF8/'Team 11 - Unused'!BG8)*3))) -> 0 | AF73: =IF('Team 11 - Unused'!BJ8="",0,(SUM(('Team 11 - Unused'!BJ8/'Team 11 - Unused'!BK8)*3))) -> 0 | AH73: =IF('Team 11 - Unused'!BN8="",0,(SUM(('Team 11 - Unused'!BN8/'Team 11 - Unused'!BO8)*3))) -> 0 | AJ73: =IF('Team 11 - Unused'!BR8="",0,(SUM(('Team 11 - Unused'!BR8/'Team 11 - Unused'!BS8)*3))) -> 0 | AL73: =IF('Team 11 - Unused'!BV8="",0,(SUM(('Team 11 - Unused'!BV8/'Team 11 - Unused'!BW8)*3))) -> 0 | AN73: =IF('Team 11 - Unused'!BZ8="",0,(SUM(('Team 11 - Unused'!BZ8/'Team 11 - Unused'!CA8)*3))) -> 0 | AP73: =IF('Team 11 - Unused'!CD8="",0,(SUM(('Team 11 - Unused'!CD8/'Team 11 - Unused'!CE8)*3))) -> 0 | AR73: =IF('Team 11 - Unused'!CH8="",0,(SUM(('Team 11 - Unused'!CH8/'Team 11 - Unused'!CI8)*3))) -> 0
B74: =IF('Team 11 - Unused'!B9="",0,(SUM(('Team 11 - Unused'!B9/'Team 11 - Unused'!C9)*3))) -> 0 | D74: =IF('Team 11 - Unused'!F9="",0,(SUM(('Team 11 - Unused'!F9/'Team 11 - Unused'!G9)*3))) -> 0 | F74: =IF('Team 11 - Unused'!J9="",0,(SUM(('Team 11 - Unused'!J9/'Team 11 - Unused'!K9)*3))) -> 0 | H74: =IF('Team 11 - Unused'!N9="",0,(SUM(('Team 11 - Unused'!N9/'Team 11 - Unused'!O9)*3))) -> 0 | J74: =IF('Team 11 - Unused'!R9="",0,(SUM(('Team 11 - Unused'!R9/'Team 11 - Unused'!S9)*3))) -> 0 | L74: =IF('Team 11 - Unused'!V9="",0,(SUM(('Team 11 - Unused'!V9/'Team 11 - Unused'!W9)*3))) -> 0 | N74: =IF('Team 11 - Unused'!Z9="",0,(SUM(('Team 11 - Unused'!Z9/'Team 11 - Unused'!AA9)*3))) -> 0 | P74: =IF('Team 11 - Unused'!AD9="",0,(SUM(('Team 11 - Unused'!AD9/'Team 11 - Unused'!AE9)*3))) -> 0 | R74: =IF('Team 11 - Unused'!AH9="",0,(SUM(('Team 11 - Unused'!AH9/'Team 11 - Unused'!AI9)*3))) -> 0 | T74: =IF('Team 11 - Unused'!AL9="",0,(SUM(('Team 11 - Unused'!AL9/'Team 11 - Unused'!AM9)*3))) -> 0 | V74: =IF('Team 11 - Unused'!AP9="",0,(SUM(('Team 11 - Unused'!AP9/'Team 11 - Unused'!AQ9)*3))) -> 0 | X74: =IF('Team 11 - Unused'!AT9="",0,(SUM(('Team 11 - Unused'!AT9/'Team 11 - Unused'!AU9)*3))) -> 0 | Z74: =IF('Team 11 - Unused'!AX9="",0,(SUM(('Team 11 - Unused'!AX9/'Team 11 - Unused'!AY9)*3))) -> 0 | AB74: =IF('Team 11 - Unused'!BB9="",0,(SUM(('Team 11 - Unused'!BB9/'Team 11 - Unused'!BC9)*3))) -> 0 | AD74: =IF('Team 11 - Unused'!BF9="",0,(SUM(('Team 11 - Unused'!BF9/'Team 11 - Unused'!BG9)*3))) -> 0 | AF74: =IF('Team 11 - Unused'!BJ9="",0,(SUM(('Team 11 - Unused'!BJ9/'Team 11 - Unused'!BK9)*3))) -> 0 | AH74: =IF('Team 11 - Unused'!BN9="",0,(SUM(('Team 11 - Unused'!BN9/'Team 11 - Unused'!BO9)*3))) -> 0 | AJ74: =IF('Team 11 - Unused'!BR9="",0,(SUM(('Team 11 - Unused'!BR9/'Team 11 - Unused'!BS9)*3))) -> 0 | AL74: =IF('Team 11 - Unused'!BV9="",0,(SUM(('Team 11 - Unused'!BV9/'Team 11 - Unused'!BW9)*3))) -> 0 | AN74: =IF('Team 11 - Unused'!BZ9="",0,(SUM(('Team 11 - Unused'!BZ9/'Team 11 - Unused'!CA9)*3))) -> 0 | AP74: =IF('Team 11 - Unused'!CD9="",0,(SUM(('Team 11 - Unused'!CD9/'Team 11 - Unused'!CE9)*3))) -> 0 | AR74: =IF('Team 11 - Unused'!CH9="",0,(SUM(('Team 11 - Unused'!CH9/'Team 11 - Unused'!CI9)*3))) -> 0
B75: =IF('Team 11 - Unused'!B10="",0,(SUM(('Team 11 - Unused'!B10/'Team 11 - Unused'!C10)*3))) -> 0 | D75: =IF('Team 11 - Unused'!F10="",0,(SUM(('Team 11 - Unused'!F10/'Team 11 - Unused'!G10)*3))) -> 0 | F75: =IF('Team 11 - Unused'!J10="",0,(SUM(('Team 11 - Unused'!J10/'Team 11 - Unused'!K10)*3))) -> 0 | H75: =IF('Team 11 - Unused'!N10="",0,(SUM(('Team 11 - Unused'!N10/'Team 11 - Unused'!O10)*3))) -> 0 | J75: =IF('Team 11 - Unused'!R10="",0,(SUM(('Team 11 - Unused'!R10/'Team 11 - Unused'!S10)*3))) -> 0 | L75: =IF('Team 11 - Unused'!V10="",0,(SUM(('Team 11 - Unused'!V10/'Team 11 - Unused'!W10)*3))) -> 0 | N75: =IF('Team 11 - Unused'!Z10="",0,(SUM(('Team 11 - Unused'!Z10/'Team 11 - Unused'!AA10)*3))) -> 0 | P75: =IF('Team 11 - Unused'!AD10="",0,(SUM(('Team 11 - Unused'!AD10/'Team 11 - Unused'!AE10)*3))) -> 0 | R75: =IF('Team 11 - Unused'!AH10="",0,(SUM(('Team 11 - Unused'!AH10/'Team 11 - Unused'!AI10)*3))) -> 0 | T75: =IF('Team 11 - Unused'!AL10="",0,(SUM(('Team 11 - Unused'!AL10/'Team 11 - Unused'!AM10)*3))) -> 0 | V75: =IF('Team 11 - Unused'!AP10="",0,(SUM(('Team 11 - Unused'!AP10/'Team 11 - Unused'!AQ10)*3))) -> 0 | X75: =IF('Team 11 - Unused'!AT10="",0,(SUM(('Team 11 - Unused'!AT10/'Team 11 - Unused'!AU10)*3))) -> 0 | Z75: =IF('Team 11 - Unused'!AX10="",0,(SUM(('Team 11 - Unused'!AX10/'Team 11 - Unused'!AY10)*3))) -> 0 | AB75: =IF('Team 11 - Unused'!BB10="",0,(SUM(('Team 11 - Unused'!BB10/'Team 11 - Unused'!BC10)*3))) -> 0 | AD75: =IF('Team 11 - Unused'!BF10="",0,(SUM(('Team 11 - Unused'!BF10/'Team 11 - Unused'!BG10)*3))) -> 0 | AF75: =IF('Team 11 - Unused'!BJ10="",0,(SUM(('Team 11 - Unused'!BJ10/'Team 11 - Unused'!BK10)*3))) -> 0 | AH75: =IF('Team 11 - Unused'!BN10="",0,(SUM(('Team 11 - Unused'!BN10/'Team 11 - Unused'!BO10)*3))) -> 0 | AJ75: =IF('Team 11 - Unused'!BR10="",0,(SUM(('Team 11 - Unused'!BR10/'Team 11 - Unused'!BS10)*3))) -> 0 | AL75: =IF('Team 11 - Unused'!BV10="",0,(SUM(('Team 11 - Unused'!BV10/'Team 11 - Unused'!BW10)*3))) -> 0 | AN75: =IF('Team 11 - Unused'!BZ10="",0,(SUM(('Team 11 - Unused'!BZ10/'Team 11 - Unused'!CA10)*3))) -> 0 | AP75: =IF('Team 11 - Unused'!CD10="",0,(SUM(('Team 11 - Unused'!CD10/'Team 11 - Unused'!CE10)*3))) -> 0 | AR75: =IF('Team 11 - Unused'!CH10="",0,(SUM(('Team 11 - Unused'!CH10/'Team 11 - Unused'!CI10)*3))) -> 0
B76: =IF('Team 11 - Unused'!B11="",0,(SUM(('Team 11 - Unused'!B11/'Team 11 - Unused'!C11)*3))) -> 0 | D76: =IF('Team 11 - Unused'!F11="",0,(SUM(('Team 11 - Unused'!F11/'Team 11 - Unused'!G11)*3))) -> 0 | F76: =IF('Team 11 - Unused'!J11="",0,(SUM(('Team 11 - Unused'!J11/'Team 11 - Unused'!K11)*3))) -> 0 | H76: =IF('Team 11 - Unused'!N11="",0,(SUM(('Team 11 - Unused'!N11/'Team 11 - Unused'!O11)*3))) -> 0 | J76: =IF('Team 11 - Unused'!R11="",0,(SUM(('Team 11 - Unused'!R11/'Team 11 - Unused'!S11)*3))) -> 0 | L76: =IF('Team 11 - Unused'!V11="",0,(SUM(('Team 11 - Unused'!V11/'Team 11 - Unused'!W11)*3))) -> 0 | N76: =IF('Team 11 - Unused'!Z11="",0,(SUM(('Team 11 - Unused'!Z11/'Team 11 - Unused'!AA11)*3))) -> 0 | P76: =IF('Team 11 - Unused'!AD11="",0,(SUM(('Team 11 - Unused'!AD11/'Team 11 - Unused'!AE11)*3))) -> 0 | R76: =IF('Team 11 - Unused'!AH11="",0,(SUM(('Team 11 - Unused'!AH11/'Team 11 - Unused'!AI11)*3))) -> 0 | T76: =IF('Team 11 - Unused'!AL11="",0,(SUM(('Team 11 - Unused'!AL11/'Team 11 - Unused'!AM11)*3))) -> 0 | V76: =IF('Team 11 - Unused'!AP11="",0,(SUM(('Team 11 - Unused'!AP11/'Team 11 - Unused'!AQ11)*3))) -> 0 | X76: =IF('Team 11 - Unused'!AT11="",0,(SUM(('Team 11 - Unused'!AT11/'Team 11 - Unused'!AU11)*3))) -> 0 | Z76: =IF('Team 11 - Unused'!AX11="",0,(SUM(('Team 11 - Unused'!AX11/'Team 11 - Unused'!AY11)*3))) -> 0 | AB76: =IF('Team 11 - Unused'!BB11="",0,(SUM(('Team 11 - Unused'!BB11/'Team 11 - Unused'!BC11)*3))) -> 0 | AD76: =IF('Team 11 - Unused'!BF11="",0,(SUM(('Team 11 - Unused'!BF11/'Team 11 - Unused'!BG11)*3))) -> 0 | AF76: =IF('Team 11 - Unused'!BJ11="",0,(SUM(('Team 11 - Unused'!BJ11/'Team 11 - Unused'!BK11)*3))) -> 0 | AH76: =IF('Team 11 - Unused'!BN11="",0,(SUM(('Team 11 - Unused'!BN11/'Team 11 - Unused'!BO11)*3))) -> 0 | AJ76: =IF('Team 11 - Unused'!BR11="",0,(SUM(('Team 11 - Unused'!BR11/'Team 11 - Unused'!BS11)*3))) -> 0 | AL76: =IF('Team 11 - Unused'!BV11="",0,(SUM(('Team 11 - Unused'!BV11/'Team 11 - Unused'!BW11)*3))) -> 0 | AN76: =IF('Team 11 - Unused'!BZ11="",0,(SUM(('Team 11 - Unused'!BZ11/'Team 11 - Unused'!CA11)*3))) -> 0 | AP76: =IF('Team 11 - Unused'!CD11="",0,(SUM(('Team 11 - Unused'!CD11/'Team 11 - Unused'!CE11)*3))) -> 0 | AR76: =IF('Team 11 - Unused'!CH11="",0,(SUM(('Team 11 - Unused'!CH11/'Team 11 - Unused'!CI11)*3))) -> 0
B77: =IF('Team 11 - Unused'!B12="",0,(SUM(('Team 11 - Unused'!B12/'Team 11 - Unused'!C12)*3))) -> 0 | D77: =IF('Team 11 - Unused'!F12="",0,(SUM(('Team 11 - Unused'!F12/'Team 11 - Unused'!G12)*3))) -> 0 | F77: =IF('Team 11 - Unused'!J12="",0,(SUM(('Team 11 - Unused'!J12/'Team 11 - Unused'!K12)*3))) -> 0 | H77: =IF('Team 11 - Unused'!N12="",0,(SUM(('Team 11 - Unused'!N12/'Team 11 - Unused'!O12)*3))) -> 0 | J77: =IF('Team 11 - Unused'!R12="",0,(SUM(('Team 11 - Unused'!R12/'Team 11 - Unused'!S12)*3))) -> 0 | L77: =IF('Team 11 - Unused'!V12="",0,(SUM(('Team 11 - Unused'!V12/'Team 11 - Unused'!W12)*3))) -> 0 | N77: =IF('Team 11 - Unused'!Z12="",0,(SUM(('Team 11 - Unused'!Z12/'Team 11 - Unused'!AA12)*3))) -> 0 | P77: =IF('Team 11 - Unused'!AD12="",0,(SUM(('Team 11 - Unused'!AD12/'Team 11 - Unused'!AE12)*3))) -> 0 | R77: =IF('Team 11 - Unused'!AH12="",0,(SUM(('Team 11 - Unused'!AH12/'Team 11 - Unused'!AI12)*3))) -> 0 | T77: =IF('Team 11 - Unused'!AL12="",0,(SUM(('Team 11 - Unused'!AL12/'Team 11 - Unused'!AM12)*3))) -> 0 | V77: =IF('Team 11 - Unused'!AP12="",0,(SUM(('Team 11 - Unused'!AP12/'Team 11 - Unused'!AQ12)*3))) -> 0 | X77: =IF('Team 11 - Unused'!AT12="",0,(SUM(('Team 11 - Unused'!AT12/'Team 11 - Unused'!AU12)*3))) -> 0 | Z77: =IF('Team 11 - Unused'!AX12="",0,(SUM(('Team 11 - Unused'!AX12/'Team 11 - Unused'!AY12)*3))) -> 0 | AB77: =IF('Team 11 - Unused'!BB12="",0,(SUM(('Team 11 - Unused'!BB12/'Team 11 - Unused'!BC12)*3))) -> 0 | AD77: =IF('Team 11 - Unused'!BF12="",0,(SUM(('Team 11 - Unused'!BF12/'Team 11 - Unused'!BG12)*3))) -> 0 | AF77: =IF('Team 11 - Unused'!BJ12="",0,(SUM(('Team 11 - Unused'!BJ12/'Team 11 - Unused'!BK12)*3))) -> 0 | AH77: =IF('Team 11 - Unused'!BN12="",0,(SUM(('Team 11 - Unused'!BN12/'Team 11 - Unused'!BO12)*3))) -> 0 | AJ77: =IF('Team 11 - Unused'!BR12="",0,(SUM(('Team 11 - Unused'!BR12/'Team 11 - Unused'!BS12)*3))) -> 0 | AL77: =IF('Team 11 - Unused'!BV12="",0,(SUM(('Team 11 - Unused'!BV12/'Team 11 - Unused'!BW12)*3))) -> 0 | AN77: =IF('Team 11 - Unused'!BZ12="",0,(SUM(('Team 11 - Unused'!BZ12/'Team 11 - Unused'!CA12)*3))) -> 0 | AP77: =IF('Team 11 - Unused'!CD12="",0,(SUM(('Team 11 - Unused'!CD12/'Team 11 - Unused'!CE12)*3))) -> 0 | AR77: =IF('Team 11 - Unused'!CH12="",0,(SUM(('Team 11 - Unused'!CH12/'Team 11 - Unused'!CI12)*3))) -> 0
B78: =IF('Team 11 - Unused'!B13="",0,(SUM(('Team 11 - Unused'!B13/'Team 11 - Unused'!C13)*3))) -> 0 | D78: =IF('Team 11 - Unused'!F13="",0,(SUM(('Team 11 - Unused'!F13/'Team 11 - Unused'!G13)*3))) -> 0 | F78: =IF('Team 11 - Unused'!J13="",0,(SUM(('Team 11 - Unused'!J13/'Team 11 - Unused'!K13)*3))) -> 0 | H78: =IF('Team 11 - Unused'!N13="",0,(SUM(('Team 11 - Unused'!N13/'Team 11 - Unused'!O13)*3))) -> 0 | J78: =IF('Team 11 - Unused'!R13="",0,(SUM(('Team 11 - Unused'!R13/'Team 11 - Unused'!S13)*3))) -> 0 | L78: =IF('Team 11 - Unused'!V13="",0,(SUM(('Team 11 - Unused'!V13/'Team 11 - Unused'!W13)*3))) -> 0 | N78: =IF('Team 11 - Unused'!Z13="",0,(SUM(('Team 11 - Unused'!Z13/'Team 11 - Unused'!AA13)*3))) -> 0 | P78: =IF('Team 11 - Unused'!AD13="",0,(SUM(('Team 11 - Unused'!AD13/'Team 11 - Unused'!AE13)*3))) -> 0 | R78: =IF('Team 11 - Unused'!AH13="",0,(SUM(('Team 11 - Unused'!AH13/'Team 11 - Unused'!AI13)*3))) -> 0 | T78: =IF('Team 11 - Unused'!AL13="",0,(SUM(('Team 11 - Unused'!AL13/'Team 11 - Unused'!AM13)*3))) -> 0 | V78: =IF('Team 11 - Unused'!AP13="",0,(SUM(('Team 11 - Unused'!AP13/'Team 11 - Unused'!AQ13)*3))) -> 0 | X78: =IF('Team 11 - Unused'!AT13="",0,(SUM(('Team 11 - Unused'!AT13/'Team 11 - Unused'!AU13)*3))) -> 0 | Z78: =IF('Team 11 - Unused'!AX13="",0,(SUM(('Team 11 - Unused'!AX13/'Team 11 - Unused'!AY13)*3))) -> 0 | AB78: =IF('Team 11 - Unused'!BB13="",0,(SUM(('Team 11 - Unused'!BB13/'Team 11 - Unused'!BC13)*3))) -> 0 | AD78: =IF('Team 11 - Unused'!BF13="",0,(SUM(('Team 11 - Unused'!BF13/'Team 11 - Unused'!BG13)*3))) -> 0 | AF78: =IF('Team 11 - Unused'!BJ13="",0,(SUM(('Team 11 - Unused'!BJ13/'Team 11 - Unused'!BK13)*3))) -> 0 | AH78: =IF('Team 11 - Unused'!BN13="",0,(SUM(('Team 11 - Unused'!BN13/'Team 11 - Unused'!BO13)*3))) -> 0 | AJ78: =IF('Team 11 - Unused'!BR13="",0,(SUM(('Team 11 - Unused'!BR13/'Team 11 - Unused'!BS13)*3))) -> 0 | AL78: =IF('Team 11 - Unused'!BV13="",0,(SUM(('Team 11 - Unused'!BV13/'Team 11 - Unused'!BW13)*3))) -> 0 | AN78: =IF('Team 11 - Unused'!BZ13="",0,(SUM(('Team 11 - Unused'!BZ13/'Team 11 - Unused'!CA13)*3))) -> 0 | AP78: =IF('Team 11 - Unused'!CD13="",0,(SUM(('Team 11 - Unused'!CD13/'Team 11 - Unused'!CE13)*3))) -> 0 | AR78: =IF('Team 11 - Unused'!CH13="",0,(SUM(('Team 11 - Unused'!CH13/'Team 11 - Unused'!CI13)*3))) -> 0
B79: =IF('Team 11 - Unused'!B14="",0,(SUM(('Team 11 - Unused'!B14/'Team 11 - Unused'!C14)*3))) -> 0 | D79: =IF('Team 11 - Unused'!F14="",0,(SUM(('Team 11 - Unused'!F14/'Team 11 - Unused'!G14)*3))) -> 0 | F79: =IF('Team 11 - Unused'!J14="",0,(SUM(('Team 11 - Unused'!J14/'Team 11 - Unused'!K14)*3))) -> 0 | H79: =IF('Team 11 - Unused'!N14="",0,(SUM(('Team 11 - Unused'!N14/'Team 11 - Unused'!O14)*3))) -> 0 | J79: =IF('Team 11 - Unused'!R14="",0,(SUM(('Team 11 - Unused'!R14/'Team 11 - Unused'!S14)*3))) -> 0 | L79: =IF('Team 11 - Unused'!V14="",0,(SUM(('Team 11 - Unused'!V14/'Team 11 - Unused'!W14)*3))) -> 0 | N79: =IF('Team 11 - Unused'!Z14="",0,(SUM(('Team 11 - Unused'!Z14/'Team 11 - Unused'!AA14)*3))) -> 0 | P79: =IF('Team 11 - Unused'!AD14="",0,(SUM(('Team 11 - Unused'!AD14/'Team 11 - Unused'!AE14)*3))) -> 0 | R79: =IF('Team 11 - Unused'!AH14="",0,(SUM(('Team 11 - Unused'!AH14/'Team 11 - Unused'!AI14)*3))) -> 0 | T79: =IF('Team 11 - Unused'!AL14="",0,(SUM(('Team 11 - Unused'!AL14/'Team 11 - Unused'!AM14)*3))) -> 0 | V79: =IF('Team 11 - Unused'!AP14="",0,(SUM(('Team 11 - Unused'!AP14/'Team 11 - Unused'!AQ14)*3))) -> 0 | X79: =IF('Team 11 - Unused'!AT14="",0,(SUM(('Team 11 - Unused'!AT14/'Team 11 - Unused'!AU14)*3))) -> 0 | Z79: =IF('Team 11 - Unused'!AX14="",0,(SUM(('Team 11 - Unused'!AX14/'Team 11 - Unused'!AY14)*3))) -> 0 | AB79: =IF('Team 11 - Unused'!BB14="",0,(SUM(('Team 11 - Unused'!BB14/'Team 11 - Unused'!BC14)*3))) -> 0 | AD79: =IF('Team 11 - Unused'!BF14="",0,(SUM(('Team 11 - Unused'!BF14/'Team 11 - Unused'!BG14)*3))) -> 0 | AF79: =IF('Team 11 - Unused'!BJ14="",0,(SUM(('Team 11 - Unused'!BJ14/'Team 11 - Unused'!BK14)*3))) -> 0 | AH79: =IF('Team 11 - Unused'!BN14="",0,(SUM(('Team 11 - Unused'!BN14/'Team 11 - Unused'!BO14)*3))) -> 0 | AJ79: =IF('Team 11 - Unused'!BR14="",0,(SUM(('Team 11 - Unused'!BR14/'Team 11 - Unused'!BS14)*3))) -> 0 | AL79: =IF('Team 11 - Unused'!BV14="",0,(SUM(('Team 11 - Unused'!BV14/'Team 11 - Unused'!BW14)*3))) -> 0 | AN79: =IF('Team 11 - Unused'!BZ14="",0,(SUM(('Team 11 - Unused'!BZ14/'Team 11 - Unused'!CA14)*3))) -> 0 | AP79: =IF('Team 11 - Unused'!CD14="",0,(SUM(('Team 11 - Unused'!CD14/'Team 11 - Unused'!CE14)*3))) -> 0 | AR79: =IF('Team 11 - Unused'!CH14="",0,(SUM(('Team 11 - Unused'!CH14/'Team 11 - Unused'!CI14)*3))) -> 0
A81: GOLDEN LION 'A' | B81: 11/09/2006 V RAFA 'A' (A)
B82: W/L | C82: AVG | D82: W/L | E82: AVG | F82: W/L | G82: AVG | H82: W/L | I82: AVG | J82: W/L | K82: AVG | L82: W/L | M82: AVG | N82: W/L | O82: AVG | P82: W/L | Q82: AVG | R82: W/L | S82: AVG | T82: W/L | U82: AVG | V82: W/L | W82: AVG | X82: W/L | Y82: AVG | Z82: W/L | AA82: AVG | AB82: W/L | AC82: AVG | AD82: W/L | AE82: AVG | AF82: W/L | AG82: AVG | AH82: W/L | AI82: AVG | AJ82: W/L | AK82: AVG | AL82: W/L | AM82: AVG | AN82: W/L | AO82: AVG | AP82: W/L | AQ82: AVG | AR82: W/L | AS82: AVG
A83: ='CRICKET CLUB'!A3 -> Pete Wilkinson | B83: =IF(C96=1,B96,"") ->  | C83: =IF(B108>0,B108,"") ->  | D83: =IF(E96=1,D96,"") ->  | E83: =IF(D108>0,D108,"") ->  | F83: =IF(G96=1,F96,"") ->  | G83: =IF(F108>0,F108,"") ->  | H83: =IF(I96=1,H96,"") ->  | I83: =IF(H108>0,H108,"") ->  | J83: =IF(K96=1,J96,"") ->  | K83: =IF(J108>0,J108,"") ->  | L83: =IF(M96=1,L96,"") ->  | M83: =IF(L108>0,L108,"") ->  | N83: =IF(O96=1,N96,"") ->  | O83: =IF(N108>0,N108,"") ->  | P83: =IF(Q96=1,P96,"") ->  | Q83: =IF(P108>0,P108,"") ->  | R83: =IF(S96=1,R96,"") ->  | S83: =IF(R108>0,R108,"") ->  | T83: =IF(U96=1,T96,"") ->  | U83: =IF(T108>0,T108,"") ->  | V83: =IF(W96=1,V96,"") ->  | W83: =IF(V108>0,V108,"") ->  | X83: =IF(Y96=1,X96,"") ->  | Y83: =IF(X108>0,X108,"") ->  | Z83: =IF(AA96=1,Z96,"") ->  | AA83: =IF(Z108>0,Z108,"") ->  | AB83: =IF(AC96=1,AB96,"") ->  | AC83: =IF(AB108>0,AB108,"") ->  | AD83: =IF(AE96=1,AD96,"") ->  | AE83: =IF(AD108>0,AD108,"") ->  | AF83: =IF(AG96=1,AF96,"") ->  | AG83: =IF(AF108>0,AF108,"") ->  | AH83: =IF(AI96=1,AH96,"") ->  | AI83: =IF(AH108>0,AH108,"") ->  | AJ83: =IF(AK96=1,AJ96,"") ->  | AK83: =IF(AJ108>0,AJ108,"") ->  | AL83: =IF(AM96=1,AL96,"") ->  | AM83: =IF(AL108>0,AL108,"") ->  | AN83: =IF(AO96=1,AN96,"") ->  | AO83: =IF(AN108>0,AN108,"") ->  | AP83: =IF(AQ96=1,AP96,"") ->  | AQ83: =IF(AP108>0,AP108,"") ->  | AR83: =IF(AS96=1,AR96,"") ->  | AS83: =IF(AR108>0,AR108,"") -> 
A84: ='CRICKET CLUB'!A4 -> Dan Buxton | B84: =IF(C97=1,B97,"") -> WON | C84: =IF(B109>0,B109,"") -> 60.08571429 | D84: =IF(E97=1,D97,"") -> LOST | E84: =IF(D109>0,D109,"") -> 41.11764706 | F84: =IF(G97=1,F97,"") -> WON | G84: =IF(F109>0,F109,"") -> 45.7173913 | H84: =IF(I97=1,H97,"") ->  | I84: =IF(H109>0,H109,"") ->  | J84: =IF(K97=1,J97,"") -> LOST | K84: =IF(J109>0,J109,"") -> 48.41666667 | L84: =IF(M97=1,L97,"") -> WON | M84: =IF(L109>0,L109,"") -> 41.23529412 | N84: =IF(O97=1,N97,"") -> WON | O84: =IF(N109>0,N109,"") -> 42.91836735 | P84: =IF(Q97=1,P97,"") -> LOST | Q84: =IF(P109>0,P109,"") -> 53.30769231 | R84: =IF(S97=1,R97,"") -> LOST | S84: =IF(R109>0,R109,"") -> 49.7 | T84: =IF(U97=1,T97,"") -> LOST | U84: =IF(T109>0,T109,"") -> 42.73333333 | V84: =IF(W97=1,V97,"") -> WON | W84: =IF(V109>0,V109,"") -> 56.83783784 | X84: =IF(Y97=1,X97,"") -> LOST | Y84: =IF(X109>0,X109,"") -> 43.8 | Z84: =IF(AA97=1,Z97,"") ->  | AA84: =IF(Z109>0,Z109,"") ->  | AB84: =IF(AC97=1,AB97,"") ->  | AC84: =IF(AB109>0,AB109,"") ->  | AD84: =IF(AE97=1,AD97,"") ->  | AE84: =IF(AD109>0,AD109,"") ->  | AF84: =IF(AG97=1,AF97,"") -> WON | AG84: =IF(AF109>0,AF109,"") -> 45.7173913 | AH84: =IF(AI97=1,AH97,"") -> LOST | AI84: =IF(AH109>0,AH109,"") -> 36.68421053 | AJ84: =IF(AK97=1,AJ97,"") -> LOST | AK84: =IF(AJ109>0,AJ109,"") -> 47.83783784 | AL84: =IF(AM97=1,AL97,"") ->  | AM84: =IF(AL109>0,AL109,"") ->  | AN84: =IF(AO97=1,AN97,"") ->  | AO84: =IF(AN109>0,AN109,"") ->  | AP84: =IF(AQ97=1,AP97,"") ->  | AQ84: =IF(AP109>0,AP109,"") ->  | AR84: =IF(AS97=1,AR97,"") ->  | AS84: =IF(AR109>0,AR109,"") -> 
A85: ='CRICKET CLUB'!A5 -> Chris Wayman | L85: LOST | M85: 32.57142857 | N85: WON | O85: 43.8125 | P85: LOST | Q85: 47.07692308 | AB85: LOST | AC85: 43.6875 | AD85: WON | AE85: 53.92307692 | AJ85: LOST | AK85: 40.0625
A86: ='CRICKET CLUB'!A6 -> Phil Wayman
A87: ='CRICKET CLUB'!A7 -> Mike Wayman | B87: WON | C87: 77.88888889 | D87: WON | E87: 51.29268293 | J87: WON | K87: 84.12 | N87: WON | O87: 39.67924528 | P87: LOST | Q87: 46.2 | R87: LOST | S87: 61.3 | T87: WON | U87: 58.41666667 | V87: WON | W87: 72.51724138 | X87: LOST | Y87: 63.36363636 | AB87: WON | AC87: 61.85294118 | AD87: WON | AE87: 47.79545455 | AF87: WON | AG87: 35.05 | AH87: WON | AI87: 56.83783784
A88: ='CRICKET CLUB'!A8 -> Chris Garsed | B88: WON | C88: 63.72727273 | D88: WON | E88: 63.72727273 | F88: LOST | G88: 85.625 | J88: WON | K88: 80.88461538 | P88: WON | Q88: 75.10714286 | R88: WON | S88: 67.83870968 | T88: WON | U88: 110.6842105 | V88: WON | W88: 58.41666667 | X88: WON | Y88: 70.1 | AB88: WON | AC88: 77.88888889 | AD88: WON | AE88: 77.88888889 | AF88: WON | AG88: 80.88461538 | AH88: WON | AI88: 91.43478261 | AJ88: WON | AK88: 63.72727273
A89: ='CRICKET CLUB'!A9 -> George Webb | B89: WON | C89: 58.41666667 | D89: LOST | E89: 49.5 | F89: WON | G89: 55.34210526 | J89: WON | K89: 51.29268293 | L89: WON | M89: 55.34210526 | N89: WON | O89: 77.88888889 | P89: WON | Q89: 63.72727273 | R89: LOST | S89: 54.08333333 | T89: WON | U89: 46.73333333 | V89: LOST | W89: 50.84615385 | X89: WON | Y89: 56.83783784 | AB89: WON | AC89: 65.71875 | AD89: WON | AE89: 65.71875 | AF89: WON | AG89: 67.83870968 | AH89: WON | AI89: 58.41666667 | AJ89: WON | AK89: 65.71875
A90: ='CRICKET CLUB'!A10 -> Bob Berry
A91: ='CRICKET CLUB'!A11 -> Howard Ward | B91: WON | C91: 52.575 | D91: WON | E91: 63.72727273 | F91: WON | G91: 72.51724138 | J91: WON | K91: 51.29268293 | L91: LOST | M91: 42.6
A92: ='CRICKET CLUB'!A12 -> Mel Paylor | F92: LOST | G92: 37.11111111 | L92: LOST | M92: 36.36842105 | N92: WON | O92: 53.92307692 | P92: WON | Q92: 41.23529412 | R92: LOST | S92: 60.9 | T92: WON | U92: 37.55357143 | V92: LOST | W92: 43.5625 | X92: WON | Y92: 52.575 | AB92: WON | AC92: 50.07142857 | AD92: WON | AE92: 36.89473684 | AF92: WON | AG92: 55.34210526 | AH92: WON | AI92: 67.83870968 | AJ92: LOST | AK92: 46.16666667
A93: ='CRICKET CLUB'!A13 -> George Kay | B93: LOST | C93: 38.83333333 | D93: LOST | E93: 52.38461538 | F93: LOST | G93: 62.33333333 | J93: LOST | K93: 52.84615385 | L93: WON | M93: 46.73333333 | N93: WON | O93: 61.85294118 | R93: WON | S93: 61.85294118 | T93: WON | U93: 47.79545455 | V93: LOST | W93: 55.75 | X93: WON | Y93: 58.41666667 | AB93: WON | AC93: 55.34210526 | AD93: WON | AE93: 75.10714286 | AF93: WON | AG93: 56.83783784 | AH93: WON | AI93: 67.83870968 | AJ93: WON | AK93: 56.83783784
A94: ='CRICKET CLUB'!A14 -> Ben Jack
A96: GOLDEN LION A | B96: =IF('CRICKET CLUB'!B3=701,"WON","LOST") -> LOST | C96: =IF('CRICKET CLUB'!B3>0,1,0) -> 0 | D96: =IF('CRICKET CLUB'!F3=701,"WON","LOST") -> LOST | E96: =IF('CRICKET CLUB'!F3>0,1,0) -> 0 | F96: =IF('CRICKET CLUB'!J3=701,"WON","LOST") -> LOST | G96: =IF('CRICKET CLUB'!J3>0,1,0) -> 0 | H96: =IF('CRICKET CLUB'!N3=701,"WON","LOST") -> LOST | I96: =IF('CRICKET CLUB'!N3>0,1,0) -> 0 | J96: =IF('CRICKET CLUB'!R3=701,"WON","LOST") -> LOST | K96: =IF('CRICKET CLUB'!R3>0,1,0) -> 0 | L96: =IF('CRICKET CLUB'!V3=701,"WON","LOST") -> LOST | M96: =IF('CRICKET CLUB'!V3>0,1,0) -> 0 | N96: =IF('CRICKET CLUB'!Z3=701,"WON","LOST") -> LOST | O96: =IF('CRICKET CLUB'!Z3>0,1,0) -> 0 | P96: =IF('CRICKET CLUB'!AD3=701,"WON","LOST") -> LOST | Q96: =IF('CRICKET CLUB'!AD3>0,1,0) -> 0 | R96: =IF('CRICKET CLUB'!AH3=701,"WON","LOST") -> LOST | S96: =IF('CRICKET CLUB'!AH3>0,1,0) -> 0 | T96: =IF('CRICKET CLUB'!AL3=701,"WON","LOST") -> LOST | U96: =IF('CRICKET CLUB'!AL3>0,1,0) -> 0 | V96: =IF('CRICKET CLUB'!AP3=701,"WON","LOST") -> LOST | W96: =IF('CRICKET CLUB'!AP3>0,1,0) -> 0 | X96: =IF('CRICKET CLUB'!AT3=701,"WON","LOST") -> LOST | Y96: =IF('CRICKET CLUB'!AT3>0,1,0) -> 0 | Z96: =IF('CRICKET CLUB'!AX3=701,"WON","LOST") -> LOST | AA96: =IF('CRICKET CLUB'!AX3>0,1,0) -> 0 | AB96: =IF('CRICKET CLUB'!BB3=701,"WON","LOST") -> LOST | AC96: =IF('CRICKET CLUB'!BB3>0,1,0) -> 0 | AD96: =IF('CRICKET CLUB'!BF3=701,"WON","LOST") -> LOST | AE96: =IF('CRICKET CLUB'!BF3>0,1,0) -> 0 | AF96: =IF('CRICKET CLUB'!BJ3=701,"WON","LOST") -> LOST | AG96: =IF('CRICKET CLUB'!BJ3>0,1,0) -> 0 | AH96: =IF('CRICKET CLUB'!BN3=701,"WON","LOST") -> LOST | AI96: =IF('CRICKET CLUB'!BN3>0,1,0) -> 0 | AJ96: =IF('CRICKET CLUB'!BR3=701,"WON","LOST") -> LOST | AK96: =IF('CRICKET CLUB'!BR3>0,1,0) -> 0 | AL96: =IF('CRICKET CLUB'!BV3=701,"WON","LOST") -> LOST | AM96: =IF('CRICKET CLUB'!BV3>0,1,0) -> 0 | AN96: =IF('CRICKET CLUB'!BZ3=701,"WON","LOST") -> LOST | AO96: =IF('CRICKET CLUB'!BZ3>0,1,0) -> 0 | AP96: =IF('CRICKET CLUB'!CD3=701,"WON","LOST") -> LOST | AQ96: =IF('CRICKET CLUB'!CD3>0,1,0) -> 0 | AR96: =IF('CRICKET CLUB'!CH3=701,"WON","LOST") -> LOST | AS96: =IF('CRICKET CLUB'!CH3>0,1,0) -> 0
B97: =IF('CRICKET CLUB'!B4=701,"WON","LOST") -> WON | C97: =IF('CRICKET CLUB'!B4>0,1,0) -> 1 | D97: =IF('CRICKET CLUB'!F4=701,"WON","LOST") -> LOST | E97: =IF('CRICKET CLUB'!F4>0,1,0) -> 1 | F97: =IF('CRICKET CLUB'!J4=701,"WON","LOST") -> WON | G97: =IF('CRICKET CLUB'!J4>0,1,0) -> 1 | H97: =IF('CRICKET CLUB'!N4=701,"WON","LOST") -> LOST | I97: =IF('CRICKET CLUB'!N4>0,1,0) -> 0 | J97: =IF('CRICKET CLUB'!R4=701,"WON","LOST") -> LOST | K97: =IF('CRICKET CLUB'!R4>0,1,0) -> 1 | L97: =IF('CRICKET CLUB'!V4=701,"WON","LOST") -> WON | M97: =IF('CRICKET CLUB'!V4>0,1,0) -> 1 | N97: =IF('CRICKET CLUB'!Z4=701,"WON","LOST") -> WON | O97: =IF('CRICKET CLUB'!Z4>0,1,0) -> 1 | P97: =IF('CRICKET CLUB'!AD4=701,"WON","LOST") -> LOST | Q97: =IF('CRICKET CLUB'!AD4>0,1,0) -> 1 | R97: =IF('CRICKET CLUB'!AH4=701,"WON","LOST") -> LOST | S97: =IF('CRICKET CLUB'!AH4>0,1,0) -> 1 | T97: =IF('CRICKET CLUB'!AL4=701,"WON","LOST") -> LOST | U97: =IF('CRICKET CLUB'!AL4>0,1,0) -> 1 | V97: =IF('CRICKET CLUB'!AP4=701,"WON","LOST") -> WON | W97: =IF('CRICKET CLUB'!AP4>0,1,0) -> 1 | X97: =IF('CRICKET CLUB'!AT4=701,"WON","LOST") -> LOST | Y97: =IF('CRICKET CLUB'!AT4>0,1,0) -> 1 | Z97: =IF('CRICKET CLUB'!AX4=701,"WON","LOST") -> LOST | AA97: =IF('CRICKET CLUB'!AX4>0,1,0) -> 0 | AB97: =IF('CRICKET CLUB'!BB4=701,"WON","LOST") -> LOST | AC97: =IF('CRICKET CLUB'!BB4>0,1,0) -> 0 | AD97: =IF('CRICKET CLUB'!BF4=701,"WON","LOST") -> LOST | AE97: =IF('CRICKET CLUB'!BF4>0,1,0) -> 0 | AF97: =IF('CRICKET CLUB'!BJ4=701,"WON","LOST") -> WON | AG97: =IF('CRICKET CLUB'!BJ4>0,1,0) -> 1 | AH97: =IF('CRICKET CLUB'!BN4=701,"WON","LOST") -> LOST | AI97: =IF('CRICKET CLUB'!BN4>0,1,0) -> 1 | AJ97: =IF('CRICKET CLUB'!BR4=701,"WON","LOST") -> LOST | AK97: =IF('CRICKET CLUB'!BR4>0,1,0) -> 1 | AL97: =IF('CRICKET CLUB'!BV4=701,"WON","LOST") -> LOST | AM97: =IF('CRICKET CLUB'!BV4>0,1,0) -> 0 | AN97: =IF('CRICKET CLUB'!BZ4=701,"WON","LOST") -> LOST | AO97: =IF('CRICKET CLUB'!BZ4>0,1,0) -> 0 | AP97: =IF('CRICKET CLUB'!CD4=701,"WON","LOST") -> LOST | AQ97: =IF('CRICKET CLUB'!CD4>0,1,0) -> 0 | AR97: =IF('CRICKET CLUB'!CH4=701,"WON","LOST") -> LOST | AS97: =IF('CRICKET CLUB'!CH4>0,1,0) -> 0
B98: =IF('CRICKET CLUB'!B5=701,"WON","LOST") -> LOST | C98: =IF('CRICKET CLUB'!B5>0,1,0) -> 0 | D98: =IF('CRICKET CLUB'!F5=701,"WON","LOST") -> LOST | E98: =IF('CRICKET CLUB'!F5>0,1,0) -> 0 | F98: =IF('CRICKET CLUB'!J5=701,"WON","LOST") -> LOST | G98: =IF('CRICKET CLUB'!J5>0,1,0) -> 0 | H98: =IF('CRICKET CLUB'!N5=701,"WON","LOST") -> LOST | I98: =IF('CRICKET CLUB'!N5>0,1,0) -> 0 | J98: =IF('CRICKET CLUB'!R5=701,"WON","LOST") -> LOST | K98: =IF('CRICKET CLUB'!R5>0,1,0) -> 0 | L98: =IF('CRICKET CLUB'!V5=701,"WON","LOST") -> LOST | M98: =IF('CRICKET CLUB'!V5>0,1,0) -> 1 | N98: =IF('CRICKET CLUB'!Z5=701,"WON","LOST") -> WON | O98: =IF('CRICKET CLUB'!Z5>0,1,0) -> 1 | P98: =IF('CRICKET CLUB'!AD5=701,"WON","LOST") -> LOST | Q98: =IF('CRICKET CLUB'!AD5>0,1,0) -> 1 | R98: =IF('CRICKET CLUB'!AH5=701,"WON","LOST") -> LOST | S98: =IF('CRICKET CLUB'!AH5>0,1,0) -> 0 | T98: =IF('CRICKET CLUB'!AL5=701,"WON","LOST") -> LOST | U98: =IF('CRICKET CLUB'!AL5>0,1,0) -> 0 | V98: =IF('CRICKET CLUB'!AP5=701,"WON","LOST") -> LOST | W98: =IF('CRICKET CLUB'!AP5>0,1,0) -> 0 | X98: =IF('CRICKET CLUB'!AT5=701,"WON","LOST") -> LOST | Y98: =IF('CRICKET CLUB'!AT5>0,1,0) -> 0 | Z98: =IF('CRICKET CLUB'!AX5=701,"WON","LOST") -> LOST | AA98: =IF('CRICKET CLUB'!AX5>0,1,0) -> 0 | AB98: =IF('CRICKET CLUB'!BB5=701,"WON","LOST") -> LOST | AC98: =IF('CRICKET CLUB'!BB5>0,1,0) -> 1 | AD98: =IF('CRICKET CLUB'!BF5=701,"WON","LOST") -> WON | AE98: =IF('CRICKET CLUB'!BF5>0,1,0) -> 1 | AF98: =IF('CRICKET CLUB'!BJ5=701,"WON","LOST") -> LOST | AG98: =IF('CRICKET CLUB'!BJ5>0,1,0) -> 0 | AH98: =IF('CRICKET CLUB'!BN5=701,"WON","LOST") -> LOST | AI98: =IF('CRICKET CLUB'!BN5>0,1,0) -> 0 | AJ98: =IF('CRICKET CLUB'!BR5=701,"WON","LOST") -> LOST | AK98: =IF('CRICKET CLUB'!BR5>0,1,0) -> 1 | AL98: =IF('CRICKET CLUB'!BV5=701,"WON","LOST") -> LOST | AM98: =IF('CRICKET CLUB'!BV5>0,1,0) -> 0 | AN98: =IF('CRICKET CLUB'!BZ5=701,"WON","LOST") -> LOST | AO98: =IF('CRICKET CLUB'!BZ5>0,1,0) -> 0 | AP98: =IF('CRICKET CLUB'!CD5=701,"WON","LOST") -> LOST | AQ98: =IF('CRICKET CLUB'!CD5>0,1,0) -> 0 | AR98: =IF('CRICKET CLUB'!CH5=701,"WON","LOST") -> LOST | AS98: =IF('CRICKET CLUB'!CH5>0,1,0) -> 0
B99: =IF('CRICKET CLUB'!B6=701,"WON","LOST") -> LOST | C99: =IF('CRICKET CLUB'!B6>0,1,0) -> 0 | D99: =IF('CRICKET CLUB'!F6=701,"WON","LOST") -> LOST | E99: =IF('CRICKET CLUB'!F6>0,1,0) -> 0 | F99: =IF('CRICKET CLUB'!J6=701,"WON","LOST") -> LOST | G99: =IF('CRICKET CLUB'!J6>0,1,0) -> 0 | H99: =IF('CRICKET CLUB'!N6=701,"WON","LOST") -> LOST | I99: =IF('CRICKET CLUB'!N6>0,1,0) -> 0 | J99: =IF('CRICKET CLUB'!R6=701,"WON","LOST") -> LOST | K99: =IF('CRICKET CLUB'!R6>0,1,0) -> 0 | L99: =IF('CRICKET CLUB'!V6=701,"WON","LOST") -> LOST | M99: =IF('CRICKET CLUB'!V6>0,1,0) -> 0 | N99: =IF('CRICKET CLUB'!Z6=701,"WON","LOST") -> LOST | O99: =IF('CRICKET CLUB'!Z6>0,1,0) -> 0 | P99: =IF('CRICKET CLUB'!AD6=701,"WON","LOST") -> LOST | Q99: =IF('CRICKET CLUB'!AD6>0,1,0) -> 0 | R99: =IF('CRICKET CLUB'!AH6=701,"WON","LOST") -> LOST | S99: =IF('CRICKET CLUB'!AH6>0,1,0) -> 0 | T99: =IF('CRICKET CLUB'!AL6=701,"WON","LOST") -> LOST | U99: =IF('CRICKET CLUB'!AL6>0,1,0) -> 0 | V99: =IF('CRICKET CLUB'!AP6=701,"WON","LOST") -> LOST | W99: =IF('CRICKET CLUB'!AP6>0,1,0) -> 0 | X99: =IF('CRICKET CLUB'!AT6=701,"WON","LOST") -> LOST | Y99: =IF('CRICKET CLUB'!AT6>0,1,0) -> 0 | Z99: =IF('CRICKET CLUB'!AX6=701,"WON","LOST") -> LOST | AA99: =IF('CRICKET CLUB'!AX6>0,1,0) -> 0 | AB99: =IF('CRICKET CLUB'!BB6=701,"WON","LOST") -> LOST | AC99: =IF('CRICKET CLUB'!BB6>0,1,0) -> 0 | AD99: =IF('CRICKET CLUB'!BF6=701,"WON","LOST") -> LOST | AE99: =IF('CRICKET CLUB'!BF6>0,1,0) -> 0 | AF99: =IF('CRICKET CLUB'!BJ6=701,"WON","LOST") -> LOST | AG99: =IF('CRICKET CLUB'!BJ6>0,1,0) -> 0 | AH99: =IF('CRICKET CLUB'!BN6=701,"WON","LOST") -> LOST | AI99: =IF('CRICKET CLUB'!BN6>0,1,0) -> 0 | AJ99: =IF('CRICKET CLUB'!BR6=701,"WON","LOST") -> LOST | AK99: =IF('CRICKET CLUB'!BR6>0,1,0) -> 0 | AL99: =IF('CRICKET CLUB'!BV6=701,"WON","LOST") -> LOST | AM99: =IF('CRICKET CLUB'!BV6>0,1,0) -> 0 | AN99: =IF('CRICKET CLUB'!BZ6=701,"WON","LOST") -> LOST | AO99: =IF('CRICKET CLUB'!BZ6>0,1,0) -> 0 | AP99: =IF('CRICKET CLUB'!CD6=701,"WON","LOST") -> LOST | AQ99: =IF('CRICKET CLUB'!CD6>0,1,0) -> 0 | AR99: =IF('CRICKET CLUB'!CH6=701,"WON","LOST") -> LOST | AS99: =IF('CRICKET CLUB'!CH6>0,1,0) -> 0
B100: =IF('CRICKET CLUB'!B7=701,"WON","LOST") -> WON | C100: =IF('CRICKET CLUB'!B7>0,1,0) -> 1 | D100: =IF('CRICKET CLUB'!F7=701,"WON","LOST") -> WON | E100: =IF('CRICKET CLUB'!F7>0,1,0) -> 1 | F100: =IF('CRICKET CLUB'!J7=701,"WON","LOST") -> LOST | G100: =IF('CRICKET CLUB'!J7>0,1,0) -> 0 | H100: =IF('CRICKET CLUB'!N7=701,"WON","LOST") -> LOST | I100: =IF('CRICKET CLUB'!N7>0,1,0) -> 0 | J100: =IF('CRICKET CLUB'!R7=701,"WON","LOST") -> WON | K100: =IF('CRICKET CLUB'!R7>0,1,0) -> 1 | L100: =IF('CRICKET CLUB'!V7=701,"WON","LOST") -> LOST | M100: =IF('CRICKET CLUB'!V7>0,1,0) -> 0 | N100: =IF('CRICKET CLUB'!Z7=701,"WON","LOST") -> WON | O100: =IF('CRICKET CLUB'!Z7>0,1,0) -> 1 | P100: =IF('CRICKET CLUB'!AD7=701,"WON","LOST") -> LOST | Q100: =IF('CRICKET CLUB'!AD7>0,1,0) -> 1 | R100: =IF('CRICKET CLUB'!AH7=701,"WON","LOST") -> LOST | S100: =IF('CRICKET CLUB'!AH7>0,1,0) -> 1 | T100: =IF('CRICKET CLUB'!AL7=701,"WON","LOST") -> WON | U100: =IF('CRICKET CLUB'!AL7>0,1,0) -> 1 | V100: =IF('CRICKET CLUB'!AP7=701,"WON","LOST") -> WON | W100: =IF('CRICKET CLUB'!AP7>0,1,0) -> 1 | X100: =IF('CRICKET CLUB'!AT7=701,"WON","LOST") -> LOST | Y100: =IF('CRICKET CLUB'!AT7>0,1,0) -> 1 | Z100: =IF('CRICKET CLUB'!AX7=701,"WON","LOST") -> LOST | AA100: =IF('CRICKET CLUB'!AX7>0,1,0) -> 0 | AB100: =IF('CRICKET CLUB'!BB7=701,"WON","LOST") -> WON | AC100: =IF('CRICKET CLUB'!BB7>0,1,0) -> 1 | AD100: =IF('CRICKET CLUB'!BF7=701,"WON","LOST") -> WON | AE100: =IF('CRICKET CLUB'!BF7>0,1,0) -> 1 | AF100: =IF('CRICKET CLUB'!BJ7=701,"WON","LOST") -> WON | AG100: =IF('CRICKET CLUB'!BJ7>0,1,0) -> 1 | AH100: =IF('CRICKET CLUB'!BN7=701,"WON","LOST") -> WON | AI100: =IF('CRICKET CLUB'!BN7>0,1,0) -> 1 | AJ100: =IF('CRICKET CLUB'!BR7=701,"WON","LOST") -> LOST | AK100: =IF('CRICKET CLUB'!BR7>0,1,0) -> 0 | AL100: =IF('CRICKET CLUB'!BV7=701,"WON","LOST") -> LOST | AM100: =IF('CRICKET CLUB'!BV7>0,1,0) -> 0 | AN100: =IF('CRICKET CLUB'!BZ7=701,"WON","LOST") -> LOST | AO100: =IF('CRICKET CLUB'!BZ7>0,1,0) -> 0 | AP100: =IF('CRICKET CLUB'!CD7=701,"WON","LOST") -> LOST | AQ100: =IF('CRICKET CLUB'!CD7>0,1,0) -> 0 | AR100: =IF('CRICKET CLUB'!CH7=701,"WON","LOST") -> LOST | AS100: =IF('CRICKET CLUB'!CH7>0,1,0) -> 0
B101: =IF('CRICKET CLUB'!B8=701,"WON","LOST") -> WON | C101: =IF('CRICKET CLUB'!B8>0,1,0) -> 1 | D101: =IF('CRICKET CLUB'!F8=701,"WON","LOST") -> WON | E101: =IF('CRICKET CLUB'!F8>0,1,0) -> 1 | F101: =IF('CRICKET CLUB'!J8=701,"WON","LOST") -> LOST | G101: =IF('CRICKET CLUB'!J8>0,1,0) -> 1 | H101: =IF('CRICKET CLUB'!N8=701,"WON","LOST") -> LOST | I101: =IF('CRICKET CLUB'!N8>0,1,0) -> 0 | J101: =IF('CRICKET CLUB'!R8=701,"WON","LOST") -> WON | K101: =IF('CRICKET CLUB'!R8>0,1,0) -> 1 | L101: =IF('CRICKET CLUB'!V8=701,"WON","LOST") -> LOST | M101: =IF('CRICKET CLUB'!V8>0,1,0) -> 0 | N101: =IF('CRICKET CLUB'!Z8=701,"WON","LOST") -> LOST | O101: =IF('CRICKET CLUB'!Z8>0,1,0) -> 0 | P101: =IF('CRICKET CLUB'!AD8=701,"WON","LOST") -> WON | Q101: =IF('CRICKET CLUB'!AD8>0,1,0) -> 1 | R101: =IF('CRICKET CLUB'!AH8=701,"WON","LOST") -> WON | S101: =IF('CRICKET CLUB'!AH8>0,1,0) -> 1 | T101: =IF('CRICKET CLUB'!AL8=701,"WON","LOST") -> WON | U101: =IF('CRICKET CLUB'!AL8>0,1,0) -> 1 | V101: =IF('CRICKET CLUB'!AP8=701,"WON","LOST") -> WON | W101: =IF('CRICKET CLUB'!AP8>0,1,0) -> 1 | X101: =IF('CRICKET CLUB'!AT8=701,"WON","LOST") -> WON | Y101: =IF('CRICKET CLUB'!AT8>0,1,0) -> 1 | Z101: =IF('CRICKET CLUB'!AX8=701,"WON","LOST") -> LOST | AA101: =IF('CRICKET CLUB'!AX8>0,1,0) -> 0 | AB101: =IF('CRICKET CLUB'!BB8=701,"WON","LOST") -> WON | AC101: =IF('CRICKET CLUB'!BB8>0,1,0) -> 1 | AD101: =IF('CRICKET CLUB'!BF8=701,"WON","LOST") -> WON | AE101: =IF('CRICKET CLUB'!BF8>0,1,0) -> 1 | AF101: =IF('CRICKET CLUB'!BJ8=701,"WON","LOST") -> WON | AG101: =IF('CRICKET CLUB'!BJ8>0,1,0) -> 1 | AH101: =IF('CRICKET CLUB'!BN8=701,"WON","LOST") -> WON | AI101: =IF('CRICKET CLUB'!BN8>0,1,0) -> 1 | AJ101: =IF('CRICKET CLUB'!BR8=701,"WON","LOST") -> WON | AK101: =IF('CRICKET CLUB'!BR8>0,1,0) -> 1 | AL101: =IF('CRICKET CLUB'!BV8=701,"WON","LOST") -> LOST | AM101: =IF('CRICKET CLUB'!BV8>0,1,0) -> 0 | AN101: =IF('CRICKET CLUB'!BZ8=701,"WON","LOST") -> LOST | AO101: =IF('CRICKET CLUB'!BZ8>0,1,0) -> 0 | AP101: =IF('CRICKET CLUB'!CD8=701,"WON","LOST") -> LOST | AQ101: =IF('CRICKET CLUB'!CD8>0,1,0) -> 0 | AR101: =IF('CRICKET CLUB'!CH8=701,"WON","LOST") -> LOST | AS101: =IF('CRICKET CLUB'!CH8>0,1,0) -> 0
B102: =IF('CRICKET CLUB'!B9=701,"WON","LOST") -> WON | C102: =IF('CRICKET CLUB'!B9>0,1,0) -> 1 | D102: =IF('CRICKET CLUB'!F9=701,"WON","LOST") -> LOST | E102: =IF('CRICKET CLUB'!F9>0,1,0) -> 1 | F102: =IF('CRICKET CLUB'!J9=701,"WON","LOST") -> WON | G102: =IF('CRICKET CLUB'!J9>0,1,0) -> 1 | H102: =IF('CRICKET CLUB'!N9=701,"WON","LOST") -> LOST | I102: =IF('CRICKET CLUB'!N9>0,1,0) -> 0 | J102: =IF('CRICKET CLUB'!R9=701,"WON","LOST") -> WON | K102: =IF('CRICKET CLUB'!R9>0,1,0) -> 1 | L102: =IF('CRICKET CLUB'!V9=701,"WON","LOST") -> WON | M102: =IF('CRICKET CLUB'!V9>0,1,0) -> 1 | N102: =IF('CRICKET CLUB'!Z9=701,"WON","LOST") -> WON | O102: =IF('CRICKET CLUB'!Z9>0,1,0) -> 1 | P102: =IF('CRICKET CLUB'!AD9=701,"WON","LOST") -> WON | Q102: =IF('CRICKET CLUB'!AD9>0,1,0) -> 1 | R102: =IF('CRICKET CLUB'!AH9=701,"WON","LOST") -> LOST | S102: =IF('CRICKET CLUB'!AH9>0,1,0) -> 1 | T102: =IF('CRICKET CLUB'!AL9=701,"WON","LOST") -> WON | U102: =IF('CRICKET CLUB'!AL9>0,1,0) -> 1 | V102: =IF('CRICKET CLUB'!AP9=701,"WON","LOST") -> LOST | W102: =IF('CRICKET CLUB'!AP9>0,1,0) -> 1 | X102: =IF('CRICKET CLUB'!AT9=701,"WON","LOST") -> WON | Y102: =IF('CRICKET CLUB'!AT9>0,1,0) -> 1 | Z102: =IF('CRICKET CLUB'!AX9=701,"WON","LOST") -> LOST | AA102: =IF('CRICKET CLUB'!AX9>0,1,0) -> 0 | AB102: =IF('CRICKET CLUB'!BB9=701,"WON","LOST") -> WON | AC102: =IF('CRICKET CLUB'!BB9>0,1,0) -> 1 | AD102: =IF('CRICKET CLUB'!BF9=701,"WON","LOST") -> WON | AE102: =IF('CRICKET CLUB'!BF9>0,1,0) -> 1 | AF102: =IF('CRICKET CLUB'!BJ9=701,"WON","LOST") -> WON | AG102: =IF('CRICKET CLUB'!BJ9>0,1,0) -> 1 | AH102: =IF('CRICKET CLUB'!BN9=701,"WON","LOST") -> WON | AI102: =IF('CRICKET CLUB'!BN9>0,1,0) -> 1 | AJ102: =IF('CRICKET CLUB'!BR9=701,"WON","LOST") -> WON | AK102: =IF('CRICKET CLUB'!BR9>0,1,0) -> 1 | AL102: =IF('CRICKET CLUB'!BV9=701,"WON","LOST") -> LOST | AM102: =IF('CRICKET CLUB'!BV9>0,1,0) -> 0 | AN102: =IF('CRICKET CLUB'!BZ9=701,"WON","LOST") -> LOST | AO102: =IF('CRICKET CLUB'!BZ9>0,1,0) -> 0 | AP102: =IF('CRICKET CLUB'!CD9=701,"WON","LOST") -> LOST | AQ102: =IF('CRICKET CLUB'!CD9>0,1,0) -> 0 | AR102: =IF('CRICKET CLUB'!CH9=701,"WON","LOST") -> LOST | AS102: =IF('CRICKET CLUB'!CH9>0,1,0) -> 0
B103: =IF('CRICKET CLUB'!B10=701,"WON","LOST") -> LOST | C103: =IF('CRICKET CLUB'!B10>0,1,0) -> 0 | D103: =IF('CRICKET CLUB'!F10=701,"WON","LOST") -> LOST | E103: =IF('CRICKET CLUB'!F10>0,1,0) -> 0 | F103: =IF('CRICKET CLUB'!J10=701,"WON","LOST") -> LOST | G103: =IF('CRICKET CLUB'!J10>0,1,0) -> 0 | H103: =IF('CRICKET CLUB'!N10=701,"WON","LOST") -> LOST | I103: =IF('CRICKET CLUB'!N10>0,1,0) -> 0 | J103: =IF('CRICKET CLUB'!R10=701,"WON","LOST") -> LOST | K103: =IF('CRICKET CLUB'!R10>0,1,0) -> 0 | L103: =IF('CRICKET CLUB'!V10=701,"WON","LOST") -> LOST | M103: =IF('CRICKET CLUB'!V10>0,1,0) -> 0 | N103: =IF('CRICKET CLUB'!Z10=701,"WON","LOST") -> LOST | O103: =IF('CRICKET CLUB'!Z10>0,1,0) -> 0 | P103: =IF('CRICKET CLUB'!AD10=701,"WON","LOST") -> LOST | Q103: =IF('CRICKET CLUB'!AD10>0,1,0) -> 0 | R103: =IF('CRICKET CLUB'!AH10=701,"WON","LOST") -> LOST | S103: =IF('CRICKET CLUB'!AH10>0,1,0) -> 0 | T103: =IF('CRICKET CLUB'!AL10=701,"WON","LOST") -> LOST | U103: =IF('CRICKET CLUB'!AL10>0,1,0) -> 0 | V103: =IF('CRICKET CLUB'!AP10=701,"WON","LOST") -> LOST | W103: =IF('CRICKET CLUB'!AP10>0,1,0) -> 0 | X103: =IF('CRICKET CLUB'!AT10=701,"WON","LOST") -> LOST | Y103: =IF('CRICKET CLUB'!AT10>0,1,0) -> 0 | Z103: =IF('CRICKET CLUB'!AX10=701,"WON","LOST") -> LOST | AA103: =IF('CRICKET CLUB'!AX10>0,1,0) -> 0 | AB103: =IF('CRICKET CLUB'!BB10=701,"WON","LOST") -> LOST | AC103: =IF('CRICKET CLUB'!BB10>0,1,0) -> 0 | AD103: =IF('CRICKET CLUB'!BF10=701,"WON","LOST") -> LOST | AE103: =IF('CRICKET CLUB'!BF10>0,1,0) -> 0 | AF103: =IF('CRICKET CLUB'!BJ10=701,"WON","LOST") -> LOST | AG103: =IF('CRICKET CLUB'!BJ10>0,1,0) -> 0 | AH103: =IF('CRICKET CLUB'!BN10=701,"WON","LOST") -> LOST | AI103: =IF('CRICKET CLUB'!BN10>0,1,0) -> 0 | AJ103: =IF('CRICKET CLUB'!BR10=701,"WON","LOST") -> LOST | AK103: =IF('CRICKET CLUB'!BR10>0,1,0) -> 0 | AL103: =IF('CRICKET CLUB'!BV10=701,"WON","LOST") -> LOST | AM103: =IF('CRICKET CLUB'!BV10>0,1,0) -> 0 | AN103: =IF('CRICKET CLUB'!BZ10=701,"WON","LOST") -> LOST | AO103: =IF('CRICKET CLUB'!BZ10>0,1,0) -> 0 | AP103: =IF('CRICKET CLUB'!CD10=701,"WON","LOST") -> LOST | AQ103: =IF('CRICKET CLUB'!CD10>0,1,0) -> 0 | AR103: =IF('CRICKET CLUB'!CH10=701,"WON","LOST") -> LOST | AS103: =IF('CRICKET CLUB'!CH10>0,1,0) -> 0
B104: =IF('CRICKET CLUB'!B11=701,"WON","LOST") -> WON | C104: =IF('CRICKET CLUB'!B11>0,1,0) -> 1 | D104: =IF('CRICKET CLUB'!F11=701,"WON","LOST") -> WON | E104: =IF('CRICKET CLUB'!F11>0,1,0) -> 1 | F104: =IF('CRICKET CLUB'!J11=701,"WON","LOST") -> WON | G104: =IF('CRICKET CLUB'!J11>0,1,0) -> 1 | H104: =IF('CRICKET CLUB'!N11=701,"WON","LOST") -> LOST | I104: =IF('CRICKET CLUB'!N11>0,1,0) -> 0 | J104: =IF('CRICKET CLUB'!R11=701,"WON","LOST") -> WON | K104: =IF('CRICKET CLUB'!R11>0,1,0) -> 1 | L104: =IF('CRICKET CLUB'!V11=701,"WON","LOST") -> LOST | M104: =IF('CRICKET CLUB'!V11>0,1,0) -> 1 | N104: =IF('CRICKET CLUB'!Z11=701,"WON","LOST") -> LOST | O104: =IF('CRICKET CLUB'!Z11>0,1,0) -> 0 | P104: =IF('CRICKET CLUB'!AD11=701,"WON","LOST") -> LOST | Q104: =IF('CRICKET CLUB'!AD11>0,1,0) -> 0 | R104: =IF('CRICKET CLUB'!AH11=701,"WON","LOST") -> LOST | S104: =IF('CRICKET CLUB'!AH11>0,1,0) -> 0 | T104: =IF('CRICKET CLUB'!AL11=701,"WON","LOST") -> LOST | U104: =IF('CRICKET CLUB'!AL11>0,1,0) -> 0 | V104: =IF('CRICKET CLUB'!AP11=701,"WON","LOST") -> LOST | W104: =IF('CRICKET CLUB'!AP11>0,1,0) -> 0 | X104: =IF('CRICKET CLUB'!AT11=701,"WON","LOST") -> LOST | Y104: =IF('CRICKET CLUB'!AT11>0,1,0) -> 0 | Z104: =IF('CRICKET CLUB'!AX11=701,"WON","LOST") -> LOST | AA104: =IF('CRICKET CLUB'!AX11>0,1,0) -> 0 | AB104: =IF('CRICKET CLUB'!BB11=701,"WON","LOST") -> LOST | AC104: =IF('CRICKET CLUB'!BB11>0,1,0) -> 0 | AD104: =IF('CRICKET CLUB'!BF11=701,"WON","LOST") -> LOST | AE104: =IF('CRICKET CLUB'!BF11>0,1,0) -> 0 | AF104: =IF('CRICKET CLUB'!BJ11=701,"WON","LOST") -> LOST | AG104: =IF('CRICKET CLUB'!BJ11>0,1,0) -> 0 | AH104: =IF('CRICKET CLUB'!BN11=701,"WON","LOST") -> LOST | AI104: =IF('CRICKET CLUB'!BN11>0,1,0) -> 0 | AJ104: =IF('CRICKET CLUB'!BR11=701,"WON","LOST") -> LOST | AK104: =IF('CRICKET CLUB'!BR11>0,1,0) -> 0 | AL104: =IF('CRICKET CLUB'!BV11=701,"WON","LOST") -> LOST | AM104: =IF('CRICKET CLUB'!BV11>0,1,0) -> 0 | AN104: =IF('CRICKET CLUB'!BZ11=701,"WON","LOST") -> LOST | AO104: =IF('CRICKET CLUB'!BZ11>0,1,0) -> 0 | AP104: =IF('CRICKET CLUB'!CD11=701,"WON","LOST") -> LOST | AQ104: =IF('CRICKET CLUB'!CD11>0,1,0) -> 0 | AR104: =IF('CRICKET CLUB'!CH11=701,"WON","LOST") -> LOST | AS104: =IF('CRICKET CLUB'!CH11>0,1,0) -> 0
B105: =IF('CRICKET CLUB'!B12=701,"WON","LOST") -> LOST | C105: =IF('CRICKET CLUB'!B12>0,1,0) -> 0 | D105: =IF('CRICKET CLUB'!F12=701,"WON","LOST") -> LOST | E105: =IF('CRICKET CLUB'!F12>0,1,0) -> 0 | F105: =IF('CRICKET CLUB'!J12=701,"WON","LOST") -> LOST | G105: =IF('CRICKET CLUB'!J12>0,1,0) -> 1 | H105: =IF('CRICKET CLUB'!N12=701,"WON","LOST") -> LOST | I105: =IF('CRICKET CLUB'!N12>0,1,0) -> 0 | J105: =IF('CRICKET CLUB'!R12=701,"WON","LOST") -> LOST | K105: =IF('CRICKET CLUB'!R12>0,1,0) -> 0 | L105: =IF('CRICKET CLUB'!V12=701,"WON","LOST") -> LOST | M105: =IF('CRICKET CLUB'!V12>0,1,0) -> 1 | N105: =IF('CRICKET CLUB'!Z12=701,"WON","LOST") -> WON | O105: =IF('CRICKET CLUB'!Z12>0,1,0) -> 1 | P105: =IF('CRICKET CLUB'!AD12=701,"WON","LOST") -> WON | Q105: =IF('CRICKET CLUB'!AD12>0,1,0) -> 1 | R105: =IF('CRICKET CLUB'!AH12=701,"WON","LOST") -> LOST | S105: =IF('CRICKET CLUB'!AH12>0,1,0) -> 1 | T105: =IF('CRICKET CLUB'!AL12=701,"WON","LOST") -> WON | U105: =IF('CRICKET CLUB'!AL12>0,1,0) -> 1 | V105: =IF('CRICKET CLUB'!AP12=701,"WON","LOST") -> LOST | W105: =IF('CRICKET CLUB'!AP12>0,1,0) -> 1 | X105: =IF('CRICKET CLUB'!AT12=701,"WON","LOST") -> WON | Y105: =IF('CRICKET CLUB'!AT12>0,1,0) -> 1 | Z105: =IF('CRICKET CLUB'!AX12=701,"WON","LOST") -> LOST | AA105: =IF('CRICKET CLUB'!AX12>0,1,0) -> 0 | AB105: =IF('CRICKET CLUB'!BB12=701,"WON","LOST") -> WON | AC105: =IF('CRICKET CLUB'!BB12>0,1,0) -> 1 | AD105: =IF('CRICKET CLUB'!BF12=701,"WON","LOST") -> WON | AE105: =IF('CRICKET CLUB'!BF12>0,1,0) -> 1 | AF105: =IF('CRICKET CLUB'!BJ12=701,"WON","LOST") -> WON | AG105: =IF('CRICKET CLUB'!BJ12>0,1,0) -> 1 | AH105: =IF('CRICKET CLUB'!BN12=701,"WON","LOST") -> WON | AI105: =IF('CRICKET CLUB'!BN12>0,1,0) -> 1 | AJ105: =IF('CRICKET CLUB'!BR12=701,"WON","LOST") -> LOST | AK105: =IF('CRICKET CLUB'!BR12>0,1,0) -> 1 | AL105: =IF('CRICKET CLUB'!BV12=701,"WON","LOST") -> LOST | AM105: =IF('CRICKET CLUB'!BV12>0,1,0) -> 0 | AN105: =IF('CRICKET CLUB'!BZ12=701,"WON","LOST") -> LOST | AO105: =IF('CRICKET CLUB'!BZ12>0,1,0) -> 0 | AP105: =IF('CRICKET CLUB'!CD12=701,"WON","LOST") -> LOST | AQ105: =IF('CRICKET CLUB'!CD12>0,1,0) -> 0 | AR105: =IF('CRICKET CLUB'!CH12=701,"WON","LOST") -> LOST | AS105: =IF('CRICKET CLUB'!CH12>0,1,0) -> 0
B106: =IF('CRICKET CLUB'!B13=701,"WON","LOST") -> LOST | C106: =IF('CRICKET CLUB'!B13>0,1,0) -> 1 | D106: =IF('CRICKET CLUB'!F13=701,"WON","LOST") -> LOST | E106: =IF('CRICKET CLUB'!F13>0,1,0) -> 1 | F106: =IF('CRICKET CLUB'!J13=701,"WON","LOST") -> LOST | G106: =IF('CRICKET CLUB'!J13>0,1,0) -> 1 | H106: =IF('CRICKET CLUB'!N13=701,"WON","LOST") -> LOST | I106: =IF('CRICKET CLUB'!N13>0,1,0) -> 0 | J106: =IF('CRICKET CLUB'!R13=701,"WON","LOST") -> LOST | K106: =IF('CRICKET CLUB'!R13>0,1,0) -> 1 | L106: =IF('CRICKET CLUB'!V13=701,"WON","LOST") -> WON | M106: =IF('CRICKET CLUB'!V13>0,1,0) -> 1 | N106: =IF('CRICKET CLUB'!Z13=701,"WON","LOST") -> WON | O106: =IF('CRICKET CLUB'!Z13>0,1,0) -> 1 | P106: =IF('CRICKET CLUB'!AD13=701,"WON","LOST") -> LOST | Q106: =IF('CRICKET CLUB'!AD13>0,1,0) -> 0 | R106: =IF('CRICKET CLUB'!AH13=701,"WON","LOST") -> WON | S106: =IF('CRICKET CLUB'!AH13>0,1,0) -> 1 | T106: =IF('CRICKET CLUB'!AL13=701,"WON","LOST") -> WON | U106: =IF('CRICKET CLUB'!AL13>0,1,0) -> 1 | V106: =IF('CRICKET CLUB'!AP13=701,"WON","LOST") -> LOST | W106: =IF('CRICKET CLUB'!AP13>0,1,0) -> 1 | X106: =IF('CRICKET CLUB'!AT13=701,"WON","LOST") -> WON | Y106: =IF('CRICKET CLUB'!AT13>0,1,0) -> 1 | Z106: =IF('CRICKET CLUB'!AX13=701,"WON","LOST") -> LOST | AA106: =IF('CRICKET CLUB'!AX13>0,1,0) -> 0 | AB106: =IF('CRICKET CLUB'!BB13=701,"WON","LOST") -> WON | AC106: =IF('CRICKET CLUB'!BB13>0,1,0) -> 1 | AD106: =IF('CRICKET CLUB'!BF13=701,"WON","LOST") -> WON | AE106: =IF('CRICKET CLUB'!BF13>0,1,0) -> 1 | AF106: =IF('CRICKET CLUB'!BJ13=701,"WON","LOST") -> WON | AG106: =IF('CRICKET CLUB'!BJ13>0,1,0) -> 1 | AH106: =IF('CRICKET CLUB'!BN13=701,"WON","LOST") -> WON | AI106: =IF('CRICKET CLUB'!BN13>0,1,0) -> 1 | AJ106: =IF('CRICKET CLUB'!BR13=701,"WON","LOST") -> WON | AK106: =IF('CRICKET CLUB'!BR13>0,1,0) -> 1 | AL106: =IF('CRICKET CLUB'!BV13=701,"WON","LOST") -> LOST | AM106: =IF('CRICKET CLUB'!BV13>0,1,0) -> 0 | AN106: =IF('CRICKET CLUB'!BZ13=701,"WON","LOST") -> LOST | AO106: =IF('CRICKET CLUB'!BZ13>0,1,0) -> 0 | AP106: =IF('CRICKET CLUB'!CD13=701,"WON","LOST") -> LOST | AQ106: =IF('CRICKET CLUB'!CD13>0,1,0) -> 0 | AR106: =IF('CRICKET CLUB'!CH13=701,"WON","LOST") -> LOST | AS106: =IF('CRICKET CLUB'!CH13>0,1,0) -> 0
B107: =IF('CRICKET CLUB'!B14=701,"WON","LOST") -> LOST | C107: =IF('CRICKET CLUB'!B14>0,1,0) -> 0 | D107: =IF('CRICKET CLUB'!F14=701,"WON","LOST") -> LOST | E107: =IF('CRICKET CLUB'!F14>0,1,0) -> 0 | F107: =IF('CRICKET CLUB'!J14=701,"WON","LOST") -> LOST | G107: =IF('CRICKET CLUB'!J14>0,1,0) -> 0 | H107: =IF('CRICKET CLUB'!N14=701,"WON","LOST") -> LOST | I107: =IF('CRICKET CLUB'!N14>0,1,0) -> 0 | J107: =IF('CRICKET CLUB'!R14=701,"WON","LOST") -> LOST | K107: =IF('CRICKET CLUB'!R14>0,1,0) -> 0 | L107: =IF('CRICKET CLUB'!V14=701,"WON","LOST") -> LOST | M107: =IF('CRICKET CLUB'!V14>0,1,0) -> 0 | N107: =IF('CRICKET CLUB'!Z14=701,"WON","LOST") -> LOST | O107: =IF('CRICKET CLUB'!Z14>0,1,0) -> 0 | P107: =IF('CRICKET CLUB'!AD14=701,"WON","LOST") -> LOST | Q107: =IF('CRICKET CLUB'!AD14>0,1,0) -> 0 | R107: =IF('CRICKET CLUB'!AH14=701,"WON","LOST") -> LOST | S107: =IF('CRICKET CLUB'!AH14>0,1,0) -> 0 | T107: =IF('CRICKET CLUB'!AL14=701,"WON","LOST") -> LOST | U107: =IF('CRICKET CLUB'!AL14>0,1,0) -> 0 | V107: =IF('CRICKET CLUB'!AP14=701,"WON","LOST") -> LOST | W107: =IF('CRICKET CLUB'!AP14>0,1,0) -> 0 | X107: =IF('CRICKET CLUB'!AT14=701,"WON","LOST") -> LOST | Y107: =IF('CRICKET CLUB'!AT14>0,1,0) -> 0 | Z107: =IF('CRICKET CLUB'!AX14=701,"WON","LOST") -> LOST | AA107: =IF('CRICKET CLUB'!AX14>0,1,0) -> 0 | AB107: =IF('CRICKET CLUB'!BB14=701,"WON","LOST") -> LOST | AC107: =IF('CRICKET CLUB'!BB14>0,1,0) -> 0 | AD107: =IF('CRICKET CLUB'!BF14=701,"WON","LOST") -> LOST | AE107: =IF('CRICKET CLUB'!BF14>0,1,0) -> 0 | AF107: =IF('CRICKET CLUB'!BJ14=701,"WON","LOST") -> LOST | AG107: =IF('CRICKET CLUB'!BJ14>0,1,0) -> 0 | AH107: =IF('CRICKET CLUB'!BN14=701,"WON","LOST") -> LOST | AI107: =IF('CRICKET CLUB'!BN14>0,1,0) -> 0 | AJ107: =IF('CRICKET CLUB'!BR14=701,"WON","LOST") -> LOST | AK107: =IF('CRICKET CLUB'!BR14>0,1,0) -> 0 | AL107: =IF('CRICKET CLUB'!BV14=701,"WON","LOST") -> LOST | AM107: =IF('CRICKET CLUB'!BV14>0,1,0) -> 0 | AN107: =IF('CRICKET CLUB'!BZ14=701,"WON","LOST") -> LOST | AO107: =IF('CRICKET CLUB'!BZ14>0,1,0) -> 0 | AP107: =IF('CRICKET CLUB'!CD14=701,"WON","LOST") -> LOST | AQ107: =IF('CRICKET CLUB'!CD14>0,1,0) -> 0 | AR107: =IF('CRICKET CLUB'!CH14=701,"WON","LOST") -> LOST | AS107: =IF('CRICKET CLUB'!CH14>0,1,0) -> 0
B108: =IF('CRICKET CLUB'!B3="",0,(SUM(('CRICKET CLUB'!B3/'CRICKET CLUB'!C3)*3))) -> 0 | D108: =IF('CRICKET CLUB'!F3="",0,(SUM(('CRICKET CLUB'!F3/'CRICKET CLUB'!G3)*3))) -> 0 | F108: =IF('CRICKET CLUB'!J3="",0,(SUM(('CRICKET CLUB'!J3/'CRICKET CLUB'!K3)*3))) -> 0 | H108: =IF('CRICKET CLUB'!N3="",0,(SUM(('CRICKET CLUB'!N3/'CRICKET CLUB'!O3)*3))) -> 0 | J108: =IF('CRICKET CLUB'!R3="",0,(SUM(('CRICKET CLUB'!R3/'CRICKET CLUB'!S3)*3))) -> 0 | L108: =IF('CRICKET CLUB'!V3="",0,(SUM(('CRICKET CLUB'!V3/'CRICKET CLUB'!W3)*3))) -> 0 | N108: =IF('CRICKET CLUB'!Z3="",0,(SUM(('CRICKET CLUB'!Z3/'CRICKET CLUB'!AA3)*3))) -> 0 | P108: =IF('CRICKET CLUB'!AD3="",0,(SUM(('CRICKET CLUB'!AD3/'CRICKET CLUB'!AE3)*3))) -> 0 | R108: =IF('CRICKET CLUB'!AH3="",0,(SUM(('CRICKET CLUB'!AH3/'CRICKET CLUB'!AI3)*3))) -> 0 | T108: =IF('CRICKET CLUB'!AL3="",0,(SUM(('CRICKET CLUB'!AL3/'CRICKET CLUB'!AM3)*3))) -> 0 | V108: =IF('CRICKET CLUB'!AP3="",0,(SUM(('CRICKET CLUB'!AP3/'CRICKET CLUB'!AQ3)*3))) -> 0 | X108: =IF('CRICKET CLUB'!AT3="",0,(SUM(('CRICKET CLUB'!AT3/'CRICKET CLUB'!AU3)*3))) -> 0 | Z108: =IF('CRICKET CLUB'!AX3="",0,(SUM(('CRICKET CLUB'!AX3/'CRICKET CLUB'!AY3)*3))) -> 0 | AB108: =IF('CRICKET CLUB'!BB3="",0,(SUM(('CRICKET CLUB'!BB3/'CRICKET CLUB'!BC3)*3))) -> 0 | AD108: =IF('CRICKET CLUB'!BF3="",0,(SUM(('CRICKET CLUB'!BF3/'CRICKET CLUB'!BG3)*3))) -> 0 | AF108: =IF('CRICKET CLUB'!BJ3="",0,(SUM(('CRICKET CLUB'!BJ3/'CRICKET CLUB'!BK3)*3))) -> 0 | AH108: =IF('CRICKET CLUB'!BN3="",0,(SUM(('CRICKET CLUB'!BN3/'CRICKET CLUB'!BO3)*3))) -> 0 | AJ108: =IF('CRICKET CLUB'!BR3="",0,(SUM(('CRICKET CLUB'!BR3/'CRICKET CLUB'!BS3)*3))) -> 0 | AL108: =IF('CRICKET CLUB'!BV3="",0,(SUM(('CRICKET CLUB'!BV3/'CRICKET CLUB'!BW3)*3))) -> 0 | AN108: =IF('CRICKET CLUB'!BZ3="",0,(SUM(('CRICKET CLUB'!BZ3/'CRICKET CLUB'!CA3)*3))) -> 0 | AP108: =IF('CRICKET CLUB'!CD3="",0,(SUM(('CRICKET CLUB'!CD3/'CRICKET CLUB'!CE3)*3))) -> 0 | AR108: =IF('CRICKET CLUB'!CH3="",0,(SUM(('CRICKET CLUB'!CH3/'CRICKET CLUB'!CI3)*3))) -> 0
B109: =IF('CRICKET CLUB'!B4="",0,(SUM(('CRICKET CLUB'!B4/'CRICKET CLUB'!C4)*3))) -> 60.08571429 | D109: =IF('CRICKET CLUB'!F4="",0,(SUM(('CRICKET CLUB'!F4/'CRICKET CLUB'!G4)*3))) -> 41.11764706 | F109: =IF('CRICKET CLUB'!J4="",0,(SUM(('CRICKET CLUB'!J4/'CRICKET CLUB'!K4)*3))) -> 45.7173913 | H109: =IF('CRICKET CLUB'!N4="",0,(SUM(('CRICKET CLUB'!N4/'CRICKET CLUB'!O4)*3))) -> 0 | J109: =IF('CRICKET CLUB'!R4="",0,(SUM(('CRICKET CLUB'!R4/'CRICKET CLUB'!S4)*3))) -> 48.41666667 | L109: =IF('CRICKET CLUB'!V4="",0,(SUM(('CRICKET CLUB'!V4/'CRICKET CLUB'!W4)*3))) -> 41.23529412 | N109: =IF('CRICKET CLUB'!Z4="",0,(SUM(('CRICKET CLUB'!Z4/'CRICKET CLUB'!AA4)*3))) -> 42.91836735 | P109: =IF('CRICKET CLUB'!AD4="",0,(SUM(('CRICKET CLUB'!AD4/'CRICKET CLUB'!AE4)*3))) -> 53.30769231 | R109: =IF('CRICKET CLUB'!AH4="",0,(SUM(('CRICKET CLUB'!AH4/'CRICKET CLUB'!AI4)*3))) -> 49.7 | T109: =IF('CRICKET CLUB'!AL4="",0,(SUM(('CRICKET CLUB'!AL4/'CRICKET CLUB'!AM4)*3))) -> 42.73333333 | V109: =IF('CRICKET CLUB'!AP4="",0,(SUM(('CRICKET CLUB'!AP4/'CRICKET CLUB'!AQ4)*3))) -> 56.83783784 | X109: =IF('CRICKET CLUB'!AT4="",0,(SUM(('CRICKET CLUB'!AT4/'CRICKET CLUB'!AU4)*3))) -> 43.8 | Z109: =IF('CRICKET CLUB'!AX4="",0,(SUM(('CRICKET CLUB'!AX4/'CRICKET CLUB'!AY4)*3))) -> 0 | AB109: =IF('CRICKET CLUB'!BB4="",0,(SUM(('CRICKET CLUB'!BB4/'CRICKET CLUB'!BC4)*3))) -> 0 | AD109: =IF('CRICKET CLUB'!BF4="",0,(SUM(('CRICKET CLUB'!BF4/'CRICKET CLUB'!BG4)*3))) -> 0 | AF109: =IF('CRICKET CLUB'!BJ4="",0,(SUM(('CRICKET CLUB'!BJ4/'CRICKET CLUB'!BK4)*3))) -> 45.7173913 | AH109: =IF('CRICKET CLUB'!BN4="",0,(SUM(('CRICKET CLUB'!BN4/'CRICKET CLUB'!BO4)*3))) -> 36.68421053 | AJ109: =IF('CRICKET CLUB'!BR4="",0,(SUM(('CRICKET CLUB'!BR4/'CRICKET CLUB'!BS4)*3))) -> 47.83783784 | AL109: =IF('CRICKET CLUB'!BV4="",0,(SUM(('CRICKET CLUB'!BV4/'CRICKET CLUB'!BW4)*3))) -> 0 | AN109: =IF('CRICKET CLUB'!BZ4="",0,(SUM(('CRICKET CLUB'!BZ4/'CRICKET CLUB'!CA4)*3))) -> 0 | AP109: =IF('CRICKET CLUB'!CD4="",0,(SUM(('CRICKET CLUB'!CD4/'CRICKET CLUB'!CE4)*3))) -> 0 | AR109: =IF('CRICKET CLUB'!CH4="",0,(SUM(('CRICKET CLUB'!CH4/'CRICKET CLUB'!CI4)*3))) -> 0
B110: =IF('CRICKET CLUB'!B5="",0,(SUM(('CRICKET CLUB'!B5/'CRICKET CLUB'!C5)*3))) -> 0 | D110: =IF('CRICKET CLUB'!F5="",0,(SUM(('CRICKET CLUB'!F5/'CRICKET CLUB'!G5)*3))) -> 0 | F110: =IF('CRICKET CLUB'!J5="",0,(SUM(('CRICKET CLUB'!J5/'CRICKET CLUB'!K5)*3))) -> 0 | H110: =IF('CRICKET CLUB'!N5="",0,(SUM(('CRICKET CLUB'!N5/'CRICKET CLUB'!O5)*3))) -> 0 | J110: =IF('CRICKET CLUB'!R5="",0,(SUM(('CRICKET CLUB'!R5/'CRICKET CLUB'!S5)*3))) -> 0 | L110: =IF('CRICKET CLUB'!V5="",0,(SUM(('CRICKET CLUB'!V5/'CRICKET CLUB'!W5)*3))) -> 32.57142857 | N110: =IF('CRICKET CLUB'!Z5="",0,(SUM(('CRICKET CLUB'!Z5/'CRICKET CLUB'!AA5)*3))) -> 43.8125 | P110: =IF('CRICKET CLUB'!AD5="",0,(SUM(('CRICKET CLUB'!AD5/'CRICKET CLUB'!AE5)*3))) -> 47.07692308 | R110: =IF('CRICKET CLUB'!AH5="",0,(SUM(('CRICKET CLUB'!AH5/'CRICKET CLUB'!AI5)*3))) -> 0 | T110: =IF('CRICKET CLUB'!AL5="",0,(SUM(('CRICKET CLUB'!AL5/'CRICKET CLUB'!AM5)*3))) -> 0 | V110: =IF('CRICKET CLUB'!AP5="",0,(SUM(('CRICKET CLUB'!AP5/'CRICKET CLUB'!AQ5)*3))) -> 0 | X110: =IF('CRICKET CLUB'!AT5="",0,(SUM(('CRICKET CLUB'!AT5/'CRICKET CLUB'!AU5)*3))) -> 0 | Z110: =IF('CRICKET CLUB'!AX5="",0,(SUM(('CRICKET CLUB'!AX5/'CRICKET CLUB'!AY5)*3))) -> 0 | AB110: =IF('CRICKET CLUB'!BB5="",0,(SUM(('CRICKET CLUB'!BB5/'CRICKET CLUB'!BC5)*3))) -> 43.6875 | AD110: =IF('CRICKET CLUB'!BF5="",0,(SUM(('CRICKET CLUB'!BF5/'CRICKET CLUB'!BG5)*3))) -> 53.92307692 | AF110: =IF('CRICKET CLUB'!BJ5="",0,(SUM(('CRICKET CLUB'!BJ5/'CRICKET CLUB'!BK5)*3))) -> 0 | AH110: =IF('CRICKET CLUB'!BN5="",0,(SUM(('CRICKET CLUB'!BN5/'CRICKET CLUB'!BO5)*3))) -> 0 | AJ110: =IF('CRICKET CLUB'!BR5="",0,(SUM(('CRICKET CLUB'!BR5/'CRICKET CLUB'!BS5)*3))) -> 40.0625 | AL110: =IF('CRICKET CLUB'!BV5="",0,(SUM(('CRICKET CLUB'!BV5/'CRICKET CLUB'!BW5)*3))) -> 0 | AN110: =IF('CRICKET CLUB'!BZ5="",0,(SUM(('CRICKET CLUB'!BZ5/'CRICKET CLUB'!CA5)*3))) -> 0 | AP110: =IF('CRICKET CLUB'!CD5="",0,(SUM(('CRICKET CLUB'!CD5/'CRICKET CLUB'!CE5)*3))) -> 0 | AR110: =IF('CRICKET CLUB'!CH5="",0,(SUM(('CRICKET CLUB'!CH5/'CRICKET CLUB'!CI5)*3))) -> 0
B111: =IF('CRICKET CLUB'!B6="",0,(SUM(('CRICKET CLUB'!B6/'CRICKET CLUB'!C6)*3))) -> 0 | D111: =IF('CRICKET CLUB'!F6="",0,(SUM(('CRICKET CLUB'!F6/'CRICKET CLUB'!G6)*3))) -> 0 | F111: =IF('CRICKET CLUB'!J6="",0,(SUM(('CRICKET CLUB'!J6/'CRICKET CLUB'!K6)*3))) -> 0 | H111: =IF('CRICKET CLUB'!N6="",0,(SUM(('CRICKET CLUB'!N6/'CRICKET CLUB'!O6)*3))) -> 0 | J111: =IF('CRICKET CLUB'!R6="",0,(SUM(('CRICKET CLUB'!R6/'CRICKET CLUB'!S6)*3))) -> 0 | L111: =IF('CRICKET CLUB'!V6="",0,(SUM(('CRICKET CLUB'!V6/'CRICKET CLUB'!W6)*3))) -> 0 | N111: =IF('CRICKET CLUB'!Z6="",0,(SUM(('CRICKET CLUB'!Z6/'CRICKET CLUB'!AA6)*3))) -> 0 | P111: =IF('CRICKET CLUB'!AD6="",0,(SUM(('CRICKET CLUB'!AD6/'CRICKET CLUB'!AE6)*3))) -> 0 | R111: =IF('CRICKET CLUB'!AH6="",0,(SUM(('CRICKET CLUB'!AH6/'CRICKET CLUB'!AI6)*3))) -> 0 | T111: =IF('CRICKET CLUB'!AL6="",0,(SUM(('CRICKET CLUB'!AL6/'CRICKET CLUB'!AM6)*3))) -> 0 | V111: =IF('CRICKET CLUB'!AP6="",0,(SUM(('CRICKET CLUB'!AP6/'CRICKET CLUB'!AQ6)*3))) -> 0 | X111: =IF('CRICKET CLUB'!AT6="",0,(SUM(('CRICKET CLUB'!AT6/'CRICKET CLUB'!AU6)*3))) -> 0 | Z111: =IF('CRICKET CLUB'!AX6="",0,(SUM(('CRICKET CLUB'!AX6/'CRICKET CLUB'!AY6)*3))) -> 0 | AB111: =IF('CRICKET CLUB'!BB6="",0,(SUM(('CRICKET CLUB'!BB6/'CRICKET CLUB'!BC6)*3))) -> 0 | AD111: =IF('CRICKET CLUB'!BF6="",0,(SUM(('CRICKET CLUB'!BF6/'CRICKET CLUB'!BG6)*3))) -> 0 | AF111: =IF('CRICKET CLUB'!BJ6="",0,(SUM(('CRICKET CLUB'!BJ6/'CRICKET CLUB'!BK6)*3))) -> 0 | AH111: =IF('CRICKET CLUB'!BN6="",0,(SUM(('CRICKET CLUB'!BN6/'CRICKET CLUB'!BO6)*3))) -> 0 | AJ111: =IF('CRICKET CLUB'!BR6="",0,(SUM(('CRICKET CLUB'!BR6/'CRICKET CLUB'!BS6)*3))) -> 0 | AL111: =IF('CRICKET CLUB'!BV6="",0,(SUM(('CRICKET CLUB'!BV6/'CRICKET CLUB'!BW6)*3))) -> 0 | AN111: =IF('CRICKET CLUB'!BZ6="",0,(SUM(('CRICKET CLUB'!BZ6/'CRICKET CLUB'!CA6)*3))) -> 0 | AP111: =IF('CRICKET CLUB'!CD6="",0,(SUM(('CRICKET CLUB'!CD6/'CRICKET CLUB'!CE6)*3))) -> 0 | AR111: =IF('CRICKET CLUB'!CH6="",0,(SUM(('CRICKET CLUB'!CH6/'CRICKET CLUB'!CI6)*3))) -> 0
B112: =IF('CRICKET CLUB'!B7="",0,(SUM(('CRICKET CLUB'!B7/'CRICKET CLUB'!C7)*3))) -> 77.88888889 | D112: =IF('CRICKET CLUB'!F7="",0,(SUM(('CRICKET CLUB'!F7/'CRICKET CLUB'!G7)*3))) -> 51.29268293 | F112: =IF('CRICKET CLUB'!J7="",0,(SUM(('CRICKET CLUB'!J7/'CRICKET CLUB'!K7)*3))) -> 0 | H112: =IF('CRICKET CLUB'!N7="",0,(SUM(('CRICKET CLUB'!N7/'CRICKET CLUB'!O7)*3))) -> 0 | J112: =IF('CRICKET CLUB'!R7="",0,(SUM(('CRICKET CLUB'!R7/'CRICKET CLUB'!S7)*3))) -> 84.12 | L112: =IF('CRICKET CLUB'!V7="",0,(SUM(('CRICKET CLUB'!V7/'CRICKET CLUB'!W7)*3))) -> 0 | N112: =IF('CRICKET CLUB'!Z7="",0,(SUM(('CRICKET CLUB'!Z7/'CRICKET CLUB'!AA7)*3))) -> 39.67924528 | P112: =IF('CRICKET CLUB'!AD7="",0,(SUM(('CRICKET CLUB'!AD7/'CRICKET CLUB'!AE7)*3))) -> 46.2 | R112: =IF('CRICKET CLUB'!AH7="",0,(SUM(('CRICKET CLUB'!AH7/'CRICKET CLUB'!AI7)*3))) -> 61.3 | T112: =IF('CRICKET CLUB'!AL7="",0,(SUM(('CRICKET CLUB'!AL7/'CRICKET CLUB'!AM7)*3))) -> 58.41666667 | V112: =IF('CRICKET CLUB'!AP7="",0,(SUM(('CRICKET CLUB'!AP7/'CRICKET CLUB'!AQ7)*3))) -> 72.51724138 | X112: =IF('CRICKET CLUB'!AT7="",0,(SUM(('CRICKET CLUB'!AT7/'CRICKET CLUB'!AU7)*3))) -> 63.36363636 | Z112: =IF('CRICKET CLUB'!AX7="",0,(SUM(('CRICKET CLUB'!AX7/'CRICKET CLUB'!AY7)*3))) -> 0 | AB112: =IF('CRICKET CLUB'!BB7="",0,(SUM(('CRICKET CLUB'!BB7/'CRICKET CLUB'!BC7)*3))) -> 61.85294118 | AD112: =IF('CRICKET CLUB'!BF7="",0,(SUM(('CRICKET CLUB'!BF7/'CRICKET CLUB'!BG7)*3))) -> 47.79545455 | AF112: =IF('CRICKET CLUB'!BJ7="",0,(SUM(('CRICKET CLUB'!BJ7/'CRICKET CLUB'!BK7)*3))) -> 35.05 | AH112: =IF('CRICKET CLUB'!BN7="",0,(SUM(('CRICKET CLUB'!BN7/'CRICKET CLUB'!BO7)*3))) -> 56.83783784 | AJ112: =IF('CRICKET CLUB'!BR7="",0,(SUM(('CRICKET CLUB'!BR7/'CRICKET CLUB'!BS7)*3))) -> 0 | AL112: =IF('CRICKET CLUB'!BV7="",0,(SUM(('CRICKET CLUB'!BV7/'CRICKET CLUB'!BW7)*3))) -> 0 | AN112: =IF('CRICKET CLUB'!BZ7="",0,(SUM(('CRICKET CLUB'!BZ7/'CRICKET CLUB'!CA7)*3))) -> 0 | AP112: =IF('CRICKET CLUB'!CD7="",0,(SUM(('CRICKET CLUB'!CD7/'CRICKET CLUB'!CE7)*3))) -> 0 | AR112: =IF('CRICKET CLUB'!CH7="",0,(SUM(('CRICKET CLUB'!CH7/'CRICKET CLUB'!CI7)*3))) -> 0
B113: =IF('CRICKET CLUB'!B8="",0,(SUM(('CRICKET CLUB'!B8/'CRICKET CLUB'!C8)*3))) -> 63.72727273 | D113: =IF('CRICKET CLUB'!F8="",0,(SUM(('CRICKET CLUB'!F8/'CRICKET CLUB'!G8)*3))) -> 63.72727273 | F113: =IF('CRICKET CLUB'!J8="",0,(SUM(('CRICKET CLUB'!J8/'CRICKET CLUB'!K8)*3))) -> 85.625 | H113: =IF('CRICKET CLUB'!N8="",0,(SUM(('CRICKET CLUB'!N8/'CRICKET CLUB'!O8)*3))) -> 0 | J113: =IF('CRICKET CLUB'!R8="",0,(SUM(('CRICKET CLUB'!R8/'CRICKET CLUB'!S8)*3))) -> 80.88461538 | L113: =IF('CRICKET CLUB'!V8="",0,(SUM(('CRICKET CLUB'!V8/'CRICKET CLUB'!W8)*3))) -> 0 | N113: =IF('CRICKET CLUB'!Z8="",0,(SUM(('CRICKET CLUB'!Z8/'CRICKET CLUB'!AA8)*3))) -> 0 | P113: =IF('CRICKET CLUB'!AD8="",0,(SUM(('CRICKET CLUB'!AD8/'CRICKET CLUB'!AE8)*3))) -> 75.10714286 | R113: =IF('CRICKET CLUB'!AH8="",0,(SUM(('CRICKET CLUB'!AH8/'CRICKET CLUB'!AI8)*3))) -> 67.83870968 | T113: =IF('CRICKET CLUB'!AL8="",0,(SUM(('CRICKET CLUB'!AL8/'CRICKET CLUB'!AM8)*3))) -> 110.6842105 | V113: =IF('CRICKET CLUB'!AP8="",0,(SUM(('CRICKET CLUB'!AP8/'CRICKET CLUB'!AQ8)*3))) -> 58.41666667 | X113: =IF('CRICKET CLUB'!AT8="",0,(SUM(('CRICKET CLUB'!AT8/'CRICKET CLUB'!AU8)*3))) -> 70.1 | Z113: =IF('CRICKET CLUB'!AX8="",0,(SUM(('CRICKET CLUB'!AX8/'CRICKET CLUB'!AY8)*3))) -> 0 | AB113: =IF('CRICKET CLUB'!BB8="",0,(SUM(('CRICKET CLUB'!BB8/'CRICKET CLUB'!BC8)*3))) -> 77.88888889 | AD113: =IF('CRICKET CLUB'!BF8="",0,(SUM(('CRICKET CLUB'!BF8/'CRICKET CLUB'!BG8)*3))) -> 77.88888889 | AF113: =IF('CRICKET CLUB'!BJ8="",0,(SUM(('CRICKET CLUB'!BJ8/'CRICKET CLUB'!BK8)*3))) -> 80.88461538 | AH113: =IF('CRICKET CLUB'!BN8="",0,(SUM(('CRICKET CLUB'!BN8/'CRICKET CLUB'!BO8)*3))) -> 91.43478261 | AJ113: =IF('CRICKET CLUB'!BR8="",0,(SUM(('CRICKET CLUB'!BR8/'CRICKET CLUB'!BS8)*3))) -> 63.72727273 | AL113: =IF('CRICKET CLUB'!BV8="",0,(SUM(('CRICKET CLUB'!BV8/'CRICKET CLUB'!BW8)*3))) -> 0 | AN113: =IF('CRICKET CLUB'!BZ8="",0,(SUM(('CRICKET CLUB'!BZ8/'CRICKET CLUB'!CA8)*3))) -> 0 | AP113: =IF('CRICKET CLUB'!CD8="",0,(SUM(('CRICKET CLUB'!CD8/'CRICKET CLUB'!CE8)*3))) -> 0 | AR113: =IF('CRICKET CLUB'!CH8="",0,(SUM(('CRICKET CLUB'!CH8/'CRICKET CLUB'!CI8)*3))) -> 0
B114: =IF('CRICKET CLUB'!B9="",0,(SUM(('CRICKET CLUB'!B9/'CRICKET CLUB'!C9)*3))) -> 58.41666667 | D114: =IF('CRICKET CLUB'!F9="",0,(SUM(('CRICKET CLUB'!F9/'CRICKET CLUB'!G9)*3))) -> 49.5 | F114: =IF('CRICKET CLUB'!J9="",0,(SUM(('CRICKET CLUB'!J9/'CRICKET CLUB'!K9)*3))) -> 55.34210526 | H114: =IF('CRICKET CLUB'!N9="",0,(SUM(('CRICKET CLUB'!N9/'CRICKET CLUB'!O9)*3))) -> 0 | J114: =IF('CRICKET CLUB'!R9="",0,(SUM(('CRICKET CLUB'!R9/'CRICKET CLUB'!S9)*3))) -> 51.29268293 | L114: =IF('CRICKET CLUB'!V9="",0,(SUM(('CRICKET CLUB'!V9/'CRICKET CLUB'!W9)*3))) -> 55.34210526 | N114: =IF('CRICKET CLUB'!Z9="",0,(SUM(('CRICKET CLUB'!Z9/'CRICKET CLUB'!AA9)*3))) -> 77.88888889 | P114: =IF('CRICKET CLUB'!AD9="",0,(SUM(('CRICKET CLUB'!AD9/'CRICKET CLUB'!AE9)*3))) -> 63.72727273 | R114: =IF('CRICKET CLUB'!AH9="",0,(SUM(('CRICKET CLUB'!AH9/'CRICKET CLUB'!AI9)*3))) -> 54.08333333 | T114: =IF('CRICKET CLUB'!AL9="",0,(SUM(('CRICKET CLUB'!AL9/'CRICKET CLUB'!AM9)*3))) -> 46.73333333 | V114: =IF('CRICKET CLUB'!AP9="",0,(SUM(('CRICKET CLUB'!AP9/'CRICKET CLUB'!AQ9)*3))) -> 50.84615385 | X114: =IF('CRICKET CLUB'!AT9="",0,(SUM(('CRICKET CLUB'!AT9/'CRICKET CLUB'!AU9)*3))) -> 56.83783784 | Z114: =IF('CRICKET CLUB'!AX9="",0,(SUM(('CRICKET CLUB'!AX9/'CRICKET CLUB'!AY9)*3))) -> 0 | AB114: =IF('CRICKET CLUB'!BB9="",0,(SUM(('CRICKET CLUB'!BB9/'CRICKET CLUB'!BC9)*3))) -> 65.71875 | AD114: =IF('CRICKET CLUB'!BF9="",0,(SUM(('CRICKET CLUB'!BF9/'CRICKET CLUB'!BG9)*3))) -> 65.71875 | AF114: =IF('CRICKET CLUB'!BJ9="",0,(SUM(('CRICKET CLUB'!BJ9/'CRICKET CLUB'!BK9)*3))) -> 67.83870968 | AH114: =IF('CRICKET CLUB'!BN9="",0,(SUM(('CRICKET CLUB'!BN9/'CRICKET CLUB'!BO9)*3))) -> 58.41666667 | AJ114: =IF('CRICKET CLUB'!BR9="",0,(SUM(('CRICKET CLUB'!BR9/'CRICKET CLUB'!BS9)*3))) -> 65.71875 | AL114: =IF('CRICKET CLUB'!BV9="",0,(SUM(('CRICKET CLUB'!BV9/'CRICKET CLUB'!BW9)*3))) -> 0 | AN114: =IF('CRICKET CLUB'!BZ9="",0,(SUM(('CRICKET CLUB'!BZ9/'CRICKET CLUB'!CA9)*3))) -> 0 | AP114: =IF('CRICKET CLUB'!CD9="",0,(SUM(('CRICKET CLUB'!CD9/'CRICKET CLUB'!CE9)*3))) -> 0 | AR114: =IF('CRICKET CLUB'!CH9="",0,(SUM(('CRICKET CLUB'!CH9/'CRICKET CLUB'!CI9)*3))) -> 0
B115: =IF('CRICKET CLUB'!B10="",0,(SUM(('CRICKET CLUB'!B10/'CRICKET CLUB'!C10)*3))) -> 0 | D115: =IF('CRICKET CLUB'!F10="",0,(SUM(('CRICKET CLUB'!F10/'CRICKET CLUB'!G10)*3))) -> 0 | F115: =IF('CRICKET CLUB'!J10="",0,(SUM(('CRICKET CLUB'!J10/'CRICKET CLUB'!K10)*3))) -> 0 | H115: =IF('CRICKET CLUB'!N10="",0,(SUM(('CRICKET CLUB'!N10/'CRICKET CLUB'!O10)*3))) -> 0 | J115: =IF('CRICKET CLUB'!R10="",0,(SUM(('CRICKET CLUB'!R10/'CRICKET CLUB'!S10)*3))) -> 0 | L115: =IF('CRICKET CLUB'!V10="",0,(SUM(('CRICKET CLUB'!V10/'CRICKET CLUB'!W10)*3))) -> 0 | N115: =IF('CRICKET CLUB'!Z10="",0,(SUM(('CRICKET CLUB'!Z10/'CRICKET CLUB'!AA10)*3))) -> 0 | P115: =IF('CRICKET CLUB'!AD10="",0,(SUM(('CRICKET CLUB'!AD10/'CRICKET CLUB'!AE10)*3))) -> 0 | R115: =IF('CRICKET CLUB'!AH10="",0,(SUM(('CRICKET CLUB'!AH10/'CRICKET CLUB'!AI10)*3))) -> 0 | T115: =IF('CRICKET CLUB'!AL10="",0,(SUM(('CRICKET CLUB'!AL10/'CRICKET CLUB'!AM10)*3))) -> 0 | V115: =IF('CRICKET CLUB'!AP10="",0,(SUM(('CRICKET CLUB'!AP10/'CRICKET CLUB'!AQ10)*3))) -> 0 | X115: =IF('CRICKET CLUB'!AT10="",0,(SUM(('CRICKET CLUB'!AT10/'CRICKET CLUB'!AU10)*3))) -> 0 | Z115: =IF('CRICKET CLUB'!AX10="",0,(SUM(('CRICKET CLUB'!AX10/'CRICKET CLUB'!AY10)*3))) -> 0 | AB115: =IF('CRICKET CLUB'!BB10="",0,(SUM(('CRICKET CLUB'!BB10/'CRICKET CLUB'!BC10)*3))) -> 0 | AD115: =IF('CRICKET CLUB'!BF10="",0,(SUM(('CRICKET CLUB'!BF10/'CRICKET CLUB'!BG10)*3))) -> 0 | AF115: =IF('CRICKET CLUB'!BJ10="",0,(SUM(('CRICKET CLUB'!BJ10/'CRICKET CLUB'!BK10)*3))) -> 0 | AH115: =IF('CRICKET CLUB'!BN10="",0,(SUM(('CRICKET CLUB'!BN10/'CRICKET CLUB'!BO10)*3))) -> 0 | AJ115: =IF('CRICKET CLUB'!BR10="",0,(SUM(('CRICKET CLUB'!BR10/'CRICKET CLUB'!BS10)*3))) -> 0 | AL115: =IF('CRICKET CLUB'!BV10="",0,(SUM(('CRICKET CLUB'!BV10/'CRICKET CLUB'!BW10)*3))) -> 0 | AN115: =IF('CRICKET CLUB'!BZ10="",0,(SUM(('CRICKET CLUB'!BZ10/'CRICKET CLUB'!CA10)*3))) -> 0 | AP115: =IF('CRICKET CLUB'!CD10="",0,(SUM(('CRICKET CLUB'!CD10/'CRICKET CLUB'!CE10)*3))) -> 0 | AR115: =IF('CRICKET CLUB'!CH10="",0,(SUM(('CRICKET CLUB'!CH10/'CRICKET CLUB'!CI10)*3))) -> 0
B116: =IF('CRICKET CLUB'!B11="",0,(SUM(('CRICKET CLUB'!B11/'CRICKET CLUB'!C11)*3))) -> 52.575 | D116: =IF('CRICKET CLUB'!F11="",0,(SUM(('CRICKET CLUB'!F11/'CRICKET CLUB'!G11)*3))) -> 63.72727273 | F116: =IF('CRICKET CLUB'!J11="",0,(SUM(('CRICKET CLUB'!J11/'CRICKET CLUB'!K11)*3))) -> 72.51724138 | H116: =IF('CRICKET CLUB'!N11="",0,(SUM(('CRICKET CLUB'!N11/'CRICKET CLUB'!O11)*3))) -> 0 | J116: =IF('CRICKET CLUB'!R11="",0,(SUM(('CRICKET CLUB'!R11/'CRICKET CLUB'!S11)*3))) -> 51.29268293 | L116: =IF('CRICKET CLUB'!V11="",0,(SUM(('CRICKET CLUB'!V11/'CRICKET CLUB'!W11)*3))) -> 42.6 | N116: =IF('CRICKET CLUB'!Z11="",0,(SUM(('CRICKET CLUB'!Z11/'CRICKET CLUB'!AA11)*3))) -> 0 | P116: =IF('CRICKET CLUB'!AD11="",0,(SUM(('CRICKET CLUB'!AD11/'CRICKET CLUB'!AE11)*3))) -> 0 | R116: =IF('CRICKET CLUB'!AH11="",0,(SUM(('CRICKET CLUB'!AH11/'CRICKET CLUB'!AI11)*3))) -> 0 | T116: =IF('CRICKET CLUB'!AL11="",0,(SUM(('CRICKET CLUB'!AL11/'CRICKET CLUB'!AM11)*3))) -> 0 | V116: =IF('CRICKET CLUB'!AP11="",0,(SUM(('CRICKET CLUB'!AP11/'CRICKET CLUB'!AQ11)*3))) -> 0 | X116: =IF('CRICKET CLUB'!AT11="",0,(SUM(('CRICKET CLUB'!AT11/'CRICKET CLUB'!AU11)*3))) -> 0 | Z116: =IF('CRICKET CLUB'!AX11="",0,(SUM(('CRICKET CLUB'!AX11/'CRICKET CLUB'!AY11)*3))) -> 0 | AB116: =IF('CRICKET CLUB'!BB11="",0,(SUM(('CRICKET CLUB'!BB11/'CRICKET CLUB'!BC11)*3))) -> 0 | AD116: =IF('CRICKET CLUB'!BF11="",0,(SUM(('CRICKET CLUB'!BF11/'CRICKET CLUB'!BG11)*3))) -> 0 | AF116: =IF('CRICKET CLUB'!BJ11="",0,(SUM(('CRICKET CLUB'!BJ11/'CRICKET CLUB'!BK11)*3))) -> 0 | AH116: =IF('CRICKET CLUB'!BN11="",0,(SUM(('CRICKET CLUB'!BN11/'CRICKET CLUB'!BO11)*3))) -> 0 | AJ116: =IF('CRICKET CLUB'!BR11="",0,(SUM(('CRICKET CLUB'!BR11/'CRICKET CLUB'!BS11)*3))) -> 0 | AL116: =IF('CRICKET CLUB'!BV11="",0,(SUM(('CRICKET CLUB'!BV11/'CRICKET CLUB'!BW11)*3))) -> 0 | AN116: =IF('CRICKET CLUB'!BZ11="",0,(SUM(('CRICKET CLUB'!BZ11/'CRICKET CLUB'!CA11)*3))) -> 0 | AP116: =IF('CRICKET CLUB'!CD11="",0,(SUM(('CRICKET CLUB'!CD11/'CRICKET CLUB'!CE11)*3))) -> 0 | AR116: =IF('CRICKET CLUB'!CH11="",0,(SUM(('CRICKET CLUB'!CH11/'CRICKET CLUB'!CI11)*3))) -> 0
B117: =IF('CRICKET CLUB'!B12="",0,(SUM(('CRICKET CLUB'!B12/'CRICKET CLUB'!C12)*3))) -> 0 | D117: =IF('CRICKET CLUB'!F12="",0,(SUM(('CRICKET CLUB'!F12/'CRICKET CLUB'!G12)*3))) -> 0 | F117: =IF('CRICKET CLUB'!J12="",0,(SUM(('CRICKET CLUB'!J12/'CRICKET CLUB'!K12)*3))) -> 37.11111111 | H117: =IF('CRICKET CLUB'!N12="",0,(SUM(('CRICKET CLUB'!N12/'CRICKET CLUB'!O12)*3))) -> 0 | J117: =IF('CRICKET CLUB'!R12="",0,(SUM(('CRICKET CLUB'!R12/'CRICKET CLUB'!S12)*3))) -> 0 | L117: =IF('CRICKET CLUB'!V12="",0,(SUM(('CRICKET CLUB'!V12/'CRICKET CLUB'!W12)*3))) -> 36.36842105 | N117: =IF('CRICKET CLUB'!Z12="",0,(SUM(('CRICKET CLUB'!Z12/'CRICKET CLUB'!AA12)*3))) -> 53.92307692 | P117: =IF('CRICKET CLUB'!AD12="",0,(SUM(('CRICKET CLUB'!AD12/'CRICKET CLUB'!AE12)*3))) -> 41.23529412 | R117: =IF('CRICKET CLUB'!AH12="",0,(SUM(('CRICKET CLUB'!AH12/'CRICKET CLUB'!AI12)*3))) -> 60.9 | T117: =IF('CRICKET CLUB'!AL12="",0,(SUM(('CRICKET CLUB'!AL12/'CRICKET CLUB'!AM12)*3))) -> 37.55357143 | V117: =IF('CRICKET CLUB'!AP12="",0,(SUM(('CRICKET CLUB'!AP12/'CRICKET CLUB'!AQ12)*3))) -> 43.5625 | X117: =IF('CRICKET CLUB'!AT12="",0,(SUM(('CRICKET CLUB'!AT12/'CRICKET CLUB'!AU12)*3))) -> 52.575 | Z117: =IF('CRICKET CLUB'!AX12="",0,(SUM(('CRICKET CLUB'!AX12/'CRICKET CLUB'!AY12)*3))) -> 0 | AB117: =IF('CRICKET CLUB'!BB12="",0,(SUM(('CRICKET CLUB'!BB12/'CRICKET CLUB'!BC12)*3))) -> 50.07142857 | AD117: =IF('CRICKET CLUB'!BF12="",0,(SUM(('CRICKET CLUB'!BF12/'CRICKET CLUB'!BG12)*3))) -> 36.89473684 | AF117: =IF('CRICKET CLUB'!BJ12="",0,(SUM(('CRICKET CLUB'!BJ12/'CRICKET CLUB'!BK12)*3))) -> 55.34210526 | AH117: =IF('CRICKET CLUB'!BN12="",0,(SUM(('CRICKET CLUB'!BN12/'CRICKET CLUB'!BO12)*3))) -> 67.83870968 | AJ117: =IF('CRICKET CLUB'!BR12="",0,(SUM(('CRICKET CLUB'!BR12/'CRICKET CLUB'!BS12)*3))) -> 46.16666667 | AL117: =IF('CRICKET CLUB'!BV12="",0,(SUM(('CRICKET CLUB'!BV12/'CRICKET CLUB'!BW12)*3))) -> 0 | AN117: =IF('CRICKET CLUB'!BZ12="",0,(SUM(('CRICKET CLUB'!BZ12/'CRICKET CLUB'!CA12)*3))) -> 0 | AP117: =IF('CRICKET CLUB'!CD12="",0,(SUM(('CRICKET CLUB'!CD12/'CRICKET CLUB'!CE12)*3))) -> 0 | AR117: =IF('CRICKET CLUB'!CH12="",0,(SUM(('CRICKET CLUB'!CH12/'CRICKET CLUB'!CI12)*3))) -> 0
B118: =IF('CRICKET CLUB'!B13="",0,(SUM(('CRICKET CLUB'!B13/'CRICKET CLUB'!C13)*3))) -> 38.83333333 | D118: =IF('CRICKET CLUB'!F13="",0,(SUM(('CRICKET CLUB'!F13/'CRICKET CLUB'!G13)*3))) -> 52.38461538 | F118: =IF('CRICKET CLUB'!J13="",0,(SUM(('CRICKET CLUB'!J13/'CRICKET CLUB'!K13)*3))) -> 62.33333333 | H118: =IF('CRICKET CLUB'!N13="",0,(SUM(('CRICKET CLUB'!N13/'CRICKET CLUB'!O13)*3))) -> 0 | J118: =IF('CRICKET CLUB'!R13="",0,(SUM(('CRICKET CLUB'!R13/'CRICKET CLUB'!S13)*3))) -> 52.84615385 | L118: =IF('CRICKET CLUB'!V13="",0,(SUM(('CRICKET CLUB'!V13/'CRICKET CLUB'!W13)*3))) -> 46.73333333 | N118: =IF('CRICKET CLUB'!Z13="",0,(SUM(('CRICKET CLUB'!Z13/'CRICKET CLUB'!AA13)*3))) -> 61.85294118 | P118: =IF('CRICKET CLUB'!AD13="",0,(SUM(('CRICKET CLUB'!AD13/'CRICKET CLUB'!AE13)*3))) -> 0 | R118: =IF('CRICKET CLUB'!AH13="",0,(SUM(('CRICKET CLUB'!AH13/'CRICKET CLUB'!AI13)*3))) -> 61.85294118 | T118: =IF('CRICKET CLUB'!AL13="",0,(SUM(('CRICKET CLUB'!AL13/'CRICKET CLUB'!AM13)*3))) -> 47.79545455 | V118: =IF('CRICKET CLUB'!AP13="",0,(SUM(('CRICKET CLUB'!AP13/'CRICKET CLUB'!AQ13)*3))) -> 55.75 | X118: =IF('CRICKET CLUB'!AT13="",0,(SUM(('CRICKET CLUB'!AT13/'CRICKET CLUB'!AU13)*3))) -> 58.41666667 | Z118: =IF('CRICKET CLUB'!AX13="",0,(SUM(('CRICKET CLUB'!AX13/'CRICKET CLUB'!AY13)*3))) -> 0 | AB118: =IF('CRICKET CLUB'!BB13="",0,(SUM(('CRICKET CLUB'!BB13/'CRICKET CLUB'!BC13)*3))) -> 55.34210526 | AD118: =IF('CRICKET CLUB'!BF13="",0,(SUM(('CRICKET CLUB'!BF13/'CRICKET CLUB'!BG13)*3))) -> 75.10714286 | AF118: =IF('CRICKET CLUB'!BJ13="",0,(SUM(('CRICKET CLUB'!BJ13/'CRICKET CLUB'!BK13)*3))) -> 56.83783784 | AH118: =IF('CRICKET CLUB'!BN13="",0,(SUM(('CRICKET CLUB'!BN13/'CRICKET CLUB'!BO13)*3))) -> 67.83870968 | AJ118: =IF('CRICKET CLUB'!BR13="",0,(SUM(('CRICKET CLUB'!BR13/'CRICKET CLUB'!BS13)*3))) -> 56.83783784 | AL118: =IF('CRICKET CLUB'!BV13="",0,(SUM(('CRICKET CLUB'!BV13/'CRICKET CLUB'!BW13)*3))) -> 0 | AN118: =IF('CRICKET CLUB'!BZ13="",0,(SUM(('CRICKET CLUB'!BZ13/'CRICKET CLUB'!CA13)*3))) -> 0 | AP118: =IF('CRICKET CLUB'!CD13="",0,(SUM(('CRICKET CLUB'!CD13/'CRICKET CLUB'!CE13)*3))) -> 0 | AR118: =IF('CRICKET CLUB'!CH13="",0,(SUM(('CRICKET CLUB'!CH13/'CRICKET CLUB'!CI13)*3))) -> 0
B119: =IF('CRICKET CLUB'!B14="",0,(SUM(('CRICKET CLUB'!B14/'CRICKET CLUB'!C14)*3))) -> 0 | D119: =IF('CRICKET CLUB'!F14="",0,(SUM(('CRICKET CLUB'!F14/'CRICKET CLUB'!G14)*3))) -> 0 | F119: =IF('CRICKET CLUB'!J14="",0,(SUM(('CRICKET CLUB'!J14/'CRICKET CLUB'!K14)*3))) -> 0 | H119: =IF('CRICKET CLUB'!N14="",0,(SUM(('CRICKET CLUB'!N14/'CRICKET CLUB'!O14)*3))) -> 0 | J119: =IF('CRICKET CLUB'!R14="",0,(SUM(('CRICKET CLUB'!R14/'CRICKET CLUB'!S14)*3))) -> 0 | L119: =IF('CRICKET CLUB'!V14="",0,(SUM(('CRICKET CLUB'!V14/'CRICKET CLUB'!W14)*3))) -> 0 | N119: =IF('CRICKET CLUB'!Z14="",0,(SUM(('CRICKET CLUB'!Z14/'CRICKET CLUB'!AA14)*3))) -> 0 | P119: =IF('CRICKET CLUB'!AD14="",0,(SUM(('CRICKET CLUB'!AD14/'CRICKET CLUB'!AE14)*3))) -> 0 | R119: =IF('CRICKET CLUB'!AH14="",0,(SUM(('CRICKET CLUB'!AH14/'CRICKET CLUB'!AI14)*3))) -> 0 | T119: =IF('CRICKET CLUB'!AL14="",0,(SUM(('CRICKET CLUB'!AL14/'CRICKET CLUB'!AM14)*3))) -> 0 | V119: =IF('CRICKET CLUB'!AP14="",0,(SUM(('CRICKET CLUB'!AP14/'CRICKET CLUB'!AQ14)*3))) -> 0 | X119: =IF('CRICKET CLUB'!AT14="",0,(SUM(('CRICKET CLUB'!AT14/'CRICKET CLUB'!AU14)*3))) -> 0 | Z119: =IF('CRICKET CLUB'!AX14="",0,(SUM(('CRICKET CLUB'!AX14/'CRICKET CLUB'!AY14)*3))) -> 0 | AB119: =IF('CRICKET CLUB'!BB14="",0,(SUM(('CRICKET CLUB'!BB14/'CRICKET CLUB'!BC14)*3))) -> 0 | AD119: =IF('CRICKET CLUB'!BF14="",0,(SUM(('CRICKET CLUB'!BF14/'CRICKET CLUB'!BG14)*3))) -> 0 | AF119: =IF('CRICKET CLUB'!BJ14="",0,(SUM(('CRICKET CLUB'!BJ14/'CRICKET CLUB'!BK14)*3))) -> 0 | AH119: =IF('CRICKET CLUB'!BN14="",0,(SUM(('CRICKET CLUB'!BN14/'CRICKET CLUB'!BO14)*3))) -> 0 | AJ119: =IF('CRICKET CLUB'!BR14="",0,(SUM(('CRICKET CLUB'!BR14/'CRICKET CLUB'!BS14)*3))) -> 0 | AL119: =IF('CRICKET CLUB'!BV14="",0,(SUM(('CRICKET CLUB'!BV14/'CRICKET CLUB'!BW14)*3))) -> 0 | AN119: =IF('CRICKET CLUB'!BZ14="",0,(SUM(('CRICKET CLUB'!BZ14/'CRICKET CLUB'!CA14)*3))) -> 0 | AP119: =IF('CRICKET CLUB'!CD14="",0,(SUM(('CRICKET CLUB'!CD14/'CRICKET CLUB'!CE14)*3))) -> 0 | AR119: =IF('CRICKET CLUB'!CH14="",0,(SUM(('CRICKET CLUB'!CH14/'CRICKET CLUB'!CI14)*3))) -> 0
A121: GOLDEN LION B | B121: 11/09/2006 V RAFA 'A' (A)
B122: W/L | C122: AVG | D122: W/L | E122: AVG | F122: W/L | G122: AVG | H122: W/L | I122: AVG | J122: W/L | K122: AVG | L122: W/L | M122: AVG | N122: W/L | O122: AVG | P122: W/L | Q122: AVG | R122: W/L | S122: AVG | T122: W/L | U122: AVG | V122: W/L | W122: AVG | X122: W/L | Y122: AVG | Z122: W/L | AA122: AVG | AB122: W/L | AC122: AVG | AD122: W/L | AE122: AVG | AF122: W/L | AG122: AVG | AH122: W/L | AI122: AVG | AJ122: W/L | AK122: AVG | AL122: W/L | AM122: AVG | AN122: W/L | AO122: AVG | AP122: W/L | AQ122: AVG | AR122: W/L | AS122: AVG
A123: =CROWN!A3 -> Mark Outram | B123: =IF(C136=1,B136,"") -> LOST | C123: =IF(B148>0,B148,"") -> 62.63636364 | D123: =IF(E136=1,D136,"") -> WON | E123: =IF(D148>0,D148,"") -> 50.07142857 | F123: =IF(G136=1,F136,"") ->  | G123: =IF(F148>0,F148,"") ->  | H123: =IF(I136=1,H136,"") -> WON | I123: =IF(H148>0,H148,"") -> 70.1 | J123: =IF(K136=1,J136,"") -> LOST | K123: =IF(J148>0,J148,"") -> 36.63157895 | L123: =IF(M136=1,L136,"") -> LOST | M123: =IF(L148>0,L148,"") -> 52.16666667 | N123: =IF(O136=1,N136,"") -> LOST | O123: =IF(N148>0,N148,"") -> 46.41666667 | P123: =IF(Q136=1,P136,"") -> LOST | Q123: =IF(P148>0,P148,"") -> 37.63636364 | R123: =IF(S136=1,R136,"") -> WON | S123: =IF(R148>0,R148,"") -> 56.83783784 | T123: =IF(U136=1,T136,"") -> WON | U123: =IF(T148>0,T148,"") -> 51.29268293 | V123: =IF(W136=1,V136,"") -> WON | W123: =IF(V148>0,V148,"") -> 55.34210526 | X123: =IF(Y136=1,X136,"") ->  | Y123: =IF(X148>0,X148,"") ->  | Z123: =IF(AA136=1,Z136,"") -> LOST | AA123: =IF(Z148>0,Z148,"") -> 44.14285714 | AB123: =IF(AC136=1,AB136,"") -> LOST | AC123: =IF(AB148>0,AB148,"") -> 43.33333333 | AD123: =IF(AE136=1,AD136,"") -> WON | AE123: =IF(AD148>0,AD148,"") -> 55.34210526 | AF123: =IF(AG136=1,AF136,"") -> LOST | AG123: =IF(AF148>0,AF148,"") -> 44.92307692 | AH123: =IF(AI136=1,AH136,"") -> LOST | AI123: =IF(AH148>0,AH148,"") -> 51.18181818 | AJ123: =IF(AK136=1,AJ136,"") -> LOST | AK123: =IF(AJ148>0,AJ148,"") -> 62.63636364 | AL123: =IF(AM136=1,AL136,"") ->  | AM123: =IF(AL148>0,AL148,"") ->  | AN123: =IF(AO136=1,AN136,"") ->  | AO123: =IF(AN148>0,AN148,"") ->  | AP123: =IF(AQ136=1,AP136,"") ->  | AQ123: =IF(AP148>0,AP148,"") ->  | AR123: =IF(AS136=1,AR136,"") ->  | AS123: =IF(AR148>0,AR148,"") -> 
A124: =CROWN!A4 -> Dave Thornton | B124: =IF(C137=1,B137,"") ->  | C124: =IF(B149>0,B149,"") ->  | D124: =IF(E137=1,D137,"") -> LOST | E124: =IF(D149>0,D149,"") -> 50.47058824 | F124: =IF(G137=1,F137,"") ->  | G124: =IF(F149>0,F149,"") ->  | H124: =IF(I137=1,H137,"") ->  | I124: =IF(H149>0,H149,"") ->  | J124: =IF(K137=1,J137,"") -> LOST | K124: =IF(J149>0,J149,"") -> 38.72222222 | L124: =IF(M137=1,L137,"") -> LOST | M124: =IF(L149>0,L149,"") -> 44.18181818 | N124: =IF(O137=1,N137,"") ->  | O124: =IF(N149>0,N149,"") ->  | P124: =IF(Q137=1,P137,"") ->  | Q124: =IF(P149>0,P149,"") ->  | R124: =IF(S137=1,R137,"") ->  | S124: =IF(R149>0,R149,"") ->  | T124: =IF(U137=1,T137,"") ->  | U124: =IF(T149>0,T149,"") ->  | V124: =IF(W137=1,V137,"") ->  | W124: =IF(V149>0,V149,"") ->  | X124: =IF(Y137=1,X137,"") ->  | Y124: =IF(X149>0,X149,"") ->  | Z124: =IF(AA137=1,Z137,"") -> LOST | AA124: =IF(Z149>0,Z149,"") -> 49.35714286 | AB124: =IF(AC137=1,AB137,"") -> LOST | AC124: =IF(AB149>0,AB149,"") -> 40.94117647 | AD124: =IF(AE137=1,AD137,"") ->  | AE124: =IF(AD149>0,AD149,"") ->  | AF124: =IF(AG137=1,AF137,"") ->  | AG124: =IF(AF149>0,AF149,"") ->  | AH124: =IF(AI137=1,AH137,"") ->  | AI124: =IF(AH149>0,AH149,"") ->  | AJ124: =IF(AK137=1,AJ137,"") -> WON | AK124: =IF(AJ149>0,AJ149,"") -> 35.6440678 | AL124: =IF(AM137=1,AL137,"") ->  | AM124: =IF(AL149>0,AL149,"") ->  | AN124: =IF(AO137=1,AN137,"") ->  | AO124: =IF(AN149>0,AN149,"") ->  | AP124: =IF(AQ137=1,AP137,"") ->  | AQ124: =IF(AP149>0,AP149,"") ->  | AR124: =IF(AS137=1,AR137,"") ->  | AS124: =IF(AR149>0,AR149,"") -> 
A125: =CROWN!A5 -> Dean Wakeling | B125: LOST | C125: 46.33333333 | H125: WON | I125: 36.89473684 | N125: LOST | O125: 41 | P125: LOST | Q125: 33.88888889 | T125: LOST | U125: 24.9 | AD125: LOST | AE125: 36.26666667 | AF125: LOST | AG125: 35.92307692 | AH125: LOST | AI125: 38.61538462
A126: =CROWN!A6 -> David Langthorne | B126: LOST | C126: 38.05555556 | D126: LOST | E126: 33 | H126: LOST | I126: 44.06666667 | J126: WON | K126: 63.72727273 | L126: WON | M126: 63.72727273 | N126: LOST | O126: 34.70588235 | P126: LOST | Q126: 45.81818182 | R126: LOST | S126: 50.70731707 | T126: LOST | U126: 43.86666667 | V126: LOST | W126: 50.7 | Z126: LOST | AA126: 47.61538462 | AB126: WON | AC126: 46.73333333 | AD126: WON | AE126: 42.06 | AF126: LOST | AG126: 36.3 | AH126: LOST | AI126: 29.85714286 | AJ126: LOST | AK126: 44.76923077
A127: =CROWN!A7 -> Tony Bell
A128: =CROWN!A8 -> Chris Cockerline | B128: WON | C128: 38.94444444 | D128: WON | E128: 36.25862069 | H128: LOST | I128: 46.85714286 | J128: LOST | K128: 51 | L128: WON | M128: 43.8125 | N128: LOST | O128: 44.63636364 | P128: LOST | Q128: 43.4 | R128: LOST | S128: 46.16666667 | V128: LOST | W128: 38.92307692 | Z128: LOST | AA128: 47.21428571 | AB128: LOST | AC128: 40.0625 | AD128: LOST | AE128: 45.13333333 | AF128: LOST | AG128: 44.75 | AH128: LOST | AI128: 40.63636364 | AJ128: WON | AK128: 33.38095238
A129: =CROWN!A9 -> Mark Natttrass | B129: LOST | C129: 46.15384615 | D129: LOST | E129: 46.25 | H129: LOST | I129: 39.53846154 | J129: WON | K129: 41.23529412 | L129: WON | M129: 44.74468085 | N129: LOST | O129: 33.77777778 | P129: LOST | Q129: 33.84615385 | R129: LOST | S129: 25.88235294 | T129: LOST | U129: 42.15384615 | V129: LOST | W129: 42.63636364 | Z129: WON | AA129: 46.73333333 | AB129: LOST | AC129: 34.8 | AD129: LOST | AE129: 43.6875 | AF129: LOST | AG129: 36.63157895 | AH129: LOST | AI129: 35.27777778 | AJ129: LOST | AK129: 39.66666667
A130: =CROWN!A10 -> Phil Teare | B130: LOST | C130: 48.69230769 | D130: LOST | E130: 47.33333333 | H130: LOST | I130: 49.64285714 | J130: WON | K130: 52.575 | L130: LOST | M130: 50.16666667 | N130: LOST | O130: 46.77777778 | P130: WON | Q130: 53.92307692 | R130: WON | S130: 45.7173913 | T130: LOST | U130: 46.06666667 | V130: WON | W130: 56.83783784 | Z130: LOST | AA130: 66.55555556 | AB130: WON | AC130: 36.25862069 | AD130: WON | AE130: 48.90697674 | AF130: LOST | AG130: 44.6 | AH130: LOST | AI130: 51.36363636 | AJ130: LOST | AK130: 43.84615385
A131: =CROWN!A11 -> Richard Salton | T131: LOST | U131: 38.11111111
A132: =CROWN!A12 -> Shaun Raynor
A133: =CROWN!A13 -> Adam Carter
A134: =CROWN!A14 -> Tim Bowman
A136: GOLDEN LION B | B136: =IF(CROWN!B3=701,"WON","LOST") -> LOST | C136: =IF(CROWN!B3>0,1,0) -> 1 | D136: =IF(CROWN!F3=701,"WON","LOST") -> WON | E136: =IF(CROWN!F3>0,1,0) -> 1 | F136: =IF(CROWN!J3=701,"WON","LOST") -> LOST | G136: =IF(CROWN!J3>0,1,0) -> 0 | H136: =IF(CROWN!N3=701,"WON","LOST") -> WON | I136: =IF(CROWN!N3>0,1,0) -> 1 | J136: =IF(CROWN!R3=701,"WON","LOST") -> LOST | K136: =IF(CROWN!R3>0,1,0) -> 1 | L136: =IF(CROWN!V3=701,"WON","LOST") -> LOST | M136: =IF(CROWN!V3>0,1,0) -> 1 | N136: =IF(CROWN!Z3=701,"WON","LOST") -> LOST | O136: =IF(CROWN!Z3>0,1,0) -> 1 | P136: =IF(CROWN!AD3=701,"WON","LOST") -> LOST | Q136: =IF(CROWN!AD3>0,1,0) -> 1 | R136: =IF(CROWN!AH3=701,"WON","LOST") -> WON | S136: =IF(CROWN!AH3>0,1,0) -> 1 | T136: =IF(CROWN!AL3=701,"WON","LOST") -> WON | U136: =IF(CROWN!AL3>0,1,0) -> 1 | V136: =IF(CROWN!AP3=701,"WON","LOST") -> WON | W136: =IF(CROWN!AP3>0,1,0) -> 1 | X136: =IF(CROWN!AT3=701,"WON","LOST") -> LOST | Y136: =IF(CROWN!AT3>0,1,0) -> 0 | Z136: =IF(CROWN!AX3=701,"WON","LOST") -> LOST | AA136: =IF(CROWN!AX3>0,1,0) -> 1 | AB136: =IF(CROWN!BB3=701,"WON","LOST") -> LOST | AC136: =IF(CROWN!BB3>0,1,0) -> 1 | AD136: =IF(CROWN!BF3=701,"WON","LOST") -> WON | AE136: =IF(CROWN!BF3>0,1,0) -> 1 | AF136: =IF(CROWN!BJ3=701,"WON","LOST") -> LOST | AG136: =IF(CROWN!BJ3>0,1,0) -> 1 | AH136: =IF(CROWN!BN3=701,"WON","LOST") -> LOST | AI136: =IF(CROWN!BN3>0,1,0) -> 1 | AJ136: =IF(CROWN!BR3=701,"WON","LOST") -> LOST | AK136: =IF(CROWN!BR3>0,1,0) -> 1 | AL136: =IF(CROWN!BV3=701,"WON","LOST") -> LOST | AM136: =IF(CROWN!BV3>0,1,0) -> 0 | AN136: =IF(CROWN!BZ3=701,"WON","LOST") -> LOST | AO136: =IF(CROWN!BZ3>0,1,0) -> 0 | AP136: =IF(CROWN!CD3=701,"WON","LOST") -> LOST | AQ136: =IF(CROWN!CD3>0,1,0) -> 0 | AR136: =IF(CROWN!CH3=701,"WON","LOST") -> LOST | AS136: =IF(CROWN!CH3>0,1,0) -> 0
B137: =IF(CROWN!B4=701,"WON","LOST") -> LOST | C137: =IF(CROWN!B4>0,1,0) -> 0 | D137: =IF(CROWN!F4=701,"WON","LOST") -> LOST | E137: =IF(CROWN!F4>0,1,0) -> 1 | F137: =IF(CROWN!J4=701,"WON","LOST") -> LOST | G137: =IF(CROWN!J4>0,1,0) -> 0 | H137: =IF(CROWN!N4=701,"WON","LOST") -> LOST | I137: =IF(CROWN!N4>0,1,0) -> 0 | J137: =IF(CROWN!R4=701,"WON","LOST") -> LOST | K137: =IF(CROWN!R4>0,1,0) -> 1 | L137: =IF(CROWN!V4=701,"WON","LOST") -> LOST | M137: =IF(CROWN!V4>0,1,0) -> 1 | N137: =IF(CROWN!Z4=701,"WON","LOST") -> LOST | O137: =IF(CROWN!Z4>0,1,0) -> 0 | P137: =IF(CROWN!AD4=701,"WON","LOST") -> LOST | Q137: =IF(CROWN!AD4>0,1,0) -> 0 | R137: =IF(CROWN!AH4=701,"WON","LOST") -> LOST | S137: =IF(CROWN!AH4>0,1,0) -> 0 | T137: =IF(CROWN!AL4=701,"WON","LOST") -> LOST | U137: =IF(CROWN!AL4>0,1,0) -> 0 | V137: =IF(CROWN!AP4=701,"WON","LOST") -> LOST | W137: =IF(CROWN!AP4>0,1,0) -> 0 | X137: =IF(CROWN!AT4=701,"WON","LOST") -> LOST | Y137: =IF(CROWN!AT4>0,1,0) -> 0 | Z137: =IF(CROWN!AX4=701,"WON","LOST") -> LOST | AA137: =IF(CROWN!AX4>0,1,0) -> 1 | AB137: =IF(CROWN!BB4=701,"WON","LOST") -> LOST | AC137: =IF(CROWN!BB4>0,1,0) -> 1 | AD137: =IF(CROWN!BF4=701,"WON","LOST") -> LOST | AE137: =IF(CROWN!BF4>0,1,0) -> 0 | AF137: =IF(CROWN!BJ4=701,"WON","LOST") -> LOST | AG137: =IF(CROWN!BJ4>0,1,0) -> 0 | AH137: =IF(CROWN!BN4=701,"WON","LOST") -> LOST | AI137: =IF(CROWN!BN4>0,1,0) -> 0 | AJ137: =IF(CROWN!BR4=701,"WON","LOST") -> WON | AK137: =IF(CROWN!BR4>0,1,0) -> 1 | AL137: =IF(CROWN!BV4=701,"WON","LOST") -> LOST | AM137: =IF(CROWN!BV4>0,1,0) -> 0 | AN137: =IF(CROWN!BZ4=701,"WON","LOST") -> LOST | AO137: =IF(CROWN!BZ4>0,1,0) -> 0 | AP137: =IF(CROWN!CD4=701,"WON","LOST") -> LOST | AQ137: =IF(CROWN!CD4>0,1,0) -> 0 | AR137: =IF(CROWN!CH4=701,"WON","LOST") -> LOST | AS137: =IF(CROWN!CH4>0,1,0) -> 0
B138: =IF(CROWN!B5=701,"WON","LOST") -> LOST | C138: =IF(CROWN!B5>0,1,0) -> 1 | D138: =IF(CROWN!F5=701,"WON","LOST") -> LOST | E138: =IF(CROWN!F5>0,1,0) -> 0 | F138: =IF(CROWN!J5=701,"WON","LOST") -> LOST | G138: =IF(CROWN!J5>0,1,0) -> 0 | H138: =IF(CROWN!N5=701,"WON","LOST") -> WON | I138: =IF(CROWN!N5>0,1,0) -> 1 | J138: =IF(CROWN!R5=701,"WON","LOST") -> LOST | K138: =IF(CROWN!R5>0,1,0) -> 0 | L138: =IF(CROWN!V5=701,"WON","LOST") -> LOST | M138: =IF(CROWN!V5>0,1,0) -> 0 | N138: =IF(CROWN!Z5=701,"WON","LOST") -> LOST | O138: =IF(CROWN!Z5>0,1,0) -> 1 | P138: =IF(CROWN!AD5=701,"WON","LOST") -> LOST | Q138: =IF(CROWN!AD5>0,1,0) -> 1 | R138: =IF(CROWN!AH5=701,"WON","LOST") -> LOST | S138: =IF(CROWN!AH5>0,1,0) -> 0 | T138: =IF(CROWN!AL5=701,"WON","LOST") -> LOST | U138: =IF(CROWN!AL5>0,1,0) -> 1 | V138: =IF(CROWN!AP5=701,"WON","LOST") -> LOST | W138: =IF(CROWN!AP5>0,1,0) -> 0 | X138: =IF(CROWN!AT5=701,"WON","LOST") -> LOST | Y138: =IF(CROWN!AT5>0,1,0) -> 0 | Z138: =IF(CROWN!AX5=701,"WON","LOST") -> LOST | AA138: =IF(CROWN!AX5>0,1,0) -> 0 | AB138: =IF(CROWN!BB5=701,"WON","LOST") -> LOST | AC138: =IF(CROWN!BB5>0,1,0) -> 0 | AD138: =IF(CROWN!BF5=701,"WON","LOST") -> LOST | AE138: =IF(CROWN!BF5>0,1,0) -> 1 | AF138: =IF(CROWN!BJ5=701,"WON","LOST") -> LOST | AG138: =IF(CROWN!BJ5>0,1,0) -> 1 | AH138: =IF(CROWN!BN5=701,"WON","LOST") -> LOST | AI138: =IF(CROWN!BN5>0,1,0) -> 1 | AJ138: =IF(CROWN!BR5=701,"WON","LOST") -> LOST | AK138: =IF(CROWN!BR5>0,1,0) -> 0 | AL138: =IF(CROWN!BV5=701,"WON","LOST") -> LOST | AM138: =IF(CROWN!BV5>0,1,0) -> 0 | AN138: =IF(CROWN!BZ5=701,"WON","LOST") -> LOST | AO138: =IF(CROWN!BZ5>0,1,0) -> 0 | AP138: =IF(CROWN!CD5=701,"WON","LOST") -> LOST | AQ138: =IF(CROWN!CD5>0,1,0) -> 0 | AR138: =IF(CROWN!CH5=701,"WON","LOST") -> LOST | AS138: =IF(CROWN!CH5>0,1,0) -> 0
B139: =IF(CROWN!B6=701,"WON","LOST") -> LOST | C139: =IF(CROWN!B6>0,1,0) -> 1 | D139: =IF(CROWN!F6=701,"WON","LOST") -> LOST | E139: =IF(CROWN!F6>0,1,0) -> 1 | F139: =IF(CROWN!J6=701,"WON","LOST") -> LOST | G139: =IF(CROWN!J6>0,1,0) -> 0 | H139: =IF(CROWN!N6=701,"WON","LOST") -> LOST | I139: =IF(CROWN!N6>0,1,0) -> 1 | J139: =IF(CROWN!R6=701,"WON","LOST") -> WON | K139: =IF(CROWN!R6>0,1,0) -> 1 | L139: =IF(CROWN!V6=701,"WON","LOST") -> WON | M139: =IF(CROWN!V6>0,1,0) -> 1 | N139: =IF(CROWN!Z6=701,"WON","LOST") -> LOST | O139: =IF(CROWN!Z6>0,1,0) -> 1 | P139: =IF(CROWN!AD6=701,"WON","LOST") -> LOST | Q139: =IF(CROWN!AD6>0,1,0) -> 1 | R139: =IF(CROWN!AH6=701,"WON","LOST") -> LOST | S139: =IF(CROWN!AH6>0,1,0) -> 1 | T139: =IF(CROWN!AL6=701,"WON","LOST") -> LOST | U139: =IF(CROWN!AL6>0,1,0) -> 1 | V139: =IF(CROWN!AP6=701,"WON","LOST") -> LOST | W139: =IF(CROWN!AP6>0,1,0) -> 1 | X139: =IF(CROWN!AT6=701,"WON","LOST") -> LOST | Y139: =IF(CROWN!AT6>0,1,0) -> 0 | Z139: =IF(CROWN!AX6=701,"WON","LOST") -> LOST | AA139: =IF(CROWN!AX6>0,1,0) -> 1 | AB139: =IF(CROWN!BB6=701,"WON","LOST") -> WON | AC139: =IF(CROWN!BB6>0,1,0) -> 1 | AD139: =IF(CROWN!BF6=701,"WON","LOST") -> WON | AE139: =IF(CROWN!BF6>0,1,0) -> 1 | AF139: =IF(CROWN!BJ6=701,"WON","LOST") -> LOST | AG139: =IF(CROWN!BJ6>0,1,0) -> 1 | AH139: =IF(CROWN!BN6=701,"WON","LOST") -> LOST | AI139: =IF(CROWN!BN6>0,1,0) -> 1 | AJ139: =IF(CROWN!BR6=701,"WON","LOST") -> LOST | AK139: =IF(CROWN!BR6>0,1,0) -> 1 | AL139: =IF(CROWN!BV6=701,"WON","LOST") -> LOST | AM139: =IF(CROWN!BV6>0,1,0) -> 0 | AN139: =IF(CROWN!BZ6=701,"WON","LOST") -> LOST | AO139: =IF(CROWN!BZ6>0,1,0) -> 0 | AP139: =IF(CROWN!CD6=701,"WON","LOST") -> LOST | AQ139: =IF(CROWN!CD6>0,1,0) -> 0 | AR139: =IF(CROWN!CH6=701,"WON","LOST") -> LOST | AS139: =IF(CROWN!CH6>0,1,0) -> 0
B140: =IF(CROWN!B7=701,"WON","LOST") -> LOST | C140: =IF(CROWN!B7>0,1,0) -> 0 | D140: =IF(CROWN!F7=701,"WON","LOST") -> LOST | E140: =IF(CROWN!F7>0,1,0) -> 0 | F140: =IF(CROWN!J7=701,"WON","LOST") -> LOST | G140: =IF(CROWN!J7>0,1,0) -> 0 | H140: =IF(CROWN!N7=701,"WON","LOST") -> LOST | I140: =IF(CROWN!N7>0,1,0) -> 0 | J140: =IF(CROWN!R7=701,"WON","LOST") -> LOST | K140: =IF(CROWN!R7>0,1,0) -> 0 | L140: =IF(CROWN!V7=701,"WON","LOST") -> LOST | M140: =IF(CROWN!V7>0,1,0) -> 0 | N140: =IF(CROWN!Z7=701,"WON","LOST") -> LOST | O140: =IF(CROWN!Z7>0,1,0) -> 0 | P140: =IF(CROWN!AD7=701,"WON","LOST") -> LOST | Q140: =IF(CROWN!AD7>0,1,0) -> 0 | R140: =IF(CROWN!AH7=701,"WON","LOST") -> LOST | S140: =IF(CROWN!AH7>0,1,0) -> 0 | T140: =IF(CROWN!AL7=701,"WON","LOST") -> LOST | U140: =IF(CROWN!AL7>0,1,0) -> 0 | V140: =IF(CROWN!AP7=701,"WON","LOST") -> LOST | W140: =IF(CROWN!AP7>0,1,0) -> 0 | X140: =IF(CROWN!AT7=701,"WON","LOST") -> LOST | Y140: =IF(CROWN!AT7>0,1,0) -> 0 | Z140: =IF(CROWN!AX7=701,"WON","LOST") -> LOST | AA140: =IF(CROWN!AX7>0,1,0) -> 0 | AB140: =IF(CROWN!BB7=701,"WON","LOST") -> LOST | AC140: =IF(CROWN!BB7>0,1,0) -> 0 | AD140: =IF(CROWN!BF7=701,"WON","LOST") -> LOST | AE140: =IF(CROWN!BF7>0,1,0) -> 0 | AF140: =IF(CROWN!BJ7=701,"WON","LOST") -> LOST | AG140: =IF(CROWN!BJ7>0,1,0) -> 0 | AH140: =IF(CROWN!BN7=701,"WON","LOST") -> LOST | AI140: =IF(CROWN!BN7>0,1,0) -> 0 | AJ140: =IF(CROWN!BR7=701,"WON","LOST") -> LOST | AK140: =IF(CROWN!BR7>0,1,0) -> 0 | AL140: =IF(CROWN!BV7=701,"WON","LOST") -> LOST | AM140: =IF(CROWN!BV7>0,1,0) -> 0 | AN140: =IF(CROWN!BZ7=701,"WON","LOST") -> LOST | AO140: =IF(CROWN!BZ7>0,1,0) -> 0 | AP140: =IF(CROWN!CD7=701,"WON","LOST") -> LOST | AQ140: =IF(CROWN!CD7>0,1,0) -> 0 | AR140: =IF(CROWN!CH7=701,"WON","LOST") -> LOST | AS140: =IF(CROWN!CH7>0,1,0) -> 0
B141: =IF(CROWN!B8=701,"WON","LOST") -> WON | C141: =IF(CROWN!B8>0,1,0) -> 1 | D141: =IF(CROWN!F8=701,"WON","LOST") -> WON | E141: =IF(CROWN!F8>0,1,0) -> 1 | F141: =IF(CROWN!J8=701,"WON","LOST") -> LOST | G141: =IF(CROWN!J8>0,1,0) -> 0 | H141: =IF(CROWN!N8=701,"WON","LOST") -> LOST | I141: =IF(CROWN!N8>0,1,0) -> 1 | J141: =IF(CROWN!R8=701,"WON","LOST") -> LOST | K141: =IF(CROWN!R8>0,1,0) -> 1 | L141: =IF(CROWN!V8=701,"WON","LOST") -> WON | M141: =IF(CROWN!V8>0,1,0) -> 1 | N141: =IF(CROWN!Z8=701,"WON","LOST") -> LOST | O141: =IF(CROWN!Z8>0,1,0) -> 1 | P141: =IF(CROWN!AD8=701,"WON","LOST") -> LOST | Q141: =IF(CROWN!AD8>0,1,0) -> 1 | R141: =IF(CROWN!AH8=701,"WON","LOST") -> LOST | S141: =IF(CROWN!AH8>0,1,0) -> 1 | T141: =IF(CROWN!AL8=701,"WON","LOST") -> LOST | U141: =IF(CROWN!AL8>0,1,0) -> 0 | V141: =IF(CROWN!AP8=701,"WON","LOST") -> LOST | W141: =IF(CROWN!AP8>0,1,0) -> 1 | X141: =IF(CROWN!AT8=701,"WON","LOST") -> LOST | Y141: =IF(CROWN!AT8>0,1,0) -> 0 | Z141: =IF(CROWN!AX8=701,"WON","LOST") -> LOST | AA141: =IF(CROWN!AX8>0,1,0) -> 1 | AB141: =IF(CROWN!BB8=701,"WON","LOST") -> LOST | AC141: =IF(CROWN!BB8>0,1,0) -> 1 | AD141: =IF(CROWN!BF8=701,"WON","LOST") -> LOST | AE141: =IF(CROWN!BF8>0,1,0) -> 1 | AF141: =IF(CROWN!BJ8=701,"WON","LOST") -> LOST | AG141: =IF(CROWN!BJ8>0,1,0) -> 1 | AH141: =IF(CROWN!BN8=701,"WON","LOST") -> LOST | AI141: =IF(CROWN!BN8>0,1,0) -> 1 | AJ141: =IF(CROWN!BR8=701,"WON","LOST") -> WON | AK141: =IF(CROWN!BR8>0,1,0) -> 1 | AL141: =IF(CROWN!BV8=701,"WON","LOST") -> LOST | AM141: =IF(CROWN!BV8>0,1,0) -> 0 | AN141: =IF(CROWN!BZ8=701,"WON","LOST") -> LOST | AO141: =IF(CROWN!BZ8>0,1,0) -> 0 | AP141: =IF(CROWN!CD8=701,"WON","LOST") -> LOST | AQ141: =IF(CROWN!CD8>0,1,0) -> 0 | AR141: =IF(CROWN!CH8=701,"WON","LOST") -> LOST | AS141: =IF(CROWN!CH8>0,1,0) -> 0
B142: =IF(CROWN!B9=701,"WON","LOST") -> LOST | C142: =IF(CROWN!B9>0,1,0) -> 1 | D142: =IF(CROWN!F9=701,"WON","LOST") -> LOST | E142: =IF(CROWN!F9>0,1,0) -> 1 | F142: =IF(CROWN!J9=701,"WON","LOST") -> LOST | G142: =IF(CROWN!J9>0,1,0) -> 0 | H142: =IF(CROWN!N9=701,"WON","LOST") -> LOST | I142: =IF(CROWN!N9>0,1,0) -> 1 | J142: =IF(CROWN!R9=701,"WON","LOST") -> WON | K142: =IF(CROWN!R9>0,1,0) -> 1 | L142: =IF(CROWN!V9=701,"WON","LOST") -> WON | M142: =IF(CROWN!V9>0,1,0) -> 1 | N142: =IF(CROWN!Z9=701,"WON","LOST") -> LOST | O142: =IF(CROWN!Z9>0,1,0) -> 1 | P142: =IF(CROWN!AD9=701,"WON","LOST") -> LOST | Q142: =IF(CROWN!AD9>0,1,0) -> 1 | R142: =IF(CROWN!AH9=701,"WON","LOST") -> LOST | S142: =IF(CROWN!AH9>0,1,0) -> 1 | T142: =IF(CROWN!AL9=701,"WON","LOST") -> LOST | U142: =IF(CROWN!AL9>0,1,0) -> 1 | V142: =IF(CROWN!AP9=701,"WON","LOST") -> LOST | W142: =IF(CROWN!AP9>0,1,0) -> 1 | X142: =IF(CROWN!AT9=701,"WON","LOST") -> LOST | Y142: =IF(CROWN!AT9>0,1,0) -> 0 | Z142: =IF(CROWN!AX9=701,"WON","LOST") -> WON | AA142: =IF(CROWN!AX9>0,1,0) -> 1 | AB142: =IF(CROWN!BB9=701,"WON","LOST") -> LOST | AC142: =IF(CROWN!BB9>0,1,0) -> 1 | AD142: =IF(CROWN!BF9=701,"WON","LOST") -> LOST | AE142: =IF(CROWN!BF9>0,1,0) -> 1 | AF142: =IF(CROWN!BJ9=701,"WON","LOST") -> LOST | AG142: =IF(CROWN!BJ9>0,1,0) -> 1 | AH142: =IF(CROWN!BN9=701,"WON","LOST") -> LOST | AI142: =IF(CROWN!BN9>0,1,0) -> 1 | AJ142: =IF(CROWN!BR9=701,"WON","LOST") -> LOST | AK142: =IF(CROWN!BR9>0,1,0) -> 1 | AL142: =IF(CROWN!BV9=701,"WON","LOST") -> LOST | AM142: =IF(CROWN!BV9>0,1,0) -> 0 | AN142: =IF(CROWN!BZ9=701,"WON","LOST") -> LOST | AO142: =IF(CROWN!BZ9>0,1,0) -> 0 | AP142: =IF(CROWN!CD9=701,"WON","LOST") -> LOST | AQ142: =IF(CROWN!CD9>0,1,0) -> 0 | AR142: =IF(CROWN!CH9=701,"WON","LOST") -> LOST | AS142: =IF(CROWN!CH9>0,1,0) -> 0
B143: =IF(CROWN!B10=701,"WON","LOST") -> LOST | C143: =IF(CROWN!B10>0,1,0) -> 1 | D143: =IF(CROWN!F10=701,"WON","LOST") -> LOST | E143: =IF(CROWN!F10>0,1,0) -> 1 | F143: =IF(CROWN!J10=701,"WON","LOST") -> LOST | G143: =IF(CROWN!J10>0,1,0) -> 0 | H143: =IF(CROWN!N10=701,"WON","LOST") -> LOST | I143: =IF(CROWN!N10>0,1,0) -> 1 | J143: =IF(CROWN!R10=701,"WON","LOST") -> WON | K143: =IF(CROWN!R10>0,1,0) -> 1 | L143: =IF(CROWN!V10=701,"WON","LOST") -> LOST | M143: =IF(CROWN!V10>0,1,0) -> 1 | N143: =IF(CROWN!Z10=701,"WON","LOST") -> LOST | O143: =IF(CROWN!Z10>0,1,0) -> 1 | P143: =IF(CROWN!AD10=701,"WON","LOST") -> WON | Q143: =IF(CROWN!AD10>0,1,0) -> 1 | R143: =IF(CROWN!AH10=701,"WON","LOST") -> WON | S143: =IF(CROWN!AH10>0,1,0) -> 1 | T143: =IF(CROWN!AL10=701,"WON","LOST") -> LOST | U143: =IF(CROWN!AL10>0,1,0) -> 1 | V143: =IF(CROWN!AP10=701,"WON","LOST") -> WON | W143: =IF(CROWN!AP10>0,1,0) -> 1 | X143: =IF(CROWN!AT10=701,"WON","LOST") -> LOST | Y143: =IF(CROWN!AT10>0,1,0) -> 0 | Z143: =IF(CROWN!AX10=701,"WON","LOST") -> LOST | AA143: =IF(CROWN!AX10>0,1,0) -> 1 | AB143: =IF(CROWN!BB10=701,"WON","LOST") -> WON | AC143: =IF(CROWN!BB10>0,1,0) -> 1 | AD143: =IF(CROWN!BF10=701,"WON","LOST") -> WON | AE143: =IF(CROWN!BF10>0,1,0) -> 1 | AF143: =IF(CROWN!BJ10=701,"WON","LOST") -> LOST | AG143: =IF(CROWN!BJ10>0,1,0) -> 1 | AH143: =IF(CROWN!BN10=701,"WON","LOST") -> LOST | AI143: =IF(CROWN!BN10>0,1,0) -> 1 | AJ143: =IF(CROWN!BR10=701,"WON","LOST") -> LOST | AK143: =IF(CROWN!BR10>0,1,0) -> 1 | AL143: =IF(CROWN!BV10=701,"WON","LOST") -> LOST | AM143: =IF(CROWN!BV10>0,1,0) -> 0 | AN143: =IF(CROWN!BZ10=701,"WON","LOST") -> LOST | AO143: =IF(CROWN!BZ10>0,1,0) -> 0 | AP143: =IF(CROWN!CD10=701,"WON","LOST") -> LOST | AQ143: =IF(CROWN!CD10>0,1,0) -> 0 | AR143: =IF(CROWN!CH10=701,"WON","LOST") -> LOST | AS143: =IF(CROWN!CH10>0,1,0) -> 0
B144: =IF(CROWN!B11=701,"WON","LOST") -> LOST | C144: =IF(CROWN!B11>0,1,0) -> 0 | D144: =IF(CROWN!F11=701,"WON","LOST") -> LOST | E144: =IF(CROWN!F11>0,1,0) -> 0 | F144: =IF(CROWN!J11=701,"WON","LOST") -> LOST | G144: =IF(CROWN!J11>0,1,0) -> 0 | H144: =IF(CROWN!N11=701,"WON","LOST") -> LOST | I144: =IF(CROWN!N11>0,1,0) -> 0 | J144: =IF(CROWN!R11=701,"WON","LOST") -> LOST | K144: =IF(CROWN!R11>0,1,0) -> 0 | L144: =IF(CROWN!V11=701,"WON","LOST") -> LOST | M144: =IF(CROWN!V11>0,1,0) -> 0 | N144: =IF(CROWN!Z11=701,"WON","LOST") -> LOST | O144: =IF(CROWN!Z11>0,1,0) -> 0 | P144: =IF(CROWN!AD11=701,"WON","LOST") -> LOST | Q144: =IF(CROWN!AD11>0,1,0) -> 0 | R144: =IF(CROWN!AH11=701,"WON","LOST") -> LOST | S144: =IF(CROWN!AH11>0,1,0) -> 0 | T144: =IF(CROWN!AL11=701,"WON","LOST") -> LOST | U144: =IF(CROWN!AL11>0,1,0) -> 1 | V144: =IF(CROWN!AP11=701,"WON","LOST") -> LOST | W144: =IF(CROWN!AP11>0,1,0) -> 0 | X144: =IF(CROWN!AT11=701,"WON","LOST") -> LOST | Y144: =IF(CROWN!AT11>0,1,0) -> 0 | Z144: =IF(CROWN!AX11=701,"WON","LOST") -> LOST | AA144: =IF(CROWN!AX11>0,1,0) -> 0 | AB144: =IF(CROWN!BB11=701,"WON","LOST") -> LOST | AC144: =IF(CROWN!BB11>0,1,0) -> 0 | AD144: =IF(CROWN!BF11=701,"WON","LOST") -> LOST | AE144: =IF(CROWN!BF11>0,1,0) -> 0 | AF144: =IF(CROWN!BJ11=701,"WON","LOST") -> LOST | AG144: =IF(CROWN!BJ11>0,1,0) -> 0 | AH144: =IF(CROWN!BN11=701,"WON","LOST") -> LOST | AI144: =IF(CROWN!BN11>0,1,0) -> 0 | AJ144: =IF(CROWN!BR11=701,"WON","LOST") -> LOST | AK144: =IF(CROWN!BR11>0,1,0) -> 0 | AL144: =IF(CROWN!BV11=701,"WON","LOST") -> LOST | AM144: =IF(CROWN!BV11>0,1,0) -> 0 | AN144: =IF(CROWN!BZ11=701,"WON","LOST") -> LOST | AO144: =IF(CROWN!BZ11>0,1,0) -> 0 | AP144: =IF(CROWN!CD11=701,"WON","LOST") -> LOST | AQ144: =IF(CROWN!CD11>0,1,0) -> 0 | AR144: =IF(CROWN!CH11=701,"WON","LOST") -> LOST | AS144: =IF(CROWN!CH11>0,1,0) -> 0
B145: =IF(CROWN!B12=701,"WON","LOST") -> LOST | C145: =IF(CROWN!B12>0,1,0) -> 0 | D145: =IF(CROWN!F12=701,"WON","LOST") -> LOST | E145: =IF(CROWN!F12>0,1,0) -> 0 | F145: =IF(CROWN!J12=701,"WON","LOST") -> LOST | G145: =IF(CROWN!J12>0,1,0) -> 0 | H145: =IF(CROWN!N12=701,"WON","LOST") -> LOST | I145: =IF(CROWN!N12>0,1,0) -> 0 | J145: =IF(CROWN!R12=701,"WON","LOST") -> LOST | K145: =IF(CROWN!R12>0,1,0) -> 0 | L145: =IF(CROWN!V12=701,"WON","LOST") -> LOST | M145: =IF(CROWN!V12>0,1,0) -> 0 | N145: =IF(CROWN!Z12=701,"WON","LOST") -> LOST | O145: =IF(CROWN!Z12>0,1,0) -> 0 | P145: =IF(CROWN!AD12=701,"WON","LOST") -> LOST | Q145: =IF(CROWN!AD12>0,1,0) -> 0 | R145: =IF(CROWN!AH12=701,"WON","LOST") -> LOST | S145: =IF(CROWN!AH12>0,1,0) -> 0 | T145: =IF(CROWN!AL12=701,"WON","LOST") -> LOST | U145: =IF(CROWN!AL12>0,1,0) -> 0 | V145: =IF(CROWN!AP12=701,"WON","LOST") -> LOST | W145: =IF(CROWN!AP12>0,1,0) -> 0 | X145: =IF(CROWN!AT12=701,"WON","LOST") -> LOST | Y145: =IF(CROWN!AT12>0,1,0) -> 0 | Z145: =IF(CROWN!AX12=701,"WON","LOST") -> LOST | AA145: =IF(CROWN!AX12>0,1,0) -> 0 | AB145: =IF(CROWN!BB12=701,"WON","LOST") -> LOST | AC145: =IF(CROWN!BB12>0,1,0) -> 0 | AD145: =IF(CROWN!BF12=701,"WON","LOST") -> LOST | AE145: =IF(CROWN!BF12>0,1,0) -> 0 | AF145: =IF(CROWN!BJ12=701,"WON","LOST") -> LOST | AG145: =IF(CROWN!BJ12>0,1,0) -> 0 | AH145: =IF(CROWN!BN12=701,"WON","LOST") -> LOST | AI145: =IF(CROWN!BN12>0,1,0) -> 0 | AJ145: =IF(CROWN!BR12=701,"WON","LOST") -> LOST | AK145: =IF(CROWN!BR12>0,1,0) -> 0 | AL145: =IF(CROWN!BV12=701,"WON","LOST") -> LOST | AM145: =IF(CROWN!BV12>0,1,0) -> 0 | AN145: =IF(CROWN!BZ12=701,"WON","LOST") -> LOST | AO145: =IF(CROWN!BZ12>0,1,0) -> 0 | AP145: =IF(CROWN!CD12=701,"WON","LOST") -> LOST | AQ145: =IF(CROWN!CD12>0,1,0) -> 0 | AR145: =IF(CROWN!CH12=701,"WON","LOST") -> LOST | AS145: =IF(CROWN!CH12>0,1,0) -> 0
B146: =IF(CROWN!B13=701,"WON","LOST") -> LOST | C146: =IF(CROWN!B13>0,1,0) -> 0 | D146: =IF(CROWN!F13=701,"WON","LOST") -> LOST | E146: =IF(CROWN!F13>0,1,0) -> 0 | F146: =IF(CROWN!J13=701,"WON","LOST") -> LOST | G146: =IF(CROWN!J13>0,1,0) -> 0 | H146: =IF(CROWN!N13=701,"WON","LOST") -> LOST | I146: =IF(CROWN!N13>0,1,0) -> 0 | J146: =IF(CROWN!R13=701,"WON","LOST") -> LOST | K146: =IF(CROWN!R13>0,1,0) -> 0 | L146: =IF(CROWN!V13=701,"WON","LOST") -> LOST | M146: =IF(CROWN!V13>0,1,0) -> 0 | N146: =IF(CROWN!Z13=701,"WON","LOST") -> LOST | O146: =IF(CROWN!Z13>0,1,0) -> 0 | P146: =IF(CROWN!AD13=701,"WON","LOST") -> LOST | Q146: =IF(CROWN!AD13>0,1,0) -> 0 | R146: =IF(CROWN!AH13=701,"WON","LOST") -> LOST | S146: =IF(CROWN!AH13>0,1,0) -> 0 | T146: =IF(CROWN!AL13=701,"WON","LOST") -> LOST | U146: =IF(CROWN!AL13>0,1,0) -> 0 | V146: =IF(CROWN!AP13=701,"WON","LOST") -> LOST | W146: =IF(CROWN!AP13>0,1,0) -> 0 | X146: =IF(CROWN!AT13=701,"WON","LOST") -> LOST | Y146: =IF(CROWN!AT13>0,1,0) -> 0 | Z146: =IF(CROWN!AX13=701,"WON","LOST") -> LOST | AA146: =IF(CROWN!AX13>0,1,0) -> 0 | AB146: =IF(CROWN!BB13=701,"WON","LOST") -> LOST | AC146: =IF(CROWN!BB13>0,1,0) -> 0 | AD146: =IF(CROWN!BF13=701,"WON","LOST") -> LOST | AE146: =IF(CROWN!BF13>0,1,0) -> 0 | AF146: =IF(CROWN!BJ13=701,"WON","LOST") -> LOST | AG146: =IF(CROWN!BJ13>0,1,0) -> 0 | AH146: =IF(CROWN!BN13=701,"WON","LOST") -> LOST | AI146: =IF(CROWN!BN13>0,1,0) -> 0 | AJ146: =IF(CROWN!BR13=701,"WON","LOST") -> LOST | AK146: =IF(CROWN!BR13>0,1,0) -> 0 | AL146: =IF(CROWN!BV13=701,"WON","LOST") -> LOST | AM146: =IF(CROWN!BV13>0,1,0) -> 0 | AN146: =IF(CROWN!BZ13=701,"WON","LOST") -> LOST | AO146: =IF(CROWN!BZ13>0,1,0) -> 0 | AP146: =IF(CROWN!CD13=701,"WON","LOST") -> LOST | AQ146: =IF(CROWN!CD13>0,1,0) -> 0 | AR146: =IF(CROWN!CH13=701,"WON","LOST") -> LOST | AS146: =IF(CROWN!CH13>0,1,0) -> 0
B147: =IF(CROWN!B14=701,"WON","LOST") -> LOST | C147: =IF(CROWN!B14>0,1,0) -> 0 | D147: =IF(CROWN!F14=701,"WON","LOST") -> LOST | E147: =IF(CROWN!F14>0,1,0) -> 0 | F147: =IF(CROWN!J14=701,"WON","LOST") -> LOST | G147: =IF(CROWN!J14>0,1,0) -> 0 | H147: =IF(CROWN!N14=701,"WON","LOST") -> LOST | I147: =IF(CROWN!N14>0,1,0) -> 0 | J147: =IF(CROWN!R14=701,"WON","LOST") -> LOST | K147: =IF(CROWN!R14>0,1,0) -> 0 | L147: =IF(CROWN!V14=701,"WON","LOST") -> LOST | M147: =IF(CROWN!V14>0,1,0) -> 0 | N147: =IF(CROWN!Z14=701,"WON","LOST") -> LOST | O147: =IF(CROWN!Z14>0,1,0) -> 0 | P147: =IF(CROWN!AD14=701,"WON","LOST") -> LOST | Q147: =IF(CROWN!AD14>0,1,0) -> 0 | R147: =IF(CROWN!AH14=701,"WON","LOST") -> LOST | S147: =IF(CROWN!AH14>0,1,0) -> 0 | T147: =IF(CROWN!AL14=701,"WON","LOST") -> LOST | U147: =IF(CROWN!AL14>0,1,0) -> 0 | V147: =IF(CROWN!AP14=701,"WON","LOST") -> LOST | W147: =IF(CROWN!AP14>0,1,0) -> 0 | X147: =IF(CROWN!AT14=701,"WON","LOST") -> LOST | Y147: =IF(CROWN!AT14>0,1,0) -> 0 | Z147: =IF(CROWN!AX14=701,"WON","LOST") -> LOST | AA147: =IF(CROWN!AX14>0,1,0) -> 0 | AB147: =IF(CROWN!BB14=701,"WON","LOST") -> LOST | AC147: =IF(CROWN!BB14>0,1,0) -> 0 | AD147: =IF(CROWN!BF14=701,"WON","LOST") -> LOST | AE147: =IF(CROWN!BF14>0,1,0) -> 0 | AF147: =IF(CROWN!BJ14=701,"WON","LOST") -> LOST | AG147: =IF(CROWN!BJ14>0,1,0) -> 0 | AH147: =IF(CROWN!BN14=701,"WON","LOST") -> LOST | AI147: =IF(CROWN!BN14>0,1,0) -> 0 | AJ147: =IF(CROWN!BR14=701,"WON","LOST") -> LOST | AK147: =IF(CROWN!BR14>0,1,0) -> 0 | AL147: =IF(CROWN!BV14=701,"WON","LOST") -> LOST | AM147: =IF(CROWN!BV14>0,1,0) -> 0 | AN147: =IF(CROWN!BZ14=701,"WON","LOST") -> LOST | AO147: =IF(CROWN!BZ14>0,1,0) -> 0 | AP147: =IF(CROWN!CD14=701,"WON","LOST") -> LOST | AQ147: =IF(CROWN!CD14>0,1,0) -> 0 | AR147: =IF(CROWN!CH14=701,"WON","LOST") -> LOST | AS147: =IF(CROWN!CH14>0,1,0) -> 0
B148: =IF(CROWN!B3="",0,(SUM((CROWN!B3/CROWN!C3)*3))) -> 62.63636364 | D148: =IF(CROWN!F3="",0,(SUM((CROWN!F3/CROWN!G3)*3))) -> 50.07142857 | F148: =IF(CROWN!J3="",0,(SUM((CROWN!J3/CROWN!K3)*3))) -> 0 | H148: =IF(CROWN!N3="",0,(SUM((CROWN!N3/CROWN!O3)*3))) -> 70.1 | J148: =IF(CROWN!R3="",0,(SUM((CROWN!R3/CROWN!S3)*3))) -> 36.63157895 | L148: =IF(CROWN!V3="",0,(SUM((CROWN!V3/CROWN!W3)*3))) -> 52.16666667 | N148: =IF(CROWN!Z3="",0,(SUM((CROWN!Z3/CROWN!AA3)*3))) -> 46.41666667 | P148: =IF(CROWN!AD3="",0,(SUM((CROWN!AD3/CROWN!AE3)*3))) -> 37.63636364 | R148: =IF(CROWN!AH3="",0,(SUM((CROWN!AH3/CROWN!AI3)*3))) -> 56.83783784 | T148: =IF(CROWN!AL3="",0,(SUM((CROWN!AL3/CROWN!AM3)*3))) -> 51.29268293 | V148: =IF(CROWN!AP3="",0,(SUM((CROWN!AP3/CROWN!AQ3)*3))) -> 55.34210526 | X148: =IF(CROWN!AT3="",0,(SUM((CROWN!AT3/CROWN!AU3)*3))) -> 0 | Z148: =IF(CROWN!AX3="",0,(SUM((CROWN!AX3/CROWN!AY3)*3))) -> 44.14285714 | AB148: =IF(CROWN!BB3="",0,(SUM((CROWN!BB3/CROWN!BC3)*3))) -> 43.33333333 | AD148: =IF(CROWN!BF3="",0,(SUM((CROWN!BF3/CROWN!BG3)*3))) -> 55.34210526 | AF148: =IF(CROWN!BJ3="",0,(SUM((CROWN!BJ3/CROWN!BK3)*3))) -> 44.92307692 | AH148: =IF(CROWN!BN3="",0,(SUM((CROWN!BN3/CROWN!BO3)*3))) -> 51.18181818 | AJ148: =IF(CROWN!BR3="",0,(SUM((CROWN!BR3/CROWN!BS3)*3))) -> 62.63636364 | AL148: =IF(CROWN!BV3="",0,(SUM((CROWN!BV3/CROWN!BW3)*3))) -> 0 | AN148: =IF(CROWN!BZ3="",0,(SUM((CROWN!BZ3/CROWN!CA3)*3))) -> 0 | AP148: =IF(CROWN!CD3="",0,(SUM((CROWN!CD3/CROWN!CE3)*3))) -> 0 | AR148: =IF(CROWN!CH3="",0,(SUM((CROWN!CH3/CROWN!CI3)*3))) -> 0
B149: =IF(CROWN!B4="",0,(SUM((CROWN!B4/CROWN!C4)*3))) -> 0 | D149: =IF(CROWN!F4="",0,(SUM((CROWN!F4/CROWN!G4)*3))) -> 50.47058824 | F149: =IF(CROWN!J4="",0,(SUM((CROWN!J4/CROWN!K4)*3))) -> 0 | H149: =IF(CROWN!N4="",0,(SUM((CROWN!N4/CROWN!O4)*3))) -> 0 | J149: =IF(CROWN!R4="",0,(SUM((CROWN!R4/CROWN!S4)*3))) -> 38.72222222 | L149: =IF(CROWN!V4="",0,(SUM((CROWN!V4/CROWN!W4)*3))) -> 44.18181818 | N149: =IF(CROWN!Z4="",0,(SUM((CROWN!Z4/CROWN!AA4)*3))) -> 0 | P149: =IF(CROWN!AD4="",0,(SUM((CROWN!AD4/CROWN!AE4)*3))) -> 0 | R149: =IF(CROWN!AH4="",0,(SUM((CROWN!AH4/CROWN!AI4)*3))) -> 0 | T149: =IF(CROWN!AL4="",0,(SUM((CROWN!AL4/CROWN!AM4)*3))) -> 0 | V149: =IF(CROWN!AP4="",0,(SUM((CROWN!AP4/CROWN!AQ4)*3))) -> 0 | X149: =IF(CROWN!AT4="",0,(SUM((CROWN!AT4/CROWN!AU4)*3))) -> 0 | Z149: =IF(CROWN!AX4="",0,(SUM((CROWN!AX4/CROWN!AY4)*3))) -> 49.35714286 | AB149: =IF(CROWN!BB4="",0,(SUM((CROWN!BB4/CROWN!BC4)*3))) -> 40.94117647 | AD149: =IF(CROWN!BF4="",0,(SUM((CROWN!BF4/CROWN!BG4)*3))) -> 0 | AF149: =IF(CROWN!BJ4="",0,(SUM((CROWN!BJ4/CROWN!BK4)*3))) -> 0 | AH149: =IF(CROWN!BN4="",0,(SUM((CROWN!BN4/CROWN!BO4)*3))) -> 0 | AJ149: =IF(CROWN!BR4="",0,(SUM((CROWN!BR4/CROWN!BS4)*3))) -> 35.6440678 | AL149: =IF(CROWN!BV4="",0,(SUM((CROWN!BV4/CROWN!BW4)*3))) -> 0 | AN149: =IF(CROWN!BZ4="",0,(SUM((CROWN!BZ4/CROWN!CA4)*3))) -> 0 | AP149: =IF(CROWN!CD4="",0,(SUM((CROWN!CD4/CROWN!CE4)*3))) -> 0 | AR149: =IF(CROWN!CH4="",0,(SUM((CROWN!CH4/CROWN!CI4)*3))) -> 0
B150: =IF(CROWN!B5="",0,(SUM((CROWN!B5/CROWN!C5)*3))) -> 46.33333333 | D150: =IF(CROWN!F5="",0,(SUM((CROWN!F5/CROWN!G5)*3))) -> 0 | F150: =IF(CROWN!J5="",0,(SUM((CROWN!J5/CROWN!K5)*3))) -> 0 | H150: =IF(CROWN!N5="",0,(SUM((CROWN!N5/CROWN!O5)*3))) -> 36.89473684 | J150: =IF(CROWN!R5="",0,(SUM((CROWN!R5/CROWN!S5)*3))) -> 0 | L150: =IF(CROWN!V5="",0,(SUM((CROWN!V5/CROWN!W5)*3))) -> 0 | N150: =IF(CROWN!Z5="",0,(SUM((CROWN!Z5/CROWN!AA5)*3))) -> 41 | P150: =IF(CROWN!AD5="",0,(SUM((CROWN!AD5/CROWN!AE5)*3))) -> 33.88888889 | R150: =IF(CROWN!AH5="",0,(SUM((CROWN!AH5/CROWN!AI5)*3))) -> 0 | T150: =IF(CROWN!AL5="",0,(SUM((CROWN!AL5/CROWN!AM5)*3))) -> 24.9 | V150: =IF(CROWN!AP5="",0,(SUM((CROWN!AP5/CROWN!AQ5)*3))) -> 0 | X150: =IF(CROWN!AT5="",0,(SUM((CROWN!AT5/CROWN!AU5)*3))) -> 0 | Z150: =IF(CROWN!AX5="",0,(SUM((CROWN!AX5/CROWN!AY5)*3))) -> 0 | AB150: =IF(CROWN!BB5="",0,(SUM((CROWN!BB5/CROWN!BC5)*3))) -> 0 | AD150: =IF(CROWN!BF5="",0,(SUM((CROWN!BF5/CROWN!BG5)*3))) -> 36.26666667 | AF150: =IF(CROWN!BJ5="",0,(SUM((CROWN!BJ5/CROWN!BK5)*3))) -> 35.92307692 | AH150: =IF(CROWN!BN5="",0,(SUM((CROWN!BN5/CROWN!BO5)*3))) -> 38.61538462 | AJ150: =IF(CROWN!BR5="",0,(SUM((CROWN!BR5/CROWN!BS5)*3))) -> 0 | AL150: =IF(CROWN!BV5="",0,(SUM((CROWN!BV5/CROWN!BW5)*3))) -> 0 | AN150: =IF(CROWN!BZ5="",0,(SUM((CROWN!BZ5/CROWN!CA5)*3))) -> 0 | AP150: =IF(CROWN!CD5="",0,(SUM((CROWN!CD5/CROWN!CE5)*3))) -> 0 | AR150: =IF(CROWN!CH5="",0,(SUM((CROWN!CH5/CROWN!CI5)*3))) -> 0
B151: =IF(CROWN!B6="",0,(SUM((CROWN!B6/CROWN!C6)*3))) -> 38.05555556 | D151: =IF(CROWN!F6="",0,(SUM((CROWN!F6/CROWN!G6)*3))) -> 33 | F151: =IF(CROWN!J6="",0,(SUM((CROWN!J6/CROWN!K6)*3))) -> 0 | H151: =IF(CROWN!N6="",0,(SUM((CROWN!N6/CROWN!O6)*3))) -> 44.06666667 | J151: =IF(CROWN!R6="",0,(SUM((CROWN!R6/CROWN!S6)*3))) -> 63.72727273 | L151: =IF(CROWN!V6="",0,(SUM((CROWN!V6/CROWN!W6)*3))) -> 63.72727273 | N151: =IF(CROWN!Z6="",0,(SUM((CROWN!Z6/CROWN!AA6)*3))) -> 34.70588235 | P151: =IF(CROWN!AD6="",0,(SUM((CROWN!AD6/CROWN!AE6)*3))) -> 45.81818182 | R151: =IF(CROWN!AH6="",0,(SUM((CROWN!AH6/CROWN!AI6)*3))) -> 50.70731707 | T151: =IF(CROWN!AL6="",0,(SUM((CROWN!AL6/CROWN!AM6)*3))) -> 43.86666667 | V151: =IF(CROWN!AP6="",0,(SUM((CROWN!AP6/CROWN!AQ6)*3))) -> 50.7 | X151: =IF(CROWN!AT6="",0,(SUM((CROWN!AT6/CROWN!AU6)*3))) -> 0 | Z151: =IF(CROWN!AX6="",0,(SUM((CROWN!AX6/CROWN!AY6)*3))) -> 47.61538462 | AB151: =IF(CROWN!BB6="",0,(SUM((CROWN!BB6/CROWN!BC6)*3))) -> 46.73333333 | AD151: =IF(CROWN!BF6="",0,(SUM((CROWN!BF6/CROWN!BG6)*3))) -> 42.06 | AF151: =IF(CROWN!BJ6="",0,(SUM((CROWN!BJ6/CROWN!BK6)*3))) -> 36.3 | AH151: =IF(CROWN!BN6="",0,(SUM((CROWN!BN6/CROWN!BO6)*3))) -> 29.85714286 | AJ151: =IF(CROWN!BR6="",0,(SUM((CROWN!BR6/CROWN!BS6)*3))) -> 44.76923077 | AL151: =IF(CROWN!BV6="",0,(SUM((CROWN!BV6/CROWN!BW6)*3))) -> 0 | AN151: =IF(CROWN!BZ6="",0,(SUM((CROWN!BZ6/CROWN!CA6)*3))) -> 0 | AP151: =IF(CROWN!CD6="",0,(SUM((CROWN!CD6/CROWN!CE6)*3))) -> 0 | AR151: =IF(CROWN!CH6="",0,(SUM((CROWN!CH6/CROWN!CI6)*3))) -> 0
B152: =IF(CROWN!B7="",0,(SUM((CROWN!B7/CROWN!C7)*3))) -> 0 | D152: =IF(CROWN!F7="",0,(SUM((CROWN!F7/CROWN!G7)*3))) -> 0 | F152: =IF(CROWN!J7="",0,(SUM((CROWN!J7/CROWN!K7)*3))) -> 0 | H152: =IF(CROWN!N7="",0,(SUM((CROWN!N7/CROWN!O7)*3))) -> 0 | J152: =IF(CROWN!R7="",0,(SUM((CROWN!R7/CROWN!S7)*3))) -> 0 | L152: =IF(CROWN!V7="",0,(SUM((CROWN!V7/CROWN!W7)*3))) -> 0 | N152: =IF(CROWN!Z7="",0,(SUM((CROWN!Z7/CROWN!AA7)*3))) -> 0 | P152: =IF(CROWN!AD7="",0,(SUM((CROWN!AD7/CROWN!AE7)*3))) -> 0 | R152: =IF(CROWN!AH7="",0,(SUM((CROWN!AH7/CROWN!AI7)*3))) -> 0 | T152: =IF(CROWN!AL7="",0,(SUM((CROWN!AL7/CROWN!AM7)*3))) -> 0 | V152: =IF(CROWN!AP7="",0,(SUM((CROWN!AP7/CROWN!AQ7)*3))) -> 0 | X152: =IF(CROWN!AT7="",0,(SUM((CROWN!AT7/CROWN!AU7)*3))) -> 0 | Z152: =IF(CROWN!AX7="",0,(SUM((CROWN!AX7/CROWN!AY7)*3))) -> 0 | AB152: =IF(CROWN!BB7="",0,(SUM((CROWN!BB7/CROWN!BC7)*3))) -> 0 | AD152: =IF(CROWN!BF7="",0,(SUM((CROWN!BF7/CROWN!BG7)*3))) -> 0 | AF152: =IF(CROWN!BJ7="",0,(SUM((CROWN!BJ7/CROWN!BK7)*3))) -> 0 | AH152: =IF(CROWN!BN7="",0,(SUM((CROWN!BN7/CROWN!BO7)*3))) -> 0 | AJ152: =IF(CROWN!BR7="",0,(SUM((CROWN!BR7/CROWN!BS7)*3))) -> 0 | AL152: =IF(CROWN!BV7="",0,(SUM((CROWN!BV7/CROWN!BW7)*3))) -> 0 | AN152: =IF(CROWN!BZ7="",0,(SUM((CROWN!BZ7/CROWN!CA7)*3))) -> 0 | AP152: =IF(CROWN!CD7="",0,(SUM((CROWN!CD7/CROWN!CE7)*3))) -> 0 | AR152: =IF(CROWN!CH7="",0,(SUM((CROWN!CH7/CROWN!CI7)*3))) -> 0
B153: =IF(CROWN!B8="",0,(SUM((CROWN!B8/CROWN!C8)*3))) -> 38.94444444 | D153: =IF(CROWN!F8="",0,(SUM((CROWN!F8/CROWN!G8)*3))) -> 36.25862069 | F153: =IF(CROWN!J8="",0,(SUM((CROWN!J8/CROWN!K8)*3))) -> 0 | H153: =IF(CROWN!N8="",0,(SUM((CROWN!N8/CROWN!O8)*3))) -> 46.85714286 | J153: =IF(CROWN!R8="",0,(SUM((CROWN!R8/CROWN!S8)*3))) -> 51 | L153: =IF(CROWN!V8="",0,(SUM((CROWN!V8/CROWN!W8)*3))) -> 43.8125 | N153: =IF(CROWN!Z8="",0,(SUM((CROWN!Z8/CROWN!AA8)*3))) -> 44.63636364 | P153: =IF(CROWN!AD8="",0,(SUM((CROWN!AD8/CROWN!AE8)*3))) -> 43.4 | R153: =IF(CROWN!AH8="",0,(SUM((CROWN!AH8/CROWN!AI8)*3))) -> 46.16666667 | T153: =IF(CROWN!AL8="",0,(SUM((CROWN!AL8/CROWN!AM8)*3))) -> 0 | V153: =IF(CROWN!AP8="",0,(SUM((CROWN!AP8/CROWN!AQ8)*3))) -> 38.92307692 | X153: =IF(CROWN!AT8="",0,(SUM((CROWN!AT8/CROWN!AU8)*3))) -> 0 | Z153: =IF(CROWN!AX8="",0,(SUM((CROWN!AX8/CROWN!AY8)*3))) -> 47.21428571 | AB153: =IF(CROWN!BB8="",0,(SUM((CROWN!BB8/CROWN!BC8)*3))) -> 40.0625 | AD153: =IF(CROWN!BF8="",0,(SUM((CROWN!BF8/CROWN!BG8)*3))) -> 45.13333333 | AF153: =IF(CROWN!BJ8="",0,(SUM((CROWN!BJ8/CROWN!BK8)*3))) -> 44.75 | AH153: =IF(CROWN!BN8="",0,(SUM((CROWN!BN8/CROWN!BO8)*3))) -> 40.63636364 | AJ153: =IF(CROWN!BR8="",0,(SUM((CROWN!BR8/CROWN!BS8)*3))) -> 33.38095238 | AL153: =IF(CROWN!BV8="",0,(SUM((CROWN!BV8/CROWN!BW8)*3))) -> 0 | AN153: =IF(CROWN!BZ8="",0,(SUM((CROWN!BZ8/CROWN!CA8)*3))) -> 0 | AP153: =IF(CROWN!CD8="",0,(SUM((CROWN!CD8/CROWN!CE8)*3))) -> 0 | AR153: =IF(CROWN!CH8="",0,(SUM((CROWN!CH8/CROWN!CI8)*3))) -> 0
B154: =IF(CROWN!B9="",0,(SUM((CROWN!B9/CROWN!C9)*3))) -> 46.15384615 | D154: =IF(CROWN!F9="",0,(SUM((CROWN!F9/CROWN!G9)*3))) -> 46.25 | F154: =IF(CROWN!J9="",0,(SUM((CROWN!J9/CROWN!K9)*3))) -> 0 | H154: =IF(CROWN!N9="",0,(SUM((CROWN!N9/CROWN!O9)*3))) -> 39.53846154 | J154: =IF(CROWN!R9="",0,(SUM((CROWN!R9/CROWN!S9)*3))) -> 41.23529412 | L154: =IF(CROWN!V9="",0,(SUM((CROWN!V9/CROWN!W9)*3))) -> 44.74468085 | N154: =IF(CROWN!Z9="",0,(SUM((CROWN!Z9/CROWN!AA9)*3))) -> 33.77777778 | P154: =IF(CROWN!AD9="",0,(SUM((CROWN!AD9/CROWN!AE9)*3))) -> 33.84615385 | R154: =IF(CROWN!AH9="",0,(SUM((CROWN!AH9/CROWN!AI9)*3))) -> 25.88235294 | T154: =IF(CROWN!AL9="",0,(SUM((CROWN!AL9/CROWN!AM9)*3))) -> 42.15384615 | V154: =IF(CROWN!AP9="",0,(SUM((CROWN!AP9/CROWN!AQ9)*3))) -> 42.63636364 | X154: =IF(CROWN!AT9="",0,(SUM((CROWN!AT9/CROWN!AU9)*3))) -> 0 | Z154: =IF(CROWN!AX9="",0,(SUM((CROWN!AX9/CROWN!AY9)*3))) -> 46.73333333 | AB154: =IF(CROWN!BB9="",0,(SUM((CROWN!BB9/CROWN!BC9)*3))) -> 34.8 | AD154: =IF(CROWN!BF9="",0,(SUM((CROWN!BF9/CROWN!BG9)*3))) -> 43.6875 | AF154: =IF(CROWN!BJ9="",0,(SUM((CROWN!BJ9/CROWN!BK9)*3))) -> 36.63157895 | AH154: =IF(CROWN!BN9="",0,(SUM((CROWN!BN9/CROWN!BO9)*3))) -> 35.27777778 | AJ154: =IF(CROWN!BR9="",0,(SUM((CROWN!BR9/CROWN!BS9)*3))) -> 39.66666667 | AL154: =IF(CROWN!BV9="",0,(SUM((CROWN!BV9/CROWN!BW9)*3))) -> 0 | AN154: =IF(CROWN!BZ9="",0,(SUM((CROWN!BZ9/CROWN!CA9)*3))) -> 0 | AP154: =IF(CROWN!CD9="",0,(SUM((CROWN!CD9/CROWN!CE9)*3))) -> 0 | AR154: =IF(CROWN!CH9="",0,(SUM((CROWN!CH9/CROWN!CI9)*3))) -> 0
B155: =IF(CROWN!B10="",0,(SUM((CROWN!B10/CROWN!C10)*3))) -> 48.69230769 | D155: =IF(CROWN!F10="",0,(SUM((CROWN!F10/CROWN!G10)*3))) -> 47.33333333 | F155: =IF(CROWN!J10="",0,(SUM((CROWN!J10/CROWN!K10)*3))) -> 0 | H155: =IF(CROWN!N10="",0,(SUM((CROWN!N10/CROWN!O10)*3))) -> 49.64285714 | J155: =IF(CROWN!R10="",0,(SUM((CROWN!R10/CROWN!S10)*3))) -> 52.575 | L155: =IF(CROWN!V10="",0,(SUM((CROWN!V10/CROWN!W10)*3))) -> 50.16666667 | N155: =IF(CROWN!Z10="",0,(SUM((CROWN!Z10/CROWN!AA10)*3))) -> 46.77777778 | P155: =IF(CROWN!AD10="",0,(SUM((CROWN!AD10/CROWN!AE10)*3))) -> 53.92307692 | R155: =IF(CROWN!AH10="",0,(SUM((CROWN!AH10/CROWN!AI10)*3))) -> 45.7173913 | T155: =IF(CROWN!AL10="",0,(SUM((CROWN!AL10/CROWN!AM10)*3))) -> 46.06666667 | V155: =IF(CROWN!AP10="",0,(SUM((CROWN!AP10/CROWN!AQ10)*3))) -> 56.83783784 | X155: =IF(CROWN!AT10="",0,(SUM((CROWN!AT10/CROWN!AU10)*3))) -> 0 | Z155: =IF(CROWN!AX10="",0,(SUM((CROWN!AX10/CROWN!AY10)*3))) -> 66.55555556 | AB155: =IF(CROWN!BB10="",0,(SUM((CROWN!BB10/CROWN!BC10)*3))) -> 36.25862069 | AD155: =IF(CROWN!BF10="",0,(SUM((CROWN!BF10/CROWN!BG10)*3))) -> 48.90697674 | AF155: =IF(CROWN!BJ10="",0,(SUM((CROWN!BJ10/CROWN!BK10)*3))) -> 44.6 | AH155: =IF(CROWN!BN10="",0,(SUM((CROWN!BN10/CROWN!BO10)*3))) -> 51.36363636 | AJ155: =IF(CROWN!BR10="",0,(SUM((CROWN!BR10/CROWN!BS10)*3))) -> 43.84615385 | AL155: =IF(CROWN!BV10="",0,(SUM((CROWN!BV10/CROWN!BW10)*3))) -> 0 | AN155: =IF(CROWN!BZ10="",0,(SUM((CROWN!BZ10/CROWN!CA10)*3))) -> 0 | AP155: =IF(CROWN!CD10="",0,(SUM((CROWN!CD10/CROWN!CE10)*3))) -> 0 | AR155: =IF(CROWN!CH10="",0,(SUM((CROWN!CH10/CROWN!CI10)*3))) -> 0
B156: =IF(CROWN!B11="",0,(SUM((CROWN!B11/CROWN!C11)*3))) -> 0 | D156: =IF(CROWN!F11="",0,(SUM((CROWN!F11/CROWN!G11)*3))) -> 0 | F156: =IF(CROWN!J11="",0,(SUM((CROWN!J11/CROWN!K11)*3))) -> 0 | H156: =IF(CROWN!N11="",0,(SUM((CROWN!N11/CROWN!O11)*3))) -> 0 | J156: =IF(CROWN!R11="",0,(SUM((CROWN!R11/CROWN!S11)*3))) -> 0 | L156: =IF(CROWN!V11="",0,(SUM((CROWN!V11/CROWN!W11)*3))) -> 0 | N156: =IF(CROWN!Z11="",0,(SUM((CROWN!Z11/CROWN!AA11)*3))) -> 0 | P156: =IF(CROWN!AD11="",0,(SUM((CROWN!AD11/CROWN!AE11)*3))) -> 0 | R156: =IF(CROWN!AH11="",0,(SUM((CROWN!AH11/CROWN!AI11)*3))) -> 0 | T156: =IF(CROWN!AL11="",0,(SUM((CROWN!AL11/CROWN!AM11)*3))) -> 38.11111111 | V156: =IF(CROWN!AP11="",0,(SUM((CROWN!AP11/CROWN!AQ11)*3))) -> 0 | X156: =IF(CROWN!AT11="",0,(SUM((CROWN!AT11/CROWN!AU11)*3))) -> 0 | Z156: =IF(CROWN!AX11="",0,(SUM((CROWN!AX11/CROWN!AY11)*3))) -> 0 | AB156: =IF(CROWN!BB11="",0,(SUM((CROWN!BB11/CROWN!BC11)*3))) -> 0 | AD156: =IF(CROWN!BF11="",0,(SUM((CROWN!BF11/CROWN!BG11)*3))) -> 0 | AF156: =IF(CROWN!BJ11="",0,(SUM((CROWN!BJ11/CROWN!BK11)*3))) -> 0 | AH156: =IF(CROWN!BN11="",0,(SUM((CROWN!BN11/CROWN!BO11)*3))) -> 0 | AJ156: =IF(CROWN!BR11="",0,(SUM((CROWN!BR11/CROWN!BS11)*3))) -> 0 | AL156: =IF(CROWN!BV11="",0,(SUM((CROWN!BV11/CROWN!BW11)*3))) -> 0 | AN156: =IF(CROWN!BZ11="",0,(SUM((CROWN!BZ11/CROWN!CA11)*3))) -> 0 | AP156: =IF(CROWN!CD11="",0,(SUM((CROWN!CD11/CROWN!CE11)*3))) -> 0 | AR156: =IF(CROWN!CH11="",0,(SUM((CROWN!CH11/CROWN!CI11)*3))) -> 0
B157: =IF(CROWN!B12="",0,(SUM((CROWN!B12/CROWN!C12)*3))) -> 0 | D157: =IF(CROWN!F12="",0,(SUM((CROWN!F12/CROWN!G12)*3))) -> 0 | F157: =IF(CROWN!J12="",0,(SUM((CROWN!J12/CROWN!K12)*3))) -> 0 | H157: =IF(CROWN!N12="",0,(SUM((CROWN!N12/CROWN!O12)*3))) -> 0 | J157: =IF(CROWN!R12="",0,(SUM((CROWN!R12/CROWN!S12)*3))) -> 0 | L157: =IF(CROWN!V12="",0,(SUM((CROWN!V12/CROWN!W12)*3))) -> 0 | N157: =IF(CROWN!Z12="",0,(SUM((CROWN!Z12/CROWN!AA12)*3))) -> 0 | P157: =IF(CROWN!AD12="",0,(SUM((CROWN!AD12/CROWN!AE12)*3))) -> 0 | R157: =IF(CROWN!AH12="",0,(SUM((CROWN!AH12/CROWN!AI12)*3))) -> 0 | T157: =IF(CROWN!AL12="",0,(SUM((CROWN!AL12/CROWN!AM12)*3))) -> 0 | V157: =IF(CROWN!AP12="",0,(SUM((CROWN!AP12/CROWN!AQ12)*3))) -> 0 | X157: =IF(CROWN!AT12="",0,(SUM((CROWN!AT12/CROWN!AU12)*3))) -> 0 | Z157: =IF(CROWN!AX12="",0,(SUM((CROWN!AX12/CROWN!AY12)*3))) -> 0 | AB157: =IF(CROWN!BB12="",0,(SUM((CROWN!BB12/CROWN!BC12)*3))) -> 0 | AD157: =IF(CROWN!BF12="",0,(SUM((CROWN!BF12/CROWN!BG12)*3))) -> 0 | AF157: =IF(CROWN!BJ12="",0,(SUM((CROWN!BJ12/CROWN!BK12)*3))) -> 0 | AH157: =IF(CROWN!BN12="",0,(SUM((CROWN!BN12/CROWN!BO12)*3))) -> 0 | AJ157: =IF(CROWN!BR12="",0,(SUM((CROWN!BR12/CROWN!BS12)*3))) -> 0 | AL157: =IF(CROWN!BV12="",0,(SUM((CROWN!BV12/CROWN!BW12)*3))) -> 0 | AN157: =IF(CROWN!BZ12="",0,(SUM((CROWN!BZ12/CROWN!CA12)*3))) -> 0 | AP157: =IF(CROWN!CD12="",0,(SUM((CROWN!CD12/CROWN!CE12)*3))) -> 0 | AR157: =IF(CROWN!CH12="",0,(SUM((CROWN!CH12/CROWN!CI12)*3))) -> 0
B158: =IF(CROWN!B13="",0,(SUM((CROWN!B13/CROWN!C13)*3))) -> 0 | D158: =IF(CROWN!F13="",0,(SUM((CROWN!F13/CROWN!G13)*3))) -> 0 | F158: =IF(CROWN!J13="",0,(SUM((CROWN!J13/CROWN!K13)*3))) -> 0 | H158: =IF(CROWN!N13="",0,(SUM((CROWN!N13/CROWN!O13)*3))) -> 0 | J158: =IF(CROWN!R13="",0,(SUM((CROWN!R13/CROWN!S13)*3))) -> 0 | L158: =IF(CROWN!V13="",0,(SUM((CROWN!V13/CROWN!W13)*3))) -> 0 | N158: =IF(CROWN!Z13="",0,(SUM((CROWN!Z13/CROWN!AA13)*3))) -> 0 | P158: =IF(CROWN!AD13="",0,(SUM((CROWN!AD13/CROWN!AE13)*3))) -> 0 | R158: =IF(CROWN!AH13="",0,(SUM((CROWN!AH13/CROWN!AI13)*3))) -> 0 | T158: =IF(CROWN!AL13="",0,(SUM((CROWN!AL13/CROWN!AM13)*3))) -> 0 | V158: =IF(CROWN!AP13="",0,(SUM((CROWN!AP13/CROWN!AQ13)*3))) -> 0 | X158: =IF(CROWN!AT13="",0,(SUM((CROWN!AT13/CROWN!AU13)*3))) -> 0 | Z158: =IF(CROWN!AX13="",0,(SUM((CROWN!AX13/CROWN!AY13)*3))) -> 0 | AB158: =IF(CROWN!BB13="",0,(SUM((CROWN!BB13/CROWN!BC13)*3))) -> 0 | AD158: =IF(CROWN!BF13="",0,(SUM((CROWN!BF13/CROWN!BG13)*3))) -> 0 | AF158: =IF(CROWN!BJ13="",0,(SUM((CROWN!BJ13/CROWN!BK13)*3))) -> 0 | AH158: =IF(CROWN!BN13="",0,(SUM((CROWN!BN13/CROWN!BO13)*3))) -> 0 | AJ158: =IF(CROWN!BR13="",0,(SUM((CROWN!BR13/CROWN!BS13)*3))) -> 0 | AL158: =IF(CROWN!BV13="",0,(SUM((CROWN!BV13/CROWN!BW13)*3))) -> 0 | AN158: =IF(CROWN!BZ13="",0,(SUM((CROWN!BZ13/CROWN!CA13)*3))) -> 0 | AP158: =IF(CROWN!CD13="",0,(SUM((CROWN!CD13/CROWN!CE13)*3))) -> 0 | AR158: =IF(CROWN!CH13="",0,(SUM((CROWN!CH13/CROWN!CI13)*3))) -> 0
B159: =IF(CROWN!B14="",0,(SUM((CROWN!B14/CROWN!C14)*3))) -> 0 | D159: =IF(CROWN!F14="",0,(SUM((CROWN!F14/CROWN!G14)*3))) -> 0 | F159: =IF(CROWN!J14="",0,(SUM((CROWN!J14/CROWN!K14)*3))) -> 0 | H159: =IF(CROWN!N14="",0,(SUM((CROWN!N14/CROWN!O14)*3))) -> 0 | J159: =IF(CROWN!R14="",0,(SUM((CROWN!R14/CROWN!S14)*3))) -> 0 | L159: =IF(CROWN!V14="",0,(SUM((CROWN!V14/CROWN!W14)*3))) -> 0 | N159: =IF(CROWN!Z14="",0,(SUM((CROWN!Z14/CROWN!AA14)*3))) -> 0 | P159: =IF(CROWN!AD14="",0,(SUM((CROWN!AD14/CROWN!AE14)*3))) -> 0 | R159: =IF(CROWN!AH14="",0,(SUM((CROWN!AH14/CROWN!AI14)*3))) -> 0 | T159: =IF(CROWN!AL14="",0,(SUM((CROWN!AL14/CROWN!AM14)*3))) -> 0 | V159: =IF(CROWN!AP14="",0,(SUM((CROWN!AP14/CROWN!AQ14)*3))) -> 0 | X159: =IF(CROWN!AT14="",0,(SUM((CROWN!AT14/CROWN!AU14)*3))) -> 0 | Z159: =IF(CROWN!AX14="",0,(SUM((CROWN!AX14/CROWN!AY14)*3))) -> 0 | AB159: =IF(CROWN!BB14="",0,(SUM((CROWN!BB14/CROWN!BC14)*3))) -> 0 | AD159: =IF(CROWN!BF14="",0,(SUM((CROWN!BF14/CROWN!BG14)*3))) -> 0 | AF159: =IF(CROWN!BJ14="",0,(SUM((CROWN!BJ14/CROWN!BK14)*3))) -> 0 | AH159: =IF(CROWN!BN14="",0,(SUM((CROWN!BN14/CROWN!BO14)*3))) -> 0 | AJ159: =IF(CROWN!BR14="",0,(SUM((CROWN!BR14/CROWN!BS14)*3))) -> 0 | AL159: =IF(CROWN!BV14="",0,(SUM((CROWN!BV14/CROWN!BW14)*3))) -> 0 | AN159: =IF(CROWN!BZ14="",0,(SUM((CROWN!BZ14/CROWN!CA14)*3))) -> 0 | AP159: =IF(CROWN!CD14="",0,(SUM((CROWN!CD14/CROWN!CE14)*3))) -> 0 | AR159: =IF(CROWN!CH14="",0,(SUM((CROWN!CH14/CROWN!CI14)*3))) -> 0
A161: NAGS HEAD | B161: 11/09/2006 V RAFA 'A' (A)
B162: W/L | C162: AVG | D162: W/L | E162: AVG | F162: W/L | G162: AVG | H162: W/L | I162: AVG | J162: W/L | K162: AVG | L162: W/L | M162: AVG | N162: W/L | O162: AVG | P162: W/L | Q162: AVG | R162: W/L | S162: AVG | T162: W/L | U162: AVG | V162: W/L | W162: AVG | X162: W/L | Y162: AVG | Z162: W/L | AA162: AVG | AB162: W/L | AC162: AVG | AD162: W/L | AE162: AVG | AF162: W/L | AG162: AVG | AH162: W/L | AI162: AVG | AJ162: W/L | AK162: AVG | AL162: W/L | AM162: AVG | AN162: W/L | AO162: AVG | AP162: W/L | AQ162: AVG | AR162: W/L | AS162: AVG
A163: ='NAGS HEAD "B"'!A3 -> Andy Johnson | B163: =IF(C176=1,B176,"") -> LOST | C163: =IF(B188>0,B188,"") -> 44.84615385 | D163: =IF(E176=1,D176,"") -> WON | E163: =IF(D188>0,D188,"") -> 51.29268293 | F163: =IF(G176=1,F176,"") -> WON | G163: =IF(F188>0,F188,"") -> 47.79545455 | H163: =IF(I176=1,H176,"") -> LOST | I163: =IF(H188>0,H188,"") -> 42.38461538 | J163: =IF(K176=1,J176,"") -> WON | K163: =IF(J188>0,J188,"") -> 47.79545455 | L163: =IF(M176=1,L176,"") -> WON | M163: =IF(L188>0,L188,"") -> 55.34210526 | N163: =IF(O176=1,N176,"") -> LOST | O163: =IF(N188>0,N188,"") -> 53.22222222 | P163: =IF(Q176=1,P176,"") -> LOST | Q163: =IF(P188>0,P188,"") -> 43.6 | R163: =IF(S176=1,R176,"") ->  | S163: =IF(R188>0,R188,"") ->  | T163: =IF(U176=1,T176,"") -> LOST | U163: =IF(T188>0,T188,"") -> 60.81818182 | V163: =IF(W176=1,V176,"") -> WON | W163: =IF(V188>0,V188,"") -> 63.72727273 | X163: =IF(Y176=1,X176,"") -> WON | Y163: =IF(X188>0,X188,"") -> 65.71875 | Z163: =IF(AA176=1,Z176,"") -> WON | AA163: =IF(Z188>0,Z188,"") -> 52.575 | AB163: =IF(AC176=1,AB176,"") -> LOST | AC163: =IF(AB188>0,AB188,"") -> 46.07692308 | AD163: =IF(AE176=1,AD176,"") ->  | AE163: =IF(AD188>0,AD188,"") ->  | AF163: =IF(AG176=1,AF176,"") -> LOST | AG163: =IF(AF188>0,AF188,"") -> 53.30769231 | AH163: =IF(AI176=1,AH176,"") -> LOST | AI163: =IF(AH188>0,AH188,"") -> 53.27272727 | AJ163: =IF(AK176=1,AJ176,"") ->  | AK163: =IF(AJ188>0,AJ188,"") ->  | AL163: =IF(AM176=1,AL176,"") ->  | AM163: =IF(AL188>0,AL188,"") ->  | AN163: =IF(AO176=1,AN176,"") ->  | AO163: =IF(AN188>0,AN188,"") ->  | AP163: =IF(AQ176=1,AP176,"") ->  | AQ163: =IF(AP188>0,AP188,"") ->  | AR163: =IF(AS176=1,AR176,"") ->  | AS163: =IF(AR188>0,AR188,"") -> 
A164: ='NAGS HEAD "B"'!A4 -> Andy Haw | B164: =IF(C177=1,B177,"") -> LOST | C164: =IF(B189>0,B189,"") -> 42.8125 | D164: =IF(E177=1,D177,"") -> LOST | E164: =IF(D189>0,D189,"") -> 45.66666667 | F164: =IF(G177=1,F177,"") -> LOST | G164: =IF(F189>0,F189,"") -> 41.625 | H164: =IF(I177=1,H177,"") -> WON | I164: =IF(H189>0,H189,"") -> 41.23529412 | J164: =IF(K177=1,J177,"") -> WON | K164: =IF(J189>0,J189,"") -> 43.8125 | L164: =IF(M177=1,L177,"") -> LOST | M164: =IF(L189>0,L189,"") -> 39 | N164: =IF(O177=1,N177,"") ->  | O164: =IF(N189>0,N189,"") ->  | P164: =IF(Q177=1,P177,"") -> LOST | Q164: =IF(P189>0,P189,"") -> 34.11111111 | R164: =IF(S177=1,R177,"") ->  | S164: =IF(R189>0,R189,"") ->  | T164: =IF(U177=1,T177,"") -> LOST | U164: =IF(T189>0,T189,"") -> 49.35714286 | V164: =IF(W177=1,V177,"") -> WON | W164: =IF(V189>0,V189,"") -> 51.29268293 | X164: =IF(Y177=1,X177,"") -> LOST | Y164: =IF(X189>0,X189,"") -> 52.69230769 | Z164: =IF(AA177=1,Z177,"") -> WON | AA164: =IF(Z189>0,Z189,"") -> 35.6440678 | AB164: =IF(AC177=1,AB177,"") -> LOST | AC164: =IF(AB189>0,AB189,"") -> 39.45454545 | AD164: =IF(AE177=1,AD177,"") -> LOST | AE164: =IF(AD189>0,AD189,"") -> 46.33333333 | AF164: =IF(AG177=1,AF177,"") -> LOST | AG164: =IF(AF189>0,AF189,"") -> 56.90909091 | AH164: =IF(AI177=1,AH177,"") -> WON | AI164: =IF(AH189>0,AH189,"") -> 36.25862069 | AJ164: =IF(AK177=1,AJ177,"") ->  | AK164: =IF(AJ189>0,AJ189,"") ->  | AL164: =IF(AM177=1,AL177,"") ->  | AM164: =IF(AL189>0,AL189,"") ->  | AN164: =IF(AO177=1,AN177,"") ->  | AO164: =IF(AN189>0,AN189,"") ->  | AP164: =IF(AQ177=1,AP177,"") ->  | AQ164: =IF(AP189>0,AP189,"") ->  | AR164: =IF(AS177=1,AR177,"") ->  | AS164: =IF(AR189>0,AR189,"") -> 
A165: ='NAGS HEAD "B"'!A5 -> Steve Atkinson | B165: WON | C165: 47.79545455 | J165: WON | K165: 48.90697674 | L165: LOST | M165: 46.6 | N165: LOST | O165: 45.08333333 | P165: WON | Q165: 50.07142857 | T165: LOST | U165: 56.27272727 | V165: LOST | W165: 48.92857143 | X165: LOST | Y165: 48.5 | Z165: LOST | AA165: 30.30434783 | AD165: LOST | AE165: 43.5625 | AF165: LOST | AG165: 45.06666667 | AH165: LOST | AI165: 49.08333333
A166: ='NAGS HEAD "B"'!A6 -> Gaz Lumley | B166: LOST | C166: 52.38461538 | D166: LOST | E166: 48.25 | F166: LOST | G166: 42.5625 | J166: LOST | K166: 46 | L166: WON | M166: 56.83783784 | N166: LOST | O166: 41.21428571 | V166: LOST | W166: 35.85714286 | X166: WON | Y166: 42.91836735 | AB166: LOST | AC166: 52.8 | AD166: WON | AE166: 45.7173913
A167: ='NAGS HEAD "B"'!A7 -> Dave Crilly | B167: LOST | C167: 45.69230769 | D167: LOST | E167: 55.75 | F167: LOST | G167: 44.73333333 | H167: WON | I167: 56.83783784 | J167: LOST | K167: 38.55555556 | N167: LOST | O167: 37.3 | P167: WON | Q167: 52.575 | T167: LOST | U167: 38.16666667 | V167: LOST | W167: 44.6 | X167: WON | Y167: 60.08571429 | Z167: WON | AA167: 45.7173913 | AB167: LOST | AC167: 49.07142857 | AD167: LOST | AE167: 44.91666667 | AF167: LOST | AG167: 66.1 | AH167: LOST | AI167: 55.08333333
A168: ='NAGS HEAD "B"'!A8 -> Steve Cooke | B168: WON | C168: 41.23529412 | D168: WON | E168: 43.8125 | F168: LOST | G168: 46.46666667 | H168: LOST | I168: 39.35294118 | J168: WON | K168: 46.73333333 | L168: WON | M168: 60.08571429 | N168: LOST | O168: 49.57142857 | P168: WON | Q168: 47.79545455 | T168: LOST | U168: 51.66666667 | V168: WON | W168: 56.83783784 | AB168: LOST | AC168: 47.33333333 | AF168: LOST | AG168: 43.76923077 | AH168: LOST | AI168: 48.3
A169: ='NAGS HEAD "B"'!A9 -> Jake Doherty | D169: LOST | E169: 43.6875
A170: ='NAGS HEAD "B"'!A10 -> Steve Gibb
A171: ='NAGS HEAD "B"'!A11 -> Stuart Truman | F171: LOST | G171: 45.8 | H171: WON | I171: 34.47540984 | L171: LOST | M171: 40.13333333 | N171: LOST | O171: 36.7 | P171: LOST | Q171: 37.875 | T171: LOST | U171: 54.58333333 | X171: LOST | Y171: 47.84615385 | Z171: LOST | AA171: 33 | AD171: WON | AE171: 42.06
A172: ='NAGS HEAD "B"'!A12 -> Kenny Kerringan | Z172: LOST | AA172: 47.5 | AB172: LOST | AC172: 51.54545455 | AD172: WON | AE172: 43.8125 | AF172: LOST | AG172: 49.30769231 | AH172: LOST | AI172: 52.875
A173: ='NAGS HEAD "B"'!A13 -> 0
A174: ='NAGS HEAD "B"'!A14 -> 0
A176: NAGS HEAD | B176: =IF('NAGS HEAD "B"'!B3=701,"WON","LOST") -> LOST | C176: =IF('NAGS HEAD "B"'!B3>0,1,0) -> 1 | D176: =IF('NAGS HEAD "B"'!F3=701,"WON","LOST") -> WON | E176: =IF('NAGS HEAD "B"'!F3>0,1,0) -> 1 | F176: =IF('NAGS HEAD "B"'!J3=701,"WON","LOST") -> WON | G176: =IF('NAGS HEAD "B"'!J3>0,1,0) -> 1 | H176: =IF('NAGS HEAD "B"'!N3=701,"WON","LOST") -> LOST | I176: =IF('NAGS HEAD "B"'!N3>0,1,0) -> 1 | J176: =IF('NAGS HEAD "B"'!R3=701,"WON","LOST") -> WON | K176: =IF('NAGS HEAD "B"'!R3>0,1,0) -> 1 | L176: =IF('NAGS HEAD "B"'!V3=701,"WON","LOST") -> WON | M176: =IF('NAGS HEAD "B"'!V3>0,1,0) -> 1 | N176: =IF('NAGS HEAD "B"'!Z3=701,"WON","LOST") -> LOST | O176: =IF('NAGS HEAD "B"'!Z3>0,1,0) -> 1 | P176: =IF('NAGS HEAD "B"'!AD3=701,"WON","LOST") -> LOST | Q176: =IF('NAGS HEAD "B"'!AD3>0,1,0) -> 1 | R176: =IF('NAGS HEAD "B"'!AH3=701,"WON","LOST") -> LOST | S176: =IF('NAGS HEAD "B"'!AH3>0,1,0) -> 0 | T176: =IF('NAGS HEAD "B"'!AL3=701,"WON","LOST") -> LOST | U176: =IF('NAGS HEAD "B"'!AL3>0,1,0) -> 1 | V176: =IF('NAGS HEAD "B"'!AP3=701,"WON","LOST") -> WON | W176: =IF('NAGS HEAD "B"'!AP3>0,1,0) -> 1 | X176: =IF('NAGS HEAD "B"'!AT3=701,"WON","LOST") -> WON | Y176: =IF('NAGS HEAD "B"'!AT3>0,1,0) -> 1 | Z176: =IF('NAGS HEAD "B"'!AX3=701,"WON","LOST") -> WON | AA176: =IF('NAGS HEAD "B"'!AX3>0,1,0) -> 1 | AB176: =IF('NAGS HEAD "B"'!BB3=701,"WON","LOST") -> LOST | AC176: =IF('NAGS HEAD "B"'!BB3>0,1,0) -> 1 | AD176: =IF('NAGS HEAD "B"'!BF3=701,"WON","LOST") -> LOST | AE176: =IF('NAGS HEAD "B"'!BF3>0,1,0) -> 0 | AF176: =IF('NAGS HEAD "B"'!BJ3=701,"WON","LOST") -> LOST | AG176: =IF('NAGS HEAD "B"'!BJ3>0,1,0) -> 1 | AH176: =IF('NAGS HEAD "B"'!BN3=701,"WON","LOST") -> LOST | AI176: =IF('NAGS HEAD "B"'!BN3>0,1,0) -> 1 | AJ176: =IF('NAGS HEAD "B"'!BR3=701,"WON","LOST") -> LOST | AK176: =IF('NAGS HEAD "B"'!BR3>0,1,0) -> 0 | AL176: =IF('NAGS HEAD "B"'!BV3=701,"WON","LOST") -> LOST | AM176: =IF('NAGS HEAD "B"'!BV3>0,1,0) -> 0 | AN176: =IF('NAGS HEAD "B"'!BZ3=701,"WON","LOST") -> LOST | AO176: =IF('NAGS HEAD "B"'!BZ3>0,1,0) -> 0 | AP176: =IF('NAGS HEAD "B"'!CD3=701,"WON","LOST") -> LOST | AQ176: =IF('NAGS HEAD "B"'!CD3>0,1,0) -> 0 | AR176: =IF('NAGS HEAD "B"'!CH3=701,"WON","LOST") -> LOST | AS176: =IF('NAGS HEAD "B"'!CH3>0,1,0) -> 0
B177: =IF('NAGS HEAD "B"'!B4=701,"WON","LOST") -> LOST | C177: =IF('NAGS HEAD "B"'!B4>0,1,0) -> 1 | D177: =IF('NAGS HEAD "B"'!F4=701,"WON","LOST") -> LOST | E177: =IF('NAGS HEAD "B"'!F4>0,1,0) -> 1 | F177: =IF('NAGS HEAD "B"'!J4=701,"WON","LOST") -> LOST | G177: =IF('NAGS HEAD "B"'!J4>0,1,0) -> 1 | H177: =IF('NAGS HEAD "B"'!N4=701,"WON","LOST") -> WON | I177: =IF('NAGS HEAD "B"'!N4>0,1,0) -> 1 | J177: =IF('NAGS HEAD "B"'!R4=701,"WON","LOST") -> WON | K177: =IF('NAGS HEAD "B"'!R4>0,1,0) -> 1 | L177: =IF('NAGS HEAD "B"'!V4=701,"WON","LOST") -> LOST | M177: =IF('NAGS HEAD "B"'!V4>0,1,0) -> 1 | N177: =IF('NAGS HEAD "B"'!Z4=701,"WON","LOST") -> LOST | O177: =IF('NAGS HEAD "B"'!Z4>0,1,0) -> 0 | P177: =IF('NAGS HEAD "B"'!AD4=701,"WON","LOST") -> LOST | Q177: =IF('NAGS HEAD "B"'!AD4>0,1,0) -> 1 | R177: =IF('NAGS HEAD "B"'!AH4=701,"WON","LOST") -> LOST | S177: =IF('NAGS HEAD "B"'!AH4>0,1,0) -> 0 | T177: =IF('NAGS HEAD "B"'!AL4=701,"WON","LOST") -> LOST | U177: =IF('NAGS HEAD "B"'!AL4>0,1,0) -> 1 | V177: =IF('NAGS HEAD "B"'!AP4=701,"WON","LOST") -> WON | W177: =IF('NAGS HEAD "B"'!AP4>0,1,0) -> 1 | X177: =IF('NAGS HEAD "B"'!AT4=701,"WON","LOST") -> LOST | Y177: =IF('NAGS HEAD "B"'!AT4>0,1,0) -> 1 | Z177: =IF('NAGS HEAD "B"'!AX4=701,"WON","LOST") -> WON | AA177: =IF('NAGS HEAD "B"'!AX4>0,1,0) -> 1 | AB177: =IF('NAGS HEAD "B"'!BB4=701,"WON","LOST") -> LOST | AC177: =IF('NAGS HEAD "B"'!BB4>0,1,0) -> 1 | AD177: =IF('NAGS HEAD "B"'!BF4=701,"WON","LOST") -> LOST | AE177: =IF('NAGS HEAD "B"'!BF4>0,1,0) -> 1 | AF177: =IF('NAGS HEAD "B"'!BJ4=701,"WON","LOST") -> LOST | AG177: =IF('NAGS HEAD "B"'!BJ4>0,1,0) -> 1 | AH177: =IF('NAGS HEAD "B"'!BN4=701,"WON","LOST") -> WON | AI177: =IF('NAGS HEAD "B"'!BN4>0,1,0) -> 1 | AJ177: =IF('NAGS HEAD "B"'!BR4=701,"WON","LOST") -> LOST | AK177: =IF('NAGS HEAD "B"'!BR4>0,1,0) -> 0 | AL177: =IF('NAGS HEAD "B"'!BV4=701,"WON","LOST") -> LOST | AM177: =IF('NAGS HEAD "B"'!BV4>0,1,0) -> 0 | AN177: =IF('NAGS HEAD "B"'!BZ4=701,"WON","LOST") -> LOST | AO177: =IF('NAGS HEAD "B"'!BZ4>0,1,0) -> 0 | AP177: =IF('NAGS HEAD "B"'!CD4=701,"WON","LOST") -> LOST | AQ177: =IF('NAGS HEAD "B"'!CD4>0,1,0) -> 0 | AR177: =IF('NAGS HEAD "B"'!CH4=701,"WON","LOST") -> LOST | AS177: =IF('NAGS HEAD "B"'!CH4>0,1,0) -> 0
B178: =IF('NAGS HEAD "B"'!B5=701,"WON","LOST") -> WON | C178: =IF('NAGS HEAD "B"'!B5>0,1,0) -> 1 | D178: =IF('NAGS HEAD "B"'!F5=701,"WON","LOST") -> LOST | E178: =IF('NAGS HEAD "B"'!F5>0,1,0) -> 0 | F178: =IF('NAGS HEAD "B"'!J5=701,"WON","LOST") -> LOST | G178: =IF('NAGS HEAD "B"'!J5>0,1,0) -> 0 | H178: =IF('NAGS HEAD "B"'!N5=701,"WON","LOST") -> LOST | I178: =IF('NAGS HEAD "B"'!N5>0,1,0) -> 0 | J178: =IF('NAGS HEAD "B"'!R5=701,"WON","LOST") -> WON | K178: =IF('NAGS HEAD "B"'!R5>0,1,0) -> 1 | L178: =IF('NAGS HEAD "B"'!V5=701,"WON","LOST") -> LOST | M178: =IF('NAGS HEAD "B"'!V5>0,1,0) -> 1 | N178: =IF('NAGS HEAD "B"'!Z5=701,"WON","LOST") -> LOST | O178: =IF('NAGS HEAD "B"'!Z5>0,1,0) -> 1 | P178: =IF('NAGS HEAD "B"'!AD5=701,"WON","LOST") -> WON | Q178: =IF('NAGS HEAD "B"'!AD5>0,1,0) -> 1 | R178: =IF('NAGS HEAD "B"'!AH5=701,"WON","LOST") -> LOST | S178: =IF('NAGS HEAD "B"'!AH5>0,1,0) -> 0 | T178: =IF('NAGS HEAD "B"'!AL5=701,"WON","LOST") -> LOST | U178: =IF('NAGS HEAD "B"'!AL5>0,1,0) -> 1 | V178: =IF('NAGS HEAD "B"'!AP5=701,"WON","LOST") -> LOST | W178: =IF('NAGS HEAD "B"'!AP5>0,1,0) -> 1 | X178: =IF('NAGS HEAD "B"'!AT5=701,"WON","LOST") -> LOST | Y178: =IF('NAGS HEAD "B"'!AT5>0,1,0) -> 1 | Z178: =IF('NAGS HEAD "B"'!AX5=701,"WON","LOST") -> LOST | AA178: =IF('NAGS HEAD "B"'!AX5>0,1,0) -> 1 | AB178: =IF('NAGS HEAD "B"'!BB5=701,"WON","LOST") -> LOST | AC178: =IF('NAGS HEAD "B"'!BB5>0,1,0) -> 0 | AD178: =IF('NAGS HEAD "B"'!BF5=701,"WON","LOST") -> LOST | AE178: =IF('NAGS HEAD "B"'!BF5>0,1,0) -> 1 | AF178: =IF('NAGS HEAD "B"'!BJ5=701,"WON","LOST") -> LOST | AG178: =IF('NAGS HEAD "B"'!BJ5>0,1,0) -> 1 | AH178: =IF('NAGS HEAD "B"'!BN5=701,"WON","LOST") -> LOST | AI178: =IF('NAGS HEAD "B"'!BN5>0,1,0) -> 1 | AJ178: =IF('NAGS HEAD "B"'!BR5=701,"WON","LOST") -> LOST | AK178: =IF('NAGS HEAD "B"'!BR5>0,1,0) -> 0 | AL178: =IF('NAGS HEAD "B"'!BV5=701,"WON","LOST") -> LOST | AM178: =IF('NAGS HEAD "B"'!BV5>0,1,0) -> 0 | AN178: =IF('NAGS HEAD "B"'!BZ5=701,"WON","LOST") -> LOST | AO178: =IF('NAGS HEAD "B"'!BZ5>0,1,0) -> 0 | AP178: =IF('NAGS HEAD "B"'!CD5=701,"WON","LOST") -> LOST | AQ178: =IF('NAGS HEAD "B"'!CD5>0,1,0) -> 0 | AR178: =IF('NAGS HEAD "B"'!CH5=701,"WON","LOST") -> LOST | AS178: =IF('NAGS HEAD "B"'!CH5>0,1,0) -> 0
B179: =IF('NAGS HEAD "B"'!B6=701,"WON","LOST") -> LOST | C179: =IF('NAGS HEAD "B"'!B6>0,1,0) -> 1 | D179: =IF('NAGS HEAD "B"'!F6=701,"WON","LOST") -> LOST | E179: =IF('NAGS HEAD "B"'!F6>0,1,0) -> 1 | F179: =IF('NAGS HEAD "B"'!J6=701,"WON","LOST") -> LOST | G179: =IF('NAGS HEAD "B"'!J6>0,1,0) -> 1 | H179: =IF('NAGS HEAD "B"'!N6=701,"WON","LOST") -> LOST | I179: =IF('NAGS HEAD "B"'!N6>0,1,0) -> 0 | J179: =IF('NAGS HEAD "B"'!R6=701,"WON","LOST") -> LOST | K179: =IF('NAGS HEAD "B"'!R6>0,1,0) -> 1 | L179: =IF('NAGS HEAD "B"'!V6=701,"WON","LOST") -> WON | M179: =IF('NAGS HEAD "B"'!V6>0,1,0) -> 1 | N179: =IF('NAGS HEAD "B"'!Z6=701,"WON","LOST") -> LOST | O179: =IF('NAGS HEAD "B"'!Z6>0,1,0) -> 1 | P179: =IF('NAGS HEAD "B"'!AD6=701,"WON","LOST") -> LOST | Q179: =IF('NAGS HEAD "B"'!AD6>0,1,0) -> 0 | R179: =IF('NAGS HEAD "B"'!AH6=701,"WON","LOST") -> LOST | S179: =IF('NAGS HEAD "B"'!AH6>0,1,0) -> 0 | T179: =IF('NAGS HEAD "B"'!AL6=701,"WON","LOST") -> LOST | U179: =IF('NAGS HEAD "B"'!AL6>0,1,0) -> 0 | V179: =IF('NAGS HEAD "B"'!AP6=701,"WON","LOST") -> LOST | W179: =IF('NAGS HEAD "B"'!AP6>0,1,0) -> 1 | X179: =IF('NAGS HEAD "B"'!AT6=701,"WON","LOST") -> WON | Y179: =IF('NAGS HEAD "B"'!AT6>0,1,0) -> 1 | Z179: =IF('NAGS HEAD "B"'!AX6=701,"WON","LOST") -> LOST | AA179: =IF('NAGS HEAD "B"'!AX6>0,1,0) -> 0 | AB179: =IF('NAGS HEAD "B"'!BB6=701,"WON","LOST") -> LOST | AC179: =IF('NAGS HEAD "B"'!BB6>0,1,0) -> 1 | AD179: =IF('NAGS HEAD "B"'!BF6=701,"WON","LOST") -> WON | AE179: =IF('NAGS HEAD "B"'!BF6>0,1,0) -> 1 | AF179: =IF('NAGS HEAD "B"'!BJ6=701,"WON","LOST") -> LOST | AG179: =IF('NAGS HEAD "B"'!BJ6>0,1,0) -> 0 | AH179: =IF('NAGS HEAD "B"'!BN6=701,"WON","LOST") -> LOST | AI179: =IF('NAGS HEAD "B"'!BN6>0,1,0) -> 0 | AJ179: =IF('NAGS HEAD "B"'!BR6=701,"WON","LOST") -> LOST | AK179: =IF('NAGS HEAD "B"'!BR6>0,1,0) -> 0 | AL179: =IF('NAGS HEAD "B"'!BV6=701,"WON","LOST") -> LOST | AM179: =IF('NAGS HEAD "B"'!BV6>0,1,0) -> 0 | AN179: =IF('NAGS HEAD "B"'!BZ6=701,"WON","LOST") -> LOST | AO179: =IF('NAGS HEAD "B"'!BZ6>0,1,0) -> 0 | AP179: =IF('NAGS HEAD "B"'!CD6=701,"WON","LOST") -> LOST | AQ179: =IF('NAGS HEAD "B"'!CD6>0,1,0) -> 0 | AR179: =IF('NAGS HEAD "B"'!CH6=701,"WON","LOST") -> LOST | AS179: =IF('NAGS HEAD "B"'!CH6>0,1,0) -> 0
B180: =IF('NAGS HEAD "B"'!B7=701,"WON","LOST") -> LOST | C180: =IF('NAGS HEAD "B"'!B7>0,1,0) -> 1 | D180: =IF('NAGS HEAD "B"'!F7=701,"WON","LOST") -> LOST | E180: =IF('NAGS HEAD "B"'!F7>0,1,0) -> 1 | F180: =IF('NAGS HEAD "B"'!J7=701,"WON","LOST") -> LOST | G180: =IF('NAGS HEAD "B"'!J7>0,1,0) -> 1 | H180: =IF('NAGS HEAD "B"'!N7=701,"WON","LOST") -> WON | I180: =IF('NAGS HEAD "B"'!N7>0,1,0) -> 1 | J180: =IF('NAGS HEAD "B"'!R7=701,"WON","LOST") -> LOST | K180: =IF('NAGS HEAD "B"'!R7>0,1,0) -> 1 | L180: =IF('NAGS HEAD "B"'!V7=701,"WON","LOST") -> LOST | M180: =IF('NAGS HEAD "B"'!V7>0,1,0) -> 0 | N180: =IF('NAGS HEAD "B"'!Z7=701,"WON","LOST") -> LOST | O180: =IF('NAGS HEAD "B"'!Z7>0,1,0) -> 1 | P180: =IF('NAGS HEAD "B"'!AD7=701,"WON","LOST") -> WON | Q180: =IF('NAGS HEAD "B"'!AD7>0,1,0) -> 1 | R180: =IF('NAGS HEAD "B"'!AH7=701,"WON","LOST") -> LOST | S180: =IF('NAGS HEAD "B"'!AH7>0,1,0) -> 0 | T180: =IF('NAGS HEAD "B"'!AL7=701,"WON","LOST") -> LOST | U180: =IF('NAGS HEAD "B"'!AL7>0,1,0) -> 1 | V180: =IF('NAGS HEAD "B"'!AP7=701,"WON","LOST") -> LOST | W180: =IF('NAGS HEAD "B"'!AP7>0,1,0) -> 1 | X180: =IF('NAGS HEAD "B"'!AT7=701,"WON","LOST") -> WON | Y180: =IF('NAGS HEAD "B"'!AT7>0,1,0) -> 1 | Z180: =IF('NAGS HEAD "B"'!AX7=701,"WON","LOST") -> WON | AA180: =IF('NAGS HEAD "B"'!AX7>0,1,0) -> 1 | AB180: =IF('NAGS HEAD "B"'!BB7=701,"WON","LOST") -> LOST | AC180: =IF('NAGS HEAD "B"'!BB7>0,1,0) -> 1 | AD180: =IF('NAGS HEAD "B"'!BF7=701,"WON","LOST") -> LOST | AE180: =IF('NAGS HEAD "B"'!BF7>0,1,0) -> 1 | AF180: =IF('NAGS HEAD "B"'!BJ7=701,"WON","LOST") -> LOST | AG180: =IF('NAGS HEAD "B"'!BJ7>0,1,0) -> 1 | AH180: =IF('NAGS HEAD "B"'!BN7=701,"WON","LOST") -> LOST | AI180: =IF('NAGS HEAD "B"'!BN7>0,1,0) -> 1 | AJ180: =IF('NAGS HEAD "B"'!BR7=701,"WON","LOST") -> LOST | AK180: =IF('NAGS HEAD "B"'!BR7>0,1,0) -> 0 | AL180: =IF('NAGS HEAD "B"'!BV7=701,"WON","LOST") -> LOST | AM180: =IF('NAGS HEAD "B"'!BV7>0,1,0) -> 0 | AN180: =IF('NAGS HEAD "B"'!BZ7=701,"WON","LOST") -> LOST | AO180: =IF('NAGS HEAD "B"'!BZ7>0,1,0) -> 0 | AP180: =IF('NAGS HEAD "B"'!CD7=701,"WON","LOST") -> LOST | AQ180: =IF('NAGS HEAD "B"'!CD7>0,1,0) -> 0 | AR180: =IF('NAGS HEAD "B"'!CH7=701,"WON","LOST") -> LOST | AS180: =IF('NAGS HEAD "B"'!CH7>0,1,0) -> 0
B181: =IF('NAGS HEAD "B"'!B8=701,"WON","LOST") -> WON | C181: =IF('NAGS HEAD "B"'!B8>0,1,0) -> 1 | D181: =IF('NAGS HEAD "B"'!F8=701,"WON","LOST") -> WON | E181: =IF('NAGS HEAD "B"'!F8>0,1,0) -> 1 | F181: =IF('NAGS HEAD "B"'!J8=701,"WON","LOST") -> LOST | G181: =IF('NAGS HEAD "B"'!J8>0,1,0) -> 1 | H181: =IF('NAGS HEAD "B"'!N8=701,"WON","LOST") -> LOST | I181: =IF('NAGS HEAD "B"'!N8>0,1,0) -> 1 | J181: =IF('NAGS HEAD "B"'!R8=701,"WON","LOST") -> WON | K181: =IF('NAGS HEAD "B"'!R8>0,1,0) -> 1 | L181: =IF('NAGS HEAD "B"'!V8=701,"WON","LOST") -> WON | M181: =IF('NAGS HEAD "B"'!V8>0,1,0) -> 1 | N181: =IF('NAGS HEAD "B"'!Z8=701,"WON","LOST") -> LOST | O181: =IF('NAGS HEAD "B"'!Z8>0,1,0) -> 1 | P181: =IF('NAGS HEAD "B"'!AD8=701,"WON","LOST") -> WON | Q181: =IF('NAGS HEAD "B"'!AD8>0,1,0) -> 1 | R181: =IF('NAGS HEAD "B"'!AH8=701,"WON","LOST") -> LOST | S181: =IF('NAGS HEAD "B"'!AH8>0,1,0) -> 0 | T181: =IF('NAGS HEAD "B"'!AL8=701,"WON","LOST") -> LOST | U181: =IF('NAGS HEAD "B"'!AL8>0,1,0) -> 1 | V181: =IF('NAGS HEAD "B"'!AP8=701,"WON","LOST") -> WON | W181: =IF('NAGS HEAD "B"'!AP8>0,1,0) -> 1 | X181: =IF('NAGS HEAD "B"'!AT8=701,"WON","LOST") -> LOST | Y181: =IF('NAGS HEAD "B"'!AT8>0,1,0) -> 0 | Z181: =IF('NAGS HEAD "B"'!AX8=701,"WON","LOST") -> LOST | AA181: =IF('NAGS HEAD "B"'!AX8>0,1,0) -> 0 | AB181: =IF('NAGS HEAD "B"'!BB8=701,"WON","LOST") -> LOST | AC181: =IF('NAGS HEAD "B"'!BB8>0,1,0) -> 1 | AD181: =IF('NAGS HEAD "B"'!BF8=701,"WON","LOST") -> LOST | AE181: =IF('NAGS HEAD "B"'!BF8>0,1,0) -> 0 | AF181: =IF('NAGS HEAD "B"'!BJ8=701,"WON","LOST") -> LOST | AG181: =IF('NAGS HEAD "B"'!BJ8>0,1,0) -> 1 | AH181: =IF('NAGS HEAD "B"'!BN8=701,"WON","LOST") -> LOST | AI181: =IF('NAGS HEAD "B"'!BN8>0,1,0) -> 1 | AJ181: =IF('NAGS HEAD "B"'!BR8=701,"WON","LOST") -> LOST | AK181: =IF('NAGS HEAD "B"'!BR8>0,1,0) -> 0 | AL181: =IF('NAGS HEAD "B"'!BV8=701,"WON","LOST") -> LOST | AM181: =IF('NAGS HEAD "B"'!BV8>0,1,0) -> 0 | AN181: =IF('NAGS HEAD "B"'!BZ8=701,"WON","LOST") -> LOST | AO181: =IF('NAGS HEAD "B"'!BZ8>0,1,0) -> 0 | AP181: =IF('NAGS HEAD "B"'!CD8=701,"WON","LOST") -> LOST | AQ181: =IF('NAGS HEAD "B"'!CD8>0,1,0) -> 0 | AR181: =IF('NAGS HEAD "B"'!CH8=701,"WON","LOST") -> LOST | AS181: =IF('NAGS HEAD "B"'!CH8>0,1,0) -> 0
B182: =IF('NAGS HEAD "B"'!B9=701,"WON","LOST") -> LOST | C182: =IF('NAGS HEAD "B"'!B9>0,1,0) -> 0 | D182: =IF('NAGS HEAD "B"'!F9=701,"WON","LOST") -> LOST | E182: =IF('NAGS HEAD "B"'!F9>0,1,0) -> 1 | F182: =IF('NAGS HEAD "B"'!J9=701,"WON","LOST") -> LOST | G182: =IF('NAGS HEAD "B"'!J9>0,1,0) -> 0 | H182: =IF('NAGS HEAD "B"'!N9=701,"WON","LOST") -> LOST | I182: =IF('NAGS HEAD "B"'!N9>0,1,0) -> 0 | J182: =IF('NAGS HEAD "B"'!R9=701,"WON","LOST") -> LOST | K182: =IF('NAGS HEAD "B"'!R9>0,1,0) -> 0 | L182: =IF('NAGS HEAD "B"'!V9=701,"WON","LOST") -> LOST | M182: =IF('NAGS HEAD "B"'!V9>0,1,0) -> 0 | N182: =IF('NAGS HEAD "B"'!Z9=701,"WON","LOST") -> LOST | O182: =IF('NAGS HEAD "B"'!Z9>0,1,0) -> 0 | P182: =IF('NAGS HEAD "B"'!AD9=701,"WON","LOST") -> LOST | Q182: =IF('NAGS HEAD "B"'!AD9>0,1,0) -> 0 | R182: =IF('NAGS HEAD "B"'!AH9=701,"WON","LOST") -> LOST | S182: =IF('NAGS HEAD "B"'!AH9>0,1,0) -> 0 | T182: =IF('NAGS HEAD "B"'!AL9=701,"WON","LOST") -> LOST | U182: =IF('NAGS HEAD "B"'!AL9>0,1,0) -> 0 | V182: =IF('NAGS HEAD "B"'!AP9=701,"WON","LOST") -> LOST | W182: =IF('NAGS HEAD "B"'!AP9>0,1,0) -> 0 | X182: =IF('NAGS HEAD "B"'!AT9=701,"WON","LOST") -> LOST | Y182: =IF('NAGS HEAD "B"'!AT9>0,1,0) -> 0 | Z182: =IF('NAGS HEAD "B"'!AX9=701,"WON","LOST") -> LOST | AA182: =IF('NAGS HEAD "B"'!AX9>0,1,0) -> 0 | AB182: =IF('NAGS HEAD "B"'!BB9=701,"WON","LOST") -> LOST | AC182: =IF('NAGS HEAD "B"'!BB9>0,1,0) -> 0 | AD182: =IF('NAGS HEAD "B"'!BF9=701,"WON","LOST") -> LOST | AE182: =IF('NAGS HEAD "B"'!BF9>0,1,0) -> 0 | AF182: =IF('NAGS HEAD "B"'!BJ9=701,"WON","LOST") -> LOST | AG182: =IF('NAGS HEAD "B"'!BJ9>0,1,0) -> 0 | AH182: =IF('NAGS HEAD "B"'!BN9=701,"WON","LOST") -> LOST | AI182: =IF('NAGS HEAD "B"'!BN9>0,1,0) -> 0 | AJ182: =IF('NAGS HEAD "B"'!BR9=701,"WON","LOST") -> LOST | AK182: =IF('NAGS HEAD "B"'!BR9>0,1,0) -> 0 | AL182: =IF('NAGS HEAD "B"'!BV9=701,"WON","LOST") -> LOST | AM182: =IF('NAGS HEAD "B"'!BV9>0,1,0) -> 0 | AN182: =IF('NAGS HEAD "B"'!BZ9=701,"WON","LOST") -> LOST | AO182: =IF('NAGS HEAD "B"'!BZ9>0,1,0) -> 0 | AP182: =IF('NAGS HEAD "B"'!CD9=701,"WON","LOST") -> LOST | AQ182: =IF('NAGS HEAD "B"'!CD9>0,1,0) -> 0 | AR182: =IF('NAGS HEAD "B"'!CH9=701,"WON","LOST") -> LOST | AS182: =IF('NAGS HEAD "B"'!CH9>0,1,0) -> 0
B183: =IF('NAGS HEAD "B"'!B10=701,"WON","LOST") -> LOST | C183: =IF('NAGS HEAD "B"'!B10>0,1,0) -> 0 | D183: =IF('NAGS HEAD "B"'!F10=701,"WON","LOST") -> LOST | E183: =IF('NAGS HEAD "B"'!F10>0,1,0) -> 0 | F183: =IF('NAGS HEAD "B"'!J10=701,"WON","LOST") -> LOST | G183: =IF('NAGS HEAD "B"'!J10>0,1,0) -> 0 | H183: =IF('NAGS HEAD "B"'!N10=701,"WON","LOST") -> LOST | I183: =IF('NAGS HEAD "B"'!N10>0,1,0) -> 0 | J183: =IF('NAGS HEAD "B"'!R10=701,"WON","LOST") -> LOST | K183: =IF('NAGS HEAD "B"'!R10>0,1,0) -> 0 | L183: =IF('NAGS HEAD "B"'!V10=701,"WON","LOST") -> LOST | M183: =IF('NAGS HEAD "B"'!V10>0,1,0) -> 0 | N183: =IF('NAGS HEAD "B"'!Z10=701,"WON","LOST") -> LOST | O183: =IF('NAGS HEAD "B"'!Z10>0,1,0) -> 0 | P183: =IF('NAGS HEAD "B"'!AD10=701,"WON","LOST") -> LOST | Q183: =IF('NAGS HEAD "B"'!AD10>0,1,0) -> 0 | R183: =IF('NAGS HEAD "B"'!AH10=701,"WON","LOST") -> LOST | S183: =IF('NAGS HEAD "B"'!AH10>0,1,0) -> 0 | T183: =IF('NAGS HEAD "B"'!AL10=701,"WON","LOST") -> LOST | U183: =IF('NAGS HEAD "B"'!AL10>0,1,0) -> 0 | V183: =IF('NAGS HEAD "B"'!AP10=701,"WON","LOST") -> LOST | W183: =IF('NAGS HEAD "B"'!AP10>0,1,0) -> 0 | X183: =IF('NAGS HEAD "B"'!AT10=701,"WON","LOST") -> LOST | Y183: =IF('NAGS HEAD "B"'!AT10>0,1,0) -> 0 | Z183: =IF('NAGS HEAD "B"'!AX10=701,"WON","LOST") -> LOST | AA183: =IF('NAGS HEAD "B"'!AX10>0,1,0) -> 0 | AB183: =IF('NAGS HEAD "B"'!BB10=701,"WON","LOST") -> LOST | AC183: =IF('NAGS HEAD "B"'!BB10>0,1,0) -> 0 | AD183: =IF('NAGS HEAD "B"'!BF10=701,"WON","LOST") -> LOST | AE183: =IF('NAGS HEAD "B"'!BF10>0,1,0) -> 0 | AF183: =IF('NAGS HEAD "B"'!BJ10=701,"WON","LOST") -> LOST | AG183: =IF('NAGS HEAD "B"'!BJ10>0,1,0) -> 0 | AH183: =IF('NAGS HEAD "B"'!BN10=701,"WON","LOST") -> LOST | AI183: =IF('NAGS HEAD "B"'!BN10>0,1,0) -> 0 | AJ183: =IF('NAGS HEAD "B"'!BR10=701,"WON","LOST") -> LOST | AK183: =IF('NAGS HEAD "B"'!BR10>0,1,0) -> 0 | AL183: =IF('NAGS HEAD "B"'!BV10=701,"WON","LOST") -> LOST | AM183: =IF('NAGS HEAD "B"'!BV10>0,1,0) -> 0 | AN183: =IF('NAGS HEAD "B"'!BZ10=701,"WON","LOST") -> LOST | AO183: =IF('NAGS HEAD "B"'!BZ10>0,1,0) -> 0 | AP183: =IF('NAGS HEAD "B"'!CD10=701,"WON","LOST") -> LOST | AQ183: =IF('NAGS HEAD "B"'!CD10>0,1,0) -> 0 | AR183: =IF('NAGS HEAD "B"'!CH10=701,"WON","LOST") -> LOST | AS183: =IF('NAGS HEAD "B"'!CH10>0,1,0) -> 0
B184: =IF('NAGS HEAD "B"'!B11=701,"WON","LOST") -> LOST | C184: =IF('NAGS HEAD "B"'!B11>0,1,0) -> 0 | D184: =IF('NAGS HEAD "B"'!F11=701,"WON","LOST") -> LOST | E184: =IF('NAGS HEAD "B"'!F11>0,1,0) -> 0 | F184: =IF('NAGS HEAD "B"'!J11=701,"WON","LOST") -> LOST | G184: =IF('NAGS HEAD "B"'!J11>0,1,0) -> 1 | H184: =IF('NAGS HEAD "B"'!N11=701,"WON","LOST") -> WON | I184: =IF('NAGS HEAD "B"'!N11>0,1,0) -> 1 | J184: =IF('NAGS HEAD "B"'!R11=701,"WON","LOST") -> LOST | K184: =IF('NAGS HEAD "B"'!R11>0,1,0) -> 0 | L184: =IF('NAGS HEAD "B"'!V11=701,"WON","LOST") -> LOST | M184: =IF('NAGS HEAD "B"'!V11>0,1,0) -> 1 | N184: =IF('NAGS HEAD "B"'!Z11=701,"WON","LOST") -> LOST | O184: =IF('NAGS HEAD "B"'!Z11>0,1,0) -> 1 | P184: =IF('NAGS HEAD "B"'!AD11=701,"WON","LOST") -> LOST | Q184: =IF('NAGS HEAD "B"'!AD11>0,1,0) -> 1 | R184: =IF('NAGS HEAD "B"'!AH11=701,"WON","LOST") -> LOST | S184: =IF('NAGS HEAD "B"'!AH11>0,1,0) -> 0 | T184: =IF('NAGS HEAD "B"'!AL11=701,"WON","LOST") -> LOST | U184: =IF('NAGS HEAD "B"'!AL11>0,1,0) -> 1 | V184: =IF('NAGS HEAD "B"'!AP11=701,"WON","LOST") -> LOST | W184: =IF('NAGS HEAD "B"'!AP11>0,1,0) -> 0 | X184: =IF('NAGS HEAD "B"'!AT11=701,"WON","LOST") -> LOST | Y184: =IF('NAGS HEAD "B"'!AT11>0,1,0) -> 1 | Z184: =IF('NAGS HEAD "B"'!AX11=701,"WON","LOST") -> LOST | AA184: =IF('NAGS HEAD "B"'!AX11>0,1,0) -> 1 | AB184: =IF('NAGS HEAD "B"'!BB11=701,"WON","LOST") -> LOST | AC184: =IF('NAGS HEAD "B"'!BB11>0,1,0) -> 0 | AD184: =IF('NAGS HEAD "B"'!BF11=701,"WON","LOST") -> WON | AE184: =IF('NAGS HEAD "B"'!BF11>0,1,0) -> 1 | AF184: =IF('NAGS HEAD "B"'!BJ11=701,"WON","LOST") -> LOST | AG184: =IF('NAGS HEAD "B"'!BJ11>0,1,0) -> 0 | AH184: =IF('NAGS HEAD "B"'!BN11=701,"WON","LOST") -> LOST | AI184: =IF('NAGS HEAD "B"'!BN11>0,1,0) -> 0 | AJ184: =IF('NAGS HEAD "B"'!BR11=701,"WON","LOST") -> LOST | AK184: =IF('NAGS HEAD "B"'!BR11>0,1,0) -> 0 | AL184: =IF('NAGS HEAD "B"'!BV11=701,"WON","LOST") -> LOST | AM184: =IF('NAGS HEAD "B"'!BV11>0,1,0) -> 0 | AN184: =IF('NAGS HEAD "B"'!BZ11=701,"WON","LOST") -> LOST | AO184: =IF('NAGS HEAD "B"'!BZ11>0,1,0) -> 0 | AP184: =IF('NAGS HEAD "B"'!CD11=701,"WON","LOST") -> LOST | AQ184: =IF('NAGS HEAD "B"'!CD11>0,1,0) -> 0 | AR184: =IF('NAGS HEAD "B"'!CH11=701,"WON","LOST") -> LOST | AS184: =IF('NAGS HEAD "B"'!CH11>0,1,0) -> 0
B185: =IF('NAGS HEAD "B"'!B12=701,"WON","LOST") -> LOST | C185: =IF('NAGS HEAD "B"'!B12>0,1,0) -> 0 | D185: =IF('NAGS HEAD "B"'!F12=701,"WON","LOST") -> LOST | E185: =IF('NAGS HEAD "B"'!F12>0,1,0) -> 0 | F185: =IF('NAGS HEAD "B"'!J12=701,"WON","LOST") -> LOST | G185: =IF('NAGS HEAD "B"'!J12>0,1,0) -> 0 | H185: =IF('NAGS HEAD "B"'!N12=701,"WON","LOST") -> LOST | I185: =IF('NAGS HEAD "B"'!N12>0,1,0) -> 0 | J185: =IF('NAGS HEAD "B"'!R12=701,"WON","LOST") -> LOST | K185: =IF('NAGS HEAD "B"'!R12>0,1,0) -> 0 | L185: =IF('NAGS HEAD "B"'!V12=701,"WON","LOST") -> LOST | M185: =IF('NAGS HEAD "B"'!V12>0,1,0) -> 0 | N185: =IF('NAGS HEAD "B"'!Z12=701,"WON","LOST") -> LOST | O185: =IF('NAGS HEAD "B"'!Z12>0,1,0) -> 0 | P185: =IF('NAGS HEAD "B"'!AD12=701,"WON","LOST") -> LOST | Q185: =IF('NAGS HEAD "B"'!AD12>0,1,0) -> 0 | R185: =IF('NAGS HEAD "B"'!AH12=701,"WON","LOST") -> LOST | S185: =IF('NAGS HEAD "B"'!AH12>0,1,0) -> 0 | T185: =IF('NAGS HEAD "B"'!AL12=701,"WON","LOST") -> LOST | U185: =IF('NAGS HEAD "B"'!AL12>0,1,0) -> 0 | V185: =IF('NAGS HEAD "B"'!AP12=701,"WON","LOST") -> LOST | W185: =IF('NAGS HEAD "B"'!AP12>0,1,0) -> 0 | X185: =IF('NAGS HEAD "B"'!AT12=701,"WON","LOST") -> LOST | Y185: =IF('NAGS HEAD "B"'!AT12>0,1,0) -> 0 | Z185: =IF('NAGS HEAD "B"'!AX12=701,"WON","LOST") -> LOST | AA185: =IF('NAGS HEAD "B"'!AX12>0,1,0) -> 1 | AB185: =IF('NAGS HEAD "B"'!BB12=701,"WON","LOST") -> LOST | AC185: =IF('NAGS HEAD "B"'!BB12>0,1,0) -> 1 | AD185: =IF('NAGS HEAD "B"'!BF12=701,"WON","LOST") -> WON | AE185: =IF('NAGS HEAD "B"'!BF12>0,1,0) -> 1 | AF185: =IF('NAGS HEAD "B"'!BJ12=701,"WON","LOST") -> LOST | AG185: =IF('NAGS HEAD "B"'!BJ12>0,1,0) -> 1 | AH185: =IF('NAGS HEAD "B"'!BN12=701,"WON","LOST") -> LOST | AI185: =IF('NAGS HEAD "B"'!BN12>0,1,0) -> 1 | AJ185: =IF('NAGS HEAD "B"'!BR12=701,"WON","LOST") -> LOST | AK185: =IF('NAGS HEAD "B"'!BR12>0,1,0) -> 0 | AL185: =IF('NAGS HEAD "B"'!BV12=701,"WON","LOST") -> LOST | AM185: =IF('NAGS HEAD "B"'!BV12>0,1,0) -> 0 | AN185: =IF('NAGS HEAD "B"'!BZ12=701,"WON","LOST") -> LOST | AO185: =IF('NAGS HEAD "B"'!BZ12>0,1,0) -> 0 | AP185: =IF('NAGS HEAD "B"'!CD12=701,"WON","LOST") -> LOST | AQ185: =IF('NAGS HEAD "B"'!CD12>0,1,0) -> 0 | AR185: =IF('NAGS HEAD "B"'!CH12=701,"WON","LOST") -> LOST | AS185: =IF('NAGS HEAD "B"'!CH12>0,1,0) -> 0
B186: =IF('NAGS HEAD "B"'!B13=701,"WON","LOST") -> LOST | C186: =IF('NAGS HEAD "B"'!B13>0,1,0) -> 0 | D186: =IF('NAGS HEAD "B"'!F13=701,"WON","LOST") -> LOST | E186: =IF('NAGS HEAD "B"'!F13>0,1,0) -> 0 | F186: =IF('NAGS HEAD "B"'!J13=701,"WON","LOST") -> LOST | G186: =IF('NAGS HEAD "B"'!J13>0,1,0) -> 0 | H186: =IF('NAGS HEAD "B"'!N13=701,"WON","LOST") -> LOST | I186: =IF('NAGS HEAD "B"'!N13>0,1,0) -> 0 | J186: =IF('NAGS HEAD "B"'!R13=701,"WON","LOST") -> LOST | K186: =IF('NAGS HEAD "B"'!R13>0,1,0) -> 0 | L186: =IF('NAGS HEAD "B"'!V13=701,"WON","LOST") -> LOST | M186: =IF('NAGS HEAD "B"'!V13>0,1,0) -> 0 | N186: =IF('NAGS HEAD "B"'!Z13=701,"WON","LOST") -> LOST | O186: =IF('NAGS HEAD "B"'!Z13>0,1,0) -> 0 | P186: =IF('NAGS HEAD "B"'!AD13=701,"WON","LOST") -> LOST | Q186: =IF('NAGS HEAD "B"'!AD13>0,1,0) -> 0 | R186: =IF('NAGS HEAD "B"'!AH13=701,"WON","LOST") -> LOST | S186: =IF('NAGS HEAD "B"'!AH13>0,1,0) -> 0 | T186: =IF('NAGS HEAD "B"'!AL13=701,"WON","LOST") -> LOST | U186: =IF('NAGS HEAD "B"'!AL13>0,1,0) -> 0 | V186: =IF('NAGS HEAD "B"'!AP13=701,"WON","LOST") -> LOST | W186: =IF('NAGS HEAD "B"'!AP13>0,1,0) -> 0 | X186: =IF('NAGS HEAD "B"'!AT13=701,"WON","LOST") -> LOST | Y186: =IF('NAGS HEAD "B"'!AT13>0,1,0) -> 0 | Z186: =IF('NAGS HEAD "B"'!AX13=701,"WON","LOST") -> LOST | AA186: =IF('NAGS HEAD "B"'!AX13>0,1,0) -> 0 | AB186: =IF('NAGS HEAD "B"'!BB13=701,"WON","LOST") -> LOST | AC186: =IF('NAGS HEAD "B"'!BB13>0,1,0) -> 0 | AD186: =IF('NAGS HEAD "B"'!BF13=701,"WON","LOST") -> LOST | AE186: =IF('NAGS HEAD "B"'!BF13>0,1,0) -> 0 | AF186: =IF('NAGS HEAD "B"'!BJ13=701,"WON","LOST") -> LOST | AG186: =IF('NAGS HEAD "B"'!BJ13>0,1,0) -> 0 | AH186: =IF('NAGS HEAD "B"'!BN13=701,"WON","LOST") -> LOST | AI186: =IF('NAGS HEAD "B"'!BN13>0,1,0) -> 0 | AJ186: =IF('NAGS HEAD "B"'!BR13=701,"WON","LOST") -> LOST | AK186: =IF('NAGS HEAD "B"'!BR13>0,1,0) -> 0 | AL186: =IF('NAGS HEAD "B"'!BV13=701,"WON","LOST") -> LOST | AM186: =IF('NAGS HEAD "B"'!BV13>0,1,0) -> 0 | AN186: =IF('NAGS HEAD "B"'!BZ13=701,"WON","LOST") -> LOST | AO186: =IF('NAGS HEAD "B"'!BZ13>0,1,0) -> 0 | AP186: =IF('NAGS HEAD "B"'!CD13=701,"WON","LOST") -> LOST | AQ186: =IF('NAGS HEAD "B"'!CD13>0,1,0) -> 0 | AR186: =IF('NAGS HEAD "B"'!CH13=701,"WON","LOST") -> LOST | AS186: =IF('NAGS HEAD "B"'!CH13>0,1,0) -> 0
B187: =IF('NAGS HEAD "B"'!B14=701,"WON","LOST") -> LOST | C187: =IF('NAGS HEAD "B"'!B14>0,1,0) -> 0 | D187: =IF('NAGS HEAD "B"'!F14=701,"WON","LOST") -> LOST | E187: =IF('NAGS HEAD "B"'!F14>0,1,0) -> 0 | F187: =IF('NAGS HEAD "B"'!J14=701,"WON","LOST") -> LOST | G187: =IF('NAGS HEAD "B"'!J14>0,1,0) -> 0 | H187: =IF('NAGS HEAD "B"'!N14=701,"WON","LOST") -> LOST | I187: =IF('NAGS HEAD "B"'!N14>0,1,0) -> 0 | J187: =IF('NAGS HEAD "B"'!R14=701,"WON","LOST") -> LOST | K187: =IF('NAGS HEAD "B"'!R14>0,1,0) -> 0 | L187: =IF('NAGS HEAD "B"'!V14=701,"WON","LOST") -> LOST | M187: =IF('NAGS HEAD "B"'!V14>0,1,0) -> 0 | N187: =IF('NAGS HEAD "B"'!Z14=701,"WON","LOST") -> LOST | O187: =IF('NAGS HEAD "B"'!Z14>0,1,0) -> 0 | P187: =IF('NAGS HEAD "B"'!AD14=701,"WON","LOST") -> LOST | Q187: =IF('NAGS HEAD "B"'!AD14>0,1,0) -> 0 | R187: =IF('NAGS HEAD "B"'!AH14=701,"WON","LOST") -> LOST | S187: =IF('NAGS HEAD "B"'!AH14>0,1,0) -> 0 | T187: =IF('NAGS HEAD "B"'!AL14=701,"WON","LOST") -> LOST | U187: =IF('NAGS HEAD "B"'!AL14>0,1,0) -> 0 | V187: =IF('NAGS HEAD "B"'!AP14=701,"WON","LOST") -> LOST | W187: =IF('NAGS HEAD "B"'!AP14>0,1,0) -> 0 | X187: =IF('NAGS HEAD "B"'!AT14=701,"WON","LOST") -> LOST | Y187: =IF('NAGS HEAD "B"'!AT14>0,1,0) -> 0 | Z187: =IF('NAGS HEAD "B"'!AX14=701,"WON","LOST") -> LOST | AA187: =IF('NAGS HEAD "B"'!AX14>0,1,0) -> 0 | AB187: =IF('NAGS HEAD "B"'!BB14=701,"WON","LOST") -> LOST | AC187: =IF('NAGS HEAD "B"'!BB14>0,1,0) -> 0 | AD187: =IF('NAGS HEAD "B"'!BF14=701,"WON","LOST") -> LOST | AE187: =IF('NAGS HEAD "B"'!BF14>0,1,0) -> 0 | AF187: =IF('NAGS HEAD "B"'!BJ14=701,"WON","LOST") -> LOST | AG187: =IF('NAGS HEAD "B"'!BJ14>0,1,0) -> 0 | AH187: =IF('NAGS HEAD "B"'!BN14=701,"WON","LOST") -> LOST | AI187: =IF('NAGS HEAD "B"'!BN14>0,1,0) -> 0 | AJ187: =IF('NAGS HEAD "B"'!BR14=701,"WON","LOST") -> LOST | AK187: =IF('NAGS HEAD "B"'!BR14>0,1,0) -> 0 | AL187: =IF('NAGS HEAD "B"'!BV14=701,"WON","LOST") -> LOST | AM187: =IF('NAGS HEAD "B"'!BV14>0,1,0) -> 0 | AN187: =IF('NAGS HEAD "B"'!BZ14=701,"WON","LOST") -> LOST | AO187: =IF('NAGS HEAD "B"'!BZ14>0,1,0) -> 0 | AP187: =IF('NAGS HEAD "B"'!CD14=701,"WON","LOST") -> LOST | AQ187: =IF('NAGS HEAD "B"'!CD14>0,1,0) -> 0 | AR187: =IF('NAGS HEAD "B"'!CH14=701,"WON","LOST") -> LOST | AS187: =IF('NAGS HEAD "B"'!CH14>0,1,0) -> 0
B188: =IF('NAGS HEAD "B"'!B3="",0,(SUM(('NAGS HEAD "B"'!B3/'NAGS HEAD "B"'!C3)*3))) -> 44.84615385 | D188: =IF('NAGS HEAD "B"'!F3="",0,(SUM(('NAGS HEAD "B"'!F3/'NAGS HEAD "B"'!G3)*3))) -> 51.29268293 | F188: =IF('NAGS HEAD "B"'!J3="",0,(SUM(('NAGS HEAD "B"'!J3/'NAGS HEAD "B"'!K3)*3))) -> 47.79545455 | H188: =IF('NAGS HEAD "B"'!N3="",0,(SUM(('NAGS HEAD "B"'!N3/'NAGS HEAD "B"'!O3)*3))) -> 42.38461538 | J188: =IF('NAGS HEAD "B"'!R3="",0,(SUM(('NAGS HEAD "B"'!R3/'NAGS HEAD "B"'!S3)*3))) -> 47.79545455 | L188: =IF('NAGS HEAD "B"'!V3="",0,(SUM(('NAGS HEAD "B"'!V3/'NAGS HEAD "B"'!W3)*3))) -> 55.34210526 | N188: =IF('NAGS HEAD "B"'!Z3="",0,(SUM(('NAGS HEAD "B"'!Z3/'NAGS HEAD "B"'!AA3)*3))) -> 53.22222222 | P188: =IF('NAGS HEAD "B"'!AD3="",0,(SUM(('NAGS HEAD "B"'!AD3/'NAGS HEAD "B"'!AE3)*3))) -> 43.6 | R188: =IF('NAGS HEAD "B"'!AH3="",0,(SUM(('NAGS HEAD "B"'!AH3/'NAGS HEAD "B"'!AI3)*3))) -> 0 | T188: =IF('NAGS HEAD "B"'!AL3="",0,(SUM(('NAGS HEAD "B"'!AL3/'NAGS HEAD "B"'!AM3)*3))) -> 60.81818182 | V188: =IF('NAGS HEAD "B"'!AP3="",0,(SUM(('NAGS HEAD "B"'!AP3/'NAGS HEAD "B"'!AQ3)*3))) -> 63.72727273 | X188: =IF('NAGS HEAD "B"'!AT3="",0,(SUM(('NAGS HEAD "B"'!AT3/'NAGS HEAD "B"'!AU3)*3))) -> 65.71875 | Z188: =IF('NAGS HEAD "B"'!AX3="",0,(SUM(('NAGS HEAD "B"'!AX3/'NAGS HEAD "B"'!AY3)*3))) -> 52.575 | AB188: =IF('NAGS HEAD "B"'!BB3="",0,(SUM(('NAGS HEAD "B"'!BB3/'NAGS HEAD "B"'!BC3)*3))) -> 46.07692308 | AD188: =IF('NAGS HEAD "B"'!BF3="",0,(SUM(('NAGS HEAD "B"'!BF3/'NAGS HEAD "B"'!BG3)*3))) -> 0 | AF188: =IF('NAGS HEAD "B"'!BJ3="",0,(SUM(('NAGS HEAD "B"'!BJ3/'NAGS HEAD "B"'!BK3)*3))) -> 53.30769231 | AH188: =IF('NAGS HEAD "B"'!BN3="",0,(SUM(('NAGS HEAD "B"'!BN3/'NAGS HEAD "B"'!BO3)*3))) -> 53.27272727 | AJ188: =IF('NAGS HEAD "B"'!BR3="",0,(SUM(('NAGS HEAD "B"'!BR3/'NAGS HEAD "B"'!BS3)*3))) -> 0 | AL188: =IF('NAGS HEAD "B"'!BV3="",0,(SUM(('NAGS HEAD "B"'!BV3/'NAGS HEAD "B"'!BW3)*3))) -> 0 | AN188: =IF('NAGS HEAD "B"'!BZ3="",0,(SUM(('NAGS HEAD "B"'!BZ3/'NAGS HEAD "B"'!CA3)*3))) -> 0 | AP188: =IF('NAGS HEAD "B"'!CD3="",0,(SUM(('NAGS HEAD "B"'!CD3/'NAGS HEAD "B"'!CE3)*3))) -> 0 | AR188: =IF('NAGS HEAD "B"'!CH3="",0,(SUM(('NAGS HEAD "B"'!CH3/'NAGS HEAD "B"'!CI3)*3))) -> 0
B189: =IF('NAGS HEAD "B"'!B4="",0,(SUM(('NAGS HEAD "B"'!B4/'NAGS HEAD "B"'!C4)*3))) -> 42.8125 | D189: =IF('NAGS HEAD "B"'!F4="",0,(SUM(('NAGS HEAD "B"'!F4/'NAGS HEAD "B"'!G4)*3))) -> 45.66666667 | F189: =IF('NAGS HEAD "B"'!J4="",0,(SUM(('NAGS HEAD "B"'!J4/'NAGS HEAD "B"'!K4)*3))) -> 41.625 | H189: =IF('NAGS HEAD "B"'!N4="",0,(SUM(('NAGS HEAD "B"'!N4/'NAGS HEAD "B"'!O4)*3))) -> 41.23529412 | J189: =IF('NAGS HEAD "B"'!R4="",0,(SUM(('NAGS HEAD "B"'!R4/'NAGS HEAD "B"'!S4)*3))) -> 43.8125 | L189: =IF('NAGS HEAD "B"'!V4="",0,(SUM(('NAGS HEAD "B"'!V4/'NAGS HEAD "B"'!W4)*3))) -> 39 | N189: =IF('NAGS HEAD "B"'!Z4="",0,(SUM(('NAGS HEAD "B"'!Z4/'NAGS HEAD "B"'!AA4)*3))) -> 0 | P189: =IF('NAGS HEAD "B"'!AD4="",0,(SUM(('NAGS HEAD "B"'!AD4/'NAGS HEAD "B"'!AE4)*3))) -> 34.11111111 | R189: =IF('NAGS HEAD "B"'!AH4="",0,(SUM(('NAGS HEAD "B"'!AH4/'NAGS HEAD "B"'!AI4)*3))) -> 0 | T189: =IF('NAGS HEAD "B"'!AL4="",0,(SUM(('NAGS HEAD "B"'!AL4/'NAGS HEAD "B"'!AM4)*3))) -> 49.35714286 | V189: =IF('NAGS HEAD "B"'!AP4="",0,(SUM(('NAGS HEAD "B"'!AP4/'NAGS HEAD "B"'!AQ4)*3))) -> 51.29268293 | X189: =IF('NAGS HEAD "B"'!AT4="",0,(SUM(('NAGS HEAD "B"'!AT4/'NAGS HEAD "B"'!AU4)*3))) -> 52.69230769 | Z189: =IF('NAGS HEAD "B"'!AX4="",0,(SUM(('NAGS HEAD "B"'!AX4/'NAGS HEAD "B"'!AY4)*3))) -> 35.6440678 | AB189: =IF('NAGS HEAD "B"'!BB4="",0,(SUM(('NAGS HEAD "B"'!BB4/'NAGS HEAD "B"'!BC4)*3))) -> 39.45454545 | AD189: =IF('NAGS HEAD "B"'!BF4="",0,(SUM(('NAGS HEAD "B"'!BF4/'NAGS HEAD "B"'!BG4)*3))) -> 46.33333333 | AF189: =IF('NAGS HEAD "B"'!BJ4="",0,(SUM(('NAGS HEAD "B"'!BJ4/'NAGS HEAD "B"'!BK4)*3))) -> 56.90909091 | AH189: =IF('NAGS HEAD "B"'!BN4="",0,(SUM(('NAGS HEAD "B"'!BN4/'NAGS HEAD "B"'!BO4)*3))) -> 36.25862069 | AJ189: =IF('NAGS HEAD "B"'!BR4="",0,(SUM(('NAGS HEAD "B"'!BR4/'NAGS HEAD "B"'!BS4)*3))) -> 0 | AL189: =IF('NAGS HEAD "B"'!BV4="",0,(SUM(('NAGS HEAD "B"'!BV4/'NAGS HEAD "B"'!BW4)*3))) -> 0 | AN189: =IF('NAGS HEAD "B"'!BZ4="",0,(SUM(('NAGS HEAD "B"'!BZ4/'NAGS HEAD "B"'!CA4)*3))) -> 0 | AP189: =IF('NAGS HEAD "B"'!CD4="",0,(SUM(('NAGS HEAD "B"'!CD4/'NAGS HEAD "B"'!CE4)*3))) -> 0 | AR189: =IF('NAGS HEAD "B"'!CH4="",0,(SUM(('NAGS HEAD "B"'!CH4/'NAGS HEAD "B"'!CI4)*3))) -> 0
B190: =IF('NAGS HEAD "B"'!B5="",0,(SUM(('NAGS HEAD "B"'!B5/'NAGS HEAD "B"'!C5)*3))) -> 47.79545455 | D190: =IF('NAGS HEAD "B"'!F5="",0,(SUM(('NAGS HEAD "B"'!F5/'NAGS HEAD "B"'!G5)*3))) -> 0 | F190: =IF('NAGS HEAD "B"'!J5="",0,(SUM(('NAGS HEAD "B"'!J5/'NAGS HEAD "B"'!K5)*3))) -> 0 | H190: =IF('NAGS HEAD "B"'!N5="",0,(SUM(('NAGS HEAD "B"'!N5/'NAGS HEAD "B"'!O5)*3))) -> 0 | J190: =IF('NAGS HEAD "B"'!R5="",0,(SUM(('NAGS HEAD "B"'!R5/'NAGS HEAD "B"'!S5)*3))) -> 48.90697674 | L190: =IF('NAGS HEAD "B"'!V5="",0,(SUM(('NAGS HEAD "B"'!V5/'NAGS HEAD "B"'!W5)*3))) -> 46.6 | N190: =IF('NAGS HEAD "B"'!Z5="",0,(SUM(('NAGS HEAD "B"'!Z5/'NAGS HEAD "B"'!AA5)*3))) -> 45.08333333 | P190: =IF('NAGS HEAD "B"'!AD5="",0,(SUM(('NAGS HEAD "B"'!AD5/'NAGS HEAD "B"'!AE5)*3))) -> 50.07142857 | R190: =IF('NAGS HEAD "B"'!AH5="",0,(SUM(('NAGS HEAD "B"'!AH5/'NAGS HEAD "B"'!AI5)*3))) -> 0 | T190: =IF('NAGS HEAD "B"'!AL5="",0,(SUM(('NAGS HEAD "B"'!AL5/'NAGS HEAD "B"'!AM5)*3))) -> 56.27272727 | V190: =IF('NAGS HEAD "B"'!AP5="",0,(SUM(('NAGS HEAD "B"'!AP5/'NAGS HEAD "B"'!AQ5)*3))) -> 48.92857143 | X190: =IF('NAGS HEAD "B"'!AT5="",0,(SUM(('NAGS HEAD "B"'!AT5/'NAGS HEAD "B"'!AU5)*3))) -> 48.5 | Z190: =IF('NAGS HEAD "B"'!AX5="",0,(SUM(('NAGS HEAD "B"'!AX5/'NAGS HEAD "B"'!AY5)*3))) -> 30.30434783 | AB190: =IF('NAGS HEAD "B"'!BB5="",0,(SUM(('NAGS HEAD "B"'!BB5/'NAGS HEAD "B"'!BC5)*3))) -> 0 | AD190: =IF('NAGS HEAD "B"'!BF5="",0,(SUM(('NAGS HEAD "B"'!BF5/'NAGS HEAD "B"'!BG5)*3))) -> 43.5625 | AF190: =IF('NAGS HEAD "B"'!BJ5="",0,(SUM(('NAGS HEAD "B"'!BJ5/'NAGS HEAD "B"'!BK5)*3))) -> 45.06666667 | AH190: =IF('NAGS HEAD "B"'!BN5="",0,(SUM(('NAGS HEAD "B"'!BN5/'NAGS HEAD "B"'!BO5)*3))) -> 49.08333333 | AJ190: =IF('NAGS HEAD "B"'!BR5="",0,(SUM(('NAGS HEAD "B"'!BR5/'NAGS HEAD "B"'!BS5)*3))) -> 0 | AL190: =IF('NAGS HEAD "B"'!BV5="",0,(SUM(('NAGS HEAD "B"'!BV5/'NAGS HEAD "B"'!BW5)*3))) -> 0 | AN190: =IF('NAGS HEAD "B"'!BZ5="",0,(SUM(('NAGS HEAD "B"'!BZ5/'NAGS HEAD "B"'!CA5)*3))) -> 0 | AP190: =IF('NAGS HEAD "B"'!CD5="",0,(SUM(('NAGS HEAD "B"'!CD5/'NAGS HEAD "B"'!CE5)*3))) -> 0 | AR190: =IF('NAGS HEAD "B"'!CH5="",0,(SUM(('NAGS HEAD "B"'!CH5/'NAGS HEAD "B"'!CI5)*3))) -> 0
B191: =IF('NAGS HEAD "B"'!B6="",0,(SUM(('NAGS HEAD "B"'!B6/'NAGS HEAD "B"'!C6)*3))) -> 52.38461538 | D191: =IF('NAGS HEAD "B"'!F6="",0,(SUM(('NAGS HEAD "B"'!F6/'NAGS HEAD "B"'!G6)*3))) -> 48.25 | F191: =IF('NAGS HEAD "B"'!J6="",0,(SUM(('NAGS HEAD "B"'!J6/'NAGS HEAD "B"'!K6)*3))) -> 42.5625 | H191: =IF('NAGS HEAD "B"'!N6="",0,(SUM(('NAGS HEAD "B"'!N6/'NAGS HEAD "B"'!O6)*3))) -> 0 | J191: =IF('NAGS HEAD "B"'!R6="",0,(SUM(('NAGS HEAD "B"'!R6/'NAGS HEAD "B"'!S6)*3))) -> 46 | L191: =IF('NAGS HEAD "B"'!V6="",0,(SUM(('NAGS HEAD "B"'!V6/'NAGS HEAD "B"'!W6)*3))) -> 56.83783784 | N191: =IF('NAGS HEAD "B"'!Z6="",0,(SUM(('NAGS HEAD "B"'!Z6/'NAGS HEAD "B"'!AA6)*3))) -> 41.21428571 | P191: =IF('NAGS HEAD "B"'!AD6="",0,(SUM(('NAGS HEAD "B"'!AD6/'NAGS HEAD "B"'!AE6)*3))) -> 0 | R191: =IF('NAGS HEAD "B"'!AH6="",0,(SUM(('NAGS HEAD "B"'!AH6/'NAGS HEAD "B"'!AI6)*3))) -> 0 | T191: =IF('NAGS HEAD "B"'!AL6="",0,(SUM(('NAGS HEAD "B"'!AL6/'NAGS HEAD "B"'!AM6)*3))) -> 0 | V191: =IF('NAGS HEAD "B"'!AP6="",0,(SUM(('NAGS HEAD "B"'!AP6/'NAGS HEAD "B"'!AQ6)*3))) -> 35.85714286 | X191: =IF('NAGS HEAD "B"'!AT6="",0,(SUM(('NAGS HEAD "B"'!AT6/'NAGS HEAD "B"'!AU6)*3))) -> 42.91836735 | Z191: =IF('NAGS HEAD "B"'!AX6="",0,(SUM(('NAGS HEAD "B"'!AX6/'NAGS HEAD "B"'!AY6)*3))) -> 0 | AB191: =IF('NAGS HEAD "B"'!BB6="",0,(SUM(('NAGS HEAD "B"'!BB6/'NAGS HEAD "B"'!BC6)*3))) -> 52.8 | AD191: =IF('NAGS HEAD "B"'!BF6="",0,(SUM(('NAGS HEAD "B"'!BF6/'NAGS HEAD "B"'!BG6)*3))) -> 45.7173913 | AF191: =IF('NAGS HEAD "B"'!BJ6="",0,(SUM(('NAGS HEAD "B"'!BJ6/'NAGS HEAD "B"'!BK6)*3))) -> 0 | AH191: =IF('NAGS HEAD "B"'!BN6="",0,(SUM(('NAGS HEAD "B"'!BN6/'NAGS HEAD "B"'!BO6)*3))) -> 0 | AJ191: =IF('NAGS HEAD "B"'!BR6="",0,(SUM(('NAGS HEAD "B"'!BR6/'NAGS HEAD "B"'!BS6)*3))) -> 0 | AL191: =IF('NAGS HEAD "B"'!BV6="",0,(SUM(('NAGS HEAD "B"'!BV6/'NAGS HEAD "B"'!BW6)*3))) -> 0 | AN191: =IF('NAGS HEAD "B"'!BZ6="",0,(SUM(('NAGS HEAD "B"'!BZ6/'NAGS HEAD "B"'!CA6)*3))) -> 0 | AP191: =IF('NAGS HEAD "B"'!CD6="",0,(SUM(('NAGS HEAD "B"'!CD6/'NAGS HEAD "B"'!CE6)*3))) -> 0 | AR191: =IF('NAGS HEAD "B"'!CH6="",0,(SUM(('NAGS HEAD "B"'!CH6/'NAGS HEAD "B"'!CI6)*3))) -> 0
B192: =IF('NAGS HEAD "B"'!B7="",0,(SUM(('NAGS HEAD "B"'!B7/'NAGS HEAD "B"'!C7)*3))) -> 45.69230769 | D192: =IF('NAGS HEAD "B"'!F7="",0,(SUM(('NAGS HEAD "B"'!F7/'NAGS HEAD "B"'!G7)*3))) -> 55.75 | F192: =IF('NAGS HEAD "B"'!J7="",0,(SUM(('NAGS HEAD "B"'!J7/'NAGS HEAD "B"'!K7)*3))) -> 44.73333333 | H192: =IF('NAGS HEAD "B"'!N7="",0,(SUM(('NAGS HEAD "B"'!N7/'NAGS HEAD "B"'!O7)*3))) -> 56.83783784 | J192: =IF('NAGS HEAD "B"'!R7="",0,(SUM(('NAGS HEAD "B"'!R7/'NAGS HEAD "B"'!S7)*3))) -> 38.55555556 | L192: =IF('NAGS HEAD "B"'!V7="",0,(SUM(('NAGS HEAD "B"'!V7/'NAGS HEAD "B"'!W7)*3))) -> 0 | N192: =IF('NAGS HEAD "B"'!Z7="",0,(SUM(('NAGS HEAD "B"'!Z7/'NAGS HEAD "B"'!AA7)*3))) -> 37.3 | P192: =IF('NAGS HEAD "B"'!AD7="",0,(SUM(('NAGS HEAD "B"'!AD7/'NAGS HEAD "B"'!AE7)*3))) -> 52.575 | R192: =IF('NAGS HEAD "B"'!AH7="",0,(SUM(('NAGS HEAD "B"'!AH7/'NAGS HEAD "B"'!AI7)*3))) -> 0 | T192: =IF('NAGS HEAD "B"'!AL7="",0,(SUM(('NAGS HEAD "B"'!AL7/'NAGS HEAD "B"'!AM7)*3))) -> 38.16666667 | V192: =IF('NAGS HEAD "B"'!AP7="",0,(SUM(('NAGS HEAD "B"'!AP7/'NAGS HEAD "B"'!AQ7)*3))) -> 44.6 | X192: =IF('NAGS HEAD "B"'!AT7="",0,(SUM(('NAGS HEAD "B"'!AT7/'NAGS HEAD "B"'!AU7)*3))) -> 60.08571429 | Z192: =IF('NAGS HEAD "B"'!AX7="",0,(SUM(('NAGS HEAD "B"'!AX7/'NAGS HEAD "B"'!AY7)*3))) -> 45.7173913 | AB192: =IF('NAGS HEAD "B"'!BB7="",0,(SUM(('NAGS HEAD "B"'!BB7/'NAGS HEAD "B"'!BC7)*3))) -> 49.07142857 | AD192: =IF('NAGS HEAD "B"'!BF7="",0,(SUM(('NAGS HEAD "B"'!BF7/'NAGS HEAD "B"'!BG7)*3))) -> 44.91666667 | AF192: =IF('NAGS HEAD "B"'!BJ7="",0,(SUM(('NAGS HEAD "B"'!BJ7/'NAGS HEAD "B"'!BK7)*3))) -> 66.1 | AH192: =IF('NAGS HEAD "B"'!BN7="",0,(SUM(('NAGS HEAD "B"'!BN7/'NAGS HEAD "B"'!BO7)*3))) -> 55.08333333 | AJ192: =IF('NAGS HEAD "B"'!BR7="",0,(SUM(('NAGS HEAD "B"'!BR7/'NAGS HEAD "B"'!BS7)*3))) -> 0 | AL192: =IF('NAGS HEAD "B"'!BV7="",0,(SUM(('NAGS HEAD "B"'!BV7/'NAGS HEAD "B"'!BW7)*3))) -> 0 | AN192: =IF('NAGS HEAD "B"'!BZ7="",0,(SUM(('NAGS HEAD "B"'!BZ7/'NAGS HEAD "B"'!CA7)*3))) -> 0 | AP192: =IF('NAGS HEAD "B"'!CD7="",0,(SUM(('NAGS HEAD "B"'!CD7/'NAGS HEAD "B"'!CE7)*3))) -> 0 | AR192: =IF('NAGS HEAD "B"'!CH7="",0,(SUM(('NAGS HEAD "B"'!CH7/'NAGS HEAD "B"'!CI7)*3))) -> 0
